{"text_format":"1","workbook":"xlsx","n_sheets":16,"sheets":["COVER","ACTIVE ROOM TYPES","RATE PLANS","RATE LEVELS","RATE PLAN & ROOM TYPE COMBO","PROPERTY ACKNOWLEDGEMENT","MW ACCESS","NoRatesAssigned","ActiveResNoRoom","NoRoomAssign","Close Date Form","Guarantee & CXL","Access DB","PLANS","GTD Cancel Policy Set-Up","PaymentProcessing"],"not_rendered":{"charts":0,"images":2,"macros":1,"external_links":1,"defined_names":8,"comments":0,"pivot_tables":0},"unopened":[],"bounds":{"document_bytes":16777216,"sheet_cells":100000,"rows_first":2000,"rows_last":500,"rows_between":2000,"halvings":0,"cell_chars":16384,"cell_head_chars":4096},"cells_cut":0,"cells_raw":0,"read":"whole","date_system":"1900"}

{"sheet":"COVER","index":0,"n_rows":64,"n_cols":27,"rows_kept":64,"cut":false,"hidden":false,"merged":[[25,9,25,12],[4,2,4,10],[0,2,1,10],[2,2,3,10],[6,0,6,12],[0,11,5,12],[5,2,5,10],[0,0,5,1],[23,2,23,5],[23,0,23,1],[23,7,23,8],[25,7,25,8],[24,0,24,1],[24,2,24,5],[17,2,17,5],[22,0,22,1],[26,9,26,12],[32,11,32,12],[33,11,33,12],[33,7,33,8],[28,9,28,12],[27,7,27,8],[27,9,27,12],[37,0,37,12],[35,0,35,12],[36,0,36,12],[28,0,28,1],[28,2,28,5],[28,7,28,8],[33,0,33,5],[26,0,26,1],[26,2,26,5],[32,7,32,8],[32,0,32,5],[25,0,25,1],[26,7,26,8],[27,0,27,1],[27,2,27,5],[25,2,25,5],[22,2,22,5],[17,0,17,1],[8,7,9,12],[15,2,15,5],[16,2,16,5],[8,0,9,5],[12,0,12,1],[16,0,16,1],[15,0,15,1],[14,0,14,1],[13,0,13,1],[13,2,13,5],[15,7,15,8],[12,2,12,5],[10,0,10,5],[10,7,10,12],[11,9,11,12],[11,2,11,5],[11,0,11,1],[12,7,12,8],[12,9,12,12],[11,7,11,8],[19,7,20,12],[19,0,20,5],[21,7,21,12],[14,7,14,8],[13,9,13,12],[15,9,15,12],[16,9,16,12],[17,7,17,8],[14,9,14,12],[13,7,13,8],[14,2,14,5],[18,9,18,12],[16,7,16,8],[17,9,17,12],[21,0,21,5],[23,9,23,12],[22,7,22,8],[24,9,24,12],[24,7,24,8],[22,9,22,12]]}
[null,null,"Best Western Two-Way Interface"]
[]
[null,null,"PRE-IMPLEMENTATION PACKET"]
[]
[null,null,"Date Created"]
[null,null,"2014-11-27T08:20:57"]
[]
[null,null,null,null,null,null,null,null,null,null,null,null,null,null,null,null,null,null,null,null,null,null,null,null,null,null,"Vendor Choices"]
["PROPERTY INFORMATION",null,null,null,null,null,null,"VENDOR INFORMATION",null,null,null,null,null,null,null,null,null,null,null,null,null,null,null,null,null,null,"Column1"]
[null,null,null,null,null,null,null,null,null,null,null,null,null,null,null,null,null,null,null,null,null,null,null,null,null,null,"Advantage Management Software"]
[null,null,null,null,null,null,null,null,null,null,null,null,null,null,null,null,null,null,null,null,null,null,null,null,null,null,"AutoClerk, Inc."]
["Property #:",null,"999999",null,null,null,null,"Attn:",null,{"$f":"VLOOKUP($J$13,'Access DB'!AA$2:AG$21,2,FALSE)","v":0},null,null,null,null,null,null,null,null,null,null,null,null,null,null,null,null,"Brilliant Hotel Software"]
["Hotel Name:",null,"BW Demo Hotel",null,null,null,null,"Vendor Name:",null,"Protel",null,null,null,null,null,null,null,null,null,null,null,null,null,null,null,null,"Guestline"]
["City, State:",null,"Dortmund, Germany",null,null,null,null,"Address:",null,{"$f":"VLOOKUP($J$13,'Access DB'!AA$2:AG$21,3,FALSE)","v":0},null,null,null,null,null,null,null,null,null,null,null,null,null,null,null,null,"Hoist"]
["Contact:",null,"protel BWI Support",null,null,null,null,"City/State/Zip:",null,{"$f":"VLOOKUP($J$13,'Access DB'!AA$2:AG$21,4,FALSE)","v":0},null,null,null,null,null,null,null,null,null,null,null,null,null,null,null,null,"Image Technology Systems"]
["Phone:",null,"49 231 915930",null,null,null,null,"Phone:",null,{"$f":"VLOOKUP($J$13,'Access DB'!AA$2:AG$21,5,FALSE)","v":0},null,null,null,null,null,null,null,null,null,null,null,null,null,null,null,null,"Infor"]
["Fax:",null,"49 231 91593999",null,null,null,null,"Fax:",null,{"$f":"VLOOKUP($J$13,'Access DB'!AA$2:AG$21,6,FALSE)","v":0},null,null,null,null,null,null,null,null,null,null,null,null,null,null,null,null,"Micros"]
["E-Mail:",null,"bestwestern@protel.net",null,null,null,null,"Email:",null,{"$f":"VLOOKUP($J$13,'Access DB'!AA$2:AG$21,7,FALSE)","v":0},null,null,null,null,null,null,null,null,null,null,null,null,null,null,null,null,"Micros - Hosted"]
[null,null,null,null,null,null,null,null,null,null,null,null,null,null,null,null,null,null,null,null,null,null,null,null,null,null,"MSI -  NiteVision"]
["BW PRE-IMPLEMENTATION ANALYST",null,null,null,null,null,null,"BW REVENUE MANAGEMENT SERVICES",null,null,null,null,null,null,null,null,null,null,null,null,null,null,null,null,null,null,"MSI - CloudPM"]
[null,null,null,null,null,null,null,null,null,null,null,null,null,null,null,null,null,null,null,null,null,null,null,null,null,null,"MSI - NovaPlus"]
[null,null,null,null,null,null,null,null,null,null,null,null,null,null,null,null,null,null,null,null,null,null,null,null,null,null,"MSI - WinPM"]
["Name:",null,null,null,null,null,null,"Name:",null,null,null,null,null,null,null,null,null,null,null,null,null,null,null,null,null,null,"Protel"]
["Title:",null,{"$f":"VLOOKUP(C23,'Access DB'!AA24:AG38,2,FALSE)","v":{"$error":"#N/A"}},null,null,null,null,"Title:",null,{"$f":"VLOOKUP($J$23,'Access DB'!AA41:AG70,2,FALSE)","v":{"$error":"#N/A"}},null,null,null,null,null,null,null,null,null,null,null,null,null,null,null,null,"Suite 8"]
["Address:",null,{"$f":"VLOOKUP(C23,'Access DB'!AA24:AG38,3,FALSE)","v":{"$error":"#N/A"}},null,null,null,null,"Address:",null,{"$f":"VLOOKUP($J$23,'Access DB'!AA41:AG70,3,FALSE)","v":{"$error":"#N/A"}}]
["City/State/Zip:",null,{"$f":"VLOOKUP(C23,'Access DB'!AA24:AG38,4,FALSE)","v":{"$error":"#N/A"}},null,null,null,null,"City/State/Zip:",null,{"$f":"VLOOKUP($J$23,'Access DB'!AA41:AG70,4,FALSE)","v":{"$error":"#N/A"}}]
["Phone:",null,{"$f":"VLOOKUP(C23,'Access DB'!AA24:AG38,5,FALSE)","v":{"$error":"#N/A"}},null,null,null,null,"Phone:",null,{"$f":"VLOOKUP($J$23,'Access DB'!AA41:AG70,5,FALSE)","v":{"$error":"#N/A"}}]
["Fax:",null,{"$f":"VLOOKUP(C23,'Access DB'!AA24:AG38,6,FALSE)","v":{"$error":"#N/A"}},null,null,null,null,"Fax:",null,{"$f":"VLOOKUP($J$23,'Access DB'!AA41:AG70,6,FALSE)","v":{"$error":"#N/A"}}]
["E-Mail:",null,{"$f":"VLOOKUP(C23,'Access DB'!AA24:AG38,7,FALSE)","v":{"$error":"#N/A"}},null,null,null,null,"Email:",null,{"$f":"VLOOKUP($J$23,'Access DB'!AA41:AG70,7,FALSE)","v":{"$error":"#N/A"}}]
[]
[]
[null,null,null,null,null,null,null,null,null,null,null,null,null,null,null,null,null,null,null,null,null,null,null,null,null,null,"BW PRE-IMPLEMENTATION ANALYST"]
[null,null,null,null,null,null,null,null,null,null,null,null,null,null,null,null,null,null,null,null,null,null,null,null,null,null,"Column1"]
["Property Signature",null,null,null,null,null,null,"Title",null,null,null,"Date",null,null,null,null,null,null,null,null,null,null,null,null,null,null,"Cheri Reilly"]
[null,null,null,null,null,null,null,null,null,null,null,null,null,null,null,null,null,null,null,null,null,null,null,null,null,null,"Clayton Porter"]
["This packet contains property specific information as it appears in the Best Western Systems (CRS) only.",null,null,null,null,null,null,null,null,null,null,null,null,null,null,null,null,null,null,null,null,null,null,null,null,null,"Diane Romanski"]
["This information is being provided to the vendor listed above for the purpose of completing the Two-Way Interface.",null,null,null,null,null,null,null,null,null,null,null,null,null,null,null,null,null,null,null,null,null,null,null,null,null,"Heather Bradford"]
["PLEASE DO NOT SIGN AND FAX UNTIL ALL CHANGES HAVE BEEN COMPLETED IN EDS.  FAX TO 623-780-6133",null,null,null,null,null,null,null,null,null,null,null,null,null,null,null,null,null,null,null,null,null,null,null,null,null,"Jacqueleen Jibeault"]
[null,null,null,null,null,null,null,null,null,null,null,null,null,null,null,null,null,null,null,null,null,null,null,null,null,null,"Jonathan Kirby"]
[null,null,null,null,null,null,null,null,null,null,null,null,null,null,null,null,null,null,null,null,null,null,null,null,null,null,"Jovanna Ulloa"]
[null,null,null,null,null,null,null,null,null,null,null,null,null,null,null,null,null,null,null,null,null,null,null,null,null,null,"Kevin Morris"]
[null,null,null,null,null,null,null,null,null,null,null,null,null,null,null,null,null,null,null,null,null,null,null,null,null,null,"Phillip Detrick"]
[null,null,null,null,null,null,null,null,null,null,null,null,null,null,null,null,null,null,null,null,null,null,null,null,null,null,"Ragen Hamilton"]
[]
[]
[null,null,null,null,null,null,null,null,null,null,null,null,null,null,null,null,null,null,null,null,null,null,null,null,null,null,"Christine Anderson"]
[null,null,null,null,null,null,null,null,null,null,null,null,null,null,null,null,null,null,null,null,null,null,null,null,null,null,"Amisha Bhakta"]
[null,null,null,null,null,null,null,null,null,null,null,null,null,null,null,null,null,null,null,null,null,null,null,null,null,null,"David Huber, CHA, CHRM"]
[null,null,null,null,null,null,null,null,null,null,null,null,null,null,null,null,null,null,null,null,null,null,null,null,null,null,"Debra Kipnes, CHA, CHRM"]
[null,null,null,null,null,null,null,null,null,null,null,null,null,null,null,null,null,null,null,null,null,null,null,null,null,null,"Denise Herbert"]
[null,null,null,null,null,null,null,null,null,null,null,null,null,null,null,null,null,null,null,null,null,null,null,null,null,null,"Ed Sawyers, CHA, CHRM"]
[null,null,null,null,null,null,null,null,null,null,null,null,null,null,null,null,null,null,null,null,null,null,null,null,null,null,"Heather Haubrich"]
[null,null,null,null,null,null,null,null,null,null,null,null,null,null,null,null,null,null,null,null,null,null,null,null,null,null,"Josh Kalla"]
[null,null,null,null,null,null,null,null,null,null,null,null,null,null,null,null,null,null,null,null,null,null,null,null,null,null,"Kyle Garnett"]
[null,null,null,null,null,null,null,null,null,null,null,null,null,null,null,null,null,null,null,null,null,null,null,null,null,null,"Lisa McKee"]
[null,null,null,null,null,null,null,null,null,null,null,null,null,null,null,null,null,null,null,null,null,null,null,null,null,null,"Naomi Hamilton"]
[null,null,null,null,null,null,null,null,null,null,null,null,null,null,null,null,null,null,null,null,null,null,null,null,null,null,"Peter Wearing"]
[null,null,null,null,null,null,null,null,null,null,null,null,null,null,null,null,null,null,null,null,null,null,null,null,null,null,"Sandi Schroder"]
[null,null,null,null,null,null,null,null,null,null,null,null,null,null,null,null,null,null,null,null,null,null,null,null,null,null,"Stephen Aldrich"]
[null,null,null,null,null,null,null,null,null,null,null,null,null,null,null,null,null,null,null,null,null,null,null,null,null,null,"Thomas Wilson, CHRM"]
[null,null,null,null,null,null,null,null,null,null,null,null,null,null,null,null,null,null,null,null,null,null,null,null,null,null,"NA"]
[null,null,null,null,null,null,null,null,null,null,null,null,null,null,null,null,null,null,null,null,null,null,null,null,null,null,"NA"]
[null,null,null,null,null,null,null,null,null,null,null,null,null,null,null,null,null,null,null,null,null,null,null,null,null,null,"NA"]
[null,null,null,null,null,null,null,null,null,null,null,null,null,null,null,null,null,null,null,null,null,null,null,null,null,null,"NA"]

{"sheet":"ACTIVE ROOM TYPES","index":1,"n_rows":32,"n_cols":9,"rows_kept":32,"cut":false,"hidden":false,"merged":[[0,5,0,7],[1,0,1,2]]}
["Best Western Active CRS Room Types",null,null,null,null,"Property #",null,null,999999]
[{"$f":"COVER!C6","v":"2014-11-27T08:20:57"}]
[]
[]
[]
[]
[]
[]
[]
["Bed Type","Qualifier","Short Description","Meal Plan","Min","Max","Is Room a Suite?","# of Rooms","PMS Room Type"]
["D","IVH","D,MODERN,COMFRT,CONV2T,FREWLA,SAFE,FLATSC",null,1,2,"N",19,"D|IVH|"]
["D","IVO","D,MODERN,COMPLS,LARRM,QUILOC,COZSIT,FREWLA",null,1,3,"N",9,"D|IVO|"]
["Q","HOR","Q,CLASS,MODERN,QUILOC,FREWLA,SAFE,FLATSC",null,1,2,"N",21,"Q|HOR|"]
["SD","HPT","SD,2ROOM,33SQM,MODERN,QUILOC,COZSIT,FREWLA",null,1,4,"Y",1,"SD|HPT|"]
["SK","HPW","SK,2LARO,46SQM,LRGBAT,MODERN,QUILOC,COZSIT",null,1,4,"Y",1,"SK|HPW|"]
["T","HQF","T,MODERN,QUILOC,FREWLA,SAFE,FLATSC",null,1,1,"N",27,"T|HQF|"]
[]
[]
[]
[]
[]
[]
[]
[]
[]
[]
[]
[]
[]
[{"$f":"COUNTA(A11:A16)","v":6},null,null,null,null,null,null,{"$f":"SUM(H11:H29)","v":78},{"$f":"IF(OR(H30='PROPERTY ACKNOWLEDGEMENT'!$L$8, H30='PROPERTY ACKNOWLEDGEMENT'!L8), \"   BALANCED\", \"   OUT OF BALANCE\")","v":"   BALANCED"}]
[null,null,"Property signature","Date"]
[null,null,"PLEASE DO NOT SIGN OFF ON THIS PAGE UNTIL YOUR EDS CHANGES HAVE BEEN COMPLETED"]

{"sheet":"RATE PLANS","index":2,"n_rows":61,"n_cols":39,"rows_kept":61,"cut":false,"hidden":false,"merged":[[0,8,0,9],[0,6,0,7],[2,0,2,10],[7,0,7,10],[3,0,3,10],[4,0,4,10],[5,0,5,10],[6,0,6,10]]}
["CRS Rate Plans",null,null,null,null,null,"Property #",null,999999]
[]
["The rate plans below appear in the Best Western CRS and supported reservation channels. All active plans built in the CRS must have a one to one relationship with an active plan in the PMS.  Local plans not sold through CRS do not have to be loaded, but must be mapped to a House Plan (HP). The (HP) and Group Plans (1G-10G)  are automatically loaded on the Best Western CRS. These plans are loaded for inventory control purposes only, and are not sold anywhere but locally through the PMS"]
[]
["The PMS must follow the Business Rules for each specific rate plan. If the information in columns 7and 8 designate \"N\" (NO), the PMS must NOT send changes that affect the CRS and it's channels. The Rate Plan Inactive Date indicates when a rate plan program year ends.  Rates, Status, Allocations and Guarantees should not be built for any rate plan beyond a date listed in column 6."]
[]
["If there are any questions regarding the columns, please contact your Implementation Analyst"]
[]
[1,2,3,4,5,6,7,8,9,10]
["Rate Code","Plan Description","Base Rate Code","Base Rate for Status","Linked to Another Plan / P for % off, F for Flat $ amount off","Rate Plan Inactive Date","Send Rate Updates to CRS","Send Status / Allocation Updates to CRS","Update GTEE / Cancel - PMS","PMS Rate Code (your use only)",null,null,null,null,null,null,null,null,null,null,null,null,null,null,null,null,"Rate","Description","Base_Rate","Avail_Rate","Flat_OR_Percent","Prop_Mod","Resort_UPT","Category","Inactivedate","Description","Rate Frequency","Levels_Active","Domestic/ International Indicator"]
["10G","GROUP 10",null,"10G",null,null,"NA","NA","Y",null,null,null,null,null,null,null,null,null,null,null,null,null,null,null,null,null,"10G","GROUP 10",null,"10G","P","Y","Y","GROUP",null,"GROUP 10","D","S","I"]
["1G","GROUP 1",null,"1G",null,null,"NA","NA","Y",null,null,null,null,null,null,null,null,null,null,null,null,null,null,null,null,null,"1G","GROUP 1",null,"1G","P","Y","Y","GROUP",null,"GROUP 1","D","S","I"]
["1R","PARTNER SPECIAL","RACK","Z5","P",null,"N","N","N",null,null,null,null,null,null,null,null,null,null,null,null,null,null,null,null,null,"1R","PARTNER SPECIAL","RACK","Z5","P","N","Y","CORPORATE",null,"PARTNER SPECIAL","D","S","I"]
["2G","GROUP 2",null,"2G",null,null,"NA","NA","Y",null,null,null,null,null,null,null,null,null,null,null,null,null,null,null,null,null,"2G","GROUP 2",null,"2G","P","Y","Y","GROUP",null,"GROUP 2","D","S","I"]
["3A","AAA/CAA RATE","RACK","Z5","P",null,"Y","N","Y",null,null,null,null,null,null,null,null,null,null,null,null,null,null,null,null,null,"3A","AAA/CAA RATE","RACK","Z5","P","Y","Y","STANDARD",null,"AAA/CAA RATE","D","S","I"]
["3G","GROUP 3",null,"3G",null,null,"NA","NA","Y",null,null,null,null,null,null,null,null,null,null,null,null,null,null,null,null,null,"3G","GROUP 3",null,"3G","P","Y","Y","GROUP",null,"GROUP 3","D","S","I"]
["4G","GROUP 4",null,"4G",null,null,"NA","NA","Y",null,null,null,null,null,null,null,null,null,null,null,null,null,null,null,null,null,"4G","GROUP 4",null,"4G","P","Y","Y","GROUP",null,"GROUP 4","D","S","I"]
["5G","GROUP 5",null,"5G",null,null,"NA","NA","Y",null,null,null,null,null,null,null,null,null,null,null,null,null,null,null,null,null,"5G","GROUP 5",null,"5G","P","Y","Y","GROUP",null,"GROUP 5","D","S","I"]
["6G","GROUP 6",null,"6G",null,null,"NA","NA","Y",null,null,null,null,null,null,null,null,null,null,null,null,null,null,null,null,null,"6G","GROUP 6",null,"6G","P","Y","Y","GROUP",null,"GROUP 6","D","S","I"]
["7G","GROUP 7",null,"7G",null,null,"NA","NA","Y",null,null,null,null,null,null,null,null,null,null,null,null,null,null,null,null,null,"7G","GROUP 7",null,"7G","P","Y","Y","GROUP",null,"GROUP 7","D","S","I"]
["8G","GROUP 8",null,"8G",null,null,"NA","NA","Y",null,null,null,null,null,null,null,null,null,null,null,null,null,null,null,null,null,"8G","GROUP 8",null,"8G","P","Y","Y","GROUP",null,"GROUP 8","D","S","I"]
["92","AEROPLAN","FI","Z5","P",null,"N","N","N",null,null,null,null,null,null,null,null,null,null,null,null,null,null,null,null,null,"92","AEROPLAN","FI","Z5","P","N","N","LEISURE",null,"AEROPLAN","D","S","I"]
["9G","GROUP 9",null,"9G",null,null,"NA","NA","Y",null,null,null,null,null,null,null,null,null,null,null,null,null,null,null,null,null,"9G","GROUP 9",null,"9G","P","Y","Y","GROUP",null,"GROUP 9","D","S","I"]
["AC","UNIT CARD INCL BREAKFAST",null,"AC",null,null,"N","Y","Y",null,null,null,null,null,null,null,null,null,null,null,null,null,null,null,null,null,"AC","UNIT CARD INCL BREAKFAST",null,"AC",null,"Y","N","LEISURE",null,"UNIT CARD INCL BREAKFAST","D","S","I"]
["AE","SHOW YOUR CARD PROMOTION","RACK","Z5","P",null,"Y","N","Y",null,null,null,null,null,null,null,null,null,null,null,null,null,null,null,null,null,"AE","SHOW YOUR CARD PROMOTION","RACK","Z5","P","Y","Y","LEISURE",null,"SHOW YOUR CARD PROMOTION","D","S","I"]
["D","STAY 3 PAY 2","RACK","D","P",null,"Y","Y","N",null,null,null,null,null,null,null,null,null,null,null,null,null,null,null,null,null,"D","STAY 3 PAY 2","RACK","D","P","Y","Y","LEISURE",null,"STAY 3 PAY 2","D","S","I"]
["D2","NET RATE TIER 2","RACK","X2","P",null,"Y","N","N",null,null,null,null,null,null,null,null,null,null,null,null,null,null,null,null,null,"D2","NET RATE TIER 2","RACK","X2","P","Y","Y","LEISURE",null,"NET RATE TIER 2","D","S","I"]
["DBAN","DEUTSCHE BAHN AG","UZ","RACK","P","2099-12-31T23:59:59","N","N","N",null,null,null,null,null,null,null,null,null,null,null,null,null,null,null,null,null,"DBAN","DEUTSCHE BAHN AG","UZ","RACK","P","Y",null,"NEGOTIATED",73050.99998842593,"DEUTSCHE BAHN AG","D","S","I"]
["EB","EARLY WEB SPECIAL","RACK","EB","P",null,"Y","Y","N",null,null,null,null,null,null,null,null,null,null,null,null,null,null,null,null,null,"EB","EARLY WEB SPECIAL","RACK","EB","P","Y","Y","LEISURE",null,"EARLY WEB SPECIAL","D","S","I"]
["EE","BEST FRIENDS - EUROP",null,"EE",null,null,"N","Y","Y",null,null,null,null,null,null,null,null,null,null,null,null,null,null,null,null,null,"EE","BEST FRIENDS - EUROP",null,"EE",null,"Y","N","LEISURE",null,"BEST FRIENDS - EUROP","D","S","I"]
["FF","FRIENDS AND FAMILY","RACK","FF","P",null,"N","Y","Y",null,null,null,null,null,null,null,null,null,null,null,null,null,null,null,null,null,"FF","FRIENDS AND FAMILY","RACK","FF","P","Y","N","LEISURE",null,"FRIENDS AND FAMILY","D","S","I"]
["FI","FIT-NET TO CLIENT",null,"Z5",null,null,"N","N","Y",null,null,null,null,null,null,null,null,null,null,null,null,null,null,null,null,null,"FI","FIT-NET TO CLIENT",null,"Z5","F","Y","N","LEISURE",null,"FIT-NET TO CLIENT","D","S","I"]
["FX","USE REWARDS POINTS",null,"Z5",null,null,"N","Y","Y",null,null,null,null,null,null,null,null,null,null,null,null,null,null,null,null,null,"FX","USE REWARDS POINTS",null,"Z5",null,"Y","N","SPECIAL",null,"USE REWARDS POINTS","D","S","I"]
["HL","TRAVEL AGENT PROGRAM INCL BREAKFAST",null,"HL",null,null,"N","Y","Y",null,null,null,null,null,null,null,null,null,null,null,null,null,null,null,null,null,"HL","TRAVEL AGENT PROGRAM INCL BREAKFAST",null,"HL","F","Y","N","TRAVEL AGENT",null,"TRAVEL AGENT PROGRAM INCL BREAKFAST","D","S","I"]
["HP","HOUSE RATE PLAN",null,"HP",null,null,"NA","NA","Y",null,null,null,null,null,null,null,null,null,null,null,null,null,null,null,null,null,"HP","HOUSE RATE PLAN",null,"HP","P","Y","Y","LEISURE",null,"HOUSE RATE PLAN","D","S","I"]
["HY","HARLEY-DAVIDSON","RACK","Z5","P",null,"Y","Y","Y",null,null,null,null,null,null,null,null,null,null,null,null,null,null,null,null,null,"HY","HARLEY-DAVIDSON","RACK","Z5","P","Y","Y","LEISURE",null,"HARLEY-DAVIDSON","D","S","I"]
["JZ","PARTNER BONUS","RACK","RACK","P",null,"Y","N","Y",null,null,null,null,null,null,null,null,null,null,null,null,null,null,null,null,null,"JZ","PARTNER BONUS","RACK","RACK","P","Y","Y","LEISURE",null,"PARTNER BONUS","D","S","I"]
["MY","SPECIAL PROMOTION","RACK","MY","P",null,"N","Y","N",null,null,null,null,null,null,null,null,null,null,null,null,null,null,null,null,null,"MY","SPECIAL PROMOTION","RACK","MY","P","Y","N","LEISURE",null,"SPECIAL PROMOTION","D","S","I"]
["QD","DERTOUR CITY NET RATE","RACK","QD","P",null,"Y","Y","Y",null,null,null,null,null,null,null,null,null,null,null,null,null,null,null,null,null,"QD","DERTOUR CITY NET RATE","RACK","QD","P","Y","Y","LEISURE",null,"DERTOUR CITY NET RATE","D","S","I"]
["RACK","FLEXIBLE RATE",null,"RACK",null,null,"Y","Y","Y",null,null,null,null,null,null,null,null,null,null,null,null,null,null,null,null,null,"RACK","FLEXIBLE RATE",null,"RACK",null,"Y","Y","RACK",null,"FLEXIBLE RATE","D","S","I"]
["SR","SAVER RATE","RACK","SR","P",null,"Y","Y","Y",null,null,null,null,null,null,null,null,null,null,null,null,null,null,null,null,null,"SR","SAVER RATE","RACK","SR","P","Y","Y","LEISURE",null,"SAVER RATE","D","S","I"]
["UC","UNIT CARD",null,"AC",null,null,"N","N","Y",null,null,null,null,null,null,null,null,null,null,null,null,null,null,null,null,null,"UC","UNIT CARD",null,"AC",null,"Y","N","SPECIAL",null,"UNIT CARD","D","S","I"]
["UZ","BW CORPORATE PLAN","RACK","RACK","F",null,"N","N","Y",null,null,null,null,null,null,null,null,null,null,null,null,null,null,null,null,null,"UZ","BW CORPORATE PLAN","RACK","RACK","F","Y","N","RACK",null,"BW CORPORATE PLAN","D","S","I"]
["V8","BEST WESTERN DEAL - FLEXIBLE RATE","RACK","V8","P",null,"N","Y","Y",null,null,null,null,null,null,null,null,null,null,null,null,null,null,null,null,null,"V8","BEST WESTERN DEAL - FLEXIBLE RATE","RACK","V8","P","Y","Y","SPECIAL",null,"BEST WESTERN DEAL - FLEXIBLE RATE","D","S","I"]
["VR","REWARDS - 1,000 BONUS POINTS PER NIGHT","RACK","RACK","P",null,"N","N","Y",null,null,null,null,null,null,null,null,null,null,null,null,null,null,null,null,null,"VR","REWARDS - 1,000 BONUS POINTS PER NIGHT","RACK","RACK","P","Y","N","CORPORATE",null,"REWARDS - 1,000 BONUS POINTS PER NIGHT","D","S","I"]
["WD","BEST WESTERN WEEKEND INCL. BREAKFAST","RACK","WD","F",null,"Y","Y","Y",null,null,null,null,null,null,null,null,null,null,null,null,null,null,null,null,null,"WD","BEST WESTERN WEEKEND INCL. BREAKFAST","RACK","WD","F","Y","Y","LEISURE",null,"BEST WESTERN WEEKEND INCL. BREAKFAST","D","S","I"]
["WW","BEST WESTERN DEAL - EARLY WEB SPECIAL","RACK","WW","P",null,"Y","Y","N",null,null,null,null,null,null,null,null,null,null,null,null,null,null,null,null,null,"WW","BEST WESTERN DEAL - EARLY WEB SPECIAL","RACK","WW","P","Y","Y","LEISURE",null,"BEST WESTERN DEAL - EARLY WEB SPECIAL","D","S","I"]
["X2","NET RATE AND DYNAMIC TOUR PROGRAM","RACK","X2","P",null,"Y","Y","N",null,null,null,null,null,null,null,null,null,null,null,null,null,null,null,null,null,"X2","NET RATE AND DYNAMIC TOUR PROGRAM","RACK","X2","P","Y","Y","NEGOTIATED",null,"NET RATE AND DYNAMIC TOUR PROGRAM","D","S","I"]
["XN","BBW PREFERRED RATE-NET","XW","XN","P","2099-12-31T23:59:59","N","Y","Y",null,null,null,null,null,null,null,null,null,null,null,null,null,null,null,null,null,"XN","BBW PREFERRED RATE-NET","XW","XN","P","Y","Y","NEGOTIATED",73050.99998842593,"BBW PREFERRED RATE-NET","D","S","I"]
["XW","BBW PREFERRED RATE-COMMISSIONABLE","RACK","Z5","P","2099-12-31T23:59:59","N","N","Y",null,null,null,null,null,null,null,null,null,null,null,null,null,null,null,null,null,"XW","BBW PREFERRED RATE-COMMISSIONABLE","RACK","Z5","P","Y","Y","NEGOTIATED",73050.99998842593,"BBW PREFERRED RATE-COMMISSIONABLE","D","S","I"]
["XZ","NEGOTIATED RATE","RACK","RACK","P","2099-12-31T23:59:59","N","N","Y",null,null,null,null,null,null,null,null,null,null,null,null,null,null,null,null,null,"XZ","NEGOTIATED RATE","RACK","RACK","P","Y","Y","NEGOTIATED",73050.99998842593,"NEGOTIATED RATE","D","S","I"]
["YE","BEST WESTERN DEAL - SAVER RATE","RACK","YE","P",null,"Y","Y","Y",null,null,null,null,null,null,null,null,null,null,null,null,null,null,null,null,null,"YE","BEST WESTERN DEAL - SAVER RATE","RACK","YE","P","Y","Y","LEISURE",null,"BEST WESTERN DEAL - SAVER RATE","D","S","I"]
["Z1","NEGOTIATED RATES","UZ","RACK","P","2099-12-31T23:59:59","N","N","Y",null,null,null,null,null,null,null,null,null,null,null,null,null,null,null,null,null,"Z1","NEGOTIATED RATES","UZ","RACK","P","Y","Y","NEGOTIATED",73050.99998842593,"NEGOTIATED RATES","D","S","I"]
["Z2","SECONDARY PREFERRED","RACK","Z2","P","2099-12-31T23:59:59","N","Y","Y",null,null,null,null,null,null,null,null,null,null,null,null,null,null,null,null,null,"Z2","SECONDARY PREFERRED","RACK","Z2","P","Y","Y","NEGOTIATED",73050.99998842593,"SECONDARY PREFERRED","D","S","I"]
["Z5","NEGOTIATED RATES","RACK","Z5","P","2099-12-31T23:59:59","N","Y","Y",null,null,null,null,null,null,null,null,null,null,null,null,null,null,null,null,null,"Z5","NEGOTIATED RATES","RACK","Z5","P","Y","Y","NEGOTIATED",73050.99998842593,"NEGOTIATED RATES","D","S","I"]
["Z6","NEGOTIATED RATES","RACK","Z5","P","2099-12-31T23:59:59","N","N","Y",null,null,null,null,null,null,null,null,null,null,null,null,null,null,null,null,null,"Z6","NEGOTIATED RATES","RACK","Z5","P","Y","Y","NEGOTIATED",73050.99998842593,"NEGOTIATED RATES","D","S","I"]
["Z7","BEST BUSINESS WORLDWIDE SELECT","RACK","Z5","P","2099-12-31T23:59:59","N","N","Y",null,null,null,null,null,null,null,null,null,null,null,null,null,null,null,null,null,"Z7","BEST BUSINESS WORLDWIDE SELECT","RACK","Z5","P","Y","Y","NEGOTIATED",73050.99998842593,"BEST BUSINESS WORLDWIDE SELECT","D","S","I"]
["ZK","NEGOTIATED RATES","UZ","RACK","P","2099-12-31T23:59:59","N","N","Y",null,null,null,null,null,null,null,null,null,null,null,null,null,null,null,null,null,"ZK","NEGOTIATED RATES","UZ","RACK","P","Y","Y","NEGOTIATED",73050.99998842593,"NEGOTIATED RATES","D","S","I"]
["ZL","NEGOTIATED RATES","RACK","RACK","P","2099-12-31T23:59:59","N","N","Y",null,null,null,null,null,null,null,null,null,null,null,null,null,null,null,null,null,"ZL","NEGOTIATED RATES","RACK","RACK","P","Y","Y","NEGOTIATED",73050.99998842593,"NEGOTIATED RATES","D","S","I"]
["ZM","NEGOTIATED RATES","UZ","RACK","P","2099-12-31T23:59:59","N","N","Y",null,null,null,null,null,null,null,null,null,null,null,null,null,null,null,null,null,"ZM","NEGOTIATED RATES","UZ","RACK","P","Y","Y","NEGOTIATED",73050.99998842593,"NEGOTIATED RATES","D","S","I"]
["ZU","NEGOTIATED RATES","UZ","RACK","P","2099-12-31T23:59:59","N","N","Y",null,null,null,null,null,null,null,null,null,null,null,null,null,null,null,null,null,"ZU","NEGOTIATED RATES","UZ","RACK","P","Y","Y","NEGOTIATED",73050.99998842593,"NEGOTIATED RATES","D","S","I"]

{"sheet":"RATE LEVELS","index":3,"n_rows":53,"n_cols":11,"rows_kept":53,"cut":false,"hidden":false,"merged":[[10,0,12,0],[0,7,0,8],[0,9,0,10],[2,0,6,10],[10,1,11,7],[12,4,12,7]]}
["Rate Levels",null,null,null,null,null,null,"Property #:",null,999999]
[]
["This section displays each of the CRS rate plans and the rate levels linked to them.  We recommend that all room types be linked to ALL rate plans.  This is done so that when necessary, the property can modify the room type of existing reservations without changing the rate plan.  If a property does not wish to offer a plan to a particular room type, it is the responsibility of the property to keep status closed on that room type by the rate level.  Contact your vendor for assistance if you need help with status changes. Please note - Not associating all room types to all rate plans can lead to an out of balance status within the PMS vs. Best Western CRS."]
[]
[]
[]
[]
[]
["Note: The \"In PMS Plan\" checkbox is for your convenience only when verifying your room type / rate plan combinations."]
[null,null,null,null,null,null,null,null,null,"Room Type Count Total = ",6]
[null,"BWI Rate Levels"]
[]
[null,"Rate Level","Rate Level Name","Rate Code","Update Date"]
[null,"A","BAR","DBAN","10/17/2014"]
[null,"A","BAR","JZ","08/25/2014"]
[null,"A","BAR","RACK","08/25/2014"]
[null,"A","BAR","UZ","08/25/2014"]
[null,"A","BAR","V8","08/27/2014"]
[null,"A","BAR","VR","08/25/2014"]
[null,"A","BAR","XZ","08/27/2014"]
[null,"A","BAR","Z1","10/02/2014"]
[null,"A","BAR","ZK","10/02/2014"]
[null,"A","BAR","ZL","10/02/2014"]
[null,"A","BAR","ZM","10/02/2014"]
[null,"A","BAR","ZU","10/02/2014"]
[null,"B","Saver Rate","SR","08/25/2014"]
[null,"B","Saver Rate","YE","08/25/2014"]
[null,"C","Early Web","EB","08/27/2014"]
[null,"C","Early Web","WW","08/27/2014"]
[null,"D","Negotiated","1R","08/27/2014"]
[null,"D","Negotiated","3A","09/23/2014"]
[null,"D","Negotiated","92","08/27/2014"]
[null,"D","Negotiated","AC","08/29/2014"]
[null,"D","Negotiated","AE","08/27/2014"]
[null,"D","Negotiated","D2","08/27/2014"]
[null,"D","Negotiated","FI","08/27/2014"]
[null,"D","Negotiated","FX","08/27/2014"]
[null,"D","Negotiated","HY","08/27/2014"]
[null,"D","Negotiated","QD","08/27/2014"]
[null,"D","Negotiated","UC","08/29/2014"]
[null,"D","Negotiated","X2","08/27/2014"]
[null,"D","Negotiated","XN","08/27/2014"]
[null,"D","Negotiated","XW","08/27/2014"]
[null,"D","Negotiated","Z2","08/27/2014"]
[null,"D","Negotiated","Z5","10/02/2014"]
[null,"D","Negotiated","Z6","08/27/2014"]
[null,"D","Negotiated","Z7","08/27/2014"]
[null,"E","Leisure","D","08/27/2014"]
[null,"E","Leisure","WD","08/27/2014"]
[null,"F","Leisure Low","EE","10/03/2014"]
[null,"F","Leisure Low","FF","08/27/2014"]
[null,"F","Leisure Low","HL","08/27/2014"]
[null,"F","Leisure Low","MY","08/27/2014"]

{"sheet":"RATE PLAN & ROOM TYPE COMBO","index":4,"n_rows":371,"n_cols":11,"rows_kept":371,"cut":false,"hidden":false,"merged":[[0,7,0,8],[0,9,0,10],[2,0,6,10],[10,0,12,0],[10,1,11,9],[12,4,12,9]]}
["Rate Plan / Room Type Combinations",null,null,null,null,null,null,"Property #:",null,999999]
[]
["This section displays each of the CRS rate plans and the CRS room types linked to them.  Best Western Business Rules will apply to the linkage of room type / rate plan combinations. All room types MUST be linked to ALL rate plans.  This is done so that when necessary, the property can modify the room type of existing reservations without changing the rate plan.  If a property does not wish to offer a plan to a particular room type, it is the responsibility of the property to keep status closed on that rate plan for that room type.  Contact your vendor for assistance if you need help with status changes. Please note - Not associating all room types to all rate plans can lead to an out of balance status within the PMS vs. Best Western CRS."]
[]
[]
[]
[]
[]
["Note: The \"In PMS Plan\" checkbox is for your convenience only when verifying your room type / rate plan combinations."]
[null,null,null,null,null,null,null,null,null,"Room Type Count Total = ",6]
["CRS Plan","Associated CRS Room Types",null,null,null,null,null,null,null,null,"In PMS"]
[null,null,null,null,null,null,null,null,null,null,"Plan?"]
[null,"%","Room Type","Qual Code","Long Description",null,null,null,null,null,"For your use"]
["10G",null,"D","IVH","D,MODERN,COMFRT,CONV2T,FREWLA,SAFE,FLATSC"]
["10G",null,"D","IVO","D,MODERN,COMPLS,LARRM,QUILOC,COZSIT,FREWLA"]
["10G",null,"Q","HOR","Q,CLASS,MODERN,QUILOC,FREWLA,SAFE,FLATSC"]
["10G",null,"SD","HPT","SD,2ROOM,33SQM,MODERN,QUILOC,COZSIT,FREWLA"]
["10G",null,"SK","HPW","SK,2LARO,46SQM,LRGBAT,MODERN,QUILOC,COZSIT"]
["10G",null,"T","HQF","T,MODERN,QUILOC,FREWLA,SAFE,FLATSC"]
["Count: ",null,6]
["1G",null,"D","IVH","D,MODERN,COMFRT,CONV2T,FREWLA,SAFE,FLATSC"]
["1G",null,"D","IVO","D,MODERN,COMPLS,LARRM,QUILOC,COZSIT,FREWLA"]
["1G",null,"Q","HOR","Q,CLASS,MODERN,QUILOC,FREWLA,SAFE,FLATSC"]
["1G",null,"SD","HPT","SD,2ROOM,33SQM,MODERN,QUILOC,COZSIT,FREWLA"]
["1G",null,"SK","HPW","SK,2LARO,46SQM,LRGBAT,MODERN,QUILOC,COZSIT"]
["1G",null,"T","HQF","T,MODERN,QUILOC,FREWLA,SAFE,FLATSC"]
["Count: ",null,6]
["1R","P","D","IVH","D,MODERN,COMFRT,CONV2T,FREWLA,SAFE,FLATSC"]
["1R","P","D","IVO","D,MODERN,COMPLS,LARRM,QUILOC,COZSIT,FREWLA"]
["1R","P","Q","HOR","Q,CLASS,MODERN,QUILOC,FREWLA,SAFE,FLATSC"]
["1R","P","SD","HPT","SD,2ROOM,33SQM,MODERN,QUILOC,COZSIT,FREWLA"]
["1R","P","SK","HPW","SK,2LARO,46SQM,LRGBAT,MODERN,QUILOC,COZSIT"]
["1R","P","T","HQF","T,MODERN,QUILOC,FREWLA,SAFE,FLATSC"]
["Count: ",null,6]
["2G",null,"D","IVH","D,MODERN,COMFRT,CONV2T,FREWLA,SAFE,FLATSC"]
["2G",null,"D","IVO","D,MODERN,COMPLS,LARRM,QUILOC,COZSIT,FREWLA"]
["2G",null,"Q","HOR","Q,CLASS,MODERN,QUILOC,FREWLA,SAFE,FLATSC"]
["2G",null,"SD","HPT","SD,2ROOM,33SQM,MODERN,QUILOC,COZSIT,FREWLA"]
["2G",null,"SK","HPW","SK,2LARO,46SQM,LRGBAT,MODERN,QUILOC,COZSIT"]
["2G",null,"T","HQF","T,MODERN,QUILOC,FREWLA,SAFE,FLATSC"]
["Count: ",null,6]
["3A","P","D","IVH","D,MODERN,COMFRT,CONV2T,FREWLA,SAFE,FLATSC"]
["3A","P","D","IVO","D,MODERN,COMPLS,LARRM,QUILOC,COZSIT,FREWLA"]
["3A","P","Q","HOR","Q,CLASS,MODERN,QUILOC,FREWLA,SAFE,FLATSC"]
["3A","P","SD","HPT","SD,2ROOM,33SQM,MODERN,QUILOC,COZSIT,FREWLA"]
["3A","P","SK","HPW","SK,2LARO,46SQM,LRGBAT,MODERN,QUILOC,COZSIT"]
["3A","P","T","HQF","T,MODERN,QUILOC,FREWLA,SAFE,FLATSC"]
["Count: ",null,6]
["3G",null,"D","IVH","D,MODERN,COMFRT,CONV2T,FREWLA,SAFE,FLATSC"]
["3G",null,"D","IVO","D,MODERN,COMPLS,LARRM,QUILOC,COZSIT,FREWLA"]
["3G",null,"Q","HOR","Q,CLASS,MODERN,QUILOC,FREWLA,SAFE,FLATSC"]
["3G",null,"SD","HPT","SD,2ROOM,33SQM,MODERN,QUILOC,COZSIT,FREWLA"]
["3G",null,"SK","HPW","SK,2LARO,46SQM,LRGBAT,MODERN,QUILOC,COZSIT"]
["3G",null,"T","HQF","T,MODERN,QUILOC,FREWLA,SAFE,FLATSC"]
["Count: ",null,6]
["4G",null,"D","IVH","D,MODERN,COMFRT,CONV2T,FREWLA,SAFE,FLATSC"]
["4G",null,"D","IVO","D,MODERN,COMPLS,LARRM,QUILOC,COZSIT,FREWLA"]
["4G",null,"Q","HOR","Q,CLASS,MODERN,QUILOC,FREWLA,SAFE,FLATSC"]
["4G",null,"SD","HPT","SD,2ROOM,33SQM,MODERN,QUILOC,COZSIT,FREWLA"]
["4G",null,"SK","HPW","SK,2LARO,46SQM,LRGBAT,MODERN,QUILOC,COZSIT"]
["4G",null,"T","HQF","T,MODERN,QUILOC,FREWLA,SAFE,FLATSC"]
["Count: ",null,6]
["5G",null,"D","IVH","D,MODERN,COMFRT,CONV2T,FREWLA,SAFE,FLATSC"]
["5G",null,"D","IVO","D,MODERN,COMPLS,LARRM,QUILOC,COZSIT,FREWLA"]
["5G",null,"Q","HOR","Q,CLASS,MODERN,QUILOC,FREWLA,SAFE,FLATSC"]
["5G",null,"SD","HPT","SD,2ROOM,33SQM,MODERN,QUILOC,COZSIT,FREWLA"]
["5G",null,"SK","HPW","SK,2LARO,46SQM,LRGBAT,MODERN,QUILOC,COZSIT"]
["5G",null,"T","HQF","T,MODERN,QUILOC,FREWLA,SAFE,FLATSC"]
["Count: ",null,6]
["6G",null,"D","IVH","D,MODERN,COMFRT,CONV2T,FREWLA,SAFE,FLATSC"]
["6G",null,"D","IVO","D,MODERN,COMPLS,LARRM,QUILOC,COZSIT,FREWLA"]
["6G",null,"Q","HOR","Q,CLASS,MODERN,QUILOC,FREWLA,SAFE,FLATSC"]
["6G",null,"SD","HPT","SD,2ROOM,33SQM,MODERN,QUILOC,COZSIT,FREWLA"]
["6G",null,"SK","HPW","SK,2LARO,46SQM,LRGBAT,MODERN,QUILOC,COZSIT"]
["6G",null,"T","HQF","T,MODERN,QUILOC,FREWLA,SAFE,FLATSC"]
["Count: ",null,6]
["7G",null,"D","IVH","D,MODERN,COMFRT,CONV2T,FREWLA,SAFE,FLATSC"]
["7G",null,"D","IVO","D,MODERN,COMPLS,LARRM,QUILOC,COZSIT,FREWLA"]
["7G",null,"Q","HOR","Q,CLASS,MODERN,QUILOC,FREWLA,SAFE,FLATSC"]
["7G",null,"SD","HPT","SD,2ROOM,33SQM,MODERN,QUILOC,COZSIT,FREWLA"]
["7G",null,"SK","HPW","SK,2LARO,46SQM,LRGBAT,MODERN,QUILOC,COZSIT"]
["7G",null,"T","HQF","T,MODERN,QUILOC,FREWLA,SAFE,FLATSC"]
["Count: ",null,6]
["8G",null,"D","IVH","D,MODERN,COMFRT,CONV2T,FREWLA,SAFE,FLATSC"]
["8G",null,"D","IVO","D,MODERN,COMPLS,LARRM,QUILOC,COZSIT,FREWLA"]
["8G",null,"Q","HOR","Q,CLASS,MODERN,QUILOC,FREWLA,SAFE,FLATSC"]
["8G",null,"SD","HPT","SD,2ROOM,33SQM,MODERN,QUILOC,COZSIT,FREWLA"]
["8G",null,"SK","HPW","SK,2LARO,46SQM,LRGBAT,MODERN,QUILOC,COZSIT"]
["8G",null,"T","HQF","T,MODERN,QUILOC,FREWLA,SAFE,FLATSC"]
["Count: ",null,6]
["92","P","D","IVH","D,MODERN,COMFRT,CONV2T,FREWLA,SAFE,FLATSC"]
["92","P","D","IVO","D,MODERN,COMPLS,LARRM,QUILOC,COZSIT,FREWLA"]
["92","P","Q","HOR","Q,CLASS,MODERN,QUILOC,FREWLA,SAFE,FLATSC"]
["92","P","SD","HPT","SD,2ROOM,33SQM,MODERN,QUILOC,COZSIT,FREWLA"]
["92","P","SK","HPW","SK,2LARO,46SQM,LRGBAT,MODERN,QUILOC,COZSIT"]
["92","P","T","HQF","T,MODERN,QUILOC,FREWLA,SAFE,FLATSC"]
["Count: ",null,6]
["9G",null,"D","IVH","D,MODERN,COMFRT,CONV2T,FREWLA,SAFE,FLATSC"]
["9G",null,"D","IVO","D,MODERN,COMPLS,LARRM,QUILOC,COZSIT,FREWLA"]
["9G",null,"Q","HOR","Q,CLASS,MODERN,QUILOC,FREWLA,SAFE,FLATSC"]
["9G",null,"SD","HPT","SD,2ROOM,33SQM,MODERN,QUILOC,COZSIT,FREWLA"]
["9G",null,"SK","HPW","SK,2LARO,46SQM,LRGBAT,MODERN,QUILOC,COZSIT"]
["9G",null,"T","HQF","T,MODERN,QUILOC,FREWLA,SAFE,FLATSC"]
["Count: ",null,6]
["AC",null,"D","IVH","D,MODERN,COMFRT,CONV2T,FREWLA,SAFE,FLATSC"]
["AC",null,"D","IVO","D,MODERN,COMPLS,LARRM,QUILOC,COZSIT,FREWLA"]
["AC",null,"Q","HOR","Q,CLASS,MODERN,QUILOC,FREWLA,SAFE,FLATSC"]
["AC",null,"SD","HPT","SD,2ROOM,33SQM,MODERN,QUILOC,COZSIT,FREWLA"]
["AC",null,"SK","HPW","SK,2LARO,46SQM,LRGBAT,MODERN,QUILOC,COZSIT"]
["AC",null,"T","HQF","T,MODERN,QUILOC,FREWLA,SAFE,FLATSC"]
["Count: ",null,6]
["AE","P","D","IVH","D,MODERN,COMFRT,CONV2T,FREWLA,SAFE,FLATSC"]
["AE","P","D","IVO","D,MODERN,COMPLS,LARRM,QUILOC,COZSIT,FREWLA"]
["AE","P","Q","HOR","Q,CLASS,MODERN,QUILOC,FREWLA,SAFE,FLATSC"]
["AE","P","SD","HPT","SD,2ROOM,33SQM,MODERN,QUILOC,COZSIT,FREWLA"]
["AE","P","SK","HPW","SK,2LARO,46SQM,LRGBAT,MODERN,QUILOC,COZSIT"]
["AE","P","T","HQF","T,MODERN,QUILOC,FREWLA,SAFE,FLATSC"]
["Count: ",null,6]
["D","P","D","IVH","D,MODERN,COMFRT,CONV2T,FREWLA,SAFE,FLATSC"]
["D","P","D","IVO","D,MODERN,COMPLS,LARRM,QUILOC,COZSIT,FREWLA"]
["D","P","Q","HOR","Q,CLASS,MODERN,QUILOC,FREWLA,SAFE,FLATSC"]
["D","P","SD","HPT","SD,2ROOM,33SQM,MODERN,QUILOC,COZSIT,FREWLA"]
["D","P","SK","HPW","SK,2LARO,46SQM,LRGBAT,MODERN,QUILOC,COZSIT"]
["D","P","T","HQF","T,MODERN,QUILOC,FREWLA,SAFE,FLATSC"]
["Count: ",null,6]
["D2","P","D","IVH","D,MODERN,COMFRT,CONV2T,FREWLA,SAFE,FLATSC"]
["D2","P","D","IVO","D,MODERN,COMPLS,LARRM,QUILOC,COZSIT,FREWLA"]
["D2","P","Q","HOR","Q,CLASS,MODERN,QUILOC,FREWLA,SAFE,FLATSC"]
["D2","P","SD","HPT","SD,2ROOM,33SQM,MODERN,QUILOC,COZSIT,FREWLA"]
["D2","P","SK","HPW","SK,2LARO,46SQM,LRGBAT,MODERN,QUILOC,COZSIT"]
["D2","P","T","HQF","T,MODERN,QUILOC,FREWLA,SAFE,FLATSC"]
["Count: ",null,6]
["DBAN","P","D","IVH","D,MODERN,COMFRT,CONV2T,FREWLA,SAFE,FLATSC"]
["DBAN","P","D","IVO","D,MODERN,COMPLS,LARRM,QUILOC,COZSIT,FREWLA"]
["DBAN","P","Q","HOR","Q,CLASS,MODERN,QUILOC,FREWLA,SAFE,FLATSC"]
["DBAN","P","SD","HPT","SD,2ROOM,33SQM,MODERN,QUILOC,COZSIT,FREWLA"]
["DBAN","P","SK","HPW","SK,2LARO,46SQM,LRGBAT,MODERN,QUILOC,COZSIT"]
["DBAN","P","T","HQF","T,MODERN,QUILOC,FREWLA,SAFE,FLATSC"]
["Count: ",null,6]
["EB","P","D","IVH","D,MODERN,COMFRT,CONV2T,FREWLA,SAFE,FLATSC"]
["EB","P","D","IVO","D,MODERN,COMPLS,LARRM,QUILOC,COZSIT,FREWLA"]
["EB","P","Q","HOR","Q,CLASS,MODERN,QUILOC,FREWLA,SAFE,FLATSC"]
["EB","P","SD","HPT","SD,2ROOM,33SQM,MODERN,QUILOC,COZSIT,FREWLA"]
["EB","P","SK","HPW","SK,2LARO,46SQM,LRGBAT,MODERN,QUILOC,COZSIT"]
["EB","P","T","HQF","T,MODERN,QUILOC,FREWLA,SAFE,FLATSC"]
["Count: ",null,6]
["EE",null,"D","IVH","D,MODERN,COMFRT,CONV2T,FREWLA,SAFE,FLATSC"]
["EE",null,"D","IVO","D,MODERN,COMPLS,LARRM,QUILOC,COZSIT,FREWLA"]
["EE",null,"Q","HOR","Q,CLASS,MODERN,QUILOC,FREWLA,SAFE,FLATSC"]
["EE",null,"SD","HPT","SD,2ROOM,33SQM,MODERN,QUILOC,COZSIT,FREWLA"]
["EE",null,"SK","HPW","SK,2LARO,46SQM,LRGBAT,MODERN,QUILOC,COZSIT"]
["EE",null,"T","HQF","T,MODERN,QUILOC,FREWLA,SAFE,FLATSC"]
["Count: ",null,6]
["FF","P","D","IVH","D,MODERN,COMFRT,CONV2T,FREWLA,SAFE,FLATSC"]
["FF","P","D","IVO","D,MODERN,COMPLS,LARRM,QUILOC,COZSIT,FREWLA"]
["FF","P","Q","HOR","Q,CLASS,MODERN,QUILOC,FREWLA,SAFE,FLATSC"]
["FF","P","SD","HPT","SD,2ROOM,33SQM,MODERN,QUILOC,COZSIT,FREWLA"]
["FF","P","SK","HPW","SK,2LARO,46SQM,LRGBAT,MODERN,QUILOC,COZSIT"]
["FF","P","T","HQF","T,MODERN,QUILOC,FREWLA,SAFE,FLATSC"]
["Count: ",null,6]
["FI",null,"D","IVH","D,MODERN,COMFRT,CONV2T,FREWLA,SAFE,FLATSC"]
["FI",null,"D","IVO","D,MODERN,COMPLS,LARRM,QUILOC,COZSIT,FREWLA"]
["FI",null,"Q","HOR","Q,CLASS,MODERN,QUILOC,FREWLA,SAFE,FLATSC"]
["FI",null,"SD","HPT","SD,2ROOM,33SQM,MODERN,QUILOC,COZSIT,FREWLA"]
["FI",null,"SK","HPW","SK,2LARO,46SQM,LRGBAT,MODERN,QUILOC,COZSIT"]
["FI",null,"T","HQF","T,MODERN,QUILOC,FREWLA,SAFE,FLATSC"]
["Count: ",null,6]
["FX",null,"D","IVH","D,MODERN,COMFRT,CONV2T,FREWLA,SAFE,FLATSC"]
["FX",null,"D","IVO","D,MODERN,COMPLS,LARRM,QUILOC,COZSIT,FREWLA"]
["FX",null,"Q","HOR","Q,CLASS,MODERN,QUILOC,FREWLA,SAFE,FLATSC"]
["FX",null,"SD","HPT","SD,2ROOM,33SQM,MODERN,QUILOC,COZSIT,FREWLA"]
["FX",null,"SK","HPW","SK,2LARO,46SQM,LRGBAT,MODERN,QUILOC,COZSIT"]
["FX",null,"T","HQF","T,MODERN,QUILOC,FREWLA,SAFE,FLATSC"]
["Count: ",null,6]
["HL",null,"D","IVH","D,MODERN,COMFRT,CONV2T,FREWLA,SAFE,FLATSC"]
["HL",null,"D","IVO","D,MODERN,COMPLS,LARRM,QUILOC,COZSIT,FREWLA"]
["HL",null,"Q","HOR","Q,CLASS,MODERN,QUILOC,FREWLA,SAFE,FLATSC"]
["HL",null,"SD","HPT","SD,2ROOM,33SQM,MODERN,QUILOC,COZSIT,FREWLA"]
["HL",null,"SK","HPW","SK,2LARO,46SQM,LRGBAT,MODERN,QUILOC,COZSIT"]
["HL",null,"T","HQF","T,MODERN,QUILOC,FREWLA,SAFE,FLATSC"]
["Count: ",null,6]
["HP",null,"D","IVH","D,MODERN,COMFRT,CONV2T,FREWLA,SAFE,FLATSC"]
["HP",null,"D","IVO","D,MODERN,COMPLS,LARRM,QUILOC,COZSIT,FREWLA"]
["HP",null,"Q","HOR","Q,CLASS,MODERN,QUILOC,FREWLA,SAFE,FLATSC"]
["HP",null,"SD","HPT","SD,2ROOM,33SQM,MODERN,QUILOC,COZSIT,FREWLA"]
["HP",null,"SK","HPW","SK,2LARO,46SQM,LRGBAT,MODERN,QUILOC,COZSIT"]
["HP",null,"T","HQF","T,MODERN,QUILOC,FREWLA,SAFE,FLATSC"]
["Count: ",null,6]
["HY","P","D","IVH","D,MODERN,COMFRT,CONV2T,FREWLA,SAFE,FLATSC"]
["HY","P","D","IVO","D,MODERN,COMPLS,LARRM,QUILOC,COZSIT,FREWLA"]
["HY","P","Q","HOR","Q,CLASS,MODERN,QUILOC,FREWLA,SAFE,FLATSC"]
["HY","P","SD","HPT","SD,2ROOM,33SQM,MODERN,QUILOC,COZSIT,FREWLA"]
["HY","P","SK","HPW","SK,2LARO,46SQM,LRGBAT,MODERN,QUILOC,COZSIT"]
["HY","P","T","HQF","T,MODERN,QUILOC,FREWLA,SAFE,FLATSC"]
["Count: ",null,6]
["JZ","P","D","IVH","D,MODERN,COMFRT,CONV2T,FREWLA,SAFE,FLATSC"]
["JZ","P","D","IVO","D,MODERN,COMPLS,LARRM,QUILOC,COZSIT,FREWLA"]
["JZ","P","Q","HOR","Q,CLASS,MODERN,QUILOC,FREWLA,SAFE,FLATSC"]
["JZ","P","SD","HPT","SD,2ROOM,33SQM,MODERN,QUILOC,COZSIT,FREWLA"]
["JZ","P","SK","HPW","SK,2LARO,46SQM,LRGBAT,MODERN,QUILOC,COZSIT"]
["JZ","P","T","HQF","T,MODERN,QUILOC,FREWLA,SAFE,FLATSC"]
["Count: ",null,6]
["MY","P","D","IVH","D,MODERN,COMFRT,CONV2T,FREWLA,SAFE,FLATSC"]
["MY","P","D","IVO","D,MODERN,COMPLS,LARRM,QUILOC,COZSIT,FREWLA"]
["MY","P","Q","HOR","Q,CLASS,MODERN,QUILOC,FREWLA,SAFE,FLATSC"]
["MY","P","SD","HPT","SD,2ROOM,33SQM,MODERN,QUILOC,COZSIT,FREWLA"]
["MY","P","SK","HPW","SK,2LARO,46SQM,LRGBAT,MODERN,QUILOC,COZSIT"]
["MY","P","T","HQF","T,MODERN,QUILOC,FREWLA,SAFE,FLATSC"]
["Count: ",null,6]
["QD","P","D","IVH","D,MODERN,COMFRT,CONV2T,FREWLA,SAFE,FLATSC"]
["QD","P","D","IVO","D,MODERN,COMPLS,LARRM,QUILOC,COZSIT,FREWLA"]
["QD","P","Q","HOR","Q,CLASS,MODERN,QUILOC,FREWLA,SAFE,FLATSC"]
["QD","P","SD","HPT","SD,2ROOM,33SQM,MODERN,QUILOC,COZSIT,FREWLA"]
["QD","P","SK","HPW","SK,2LARO,46SQM,LRGBAT,MODERN,QUILOC,COZSIT"]
["QD","P","T","HQF","T,MODERN,QUILOC,FREWLA,SAFE,FLATSC"]
["Count: ",null,6]
["RACK",null,"D","IVH","D,MODERN,COMFRT,CONV2T,FREWLA,SAFE,FLATSC"]
["RACK",null,"D","IVO","D,MODERN,COMPLS,LARRM,QUILOC,COZSIT,FREWLA"]
["RACK",null,"Q","HOR","Q,CLASS,MODERN,QUILOC,FREWLA,SAFE,FLATSC"]
["RACK",null,"SD","HPT","SD,2ROOM,33SQM,MODERN,QUILOC,COZSIT,FREWLA"]
["RACK",null,"SK","HPW","SK,2LARO,46SQM,LRGBAT,MODERN,QUILOC,COZSIT"]
["RACK",null,"T","HQF","T,MODERN,QUILOC,FREWLA,SAFE,FLATSC"]
["Count: ",null,6]
["SR","P","D","IVH","D,MODERN,COMFRT,CONV2T,FREWLA,SAFE,FLATSC"]
["SR","P","D","IVO","D,MODERN,COMPLS,LARRM,QUILOC,COZSIT,FREWLA"]
["SR","P","Q","HOR","Q,CLASS,MODERN,QUILOC,FREWLA,SAFE,FLATSC"]
["SR","P","SD","HPT","SD,2ROOM,33SQM,MODERN,QUILOC,COZSIT,FREWLA"]
["SR","P","SK","HPW","SK,2LARO,46SQM,LRGBAT,MODERN,QUILOC,COZSIT"]
["SR","P","T","HQF","T,MODERN,QUILOC,FREWLA,SAFE,FLATSC"]
["Count: ",null,6]
["UC",null,"D","IVH","D,MODERN,COMFRT,CONV2T,FREWLA,SAFE,FLATSC"]
["UC",null,"D","IVO","D,MODERN,COMPLS,LARRM,QUILOC,COZSIT,FREWLA"]
["UC",null,"Q","HOR","Q,CLASS,MODERN,QUILOC,FREWLA,SAFE,FLATSC"]
["UC",null,"SD","HPT","SD,2ROOM,33SQM,MODERN,QUILOC,COZSIT,FREWLA"]
["UC",null,"SK","HPW","SK,2LARO,46SQM,LRGBAT,MODERN,QUILOC,COZSIT"]
["UC",null,"T","HQF","T,MODERN,QUILOC,FREWLA,SAFE,FLATSC"]
["Count: ",null,6]
["UZ","F","D","IVH","D,MODERN,COMFRT,CONV2T,FREWLA,SAFE,FLATSC"]
["UZ","F","D","IVO","D,MODERN,COMPLS,LARRM,QUILOC,COZSIT,FREWLA"]
["UZ","F","Q","HOR","Q,CLASS,MODERN,QUILOC,FREWLA,SAFE,FLATSC"]
["UZ","F","SD","HPT","SD,2ROOM,33SQM,MODERN,QUILOC,COZSIT,FREWLA"]
["UZ","F","SK","HPW","SK,2LARO,46SQM,LRGBAT,MODERN,QUILOC,COZSIT"]
["UZ","F","T","HQF","T,MODERN,QUILOC,FREWLA,SAFE,FLATSC"]
["Count: ",null,6]
["V8","P","D","IVH","D,MODERN,COMFRT,CONV2T,FREWLA,SAFE,FLATSC"]
["V8","P","D","IVO","D,MODERN,COMPLS,LARRM,QUILOC,COZSIT,FREWLA"]
["V8","P","Q","HOR","Q,CLASS,MODERN,QUILOC,FREWLA,SAFE,FLATSC"]
["V8","P","SD","HPT","SD,2ROOM,33SQM,MODERN,QUILOC,COZSIT,FREWLA"]
["V8","P","SK","HPW","SK,2LARO,46SQM,LRGBAT,MODERN,QUILOC,COZSIT"]
["V8","P","T","HQF","T,MODERN,QUILOC,FREWLA,SAFE,FLATSC"]
["Count: ",null,6]
["VR","P","D","IVH","D,MODERN,COMFRT,CONV2T,FREWLA,SAFE,FLATSC"]
["VR","P","D","IVO","D,MODERN,COMPLS,LARRM,QUILOC,COZSIT,FREWLA"]
["VR","P","Q","HOR","Q,CLASS,MODERN,QUILOC,FREWLA,SAFE,FLATSC"]
["VR","P","SD","HPT","SD,2ROOM,33SQM,MODERN,QUILOC,COZSIT,FREWLA"]
["VR","P","SK","HPW","SK,2LARO,46SQM,LRGBAT,MODERN,QUILOC,COZSIT"]
["VR","P","T","HQF","T,MODERN,QUILOC,FREWLA,SAFE,FLATSC"]
["Count: ",null,6]
["WD","F","D","IVH","D,MODERN,COMFRT,CONV2T,FREWLA,SAFE,FLATSC"]
["WD","F","D","IVO","D,MODERN,COMPLS,LARRM,QUILOC,COZSIT,FREWLA"]
["WD","F","Q","HOR","Q,CLASS,MODERN,QUILOC,FREWLA,SAFE,FLATSC"]
["WD","F","SD","HPT","SD,2ROOM,33SQM,MODERN,QUILOC,COZSIT,FREWLA"]
["WD","F","SK","HPW","SK,2LARO,46SQM,LRGBAT,MODERN,QUILOC,COZSIT"]
["WD","F","T","HQF","T,MODERN,QUILOC,FREWLA,SAFE,FLATSC"]
["Count: ",null,6]
["WW","P","D","IVH","D,MODERN,COMFRT,CONV2T,FREWLA,SAFE,FLATSC"]
["WW","P","D","IVO","D,MODERN,COMPLS,LARRM,QUILOC,COZSIT,FREWLA"]
["WW","P","Q","HOR","Q,CLASS,MODERN,QUILOC,FREWLA,SAFE,FLATSC"]
["WW","P","SD","HPT","SD,2ROOM,33SQM,MODERN,QUILOC,COZSIT,FREWLA"]
["WW","P","SK","HPW","SK,2LARO,46SQM,LRGBAT,MODERN,QUILOC,COZSIT"]
["WW","P","T","HQF","T,MODERN,QUILOC,FREWLA,SAFE,FLATSC"]
["Count: ",null,6]
["X2","P","D","IVH","D,MODERN,COMFRT,CONV2T,FREWLA,SAFE,FLATSC"]
["X2","P","D","IVO","D,MODERN,COMPLS,LARRM,QUILOC,COZSIT,FREWLA"]
["X2","P","Q","HOR","Q,CLASS,MODERN,QUILOC,FREWLA,SAFE,FLATSC"]
["X2","P","SD","HPT","SD,2ROOM,33SQM,MODERN,QUILOC,COZSIT,FREWLA"]
["X2","P","SK","HPW","SK,2LARO,46SQM,LRGBAT,MODERN,QUILOC,COZSIT"]
["X2","P","T","HQF","T,MODERN,QUILOC,FREWLA,SAFE,FLATSC"]
["Count: ",null,6]
["XN","P","D","IVH","D,MODERN,COMFRT,CONV2T,FREWLA,SAFE,FLATSC"]
["XN","P","D","IVO","D,MODERN,COMPLS,LARRM,QUILOC,COZSIT,FREWLA"]
["XN","P","Q","HOR","Q,CLASS,MODERN,QUILOC,FREWLA,SAFE,FLATSC"]
["XN","P","SD","HPT","SD,2ROOM,33SQM,MODERN,QUILOC,COZSIT,FREWLA"]
["XN","P","SK","HPW","SK,2LARO,46SQM,LRGBAT,MODERN,QUILOC,COZSIT"]
["XN","P","T","HQF","T,MODERN,QUILOC,FREWLA,SAFE,FLATSC"]
["Count: ",null,6]
["XW","P","D","IVH","D,MODERN,COMFRT,CONV2T,FREWLA,SAFE,FLATSC"]
["XW","P","D","IVO","D,MODERN,COMPLS,LARRM,QUILOC,COZSIT,FREWLA"]
["XW","P","Q","HOR","Q,CLASS,MODERN,QUILOC,FREWLA,SAFE,FLATSC"]
["XW","P","SD","HPT","SD,2ROOM,33SQM,MODERN,QUILOC,COZSIT,FREWLA"]
["XW","P","SK","HPW","SK,2LARO,46SQM,LRGBAT,MODERN,QUILOC,COZSIT"]
["XW","P","T","HQF","T,MODERN,QUILOC,FREWLA,SAFE,FLATSC"]
["Count: ",null,6]
["XZ","P","D","IVH","D,MODERN,COMFRT,CONV2T,FREWLA,SAFE,FLATSC"]
["XZ","P","D","IVO","D,MODERN,COMPLS,LARRM,QUILOC,COZSIT,FREWLA"]
["XZ","P","Q","HOR","Q,CLASS,MODERN,QUILOC,FREWLA,SAFE,FLATSC"]
["XZ","P","SD","HPT","SD,2ROOM,33SQM,MODERN,QUILOC,COZSIT,FREWLA"]
["XZ","P","SK","HPW","SK,2LARO,46SQM,LRGBAT,MODERN,QUILOC,COZSIT"]
["XZ","P","T","HQF","T,MODERN,QUILOC,FREWLA,SAFE,FLATSC"]
["Count: ",null,6]
["YE","P","D","IVH","D,MODERN,COMFRT,CONV2T,FREWLA,SAFE,FLATSC"]
["YE","P","D","IVO","D,MODERN,COMPLS,LARRM,QUILOC,COZSIT,FREWLA"]
["YE","P","Q","HOR","Q,CLASS,MODERN,QUILOC,FREWLA,SAFE,FLATSC"]
["YE","P","SD","HPT","SD,2ROOM,33SQM,MODERN,QUILOC,COZSIT,FREWLA"]
["YE","P","SK","HPW","SK,2LARO,46SQM,LRGBAT,MODERN,QUILOC,COZSIT"]
["YE","P","T","HQF","T,MODERN,QUILOC,FREWLA,SAFE,FLATSC"]
["Count: ",null,6]
["Z1","P","D","IVH","D,MODERN,COMFRT,CONV2T,FREWLA,SAFE,FLATSC"]
["Z1","P","D","IVO","D,MODERN,COMPLS,LARRM,QUILOC,COZSIT,FREWLA"]
["Z1","P","Q","HOR","Q,CLASS,MODERN,QUILOC,FREWLA,SAFE,FLATSC"]
["Z1","P","SD","HPT","SD,2ROOM,33SQM,MODERN,QUILOC,COZSIT,FREWLA"]
["Z1","P","SK","HPW","SK,2LARO,46SQM,LRGBAT,MODERN,QUILOC,COZSIT"]
["Z1","P","T","HQF","T,MODERN,QUILOC,FREWLA,SAFE,FLATSC"]
["Count: ",null,6]
["Z2","P","D","IVH","D,MODERN,COMFRT,CONV2T,FREWLA,SAFE,FLATSC"]
["Z2","P","D","IVO","D,MODERN,COMPLS,LARRM,QUILOC,COZSIT,FREWLA"]
["Z2","P","Q","HOR","Q,CLASS,MODERN,QUILOC,FREWLA,SAFE,FLATSC"]
["Z2","P","SD","HPT","SD,2ROOM,33SQM,MODERN,QUILOC,COZSIT,FREWLA"]
["Z2","P","SK","HPW","SK,2LARO,46SQM,LRGBAT,MODERN,QUILOC,COZSIT"]
["Z2","P","T","HQF","T,MODERN,QUILOC,FREWLA,SAFE,FLATSC"]
["Count: ",null,6]
["Z5","P","D","IVH","D,MODERN,COMFRT,CONV2T,FREWLA,SAFE,FLATSC"]
["Z5","P","D","IVO","D,MODERN,COMPLS,LARRM,QUILOC,COZSIT,FREWLA"]
["Z5","P","Q","HOR","Q,CLASS,MODERN,QUILOC,FREWLA,SAFE,FLATSC"]
["Z5","P","SD","HPT","SD,2ROOM,33SQM,MODERN,QUILOC,COZSIT,FREWLA"]
["Z5","P","SK","HPW","SK,2LARO,46SQM,LRGBAT,MODERN,QUILOC,COZSIT"]
["Z5","P","T","HQF","T,MODERN,QUILOC,FREWLA,SAFE,FLATSC"]
["Count: ",null,6]
["Z6","P","D","IVH","D,MODERN,COMFRT,CONV2T,FREWLA,SAFE,FLATSC"]
["Z6","P","D","IVO","D,MODERN,COMPLS,LARRM,QUILOC,COZSIT,FREWLA"]
["Z6","P","Q","HOR","Q,CLASS,MODERN,QUILOC,FREWLA,SAFE,FLATSC"]
["Z6","P","SD","HPT","SD,2ROOM,33SQM,MODERN,QUILOC,COZSIT,FREWLA"]
["Z6","P","SK","HPW","SK,2LARO,46SQM,LRGBAT,MODERN,QUILOC,COZSIT"]
["Z6","P","T","HQF","T,MODERN,QUILOC,FREWLA,SAFE,FLATSC"]
["Count: ",null,6]
["Z7","P","D","IVH","D,MODERN,COMFRT,CONV2T,FREWLA,SAFE,FLATSC"]
["Z7","P","D","IVO","D,MODERN,COMPLS,LARRM,QUILOC,COZSIT,FREWLA"]
["Z7","P","Q","HOR","Q,CLASS,MODERN,QUILOC,FREWLA,SAFE,FLATSC"]
["Z7","P","SD","HPT","SD,2ROOM,33SQM,MODERN,QUILOC,COZSIT,FREWLA"]
["Z7","P","SK","HPW","SK,2LARO,46SQM,LRGBAT,MODERN,QUILOC,COZSIT"]
["Z7","P","T","HQF","T,MODERN,QUILOC,FREWLA,SAFE,FLATSC"]
["Count: ",null,6]
["ZK","P","D","IVH","D,MODERN,COMFRT,CONV2T,FREWLA,SAFE,FLATSC"]
["ZK","P","D","IVO","D,MODERN,COMPLS,LARRM,QUILOC,COZSIT,FREWLA"]
["ZK","P","Q","HOR","Q,CLASS,MODERN,QUILOC,FREWLA,SAFE,FLATSC"]
["ZK","P","SD","HPT","SD,2ROOM,33SQM,MODERN,QUILOC,COZSIT,FREWLA"]
["ZK","P","SK","HPW","SK,2LARO,46SQM,LRGBAT,MODERN,QUILOC,COZSIT"]
["ZK","P","T","HQF","T,MODERN,QUILOC,FREWLA,SAFE,FLATSC"]
["Count: ",null,6]
["ZL","P","D","IVH","D,MODERN,COMFRT,CONV2T,FREWLA,SAFE,FLATSC"]
["ZL","P","D","IVO","D,MODERN,COMPLS,LARRM,QUILOC,COZSIT,FREWLA"]
["ZL","P","Q","HOR","Q,CLASS,MODERN,QUILOC,FREWLA,SAFE,FLATSC"]
["ZL","P","SD","HPT","SD,2ROOM,33SQM,MODERN,QUILOC,COZSIT,FREWLA"]
["ZL","P","SK","HPW","SK,2LARO,46SQM,LRGBAT,MODERN,QUILOC,COZSIT"]
["ZL","P","T","HQF","T,MODERN,QUILOC,FREWLA,SAFE,FLATSC"]
["Count: ",null,6]
["ZM","P","D","IVH","D,MODERN,COMFRT,CONV2T,FREWLA,SAFE,FLATSC"]
["ZM","P","D","IVO","D,MODERN,COMPLS,LARRM,QUILOC,COZSIT,FREWLA"]
["ZM","P","Q","HOR","Q,CLASS,MODERN,QUILOC,FREWLA,SAFE,FLATSC"]
["ZM","P","SD","HPT","SD,2ROOM,33SQM,MODERN,QUILOC,COZSIT,FREWLA"]
["ZM","P","SK","HPW","SK,2LARO,46SQM,LRGBAT,MODERN,QUILOC,COZSIT"]
["ZM","P","T","HQF","T,MODERN,QUILOC,FREWLA,SAFE,FLATSC"]
["Count: ",null,6]
["ZU","P","D","IVH","D,MODERN,COMFRT,CONV2T,FREWLA,SAFE,FLATSC"]
["ZU","P","D","IVO","D,MODERN,COMPLS,LARRM,QUILOC,COZSIT,FREWLA"]
["ZU","P","Q","HOR","Q,CLASS,MODERN,QUILOC,FREWLA,SAFE,FLATSC"]
["ZU","P","SD","HPT","SD,2ROOM,33SQM,MODERN,QUILOC,COZSIT,FREWLA"]
["ZU","P","SK","HPW","SK,2LARO,46SQM,LRGBAT,MODERN,QUILOC,COZSIT"]
["ZU","P","T","HQF","T,MODERN,QUILOC,FREWLA,SAFE,FLATSC"]
["Count: ",null,6]
["Count: 51",null,306]

{"sheet":"PROPERTY ACKNOWLEDGEMENT","index":5,"n_rows":19,"n_cols":13,"rows_kept":19,"cut":false,"hidden":false,"merged":[[12,2,12,13],[16,12,16,13],[14,2,14,13],[10,2,10,13],[18,0,18,13],[16,0,16,10],[15,0,15,10],[15,12,15,13],[8,2,8,13],[6,2,6,13],[0,12,0,13],[0,10,0,11],[3,0,4,13],[1,0,1,8]]}
["Property Acknowledgement Page",null,null,null,null,null,null,null,null,null,"Property #",null,{"$f":"COVER!C12","v":"999999"}]
[{"$f":"COVER!C6","v":"2014-11-27T08:20:57"}]
[]
["The following items are critical to the successful installation of the CRS Two-Way Interface between your PMS and Best Western CRS. Please read the following statements and indicate your acknowledgement by initialing each line."]
[]
[]
[null,null,"I understand that the total number of rooms and all room types in the hotel's PMS system must match the rooms in MemberWeb before and after going \"live\" on the Two-way."]
[null,null,null,null,null,null,null,null,"       Total Rooms in Hotel",null,null,78]
[null,null,"I understand that any new changes to room types and or rate plans, once the final packet is signed off, will affect the installation date of the Two-way."]
[]
["______",null,"I understand that I need to provide the installer with any special event dates and dates that are currently closed in Member Web.  I will review these dates in Member Web and the PMS after the two-way is installed to ensure they are set appropriately."]
[" "]
[null,null,"I understand that changes to exception rates & status (rate level A) are controlled by the PMS. Changes to room type descriptions (qualifiers) shall be submitted to EDS@bestwestern.com. For assistance during the installation process, please contact the property systems team at propsys@bestwestern.com. I also understand that since status is controlled by the PMS, it is your responsibility to keep status closed for any plan not being offered to certain room types."]
[]
[null,null,"All notifications from the Best Western EDS department regarding rate updates, and other communications will be sent to the property email address. (propertynumber@hotel.bestwestern.com).  It is the properties responsibility to check this email regularly.  The Property Help Desk can set up the account if it is not currently being used."]
[]
["Name & Position",null,null,null,null,null,null,null,null,null,null,null,"Date"]
[]
["PLEASE RETURN THIS BY FAX TO 623-780-6133."]

{"sheet":"MW ACCESS","index":6,"n_rows":27,"n_cols":12,"rows_kept":27,"cut":false,"hidden":false,"merged":[[26,0,26,12],[23,0,23,5],[23,7,23,12],[20,7,20,12],[20,0,20,5],[22,7,22,12],[22,0,22,5],[19,7,19,12],[19,0,19,5],[4,0,4,12],[0,11,0,12],[0,9,0,10],[15,0,15,12],[13,0,13,12]]}
["MemberWeb Access Permission Form",null,null,null,null,null,null,null,null,"Property #",null,{"$f":"COVER!C12","v":"999999"}]
[]
["Attention Voting Member;"]
[]
["Your PMS Vendor has requested LIMITED access to your MemberWeb information to assist them when troubleshooting your system.  The access would provide your vendor with READ ONLY capabilities to ONLY the following areas of MemberWeb:"]
[]
["-","View Daily Monitor (NO MODIFY RIGHTS)"]
["-","View Rate Plans"]
["-","View Corporate Accounts"]
["-","View History & Transaction Log"]
["-","All Help Sections"]
["-","Rate Levels"]
[]
["To give your PMS vendor access to your MemberWeb as described above, please provide the information, and sign below. Best Western will NOT automatically grant access to your MemberWeb to any vendor."]
[]
["I hereby authorize Best Western to grant my vendor MemberWeb access as described above. This privilege can be rescinded at any time by the Voting Member via written request."]
[]
[]
[]
[]
["Property Number",null,null,null,null,null,null,"Voting Member Name"]
[]
[]
["Voting Member Signature",null,null,null,null,null,null,"Voting Member Phone"]
[]
[]
["PLEASE RETURN THIS BY FAX TO 623-780-6133."]

{"sheet":"NoRatesAssigned","index":7,"n_rows":3,"n_cols":3,"rows_kept":3,"cut":false,"hidden":true,"merged":[]}
[]
[]
["95372","FX","D,MODERN,COMFRT,CONV2T,FREWLA,SAFE,FLATSC"]

{"sheet":"ActiveResNoRoom","index":8,"n_rows":0,"n_cols":0,"rows_kept":0,"cut":false,"hidden":true,"merged":[]}

{"sheet":"NoRoomAssign","index":9,"n_rows":0,"n_cols":0,"rows_kept":0,"cut":false,"hidden":true,"merged":[]}

{"sheet":"Close Date Form","index":10,"n_rows":51,"n_cols":9,"rows_kept":51,"cut":false,"hidden":false,"merged":[[36,0,36,2],[36,4,36,5],[38,7,38,8],[46,0,46,2],[46,7,46,8],[40,0,40,2],[40,4,40,5],[40,7,40,8],[38,0,38,2],[38,4,38,5],[50,0,50,3],[14,0,14,2],[14,4,14,5],[28,0,28,2],[28,4,28,5],[20,4,20,5],[18,0,18,2],[22,0,22,2],[34,0,34,2],[34,4,34,5],[16,0,16,2],[16,4,16,5],[24,0,24,2],[18,4,18,5],[26,0,26,2],[26,4,26,5],[20,0,20,2],[20,7,20,8],[12,0,12,2],[12,4,12,5],[22,4,22,5],[18,7,18,8],[22,7,22,8],[14,7,14,8],[16,7,16,8],[49,0,49,4],[49,6,49,8],[34,7,34,8],[30,0,30,2],[30,4,30,5],[42,4,42,5],[42,7,42,8],[46,4,46,5],[32,0,32,2],[44,0,44,2],[44,4,44,5],[42,0,42,2],[32,4,32,5],[44,7,44,8],[30,7,30,8],[32,7,32,8],[0,1,0,6],[3,0,3,8],[4,0,4,8],[5,0,5,8],[6,0,6,8],[10,0,10,2],[10,4,10,5],[10,7,10,8],[9,0,9,8],[12,7,12,8],[24,7,24,8],[24,4,24,5],[26,7,26,8],[28,7,28,8],[36,7,36,8]]}
[null,"CLOSE DATE NOTIFICATION FORM"]
[null,null,null,null,null,null,null,"Property # ",{"$f":"COVER!C12","v":"999999"}]
[]
[]
[]
[]
[]
[]
["**Please note we will be providing this information to your vendor on your behalf**"]
[]
["DATE(S) TO BE CLOSED",null,null,null,"ROOM TYPES",null,null,"RATE PLANS"]
[]
[]
[]
[]
[]
[]
[]
[]
[]
[]
[]
[]
[]
[]
[]
[]
[]
[]
[]
[]
[]
[]
[]
[]
[]
[]
[]
[]
[]
[]
[]
[]
[]
[]
[]
[]
[]
[]
["X"]
["SIGNATURE OF RESPONSIBLE PARTY",null,null,null,null,null,"DATE"]

{"sheet":"Guarantee & CXL","index":11,"n_rows":57,"n_cols":12,"rows_kept":57,"cut":false,"hidden":false,"merged":[[20,0,20,12],[27,9,27,12],[29,0,29,6],[27,0,27,6],[29,9,29,12],[25,9,25,12],[25,0,25,6],[43,0,43,6],[43,9,43,12],[45,0,45,6],[45,9,45,12],[31,0,31,6],[31,9,31,12],[33,0,33,6],[33,9,33,12],[41,9,41,12],[35,0,35,6],[39,0,39,6],[39,9,39,12],[41,0,41,6],[37,0,37,6],[35,9,35,12],[37,9,37,12],[0,0,0,12],[1,0,1,12],[6,0,6,12],[7,0,7,12],[8,0,8,12],[9,0,9,12],[56,0,56,4],[49,0,49,6],[49,9,49,12],[51,0,51,6],[51,9,51,12],[55,0,55,6],[55,9,55,12],[18,0,18,12],[19,0,19,12],[11,0,11,12],[12,0,12,12],[13,0,13,12],[15,0,15,10],[47,0,47,6],[47,9,47,12]]}
["Best Western Two Way Interface"]
["Guarantee and Cancellation Setup Request"]
[]
[]
["Hotel Name:",null,{"$f":"COVER!C13","v":"BW Demo Hotel"},null,null,null,null,null,null,"Property # ",null,"=COVER!C12"]
[]
["This form must be returned with the rest of your paperwork. Please note that ALL fields must be filled out, "]
["we will not be able to proceed with your two way installation if this has not been done. Please contact your "]
["Preimplementation analyst if you have any questions about this form. If this, or any of the other documents"]
["pertaining to your two way installation are not completed we will not be able to proceed with the installation."]
[]
[]
["Does your property require reservations booked through Central to be guaranteed with a"]
["credit card (Y/N)?___________"]
[]
["What is your hotel's cancellation policy? (4pm, 6pm, 24h, 48h etc.) _______________"]
[]
[]
["Please use the section below to indicate any times where you would wish to have a different guarantee or"]
["cancellation policy loaded. Please note that any time periods where you intend to have a different policy "]
["will require a season loaded in your PMS for those specific dates."]
[]
[]
["DATES",null,null,null,null,null,null,null,null,"POLICY"]
[]
[]
[]
[]
[]
[]
[]
[]
[]
[]
[]
[]
[]
[]
[]
[]
[]
[]
[]
[]
[]
[]
[]
[]
[]
[]
[]
[]
[]
[]
[]
["X"]
["SIGNATURE OF RESPONSIBLE PARTY",null,null,null,null,null,null,null,null,"DATE"]

{"sheet":"Access DB","index":12,"n_rows":2227,"n_cols":33,"rows_kept":2227,"cut":false,"hidden":true,"merged":[]}
[null,null,null,null,null,null,null,null,null,null,null,null,null,null,null,null,null,null,null,null,null,null,null,null,null,null,"Vendor","Install Contact","Address","City, ST, Zip","Phone","Fax","Email"]
["Prop #","Prop Name","City","ST","Property Contact","Phone Number","Email Address",null,null,null,null,null,null,null,null,null,null,null,null,null,null,null,null,null,null,null,{"$f":"'[1]Preimp Vendor Info'!A26","v":"Advantage Management Software"},{"$f":"'[1]Preimp Vendor Info'!B26","v":"Annette Cooley/Casey Cramblit/Jerry Homeless"},{"$f":"'[1]Preimp Vendor Info'!C26","v":"7929 SW Burns Way Suite B"},{"$f":"'[1]Preimp Vendor Info'!D26","v":"Wilsonville, OR 97070"},{"$f":"'[1]Preimp Vendor Info'!E26","v":"503-404-0027 ext. 111"},{"$f":"'[1]Preimp Vendor Info'!F26","v":"503-404-0030"},{"$f":"'[1]Preimp Vendor Info'!G26","v":"annette@hssltd.com; casey@hssltd.com; JerryH@hssltd.com"}]
["01007","B/W Catalina Inn","Northport (Tuscaloosa Area)","AL","Anil Patel, GM","205-339-5200","bwc5200@bellsouth.net",null,null,null,null,null,null,null,null,null,null,null,null,null,null,null,null,null,null,null,{"$f":"'[1]Preimp Vendor Info'!A27","v":"AutoClerk, Inc."},{"$f":"'[1]Preimp Vendor Info'!B27","v":"James Wolfe"},{"$f":"'[1]Preimp Vendor Info'!C27","v":"936 Dewing Avenue Suite G"},{"$f":"'[1]Preimp Vendor Info'!D27","v":"Lafayette, CA 94549"},{"$f":"'[1]Preimp Vendor Info'!E27","v":"925-284-1005"},{"$f":"'[1]Preimp Vendor Info'!F27","v":"925-284-3423"},{"$f":"'[1]Preimp Vendor Info'!G27","v":"james@autoclerk.com"}]
["01044","B/W Dothan Inn and Suites","Dothan","AL",null,"334-793-4376",null,null,null,null,null,null,null,null,null,null,null,null,null,null,null,null,null,null,null,null,{"$f":"'[1]Preimp Vendor Info'!A28","v":"Brilliant Hotel Software"},{"$f":"'[1]Preimp Vendor Info'!B28","v":"Rob van der Putten "},{"$f":"'[1]Preimp Vendor Info'!C28","v":"Chasséveld 15 G "},{"$f":"'[1]Preimp Vendor Info'!D28","v":"4811 DH Breda (The Netherlands)"},{"$f":"'[1]Preimp Vendor Info'!E28","v":"+31 76 530 53 53"},{"$f":"'[1]Preimp Vendor Info'!F28","v":"+31 76 530 53 54"},{"$f":"'[1]Preimp Vendor Info'!G28","v":"rob.vanderputten@itesso.com"}]
["01047","B/W on the Beach","Gulf Shores","AL","Bobby Thompson - GM/Tammy Henderson","251-948-2711","bestwest@gulftel.com;u4ever36535@yahoo.com",null,null,null,null,null,null,null,null,null,null,null,null,null,null,null,null,null,null,null,{"$f":"'[1]Preimp Vendor Info'!A29","v":"Guestline"},{"$f":"'[1]Preimp Vendor Info'!B29","v":0},{"$f":"'[1]Preimp Vendor Info'!C29","v":0},{"$f":"'[1]Preimp Vendor Info'!D29","v":0},{"$f":"'[1]Preimp Vendor Info'!E29","v":0},{"$f":"'[1]Preimp Vendor Info'!F29","v":0},{"$f":"'[1]Preimp Vendor Info'!G29","v":0}]
["01051","B/W Athens Inn","Athens","AL","Tyler Herrera","256-233-4030","tsherrera1@hotmail.com",null,null,null,null,null,null,null,null,null,null,null,null,null,null,null,null,null,null,null,{"$f":"'[1]Preimp Vendor Info'!A30","v":"Hoist"},{"$f":"'[1]Preimp Vendor Info'!B30","v":0},{"$f":"'[1]Preimp Vendor Info'!C30","v":0},{"$f":"'[1]Preimp Vendor Info'!D30","v":0},{"$f":"'[1]Preimp Vendor Info'!E30","v":0},{"$f":"'[1]Preimp Vendor Info'!F30","v":0},{"$f":"'[1]Preimp Vendor Info'!G30","v":0}]
["01063","B/W Park Plaza Motor Inn","Tuscaloosa","AL","Katie Butler","205-556-9690","ksbutler1973@yahoo.com",null,null,null,null,null,null,null,null,null,null,null,null,null,null,null,null,null,null,null,{"$f":"'[1]Preimp Vendor Info'!A31","v":"Image Technology Systems"},{"$f":"'[1]Preimp Vendor Info'!B31","v":"Heather Close"},{"$f":"'[1]Preimp Vendor Info'!C31","v":"1615 Dorchester Drive, Suite 100"},{"$f":"'[1]Preimp Vendor Info'!D31","v":"Plano, TX. 75075"},{"$f":"'[1]Preimp Vendor Info'!E31","v":"877-280-5775 ext 115"},{"$f":"'[1]Preimp Vendor Info'!F31","v":"214-291-4008"},{"$f":"'[1]Preimp Vendor Info'!G31","v":"bwpreimp@image-syscorp.com; h.close@image-syscorp.com"}]
["01064","B/W Inn","Greenville","AL","Amit Patel - VM / James Langham","334-382-9200","aphospitality@gmail.com",null,null,null,null,null,null,null,null,null,null,null,null,null,null,null,null,null,null,null,{"$f":"'[1]Preimp Vendor Info'!A32","v":"Infor"},{"$f":"'[1]Preimp Vendor Info'!B32","v":"Linda Beachy Hughes"},{"$f":"'[1]Preimp Vendor Info'!C32","v":"26110 Enterprise Way #200"},{"$f":"'[1]Preimp Vendor Info'!D32","v":"Lake Forest, CA 92630"},{"$f":"'[1]Preimp Vendor Info'!E32","v":"949-598-6772 "},{"$f":"'[1]Preimp Vendor Info'!F32","v":"949-598-6677"},{"$f":"'[1]Preimp Vendor Info'!G32","v":"linda.beachy-hughes@Infor.com"}]
["01066","B/W Fairwinds Inn","Cullman","AL","Tammy McGee - GM","256-737-5009","01066@hotel.bestwestern.com",null,null,null,null,null,null,null,null,null,null,null,null,null,null,null,null,null,null,null,{"$f":"'[1]Preimp Vendor Info'!A33","v":"Micros"},{"$f":"'[1]Preimp Vendor Info'!B33","v":"Christi Lin"},{"$f":"'[1]Preimp Vendor Info'!C33","v":"7031 Columbia Gateway Drive"},{"$f":"'[1]Preimp Vendor Info'!D33","v":"Columbia, MD 21046 "},{"$f":"'[1]Preimp Vendor Info'!E33","v":"443-864-1933"},{"$f":"'[1]Preimp Vendor Info'!F33","v":"443-583-0241"},{"$f":"'[1]Preimp Vendor Info'!G33","v":"CLin@MICROS.COM"}]
["01067","B/W Riviera Inn","Foley","AL","Jay Patel/","251-943-8600","bwrivierainn@gulftel.com; jaypatel@gulftel.com",null,null,null,null,null,null,null,null,null,null,null,null,null,null,null,null,null,null,null,{"$f":"'[1]Preimp Vendor Info'!A34","v":"Micros - Hosted"},{"$f":"'[1]Preimp Vendor Info'!B34","v":"Christi Lin"},{"$f":"'[1]Preimp Vendor Info'!C34","v":"7031 Columbia Gateway Drive"},{"$f":"'[1]Preimp Vendor Info'!D34","v":"Columbia, MD 21046 "},{"$f":"'[1]Preimp Vendor Info'!E34","v":"443-864-1933"},{"$f":"'[1]Preimp Vendor Info'!F34","v":"443-583-0241"},{"$f":"'[1]Preimp Vendor Info'!G34","v":"CLin@MICROS.COM"}]
["01069","B/W Suites","Jackson","AL","Mike Shows - VM","251-246-6030","glendavickless@myway.com",null,null,null,null,null,null,null,null,null,null,null,null,null,null,null,null,null,null,null,{"$f":"'[1]Preimp Vendor Info'!A35","v":"MSI -  NiteVision"},{"$f":"'[1]Preimp Vendor Info'!B35","v":"Connie Demmer/ Pratham Shrestha"},{"$f":"'[1]Preimp Vendor Info'!C35","v":"7600 North 15th St. Suite 250"},{"$f":"'[1]Preimp Vendor Info'!D35","v":"Phoenix, AZ 85020"},{"$f":"'[1]Preimp Vendor Info'!E35","v":"602-870-7836"},{"$f":"'[1]Preimp Vendor Info'!F35","v":"602-216-1738"},{"$f":"'[1]Preimp Vendor Info'!G35","v":"Connie.Demmer@msisolutions.com; pratham.shrestha@msisolutions.com"}]
["01070","B/W Andalusia Inn","Andalusia","AL","Darmesh Patel","334-222-9999","bestwestern@alaweb.com",null,null,null,null,null,null,null,null,null,null,null,null,null,null,null,null,null,null,null,{"$f":"'[1]Preimp Vendor Info'!A36","v":"MSI - CloudPM"},{"$f":"'[1]Preimp Vendor Info'!B36","v":"Connie Demmer"},{"$f":"'[1]Preimp Vendor Info'!C36","v":"7600 North 15th St. Suite 250"},{"$f":"'[1]Preimp Vendor Info'!D36","v":"Phoenix, AZ 85020"},{"$f":"'[1]Preimp Vendor Info'!E36","v":"602-870-7836"},{"$f":"'[1]Preimp Vendor Info'!F36","v":"602-216-1738"},{"$f":"'[1]Preimp Vendor Info'!G36","v":"Connie.Demmer@msisolutions.com"}]
["01073","B/W PLUS at Oak Mountain Inn","Pelham (Birmingham Area)","AL","Ricky Rogers","205-982-1113","01073@hotel.bestwestern.com",null,null,null,null,null,null,null,null,null,null,null,null,null,null,null,null,null,null,null,{"$f":"'[1]Preimp Vendor Info'!A37","v":"MSI - NovaPlus"},{"$f":"'[1]Preimp Vendor Info'!B37","v":"Connie Demmer"},{"$f":"'[1]Preimp Vendor Info'!C37","v":"7600 North 15th St. Suite 250"},{"$f":"'[1]Preimp Vendor Info'!D37","v":"Phoenix, AZ 85020"},{"$f":"'[1]Preimp Vendor Info'!E37","v":"602-870-7836"},{"$f":"'[1]Preimp Vendor Info'!F37","v":"602-216-1738"},{"$f":"'[1]Preimp Vendor Info'!G37","v":"Connie.Demmer@msisolutions.com"}]
["01077","B/W Inn","Clanton","AL","Paresh Patel","205-280-1006","ppatel1279@aol.com",null,null,null,null,null,null,null,null,null,null,null,null,null,null,null,null,null,null,null,{"$f":"'[1]Preimp Vendor Info'!A38","v":"MSI - WinPM"},{"$f":"'[1]Preimp Vendor Info'!B38","v":"Connie Demmer"},{"$f":"'[1]Preimp Vendor Info'!C38","v":"7600 North 15th St. Suite 250"},{"$f":"'[1]Preimp Vendor Info'!D38","v":"Phoenix, AZ 85020"},{"$f":"'[1]Preimp Vendor Info'!E38","v":"602-870-7836"},{"$f":"'[1]Preimp Vendor Info'!F38","v":"602-216-1738"},{"$f":"'[1]Preimp Vendor Info'!G38","v":"Connie.Demmer@msisolutions.com"}]
["01081","B/W Inn","Monroeville","AL","Anil Patel","251-575-9999","Anilp617@yahoo.com",null,null,null,null,null,null,null,null,null,null,null,null,null,null,null,null,null,null,null,{"$f":"'[1]Preimp Vendor Info'!A39","v":"Protel"},{"$f":"'[1]Preimp Vendor Info'!B39","v":0},{"$f":"'[1]Preimp Vendor Info'!C39","v":0},{"$f":"'[1]Preimp Vendor Info'!D39","v":0},{"$f":"'[1]Preimp Vendor Info'!E39","v":0},{"$f":"'[1]Preimp Vendor Info'!F39","v":0},{"$f":"'[1]Preimp Vendor Info'!G39","v":0}]
["01084","B/W River City Hotel","Decatur","AL","Janssen Parrish - GM","256-301-1388","01084@hotel.bestwestern.com",null,null,null,null,null,null,null,null,null,null,null,null,null,null,null,null,null,null,null,{"$f":"'[1]Preimp Vendor Info'!A40","v":"Suite 8"},{"$f":"'[1]Preimp Vendor Info'!B40","v":0},{"$f":"'[1]Preimp Vendor Info'!C40","v":0},{"$f":"'[1]Preimp Vendor Info'!D40","v":0},{"$f":"'[1]Preimp Vendor Info'!E40","v":0},{"$f":"'[1]Preimp Vendor Info'!F40","v":0},{"$f":"'[1]Preimp Vendor Info'!G40","v":0}]
["01088","B/W PLUS Gardendale","Gardendale","AL","Pete Patel - Owner","205-631-1181","ppatel205@aol.com"]
["01092","B/W Hope Hull Inn","Montgomery","AL","Katul Patel - GM/ Ray","334-280-0306","ray1854@gmail.com"]
["01094","B/W PLUS Gadsden Hotel & Suites","Gadsden","AL","Ms. Neela Patel","256-570-0569","neelapatel@bellsouth.net"]
["01096","B/W PLUS Carlton Suites","Birmingham","AL","Umesh Naik (Ronny)","205-940-9990","01096@hotel.bestwestern.com and/or  uurn@msn.com"]
["01099","B/W PLUS Rocket City Inn & Suites","Huntsville","AL","Kru Patel","256-837-7412","01099@hotel.bestwestern.com;bwrocketcity@gmail.com"]
["01104","B/W PLUS Bass Hotel & Suites","Leeds","AL","Harry Patel","205-640-5300","hhpatel@windstream.net"]
["01106","B/W PLUS Two Rivers Hotel & Suites","Demopolis","AL","Jay Shows","334-289-2611"," bwtworivers@bellsouth.net",null,null,null,null,null,null,null,null,null,null,null,null,null,null,null,null,null,null,null,"PROPSYS TECH","TITLE","ADDRESS","CITY, ST ZIP","PHONE","FAX","EMAIL"]
["01107","B/W Ramada Limited","Opelika","AL","Mr. Umang Patel","334-745-6293","kap_1004@yahoo.com",null,null,null,null,null,null,null,null,null,null,null,null,null,null,null,null,null,null,null,{"$f":"'[1]PSIS Analysts'!A29","v":"Cheri Reilly"},{"$f":"'[1]PSIS Analysts'!B29","v":"IT Business Analyst"},{"$f":"'[1]PSIS Analysts'!C29","v":"20400 N. 29th Avenue"},{"$f":"'[1]PSIS Analysts'!D29","v":"Phoenix, AZ 85027"},{"$f":"'[1]PSIS Analysts'!E29","v":"(623) 780-6152"},{"$f":"'[1]PSIS Analysts'!F29","v":"(623) 780-6133"},{"$f":"'[1]PSIS Analysts'!G29","v":"cheri.reilly@bestwestern.com"}]
["01109","B/W Moffett Rd. Inn","Mobile","AL","Ray Patel","251-645-1275","raypatel1981@yahoo.com",null,null,null,null,null,null,null,null,null,null,null,null,null,null,null,null,null,null,null,{"$f":"'[1]PSIS Analysts'!A30","v":"Clayton Porter"},{"$f":"'[1]PSIS Analysts'!B30","v":"Manager Property Systems Services"},{"$f":"'[1]PSIS Analysts'!C30","v":"20400 N. 29th Avenue"},{"$f":"'[1]PSIS Analysts'!D30","v":"Phoenix, AZ 85027"},{"$f":"'[1]PSIS Analysts'!E30","v":"(623) 780-6450"},{"$f":"'[1]PSIS Analysts'!F30","v":"(623) 780-6133"},{"$f":"'[1]PSIS Analysts'!G30","v":"clayton.porter@bestwestern.com"}]
["01112","B/W PLUS Opp Inn","Opp","AL","Neil Patel/Rita","334-493-9000","mpatellaw@andycable.com",null,null,null,null,null,null,null,null,null,null,null,null,null,null,null,null,null,null,null,{"$f":"'[1]PSIS Analysts'!A31","v":"Diane Romanski"},{"$f":"'[1]PSIS Analysts'!B31","v":"Senior IT Business Analyst"},{"$f":"'[1]PSIS Analysts'!C31","v":"20400 N. 29th Avenue"},{"$f":"'[1]PSIS Analysts'!D31","v":"Phoenix, AZ 85027"},{"$f":"'[1]PSIS Analysts'!E31","v":"(623) 780-6221"},{"$f":"'[1]PSIS Analysts'!F31","v":"(623) 780-6133"},{"$f":"'[1]PSIS Analysts'!G31","v":"diane.romanski@bestwestern.com"}]
["01114","B/W PLUS Russellville Hotel & Suites","Russellville","AL","Mehul Patel / Jennifer Richeson","256-332-1002","shawnricheson1@yahoo.com",null,null,null,null,null,null,null,null,null,null,null,null,null,null,null,null,null,null,null,{"$f":"'[1]PSIS Analysts'!A32","v":"Heather Bradford"},{"$f":"'[1]PSIS Analysts'!B32","v":"IT Analyst"},{"$f":"'[1]PSIS Analysts'!C32","v":"20400 N. 29th Avenue"},{"$f":"'[1]PSIS Analysts'!D32","v":"Phoenix, AZ 85027"},{"$f":"'[1]PSIS Analysts'!E32","v":"(623) 780-6491"},{"$f":"'[1]PSIS Analysts'!F32","v":"(623) 780-6133"},{"$f":"'[1]PSIS Analysts'!G32","v":"heather. bradford@bestwestern.com"}]
["01115","B/W PLUS Circle Inn","Enterprise","AL","Sam Patel/Jay","334-393-5248","spatel3910@aol.com",null,null,null,null,null,null,null,null,null,null,null,null,null,null,null,null,null,null,null,{"$f":"'[1]PSIS Analysts'!A33","v":"Jacqueleen Jibeault"},{"$f":"'[1]PSIS Analysts'!B33","v":"IT Business Analyst"},{"$f":"'[1]PSIS Analysts'!C33","v":"20400 N. 29th Avenue"},{"$f":"'[1]PSIS Analysts'!D33","v":"Phoenix, AZ 85027"},{"$f":"'[1]PSIS Analysts'!E33","v":"(623) 780-6152"},{"$f":"'[1]PSIS Analysts'!F33","v":"(623) 780-6133"},{"$f":"'[1]PSIS Analysts'!G33","v":"jacqueleen.jibeault@bestwestern.com"}]
["01116","B/W Motorsports Inn & Suites","Saraland","AL","Ricky Patel","251-675-4446","bwal203@gmail.com",null,null,null,null,null,null,null,null,null,null,null,null,null,null,null,null,null,null,null,{"$f":"'[1]PSIS Analysts'!A34","v":"Jonathan Kirby"},{"$f":"'[1]PSIS Analysts'!B34","v":"IT Business Analyst"},{"$f":"'[1]PSIS Analysts'!C34","v":"20400 N. 29th Avenue"},{"$f":"'[1]PSIS Analysts'!D34","v":"Phoenix, AZ 85027"},{"$f":"'[1]PSIS Analysts'!E34","v":"(623) 780-6492"},{"$f":"'[1]PSIS Analysts'!F34","v":"(623) 780-6133"},{"$f":"'[1]PSIS Analysts'!G34","v":"jonathan.kirby@bestwestern.com"}]
["01117","B/W Troy Inn","Troy","AL","Neil Patel","334-566-1585","neil_patel@cox.net",null,null,null,null,null,null,null,null,null,null,null,null,null,null,null,null,null,null,null,{"$f":"'[1]PSIS Analysts'!A35","v":"Jovanna Ulloa"},{"$f":"'[1]PSIS Analysts'!B35","v":"IT Business Analyst"},{"$f":"'[1]PSIS Analysts'!C35","v":"20400 N. 29th Avenue"},{"$f":"'[1]PSIS Analysts'!D35","v":"Phoenix, AZ 85027"},{"$f":"'[1]PSIS Analysts'!E35","v":"(623) 780-6661"},{"$f":"'[1]PSIS Analysts'!F35","v":"(623) 780-6133"},{"$f":"'[1]PSIS Analysts'!G35","v":"jovanna.ulloa@bestwestern.com"}]
["01120","B/W PLUS Daphne Inn & Suites","Daphne","AL","Mitesh Desai","251-625-6260","desaim21@aol.com",null,null,null,null,null,null,null,null,null,null,null,null,null,null,null,null,null,null,null,{"$f":"'[1]PSIS Analysts'!A36","v":"Kevin Morris"},{"$f":"'[1]PSIS Analysts'!B36","v":"IT Business Analyst"},{"$f":"'[1]PSIS Analysts'!C36","v":"20400 N. 29th Avenue"},{"$f":"'[1]PSIS Analysts'!D36","v":"Phoenix, AZ 85027"},{"$f":"'[1]PSIS Analysts'!E36","v":"(623) 780-6557"},{"$f":"'[1]PSIS Analysts'!F36","v":"(623) 780-6133"},{"$f":"'[1]PSIS Analysts'!G36","v":"kevin.morris@bestwestern.com"}]
["01121","B/W PLUS Bessemer Hotel & Suites","Bessemer","AL","Pinder Singh","205-481-1950","mailpinder@gmail.com",null,null,null,null,null,null,null,null,null,null,null,null,null,null,null,null,null,null,null,{"$f":"'[1]PSIS Analysts'!A37","v":"Phillip Detrick"},{"$f":"'[1]PSIS Analysts'!B37","v":"Senior IT Business Analyst"},{"$f":"'[1]PSIS Analysts'!C37","v":"20400 N. 29th Avenue"},{"$f":"'[1]PSIS Analysts'!D37","v":"Phoenix, AZ 85027"},{"$f":"'[1]PSIS Analysts'!E37","v":"(623) 780-6496"},{"$f":"'[1]PSIS Analysts'!F37","v":"(623) 780-6133"},{"$f":"'[1]PSIS Analysts'!G37","v":"phillip.detrick@bestwestern.com"}]
["01122","B/W PLUS Madison-Huntsville Hotel","Madison","AL","Tiffany Caudill","256-772-7170","hiwagm@bellsouth.net",null,null,null,null,null,null,null,null,null,null,null,null,null,null,null,null,null,null,null,{"$f":"'[1]PSIS Analysts'!A38","v":"Ragen Hamilton"},{"$f":"'[1]PSIS Analysts'!B38","v":"IT Business Analyst"},{"$f":"'[1]PSIS Analysts'!C38","v":"20400 N. 29th Avenue"},{"$f":"'[1]PSIS Analysts'!D38","v":"Phoenix, AZ 85027"},{"$f":"'[1]PSIS Analysts'!E38","v":"(623) 780-6556"},{"$f":"'[1]PSIS Analysts'!F38","v":"(623) 780-6133"},{"$f":"'[1]PSIS Analysts'!G38","v":"ragen.hamilton@bestwestern.com"}]
["02004","B/W Bidarka","Homer","AK",null,"907-235-8148"]
["02005","B/W Golden Lion","Anchorage","AK",null,"907-561-1522"]
["02006","B/W Country Lane Inn","Juneau","AK","Mrs. Sharon Perkins","907-789-5005","perkins.sharon@gmail.com"]
["02008","B/W King Salmon Motel","Soldotna","AK","Ms. Kathy Thornton","907-262-5857","ksalmon@alaska.com; 02008@hotel.bestwestern.com"]
["02009","B/W PLUS Landing Hotel","Ketchikan","AK","Linda Peters","907-225-5166","lpeters457@kpunet.net"]
["02011","B/W Lake Lucille Inn","Wasilla","AK","Duane/Bev Conrey","907-373-1776","bevconrey@yahoo.com"]
["02012","B/W Grandma's Feather Bed","Juneau","AK","Ms. Sharon Perkins","907-789-5566","02012@hotel.bestwestern.com",null,null,null,null,null,null,null,null,null,null,null,null,null,null,null,null,null,null,null,"REVENUE MANAGER","TITLE","ADDRESS","CITY, ST  ZIP","PHONE","FAX","EMAIL"]
["02013","B/W Kodiak Inn and Convention Center","Kodiak","AK",null,"907-486-5712",null,null,null,null,null,null,null,null,null,null,null,null,null,null,null,null,null,null,null,null,"Christine Anderson","Revenue Manager","20400 N. 29th Avenue","Phoenix, AZ 85027",8662578062,6237806499,"christine.anderson@bestwestern.com"]
["02014","B/W Valdez Harbor Inn","Valdez","AK",null,"907-835-3434",null,null,null,null,null,null,null,null,null,null,null,null,null,null,null,null,null,null,null,null,"Amisha Bhakta","Revenue Manager","20400 N. 29th Avenue","Phoenix, AZ 85027",8662578062,6237806499,"amisha.bhakta@bestwestern.com"]
["02016","B/W PLUS Edgewater Hotel","Seward","AK","ARIEL SIEVERTS","907-224-2700","ASIEVERTS@HOTELEDGEWATER.COM",null,null,null,null,null,null,null,null,null,null,null,null,null,null,null,null,null,null,null,"David Huber, CHA, CHRM","Revenue Manager","20400 N. 29th Avenue","Phoenix, AZ 85027",8662577417,6237806499,"david.huber@bestwestern.com"]
["02017","B/W PLUS Chena River Lodge","Fairbanks","AK","Ranjit Johal / Shalanda","907-687-1259","randysjo79@yahoo.com / shalanda_rosemond@hotmail.c",null,null,null,null,null,null,null,null,null,null,null,null,null,null,null,null,null,null,null,"Debra Kipnes, CHA, CHRM","Revenue Manager","20400 N. 29th Avenue","Phoenix, AZ 85027",8662578319,6237806499,"debra.kipnes@bestwestern.com"]
["02018","B/W PLUS Pioneer Park Inn Hotel","Fairbanks","AK","Shalanda Rosemond/Debbie Baldwin","907-479-8080","dbaldwinpioneer@gmail.com",null,null,null,null,null,null,null,null,null,null,null,null,null,null,null,null,null,null,null,"Denise Herbert","Revenue Manager","20400 N. 29th Avenue","Phoenix, AZ 85027","866-257-7319","(623) 780-6216","denise.herbert@bestwestern.com"]
["03002","B/W Pony Soldier Inn & Suites","Flagstaff","AZ",null,"928-526-2388",null,null,null,null,null,null,null,null,null,null,null,null,null,null,null,null,null,null,null,null,"Ed Sawyers, CHA, CHRM","Revenue Manager","20400 N. 29th Avenue","Phoenix, AZ 85027",8664967386,6237806499,"ed.sawyers@bestwestern.com"]
["03004","B/W Space Age Lodge","Gila Bend","AZ","Gayle Duran / Carole Fox - GM","928-683-2273","spaceagelodge@aol.com",null,null,null,null,null,null,null,null,null,null,null,null,null,null,null,null,null,null,null,"Heather Haubrich","Revenue Manager","20400 N. 29th Avenue","Phoenix, AZ 85027","877-290-0464","623-780-6919","heather.haubrich@bestwestern.com"]
["03012","B/W PLUS King's Inn & Suites","Kingman","AZ","Pat Philley","928-753-6101","bwkingsinn@npgcable.com",null,null,null,null,null,null,null,null,null,null,null,null,null,null,null,null,null,null,null,"Josh Kalla","Revenue Manager","20400 N. 29th Avenue","Phoenix, AZ 85027","(866) 257-8190",6237806499,"josh.kalla@bestwestern.com"]
["03029","B/W Rancho Grande","Wickenburg","AZ","Cassandra / Robert O'Hearn - Owner","928-684-5445","03029@hotel.bestwestern.com",null,null,null,null,null,null,null,null,null,null,null,null,null,null,null,null,null,null,null,"Kyle Garnett","Revenue Manager","20400 N. 29th Avenue","Phoenix, AZ 85027",8667756701,6237806499,"Kyle.Garnett@bestwestern.com"]
["03049","B/W PREMIER Grand Canyon Squire Inn","Grand Canyon","AZ","Billy Thompson","928-638-2681","bthompson@grandcanonsquire.com",null,null,null,null,null,null,null,null,null,null,null,null,null,null,null,null,null,null,null,"Lisa McKee","Revenue Manager","20400 N. 29th Avenue","Phoenix, AZ 85027","866-257-8062",6237806499," lisa.mckee@bestwestern.com"]
["03054","B/W Desert Inn","Safford","AZ","Roger Shastri or Twyla","928-428-0521","rajshastri@cableone.net",null,null,null,null,null,null,null,null,null,null,null,null,null,null,null,null,null,null,null,"Naomi Hamilton","Revenue Manager","20400 N. 29th Avenue","Phoenix, AZ 85027","866-257-8188","623-780-6241","naomi.hamilton@bestwestern.com"]
["03056","B/W Mezona Inn","Mesa","AZ","Ashok Patel","480-834-9233","ashok@mezonainn.com",null,null,null,null,null,null,null,null,null,null,null,null,null,null,null,null,null,null,null,"Peter Wearing","Revenue Manager","20400 N. 29th Avenue","Phoenix, AZ 85027","866-257-7762",6237806499," peter.wearing@bestwestern.com"]
["03059","B/W PLUS A Wayfarer's Inn and Suites","Kingman","AZ","Cary Swenson","928-753-6271","CarySwenson56@yahoo.com",null,null,null,null,null,null,null,null,null,null,null,null,null,null,null,null,null,null,null,"Sandi Schroder","Revenue Manager","20400 N. 29th Avenue","Phoenix, AZ 85027","(877) 943-8738",6237806499,"Sandi.Schroder@bestwestern.com"]
["03061","B/W Prescottonian","Prescott","AZ","Tom Foster","928-445-3096","tom@prescottbestwestern.com",null,null,null,null,null,null,null,null,null,null,null,null,null,null,null,null,null,null,null,"Stephen Aldrich","Revenue Manager","20400 N. 29th Avenue","Phoenix, AZ 85027",8664967388,6237806499,"stephen.aldrich@bestwestern.com"]
["03062","B/W Airport Inn","Phoenix","AZ","Ronald Hall","602-273-7251","03062@hotel.bestwestern.com",null,null,null,null,null,null,null,null,null,null,null,null,null,null,null,null,null,null,null,"Thomas Wilson, CHRM","Senior Revenue Manager","20400 N. 29th Avenue","Phoenix, AZ 85027",8662577664,6237806243,"thomas.wilson@bestwestern.com"]
["03066","B/W Arizonian Inn","Holbrook","AZ","Barbara / Bill Berry","928-524-2611","bill.berry@cox.net"]
["03067","B/W Paint Pony Lodge","Show Low","AZ","Ms. Julee Billingsley","928-537-5773","bw@paintponylodge.com"]
["03074","B/W PLUS Royal Sun Inn & Suites","Tucson","AZ","Neil Shah","520-622-8871","bwroyalsun@aol.com"]
["03089","B/W Inn & Suites of Sun City","Youngtown","AZ",null,"623-933-8211","03089@hotel.bestwestern.com"]
["03092","B/W PLUS  InnSuites Phoenix Hotel & Suites","Phoenix","AZ","Paul Green","602-997-6285","pgreen@innsuites.com"]
["03093","B/W PLUS InnSuites Tucson Foothills Hotel & Suites","Tucson","AZ","Paul Green","520-297-8111","pgreen@innsuites.com"]
["03097","B/W PLUS InnSuites Yuma Mall Hotel & Suites","Yuma","AZ","Paul Green/Daryl Sorbo","928-783-8341","pgreen@innsuites.com"]
["03099","B/W PLUS Arroyo Roble Hotel & Creekside Villas","Sedona","AZ",null,"928-282-4001"]
["03101","B/W Inn of Pinetop","Pinetop","AZ","John Solarz","928-367-6667","bwpinetop@cableone.net"]
["03102","B/W Cottonwood Inn","Cottonwood","AZ",null,"928-634-5575"]
["03109","B/W PLUS Casa Grande","Casa Grande","AZ","Tim Vorhies","520-836-1600","gm.bestwestern@yahoo.com"]
["03115","B/W Flying J Motel","Ehrenberg (Blythe Area, CA)","AZ","Tony Mendoza","928-923-9711","03115@hotel.bestwestern.com"]
["03116","B/W PLUS Phoenix Goodyear Inn","Goodyear","AZ",null,"623-932-3210"]
["03117","B/W PLUS at Lake Powell","Page","AZ","Min Wong","928-645-5988","minmin59@aol.com"]
["03118","B/W Sunrise Inn","Eagar (Springerville Area)","AZ","Tana McElderry  - GM","928-333-2540","T_MCELDERRY@YAHOO.COM; 03118@hotel.bestwestern.com"]
["03121","B/W PLUS Inn of Williams","Williams","AZ","Sheryl Olson, VM","928-635-4400","bw03121@aol.com"]
["03122","B/W Superstition Springs Inn","Mesa","AZ","Mr. Domingo Castro","480-641-1164","Bestwestern1342@gmail.com"]
["03123","B/W Sawmill Inn","Heber","AZ","Dave Bhakta","928-535-5053","bw.smi@hotmail.com"]
["03124","B/W PLUS Inn of Sedona","Sedona","AZ","Mr. John Tolliver","928-282-3072","jt@innofsedona.com"]
["03125","B/W View of Lake Powell Hotel","Page","AZ","Min Wang","928-645-8868","minmin59@aol.com"]
["03126","B/W Canyon De Chelly Inn","Chinle","AZ",null,"928-674-5874"]
["03130","B/W Parker Inn","Parker","AZ","Mr. Jerry Halbert / Pat Waugh","928-669-6060","jhalbert@greensgroup.com"]
["03131","B/W Bullhead City Inn","Bullhead City (Laughlin, Nv Area)","AZ","Howie Kanji, GM","928-754-3000","hkanji1017@aol.com"]
["03133","B/W INN OF TEMPE","Tempe","AZ",null,"480-784-2233"]
["03134","B/W Inn of Chandler","Chandler","AZ","Harry Patel","480-814-8600","03134@HOTEL.BESTWESTERN.COM"]
["03136","B/W Gold Canyon","Gold Canyon","AZ",null,"480-671-6000"]
["03142","B/W Phoenix I-17 MetroCenter Inn","Phoenix","AZ",null,"602-864-6233"]
["03143","B/W Apache Junction Inn","Apache Junction","AZ",null,"480-982-9200"]
["03144","B/W PLUS Tempe by the Mall","Tempe","AZ",null,"480-820-7500"]
["03145","B/W Quail Hollow Inn","Benson","AZ","Carol Dunlap","520-586-3646","cad759@vtc.net"]
["03147","B/W PLUS Sundial","Scottsdale","AZ","Jude Nau GM","480-994-4170","J.nau@cox.net"]
["03148","B/W legacy Inn & Suites","Gilbert","AZ","Ms. Cathy Neff",null,"cathyn@structuresaz.com"]
["03149","B/W Douglas Inn & Suites","Douglas","AZ"," Paco Patel","480-449-7500","paco@hdcaz.com"]
["03150","B/W Sonora Inn & Suites","Nogales","AZ","Tom Bhakta","(520) 375-6500","03150@hotel.bestwestern.com"]
["03151","B/W PLUS Winslow Inn","Winslow","AZ","Barbara Vogl","928-289-2960","Bvogl@Commspeed.net"]
["03152","B/W Green Valley Inn","Green Valley","AZ","Carlos Manzanares","520-625-2250","carlos@finehospitality.com"]
["03153","B/W PLUS Gold Poppy Inn","Marana","AZ","Ravi/Jigish Shah/Ramesh Patel","520-579-7202","jigish@mmpproperties.com; manny@mmpproperties.com"]
["03154","B/W Tolleson Suites","Tolleson","AZ","Dave Patel","623-936-6000","davepatelr@yahoo.com; dave@sleepngohotels.com"]
["03155","B/W PLUS Tucson Int'l Airport Hotel & Suites","Tucson","AZ","Ed Meyer/Jerry Fisher","520-746-3932","edwardleemeyer@hotmail.com; jerryfschr02@gmail.com"]
["03156","B/W PLUS Scottsdale Thunderbird Suites","Scottsdale","AZ","Robert Adler/Dale Valentine","480-951-4000","rj_adler@yahoo.com; gm@thunderbirdsuites.com"]
["03157","B/W PLUS Mesa Hotel","Mesa","AZ","Beau Desjari/David Croughan - Corporate Operations","480-926-3600","david.croughan@jafferinc.com"]
["03158","B/W Copper Hills Inn","Globe","AZ","Dawn Michelle","928-425-7575","patel.jess@gmail.com"]
["03159","B/W PLUS Scottsdale Shea","Scottsdale","AZ","Todd Torvinen","DO NOT CALL UNTILJAN 2015 - 480-443-3233","ttorvinen@zmchotels.com"]
["04030","B/W Inn of the Ozarks","Eureka Springs","AR","Mr. Randy Wolfinbarger","479-253-9768","randy@innoftheozarks.com"]
["04037","B/W Continental Inn","Arkadelphia","AR","Dan Patel","870-246-5592","dprohant@hotmail.com"]
["04042","B/W Conway","Conway","AR","Robert Wright (GM)","501-329-9855","bw_conwayar@comcast.net"]
["04054","B/W Colony Inn","Forrest City","AR","Elizabeth Frymire - GM","870-633-0870","BWCI04054@YAHOO.COM"]
["04067","B/W Village Inn","Hardy","AR","Nimmi Desai - GM","870-856-2176","NimmiDesai@aol.com"]
["04073","B/W Benton Inn","Benton","AR","Naresh Patel - VM","501-778-9695","npatel3606@yahoo.com"]
["04076","B/W Sherwood Inn","Clarksville","AR","Michael Johnson, GM","479-754-7900","04076@hotel.bestwestern.com"]
["04077","B/W Inn","Russellville","AR","Ms. Shirley Selph","479-967-1000","04077@hotel.bestwestern.com"]
["04080","B/W Winners Circle Inn","Hot Springs","AR",null,"501-624-2531"]
["04082","B/W Duck Inn","Stuttgart","AR","Shash Goyal","870-673-2575","bwduckinn@gmail.com"]
["04083","B/W Hillside Inn","Clinton","AR",null,"501-745-4700"]
["04084","B/W Jacksonville Inn","Jacksonville (Little Rock Area)","AR","Andrew and Cookie Desai","501-982-8181","BESTWESTERNJAX@COMCAST.NET"]
["04085","B/W Eureka Inn","Eureka Springs","AR","Jed Bullock- GM","479-253-9551","info@eurekabw.com"]
["04091","B/W of Hope","Hope","AR","Jason Prejean  (GOV) - Mary Russell","870-777-9222","jlprejean@sbcglobal.net"]
["04092","B/W Fiddlers Inn","Mountain View","AR","(Raj) Rocky Chopra (Rajshri)","870-269-2828","rajshriraj@aol.com"]
["04096","B/W PREMIER Governors Suites","Little Rock","AR","Bhu Makan","501-224-8051"]
["04098","B/W Inn","W. Helena","AR",null,"870-572-2592"]
["04099","B/W West Memphis Inn","West Memphis (Memphis Area)","AR","Hemant Patel - Owner","870-735-7185","04099@hotel.bestwestern.com"]
["04100","B/W Windsor Suites","Fayetteville","AR","Lynda Hickmon","479-587-1400","04100@hotel.bestwestern.com"]
["04103","B/W McGehee","McGehee","AR","Ms. Sheila Collins","870-222-3564","04103@hotel.bestwestern.com"]
["04105","B/W Little Rock South","Little Rock","AR",null,"501-562-4448"]
["04106","B/W Van Buren","Van Buren","AR",null,"479-474-8100"]
["04107","B/W PLUS Presidential Hotel & Suites","Pine Bluff","AR",null,"870-535-6300"]
["04108","B/W PLUS Castlerock Inn & Suites","Bentonville","AR","Mr. Brian Clough","479-845-7707","bc@hgibentonville.com"]
["04109","B/W PLUS Sherwood Inn & Suites","Sherwood","AR","Mr. Nick Sitaram","501-835-7556","bwsherwood@gmail.com"]
["04110","B/W PLUS Texarkana Inn & Suites","Texarkana","AR","Brian Daugherty/Elissia Jamison","903-794-0712","Brian@Ddevelopment.net;elissia@ddevelopment.net"]
["04111","B/W PLUS JFK Inn & Suites","North Little Rock","AR","Ashis Pravin","501-778-4591","bwnorthlittlerock@gmail.com"]
["04113","B/W PLUS Searcy Inn","Searcy","AR","Cookie Desai","501-279-9191","cookied1969@gmail.com; bwsearcy@gmail.com"]
["04115","B/W PLUS Lonoke Hotel","Lonoke","AR","Manish/Naresh (Nick) Patel","501-676-8880","nick_patel@sbcglobal.net; manishganpat@gmail.com"]
["04116","B/W PLUS Jonesboro Inn & Suites","Jonesboro","AR","Scott Nadel","601-299-3722","snadel@dmchotels.com"]
["04117","B/W Aspen Hotel","Fort Smith","AR","Lavonda Thompson/Pinakin (PK) Patel","479-452-9000","pkpintu@yahoo.com"]
["05002","B/W PLUS Pavilions","Anaheim","CA","Carolyn Sutherland","714-776-0140","csutherland5@aol.com"]
["05006","B/W Golden Key","Auburn","CA",null,"530-885-8611"]
["05016","B/W Sahara","Blythe","CA","AJ PATEL - FDM","760-922-7105","AJRAMA001@GMAIL.COM"]
["05020","B/W Canoga Park Motor Inn","Canoga Park","CA","Albert  Rostomyan-GM","818-883-1200","05020@hotel.bestwestern.com"]
["05022","B/W Carmel's Town House Lodge","Carmel","CA","JD - General Manager","831-624-1261","BWtownhouse@gmail.com"]
["05024","B/W Southbay Inn","Chula Vista","CA",null,"619-420-5183"]
["05031","B/W Continental Inn","El Cajon (San Diego Area East)","CA","Eddie DaBoussi, Htl Mgr","619-442-0601","05031@hotel.bestwestern.com"]
["05035","B/W PLUS Humboldt Bay Inn","Eureka","CA","Chris Ambrosini - GM","707-443-2234","chrisa@humboldtbayinn.com"]
["05051","B/W Royal Host Inn","Lodi","CA","(Sonny) Sandip Patel","209-369-8484","sunpat77@yahoo.com"]
["05052","B/W PLUS Frontier Motel","Lone Pine","CA","Travis Powell","760-876-5571","bwftravis@gmail.com"]
["05063","B/W Town House Lodge","Modesto","CA","Shelly / Pranil Khatri - GM","209-524-7261","'bwtownhouse@yahoo.com' ; trushilk@gmail.com"]
["05067","B/W Park Crest Motel","Monterey","CA","Mr. Sanjay Patel","831-372-4576","bwparkcrest@yahoo.com"]
["05084","B/W PLUS Black Oak","Paso Robles","CA","Angela McKee","805-238-4740","amckee@bestwesternblackoak.com"]
["05085","B/W Petaluma Inn","Petaluma","CA","Bob Everhart","707-763-0994","beverhart@petalumainn.com"]
["05093","B/W PLUS Inn","Redwood City","CA","Bharat Patel","650-366-3808","05093@hotel.bestwestern.com"]
["05106","B/W PLUS Americania","San Francisco","CA","Sean Kline","415-626-0200","skline@jdvhotels.com"]
["05114","B/W Somerset Inn","San Luis Obispo","CA","Yatin R. Naran- VM","805-544-0973","gm@bwslo.com"]
["05125","B/W PLUS Garden Inn","Santa Rosa","CA","Carl Doughty - VM","707-546-4031","donna@thegardeninn.com"]
["05131","B/W PLUS Trailside Inn","Susanville","CA","Dirk Ellena","530-257-4123","d.ellena@yahoo.com"]
["05139","B/W Heritage Inn","Vacaville","CA","Christine / Kris","707-448-8453","Ksteelevaca@sbcglobal.net ; kgmheritageinn@aol.com"]
["05172","B/W Beachside Inn","Santa Barbara","CA","Luz Estrada","805-965-6556","luz@beachsideinn.com"]
["05173","B/W PLUS Cavalier Oceanfront Resort","San Simeon","CA","Mike Hanchette, Jr","805-927-4688","mch@cavalierresort.com"]
["05182","B/W PLUS Pepper Tree Inn","Santa Barbara","CA","Chivaun Clark","805-687-5511","cclark@sbhotels.com"]
["05185","B/W PLUS Stovall's Inn","Anaheim","CA","Bill O'Connell III/Penny","714-778-1880","stovalsgm@aol.com"]
["05201","B/W Vista Manor Lodge","Fort Bragg","CA","Kuami Kao, Owner/Mgr","707-964-4776","kavikuami@aol.com"]
["05203","B/W PLUS Shore Cliff Lodge","Pismo Beach","CA","John Fairweather","805-773-4671","JohnF@martinresorts.com"]
["05204","B/W PLUS Hollywood Hills Hotel","Hollywood","CA",null,"323-464-5181"]
["05206","B/W PLUS Encina Lodge & Suites","Santa Barbara","CA","Chivan Clark / Carol Wolford","805-682-7277","cclark@sbhotels.com"]
["05215","B/W Date Tree Hotel","Indio","CA","Aaron Segal (GM)","760-347-3421"]
["05219","B/W Capistrano Inn","San Juan Capistrano","CA","Rito Armenta","949-493-5661","rito@cox.net"]
["05220","B/W Miner's Inn","Yreka","CA","Susie / Doug Peirce - GM","530-842-4355","moppytop1@juno.com"]
["05224","B/W PLUS Garden Court Inn","Fremont","CA","Peter Carter - GM","510-792-4300","peter@gardencourtinn.com"]
["05225","B/W PLUS Beach View Lodge","Carlsbad","CA","Rick Smock, GM","760-729-1151","05225@HOTEL.BESTWESTERN.COMsharon-lass@pacbell.net"]
["05226","B/W Yacht Harbor Hotel","San Diego","CA","Richard Beck","619-224-3254"," richardbeck@yachtharborhotel.com"]
["05227","B/W PLUS Sutter House","Sacramento","CA",null,"916-441-1314"]
["05230","B/W PLUS Roseville Inn","Roseville","CA","Ed / Anita Thomas/David Genteen","916-782-4434","Dgentene@Heritagehotelgroup.com"]
["05231","B/W Trailside Inn","Alturas","CA","Melody Davis - GM / Stephen","530-233-4111","05231@hotel.bestwestern.com"]
["05232","B/W PLUS San Marcos Inn","Morro Bay","CA","Michele Jacquez","805-772-2248","michele@bartfieldgroup.com"]
["05240","B/W Sandman Motel","Sacramento","CA","Ken Russell","916-443-6515","05240@hotel.bestwestern.com; krusssell@5motels.com"]
["05243","B/W PLUS Tree House","Mount Shasta","CA","Mr. Marty / Bryan","530-926-3101","bwtreehouse@hotmail.com"]
["05244","B/W PLUS El Rancho Inn","Millbrae (San Francisco Airport Area)","CA","Mr. Art Schwass","650-588-8500","aschwass@elranchoinn.com"]
["05251","B/W Inn Santa Clara","Santa Clara (San Jose Area)","CA","Kishor Patel - Owner","408-244-3366","KPR3@YAHOO.COM"]
["05259","B/W PLUS Corte Madera Inn","Corte Madera (San Francscco North Bay)","CA","Mr. Bill Blackburn","415-924-1502","bblackburn@reneson.com"]
["05268","B/W PLUS Royal Palace Inn & Suites","Los Angeles","CA","Denise Detrano","310-477-9066","denise.lahotels@earthlink.net"]
["05271","B/W Andersen's Inn","Santa Nella","CA","Darla Davis","209-826-5534","andersensinnbw@yahoo.com"]
["05280","B/W PLUS Hilltop Inn","Redding","CA","Cheryl Olkowski","530-221-6100","info@thehilltopinn.com"]
["05281","B/W Seven Seas","San Diego","CA","Steve Gennaro","619-291-1300","steveg@bw7seas.com"]
["05285","B/W PLUS Monterey Park Inn","Monterey Park (Los Angeles Area)","CA","Robin Lu","626-289-5090","ching-young@msn.com/ rlu33@yahoo.com"]
["05291","B/W Kings Inn","Corona","CA","Ms. Julie Montmaneix","951-734-4241","05291@hotel.bestwestern.com"]
["05297","B/W PLUS Grosvenor Airport Hotel","South San Francisco (San Francisco Arpt)","CA","Jim Mcguire","650-873-3200","jroxas@grosvenorsuites.com"]
["05300","B/W El Rancho Motor Inn","Beaumont","CA","Bob, GM / Crystal","951-845-2176","elrancho52@aol.com"]
["05313","B/W Inn","Rohnert Park (Santa Rosa Area)","CA","Johnny / Michael Brinsley","707-584-7435","05313@hotel.bestwestern.com"]
["05315","B/W PLUS Royal Oak Hotel","San Luis Obispo","CA","Naomi Henn, GM","805-544-4410","nhenn@royaloakhotel.com"]
["05316","B/W PLUS Anderson Inn","Anderson","CA","Anil Patel","530-365-2753","anilsharmi@sbcglobal.net"]
["05323","B/W Pasadena Inn","Pasadena","CA","Mr. Johan Guntur","626-796-9100","05323@hotel.bestwestern.com"]
["05326","B/W PLUS Island Palms Hotel & Marina","San Diego","CA","Bill Orman / Robert Levine - VM","619-222-0561","rlevine@islandpalms.com; borman@islandpalms.com"]
["05328","B/W Valencia Inn","Valencia","CA","Jose Becerra","661-255-0555","05328@hotel.bestwestern.com"]
["05330","B/W San Benito Inn","Hollister","CA","Seema Kaur, GM","831-637-9248","05330@hotel.bestwestern.com"]
["05336","B/W PLUS South Bay Hotel","Lawndale (Los Angeles Airport Area)","CA","Marty Deng - Mgr/Terrace Ho","310-644-9888","bestwlax@aol.com"]
["05338","B/W Pine Tree Motel","Chino","CA","Jyll Ward","909-628-6021","itchyfeet@groundcontrol.us"]
["05340","B/W PLUS Bishop Holiday Spa Lodge","Bishop","CA","Ashish Bhagat","760-873-3543","bwoxnardinn@hotmail.com"]
["05341","B/W PLUS Dragon Gate Inn","Los Angeles","CA","Peter Kwong Jr","213-617-3077","akwong5951@aol.com"]
["05343","B/W PLUS Ontario Airport","Ontario","CA","Gilbert  Lopez","909-937-6800","gilbertlopez64@earthlink.net"]
["05345","B/W PLUS De Anza Inn","Monterey","CA","Emily","831-646-8300","Emily@deanzainn.com"]
["05348","B/W PLUS Station House Inn","S. Lake Tahoe","CA",null,"530-542-1101"]
["05353","B/W Gold Country Inn","Grass Valley","CA","Lynda Cavannaugh/David Genteen","530-273-1393","Dgentene@Heritagehotelgroup.com"]
["05355","B/W PLUS Mountain View Inn","Mountain View (Palo Alto Area)","CA","Lou Fazo","650-962-9912","lfazo@bprproperties.com"]
["05357","B/W La Posada Motel","Fillmore","CA","Jae Kim, VM/Dorothy Johnson","805-524-0440","05357@hotel.bestwestern.com"]
["05360","B/W PLUS Inn of Ventura","Ventura","CA","Carlos Cruz","805-648-3101","05360@hotel.bestwestern.com"]
["05362","B/W PLUS Bayside Inn","San Diego","CA","Ms. Tracy Wickens","619-233-7500","tracy@baysideinn.com"]
["05363","B/W University Lodge","Davis","CA",null,"530-756-7890"]
["05364","B/W Courtesy Inn","Anaheim","CA","Atul kumar","714-772-2470","05364@HOTEL.BESTWESTERN.COM"]
["05369","B/W Westminster Inn","Westminster","CA","Ms. Rania Tedros","714-898-4043","bwwestminsterinn@yahoo.com"]
["05370","B/W PLUS Victorian Inn","Monterey","CA","Sharon Pamatmat / Randy","831-373-8000","spamatmat@innsofmonterey.com"]
["05371","B/W PLUS Inn at the Vines","Napa","CA","Brett Cudd","707-257-1930","innatthevines@aol.com"]
["05377","B/W PLUS Sunset Plaza Hotel","Los Angeles","CA","Sonia Elias","323-654-0750","sunsetplazahotel@earthlink.net"]
["05378","B/W Camarillo Inn","Camarillo","CA","Jason Lu / Cami","805-987-4991","Bwcamarillo@yahoo.com"]
["05382","B/W Inn","Santa Cruz","CA","Prafull Patel / Fatima","831-425-4717","prflrjn81@aol.com; Fg_maple@yahoo.com"]
["05385","B/W PLUS Anaheim Inn","Anaheim","CA","Sue Edwards","714-774-1050","sedwards@anaheiminn.com"]
["05386","B/W PLUS San Diego/Miramar Inn","San Diego","CA","Manu Patel, Mgr","858-578-6600","05386@hotel.bestwestern.com"]
["05391","B/W Casa Grande Inn","Arroyo Grande (Pismo Beach Area)","CA","Mathew Martin - GM / Kevin Thornton","805-481-7398","mjmhbca@hotmail.com"]
["05397","B/W PLUS Inn of Hayward","Hayward","CA","Ken Lau & Sajit","510-785-8700","snkcv@aol.com ; bwinnofhayward@sbcglobal.net"]
["05398","B/W PLUS Monterey Inn","Monterey","CA","Diane Spadaro\r\n, Mgr","831-373-5345","bwmon@mbay.net"]
["05399","B/W Amador Inn","Jackson","CA","Priti","209-223-0211","05399@hotel.bestwestern.com"]
["05402","B/W Norwalk Inn","Norwalk","CA",null,"562-929-8831"]
["05403","B/W PLUS Village Inn","Fresno","CA","Kyung Yoon - GM","559-226-2110","villageinnfresno@sbcglobal.net"]
["05405","B/W Gardens Hotel at Joshua Tree National Park","TwentyNine Palms","CA","Casey Martin","760-367-9141","casey@bwgardens29.com"]
["05406","B/W PLUS Redondo Beach Inn","Redondo Beach","CA","Robert Laskowski - GM","310-540-3700","rlaskow349@aol.com"]
["05408","B/W PLUS Sonora Oaks Hotel & Conference Center","Sonora","CA","Chris Link/David Genteen","209-533-4400","chris@bwsonoroaoaks.com"]
["05416","B/W PLUS Dry Creek Inn","Healdsburg","CA","Aaron Krug - GM","707-433-0300","aaron@drycreekinn.com"]
["05417","B/W PLUS Newport Mesa Inn","Costa Mesa","CA","Naj Ekhlas, GM","949-650-3020","05417@hotel.bestwestern.com"]
["05418","B/W El Rancho","Morro Bay","CA","Colleen Aceto, Mgr/Alex Amini -Owner","805-772-2212","alexamini@msn.com; Bestwestern_Elrancho@yahoo.com"]
["05421","B/W PLUS Humboldt House Inn","Garberville","CA","Jeannie Jacobs, Mgr","707-923-2771","theinn@humboldt.net"]
["05422","B/W PLUS Yosemite Gateway Inn","Oakhurst (Yosemite Area)","CA","Bill Putnam - GM","559-683-2378","bill@yosemitegatewayinn.com"]
["05423","B/W PLUS Town & Country Lodge","Tulare","CA",null,"559-688-7537"]
["05424","B/W Mountain Inn","Tehachapi","CA","Kay Yoo","661-822-5591","05424@hotel.bestwestern.com"]
["05425","B/W PLUS Carpinteria Inn","Carpinteria","CA","Kevin Swenink/Eric Yahyayan","805-684-0473","ericybw@bwcarriageinn.com"]
["05426","B/W PLUS Rose Garden Inn","Watsonville","CA","Brianne Roth","831-724-3367","info@bestwesternwatsonville.com"]
["05427","B/W PLUS Desert Villa Inn","Barstow","CA","Steven Nelson","760-256-1781","snelson@innvestment.net"]
["05429","B/W Tradewinds","Morro Bay","CA","Vinu Patel - VM","805-772-7376","05429@hotel.bestwestern.com"]
["05431","B/W Cordelia Inn","Fairfield","CA","Horace Neufville","707-864-2029","05431@hotel.bestwestern.com"]
["05432","B/W PLUS Seacliff Inn","Aptos (Santa Cruz Area)","CA","Nadine Perez / Debbie Parsons - GM","831-688-7300","debbie@seacliffinn.com"]
["05433","B/W El Grande Inn","Clearlake","CA","Anna Ocon - FOM","707-994-2000","05433@hotel.bestwestern.com"]
["05435","B/W PLUS Northwoods Inn","Crescent City","CA",null,"707-464-9771"]
["05440","B/W PLUS Yosemite Way Station Motel","Mariposa (Yosemite Area)","CA","Paul Patel","209-966-7545","amrut4us@yahoo.com"]
["05441","B/W Pasadena Royale","Pasadena","CA",null,"626-793-0950"]
["05443","B/W PLUS Inn Scotts Valley","Scotts Valley (Santa Cruz Area)","CA","Eugene Lee","831-438-6666","elee@bprproperties.com"]
["05444","B/W PLUS Heritage Inn - Chico","Chico","CA","Rick Wreford/David Genteen","530-894-8600","Dgentene@Heritagehotelgroup.com"]
["05448","B/W Hanford Inn","Hanford","CA","Hemant Patel VM","559-583-7300","05448@hotel.bestwestern.com"]
["05453","B/W PLUS Big America","Santa Maria","CA","Max Tucker, GM","805-922-5200","max@bigamerica.com"]
["05455","B/W PLUS Shelter Cove Lodge","Pismo Beach","CA","John FairWhether","805-773-3511","JohnF@martinresorts.com"]
["05456","B/W Country Inn","Temecula","CA","Steven Wright or EK","951-676-7378","05456@hotel.bestwestern.com"]
["05457","B/W PLUS Colony Inn","Atascadero","CA","Karen Palmer","805-466-4449","kpalmer@atascaderobestwestern.com"]
["05459","B/W Airpark Hotel","Inglewood (Los Angeles Airport Area)","CA","Atul Kumar","310-677-7378","aaatul@aol.com"]
["05461","B/W PLUS Sonoma Valley Inn&Krug Event Center","Sonoma","CA","Janine Willis - Corp Controller","707-938-9200","janine@sonomavalleyinn.com"]
["05463","B/W Airport Plaza Inn","Inglewood (Los Angeles Airport Area)","CA","Atul Kumar","310-568-0071","aaatul@aol.com"]
["05465","B/W PLUS Heritage Inn","Concord","CA","Roel Almares / David Genteen","925-686-4466","ralmares@heritagehotelgroup.com"]
["05466","B/W Inn at Palm Springs","Palm Springs","CA",null,"760 325-9177"]
["05468","B/W PLUS Beach Resort Monterey","Monterey","CA","Edgar Gutierrez","831-394-3321","edgar@montereybeachresort.com"]
["05469","B/W PLUS Inn","Merced","CA","Steve Patel, Mgr or Cindy","209-723-2163"," 05469@hotel.bestwestern.com"]
["05470","B/W PLUS Park Place Inn - Mini Suites","Anaheim","CA","Ms. Lillian Wright","714-776-4800","ppimgr@yahoo.com"]
["05471","B/W PLUS Hacienda Hotel Old Town","San Diego","CA","Luis Barrios - GM","619-298-4707","lbarrios@haciendahotel-oldtown.com"]
["05472","B/W Image Inn & Suites","Moreno Valley (Riverside Area)","CA","Carolyn Lin","951-924-4546","mscarolyn.lin@gmail.com"]
["05473","B/W PLUS West Covina Inn","West Covina (Los Angeles Area)","CA","Maggie Tai","626-915-1611","myltai@yahoo.com"]
["05475","B/W Santee Lodge","Santee (San Diego Area)","CA","Peter Koh, Owner","619-449-2626","05475@hotel.bestwestern.com"]
["05476","B/W PLUS Executive Inn","Rowland Heights (Los Angeles Area)","CA","Jovy Cheng/Mei Chien","626-810-1818","jovyscuba@hotmail.com"]
["05477","B/W Courtesy Inn","El Cajon (San Diego Area East)","CA","Susan Cunnigham/Joe Rubio","619-440-7378","05477@hotel.bestwestern.com"]
["05478","B/W PLUS Placerville Inn","Placerville","CA","Terry Brown- GM","530-622-9100","tbbestwestern@hotmail.com"]
["05479","B/W PLUS Heritage Inn","Benicia","CA","Geraldine Nubla/David Gentene","707-746-0401","Dgentene@Heritagehotelgroup.com;"]
["05480","B/W PLUS All Suites Inn","Santa Cruz","CA","Christopher Myren","831-458-9898","05480@hotel.bestwestern.com"]
["05481","B/W PLUS Suites Hotel Coronado Island","Coronado (San Diego Area)","CA","Lety Perez","619-437-1666","BWLety@sbcglobal"]
["05487","B/W Escondido Hotel","Escondido (San Diego Area)","CA","Angela Bagri","760-740-1700","ang@binaryjungle.com"]
["05488","B/W PLUS Executive Inn & Suites","Manteca","CA","Trushil & Prenell Khatri - GM","209-825-1415","trushilk@gmail.com"]
["05489","B/W Crystal Palace Inn & Suites","Bakersfield","CA","Stephanie Castro","661-327-9651","bestcherylc@yahoo.com"]
["05491","B/W Hollywood Plaza Inn","Hollywood (Los Angeles Area)","CA","Atul kumar","C: 310-405-4799 /  310-568-0071","aaatul@aol.com"]
["05492","B/W PLUS Executive Suites","Redwood City (Menlo Park Area)","CA","Mr. El Rachman - GM","650-366-5794","erachman@bprproperties.com"]
["05494","B/W PLUS Orchard Inn","Turlock","CA","Edwin Sarkissian","209-667-2827","bwturlock@yahoo.com"]
["05497","B/W Redondo Beach Galleria Inn","Redondo Beach","CA","Atul Kumar","310-370-4353","aaatul@aol.com"]
["05502","B/W PLUS Inn by the Sea","La Jolla","CA",null,"858-459-4461"]
["05503","B/W San Mateo","San Mateo","CA","Ms. Elizabeth Tsai","650-341-3300","05503@hotel.bestwestern.com"]
["05505","B/W Arcata Inn","Arcata","CA","Lisa Cossolotto, GM","707-826-0313","arcatainnbw@sbcglobal.net"]
["05506","B/W PLUS Carmel Bay View Inn","Carmel","CA","Joanna / Diane Spadaro","831-624-1831","bwmon@mbay.net ; frontdesk@carmelbayviewinn.com"]
["05508","B/W of Long Beach","Long Beach","CA","Mike Sandhu","562-599-5555","management@bwoflongbeach.com; sales@bwooflongbeach"]
["05509","B/W PLUS Gateway Hotel Santa Monica","Santa Monica","CA","Hanny Sabongy - GM/Beth","310-829-9100","hany@gatewayhotel.com,"]
["05512","B/W PLUS Heritage Inn Rancho Cucamonga/Ontario","Rancho Cucamonga","CA",null,"909-466-1111"]
["05514","B/W Diamond Bar Hotel & Suites","Diamond Bar (Los Angeles Area)","CA","Mr. Manish Patel","909-860-3700","DJURBLUE@aol.com"]
["05517","B/W PLUS Suites Hotel","Inglewood","CA","Atul kumar","310-677-7733","aaatul@aol.com"]
["05518","B/W PLUS Eagle Rock Inn","Los Angeles (Glendale Area)","CA","Han Kim - GM","323-256-7711","05518@hotel.bestwestern.com;hanyoung82@hotmail.com"]
["05519","B/W Golden Sails Hotel","Long Beach","CA","Don Witz / Mr. Mathew Daniel","562-596-1631","goldsail@verizon.net; tdy-don@verizon.net"]
["05521","B/W PLUS South Coast","Goleta","CA",null,"805-967-3200"]
["05522","B/W Colorado River Inn","Needles","CA","Jamie Pohlman","760-326-4552","pashardinc@yahoo.com"]
["05523","B/W PLUS Casablanca Inn","San Clemente","CA",null,"949-361-1644"]
["05525","B/W PLUS Porterville Inn","Porterville","CA","JOHN SALAS","559-781-7411","GM.BWPORT@EXCELHOTELGROUP.COM"]
["05526","B/W PLUS Inn Dixon","Dixon","CA"," Bharat Patel","707-678-1400","bwbharat@yahoo.com"]
["05533","B/W Country Inn","Fortuna (Ferndale Area)","CA","Sharrie Larson Pirkle","707-725-6822","E-Mail: bwfortuna@sbcglobal.net"]
["05535","B/W Executive Inn","Los Banos","CA",null,"209-827-0954"]
["05536","B/W PLUS Palm Court Hotel","Davis","CA","Nila/Ashok Patel","530-753-7100","MARIA@ROYALGUEST.NET"]
["05537","B/W PLUS Laguna Brisas Spa Hotel","Laguna Beach","CA","Renee Flores / Jose Berumen, GM","949-497-7272","generalmanager@lagunabrisas.com"]
["05538","B/W PLUS Brookside Inn","Milpitas (San Jose Area)","CA","Michael Flores/Susan","408-263-5566","mflores3@sbcglocal.net"]
["05543","B/W Luxury Inn","Tracy","CA","Sandip Patel (Sonny)","209-832-0271","sunpat77@yahoo.com"]
["05546","B/W PLUS Las Brisas Hotel","Palm Springs","CA","Kurt Helm","760-325-4372","khelm@dc.rr.com/lasbrisashotel@version.net"]
["05548","B/W PLUS Novato Oaks Inn","Novato (San Francisco North Bay)","CA","Michelle Duffy","415-883-4400","mduffy@reneson.com"]
["05551","B/W PLUS Raffles Inn & Suites","Anaheim","CA",null,"714-750-6100"]
["05554","B/W PLUS Tuscan Inn at Fisherman's Wharf","San Francisco","CA","Suzanne Hee (Corp IT)","415-561-1100","suzanne.hee@kimptonit.com"]
["05555","B/W John Jay Inn","Sacramento","CA","Rose Yamada","916-689-4425","ryamada@mdmpropertiesllc.com"]
["05556","B/W PLUS Orange County Airport North","Santa Ana","CA","Ms. Vibi Bhakta","714-432-8888","sales@bestwestern-oc.com"]
["05557","B/W PLUS Oxnard Inn","Oxnard","CA",null,"805-483-9581"]
["05558","B/W Shadow Inn","Woodland","CA","Sandy Littlefield","530-666-1251","sndybw@yahoo.com"]
["05560","B/W Heritage Inn","Bakersfield","CA","Dave Patel - GM","661-764-6268","05560@HOTEL.BESTWESTERN.COM"]
["05561","B/W PLUS Riviera","Menlo Park","CA","Laura Knott","650-321-8772","lknott@bprproperties.com"]
["05562","B/W Americana","Dinuba","CA","Shishir Patel/Joshana Patel","559-595-8401","joshana_patel@yahoo.com; shishir-patel@hotmail.com"]
["05563","B/W Regency Inn","Huntington Beach","CA","Ted Chen, VM","714-962-4244","hbca648@yahoo.com"]
["05565","B/W PLUS Rama Inn","Oakdale","CA","Jody Mistry, GM","209-845-2500","bwramainn@yahoo.com"]
["05566","B/W John Jay Inn","El Centro","CA","Alex/Rajwant Kalorian - owner","760-337-8677"," rkgqs@msn.com; alexbestwestern_1@yahoo.com"]
["05569","B/W Salinas Monterey Hotel","Salinas","CA","Rene Silva","831-784-0176","05569@hotel.bestwestern.com"]
["05570","B/W PLUS Kettleman City Inn & Suites","Kettleman City","CA","Miguel / Bankim Patel","559-386-0804","05570@hotel.bestwestern.com"]
["05571","B/W PLUS Stevenson Manor Inn","Calistoga (Napa Valley North)","CA","David Patel","707-942-1112","info@stevensonmanor.com"]
["05572","B/W PLUS Elm House Inn","Napa","CA","Thomas or Connie Kearns - VM","707-255-1831","tkearns107@aol.com;elmhouse@sonic.net"]
["05574","B/W PLUS Bayshore Inn","Eureka","CA","Emily Manfredonia, GM","707-268-8005","seaport@northcoast.com"]
["05575","B/W Clovis Cole","Clovis","CA","Rose Yamada","559-299-1547","Ryamada@mdmpropertiesllc.com"]
["05577","B/W PLUS John Muir Inn","Martinez","CA","Caroline Allsbrook/David Genteen","925-229-1010","Dgentene@Heritagehotelgroup.com"]
["05578","B/W Willits Inn","Willits","CA","Nick Patel (Owner)","707-459-5800","nareshpatel1777@hotmail.com"]
["05581","B/W Los Angeles Worldport Hotel","Wilmington","CA","Janet Chun","310-834-3400","mcjchung@yahoo.com"]
["05582","B/W John Jay Inn","Calexico","CA","Omar Preciado, Jeni Frostad","760-768-0442","RL204@meyercrest.com; jeni@gen003.com"]
["05583","B/W PLUS Lighthouse Inn","Pacifica","CA",null,"650-355-6300"]
["05585","B/W PLUS Inn & Suites at Discovery Kingdom","Vallejo","CA","Mr. KP Patel","707-554-9655","theksp@gmail.com"]
["05586","B/W Exeter Inn & Suites","Exeter","CA","Neil Patell - VM","559-592-8118","harsal@msn.com"]
["05590","B/W PLUS China Lake Inn","Ridgecrest","CA",null,"760-371-2300"]
["05592","B/W Encinitas Inn & Suites at Moonlight Beach","Encinitas","CA","Jim Bolt - GM","760-942-7455","jim@bwencinitas.com"]
["05593","B/W PLUS Hill House","Bakersfield","CA","G.J. Zala","661-327-4064","bwhh@yahoo.com"]
["05595","B/W PLUS Carriage Inn","Sherman Oaks","CA","Colleen Goldberg","818-787-2300","Goldbergbwci@aol.com"]
["05596","B/W PLUS Via Del Lago Inn","Patterson","CA",null,"209-892-5300"]
["05597","B/W PLUS Capitola By-the-Sea Inn & Suites","Capitola","CA",null,"831-477-0607"]
["05598","B/W PLUS Newport Beach Inn","Newport Beach","CA","Alicia Hackett / Jason (GM)","949-642-8252","ikelalji@msn.com;alicia.hackett@gmail.com"]
["05599","B/W PLUS Cedar Inn & Suites","Angels Camp","CA","Ryan Peach","209-736-4000","Ryan@aspromonte.com"]
["05600","B/W Los Alamitos Inn & Suites","Los Alamitos","CA","Ken Chung","562-598-2299","bestwesternla@yahoo.com"]
["05601","B/W Lamplighter Inn & Suites at SDSU","San Diego","CA",null,"619-582-3088"]
["05603","B/W PLUS Airport Inn & Suites","Oakland","CA","Tony Patel","510-633-0500","bestwestern05603@yahoo.com"]
["05604","B/W PLUS Lania Garden Inn & Suites","San Jose","CA",null,"408-929-8100"]
["05605","B/W Mission Bay","San Diego","CA",null,"619-275-5700"]
["05606","B/W PLUS John Jay Inn & Suites","Palmdale","CA","Roy Park - GM","661-575-9322","bestwesternpalmdale@yahoo.com"]
["05607","B/W PLUS Salinas Valley Inn & Suites","Salinas","CA",null,"831-751-6411"]
["05609","B/W PLUS Chula Vista Inn","Chula Vista (San Diego Area South)","CA","Ms. Chaun Mai","619-691-6868","bwchulavista@yahoo.com"]
["05610","B/W PLUS Orchard Inn","Ukiah","CA","Tina Mistry - GM","707-462-1514","mistry_shilpa@yahoo.com"]
["05612","B/W Liberty Inn","Delano","CA","Roger Caudillo/Jennifer Ohe - GM","661-725-0976","05612@hotel.bestwestern.com;jenniferdeoh@gmail.com"]
["05613","B/W Airport Plaza","San Jose","CA","Muriel / Nitin Kumar - VM","408-243-2400","05613@hotel.bestwestern.com"]
["05614","B/W Americana Inn","San Diego (San Diego Area South)","CA","Stasha / Panks Kumar - Owner","619-428-5521","patel8300@sbcglobal.net"]
["05617","B/W Cajon Pass","Phelan","CA","Ms. Kathryn Hearn","760-249-6777","ladipatience@aol.com"]
["05619","B/W PLUS Desert Winds","Mojave","CA",null,"661-824-3601"]
["05621","B/W Big Country Inn","Coalinga","CA","Edgar Castillo","559-935-0866","05621@hotel.bestwestern.com"]
["05622","B/W PLUS Silicon Valley Inn","Sunnyvale (San Jose Area)","CA","Kesh Bavaria - GM","408-735-7800","svalleyinn@gmail.com"]
["05623","B/W PLUS Liberty Inn","Lebec","CA","Jay Patel - VM / Al Patel","661-858-7777","jaydev1@aol.com"]
["05625","B/W PLUS Palm Desert Resort","Palm Desert","CA","Mr. Craig Gilmore","760-340-4441","bestwesternpdmanager@dc.rr.com"]
["05626","B/W Hospitality Lane","San Bernadino","CA",null,"909-381-1681"]
["05628","B/W PLUS Dana Point Inn-by-the-Sea","Dana Point (Laguna Beach Area)","CA","Fernando Wang","949-240-0150","ferwang@gmail.com"]
["05629","B/W Huntington Beach Inn","Huntington Beach","CA","Ken Patel","714-536-7500","05629@hotel.bestwestern.com"]
["05630","B/W Orange Plaza","Orange (Anaheim Area)","CA","Sandy Patel - Owner","714-633-7720","sandy@indigoh.com"]
["05631","B/W PLUS Media Center Inn & Suites","Burbank","CA","Ishver Patel - VM","818-842-1900","Bestwestern@mediacenterinn.com"]
["05632","B/W Cloverdale Inn","Cloverdale (Healdsburg Area)","CA","Nick Patel, Owner","707-894-7500","nareshpatel1777@hotmail.com"]
["05634","B/W Stagecoach Inn","Pollock Pines","CA","Gilbert Choi - Owner","530-644-2029","bwstagecoach@yahoo.com"]
["05635","B/W Beach Dunes Inn","Marina  (Monterey Area)","CA","Ryan Thompson VP ->","831-883-0300","patricia@inncal.com"]
["05636","B/W PLUS Danville Sycamore Inn","Danville","CA",null,"925-855-8888"]
["05638","B/W Apricot Inn","Firebaugh","CA","Sharon Bates - GM/Mike Merchant - Owner","559-659-1444","mikemerchant916@gmail.com"]
["05639","B/W Poway/San Diego Hotel","Poway (San Diego Area)","CA","IMELDA HORNING","858-748-6320","gm.bwpoway@excelhotelgroup.com"]
["05641","B/W PLUS Big Bear Chateau","Big Bear Lake","CA","Laura Balai","909-866-6666","laurab@bestwesternbigbear.com"]
["05642","B/W PLUS Hotel at the Convention Center","Long Beach","CA",null,"562-285-0281"]
["05644","B/W B/W PLUS Country Park Hotel","Tehachapi","CA","Kay Yoo - VM","661-823-1800","05644@hotel.bestwestern.com"]
["05645","B/W PLUS I-5 Inn & Suites","Lodi","CA","Sau Jain","209-367-3000","05645@HOTEL.BESTWESTERN.COM"]
["05646","B/W PLUS Cabrillo Garden Inn","San Diego","CA","Yann Chen","619-234-8477","'BWCGI@sbcglobal.net'"]
["05650","B/W Golden Triangle Inn","San Diego","CA","Dan DiMaggio - Mgr","858-560-4551","bestwestern5550@sbcglobal.net"]
["05651","B/W PLUS Thousand Oaks Inn","Thousand Oaks","CA","Felix Wang - GM","805-497-3701","felix.wang@thousandoaksinn.com"]
["05652","B/W Palm Garden Inn","Westminster","CA","Steve Park - VM - Hang Nguyen (GM)","714-373-3200","05652@hotel.bestwestern.com"]
["05653","B/W Rose Quartz","Chester","CA"," Heather","530-258-2002"]
["05655","B/W PLUS InnSuites Ontario Airport E Hotel & Suite","Ontario","CA","Paul Green/Peter Niles","909-466-9600","pgreen@innsuites.com"]
["05656","B/W PLUS Carlyle Inn","Los Angeles","CA","Wayne Prior / Geoff Harris","619-985-1299","wprior@pacificahotels.com"]
["05657","B/W PLUS Markland Hotel","Monterey Park","CA","Cong Du","323-887-1988","cong777@gmail.com; marklandhotel@yahoo.com"]
["05658","B/W PLUS Vineyard Inn","Livermore","CA","Debbie Lamb","925-456-5422","vineyardinnlivermore@hotmail.com"]
["05660","B/W PLUS Antelope Inn","Red Bluff","CA",null,"530-527-8882"]
["05662","B/W PLUS Posada Royale Hotel & Suites","Simi Valley","CA",null,"05662"]
["05663","B/W Woodland Hills Inn","Woodland Hills","CA","Victor Parmar","818-340-1000","vipparmar@aol.com"]
["05664","B/W PLUS Inn & Suites Lemoore","Lenmore","CA",null,"559-924-3200"]
["05665","B/W PLUS Pleasanton Inn","Pleasanton","CA","Sajit","925-463-1300","snkcv@aol.com"]
["05667","B/W Oceanside Inn","Oceanside","CA","Bill Carvajal","760-722-1821","wmcarvajal@yahoo.com"]
["05669","B/W PLUS Coyote Point Inn","San Mateo","CA","Dan Karki","650-347-9990","dkarki1044@aol.com"]
["05671","B/W PLUS Route 66 Glendora Inn","Glendora","CA","Manish Patel","626-335-2817","djurblue@aol.com"]
["05672","B/W Harbour Inn","Sunset Beach","CA","Sunny Patel","562-592-4770","Harbourinn@aol.com"]
["05673","B/W PLUS Lake Elsinore Inn & Suites","Lake Elsinore","CA","AJ Patel","951-674-3131","airjay@earthlink.net"]
["05674","B/W PLUS Avita Suite","Torrance","CA","Bharat Patel / Mike Patel","(310) 546-8942","mikepatel021@gmail.com"]
["05676","B/W PLUS Forest Park Inn","Gilroy","CA","Ms. Jasmina Patel","408-848-5144","bwforestparkinn@sbcglobal.net"]
["05677","B/W Galt Inn","Galt","CA","Ash Parmar VM","209-745-9500","GALTINN2@gmail.com"]
["05680","B/W Joshua Tree Hotel & Suites","Yucca Valley","CA","Aisha Park","760-365-3555","Natbro01@aol.com"]
["05681","B/W PLUS Main Street Inn","Brawley","CA","Premald Desai","760-351-9800","premald@gmail.com; rcdesai@gmail.com"]
["05683","B/W PLUS Twin View Inn & Suites","Redding","CA","JASMINA PATEL","530-241-5500","bwforestparkinn@sbcglobal.net"]
["05685","B/W PLUS Wine Country Inn & Suites","Santa Rosa","CA","Todd Anderson","707-545-9000","tanderson@heritagehotelgroup.com"]
["05686","B/W PLUS Meridian Inn & Suites, Anaheim-Orange","Orange","CA","MOCTAR OULD LAB","714-740-2700","OULDLAB@HOTMAIL.COM"]
["05687","B/W PLUS Fresno Inn","Fresno","CA","Ajit & Ken Patel/ Mark/Rob","(559) 229-5811","kenpatel2@comcast.net; ajit@swhm.com"]
["05688","B/W PLUS Wasco Inn & Suites","Wasco","CA","Kevin Patel","(661) 428-1344","kundan3@aol.com"]
["05689","B/W PLUS Marina Gateway Hotel","National City","CA","Edgar Santos","8186206636","esantos@chmhotels.com"]
["05690","B/W Colonial Inn","Selma","CA","Shashi Patel","559-891-0300","05690@hotel.bestwestern.com"]
["05691","B/W PLUS High Sierra Hotel","Mammoth lakes","CA","Brent Cooley","760-924-1234","brent@highsierrahotel.com"]
["05693","B/W PLUS Otay Valley Hotel","Chula vista","CA","Victor M. Carrera (GM)/Bill Feenan","619-422-2600","vcarrera@pacificahost.com"]
["05694","B/W Burbank Airport Inn","North Hollywood","CA","Yogi Patel / Victor Desai / Ashish Patel","626-731-9715","yogirushi@yahoo.com ; ashish@intechsystems.com"]
["05695","B/W PLUS Heritage Inn","Stockton","CA","Veenay Solanki/Miguel Garza","209-474-3301","vsolanki@heritagehotelgroup.com"]
["05696","B/W PLUS Anaheim Orange County Hotel","Placentia","CA","Anil Patel/Sandy Patel","714-528-7778","sandy@indigoh.com; anil@indigoh.com"]
["05697","B/W PREMIER Ivy Hotel Napa","Napa","CA","Vic Patel","707-253-9300","vpatel@ivyhotelnapa.com"]
["05699","B/W California City Inn & Suites","California City","CA","Anil Patel/Mitul Tundavia","916 765-8600","anilsharmi@att.net; mitult@gmail.com"]
["05700","B/W Yuba City Inn","Yuba City","CA","Ranjiit Singh Johal","530-674-1650","randysjo79@yahoo.com"]
["05701","B/W PLUS Corning Inn","Corning","CA","Suresh Patel","530-824-5200","jayhina@aol.com"]
["05703","B/W Palm Court Inn","Modesto","CA","Trushil Khatri/Anil Khatri","209-521-9000","trushilk@gmail.com; bestwesternneal@gmail.com"]
["05705","B/W PLUS Irvine Spectrum Hotel","Lake Forest","CA","Vishal Mirpuri","949-380-9888","vmirpuri@heritagehotelgroup.com"]
["05706","B/W PLUS Orchid Suites","Roseville","CA","Anita Thomas","916-784-2222","athomas@heritagehotelgroup.com"]
["05707","B/W San Dimas Hotel & Suites","San Dimas","CA","Monzel Wickliffe (GM)","909-592-0500","monzelw@aol.com"]
["05708","B/W San Pedro Inn & Suites","San Pedro","CA","Daniel Brannan","310-514-1414","dan.brannan@bwpsanpedro.com"]
["05709","B/W The Inn of Los Gatos","Los Gatos","CA","Gavin McClements","408-356-9191","gavin@losgatosmotorinn.com"]
["05710","B/W Santa Clara University","Santa Clara","CA","Curtis Capps","408-244-8313","da_sherrell@yahoo.com; paresh1969@gmail.com"]
["05711","B/W PLUS Bayside Hotel","Oakland","CA","Mark Hochstatter/John Logg","510-356-2450","mark.hochstatter@executiveinnoakland.com"]
["05712","B/W PLUS Marina Shores Hotel","Dana Point","CA","Robert (Bob)Jackson/Peter","949-248-1000","sunsethotels@juno.com"]
["05713","B/W Oceanside Palms","Oceanside","CA","Scott Walker/Kim Walker","760-721-1543","swalker@motel6oceanside.com"]
["05715","B/W Fresno Yosemite Airport Inn","Fresno","CA","Ken Patel","559-251-5200","ginkap@swhm.com; kenpatel2@comcast.net"]
["05716","B/W PLUS Rancho Cordova Inn","Rancho Cordova","CA","Chuck Valebtino/David Holmes","916-631-7500","redliongm@gmail.com;"]
["05717","B/W PLUS Gold River","Rancho Cordova","CA","Jay Gill","DO NOT CALL PER MEMBERSHIP - 916-351-9192","jgill@lagmail.net"]
["05718","B/W Pacific Grove","Pacific Grove","CA","Ralph Felsinger","831-373-8777","ralphfelsinger@gmail.com"]
["05719","B/W Willows Inn","Willows","CA","Suresh Patel","530-934-4444","jayhina@aol.com"]
["05720","B/W PLUS Desert Poppy Inn","Lancaster","PA","Manilal (Mani) Patel","VMX","manilal@mmpproperties.com"]
["05721","B/W PLUS SDSU La Mesa Hotel","La Mesa","CA","Happy Sikand","619-466-0200","happy@stay-happy.com"]
["05722","B/W Truckee-Tahoe","Truckee","CA","Stephanie Inman","530-587-4525","agm@hoteltruckeetahoe.com"]
["05723","B/W PLUS Hemet Hotel","Hemet","CA","Nick Mehta/Pankaj Mehta","951-658-2281","pmehta-vdi@hotmail.com; nishithm@msn.com"]
["05724","B/W TBD","Los Angeles","CA","Gerald Wang","323-268-8886","gwang@vicinnco.com"]
["05725","B/W Brentwood","Brentwood","CA","Natverbhai Patel","925-634-6400","natver@sbcglobal.net"]
["05726","B/W PLUS Delta","Oakley","CA","Satish Patel","925-755-1222","sp@bmshotels.com"]
["05727","B/W PLUS TBD","Colton","CA","Carmen Dorene Dominguez","909-370-2424","dorene.dominguez@vanir.com"]
["05728","B/W PLUS Taft Inn","Taft","CA","Sohan Patel","No phone # yet","taftbestwestern@outlook.com"]
["05729","B/W Santa Ynez Valley","Buellton","CA","Kevin Thorton","805-688-0022","kevinthornton57@msn.com"]
["06001","B/W Alamosa Inn","Alamosa","CO","Chirag Dave (owner)","719-589-2567","bwalamosa@hotmail.com"]
["06009","B/W Turquoise Inn & Suites","Cortez","CO","M. P.G. West","970-565-3778","thewests@frontier.net"]
["06029","B/W Movie Manor","Monte Vista","CO","George or Judy Kelloff - Owners","719-852-5921","moviemanor@amigo.net"]
["06038","B/W Rambler","Walsenburg","CO","Manny Patel, GM","719-738-1121","manish.81089@yahoo.com"]
["06040","B/W University Inn","Fort Collins","CO",null,"970-484-2984"]
["06042","B/W Mountain Shadows","Durango","CO","LUKE ALBERT","970-247-5200","BWMSHADOWS@QWEST.NET"]
["06044","B/W Durango Inn & Suites","Durango","CO","Amy Brunvand","970-247-3251","amyjo1@bresnan.net"]
["06084","B/W Antlers","Glenwood Springs","CO","John & Mary Simmons","970-945-8535","maryms56@earthlink.net"]
["06098","B/W Ptarmigan Lodge","Dillon (Keystone Area)","CO","Ann Staszel - GM","970-468-2341","stay@ptarmiganlodge.com"]
["06103","B/W PLUS Boulder Inn","Boulder","CO","Steve Wallace, GM","303-449-3800","pine1813@aol.com"]
["06108","B/W Sundowner","Sterling","CO",null,"970-522-6265"]
["06114","B/W PLUS Crossroads Inn & Conference Center","Loveland","CO",null,"970-667-7810"]
["06144","B/W PLUS Rio Grande Inn","Durango","CO","Richard Maez","970-385-4980","richard@bwriograndeinn.com"]
["06153","B/W Clifton","Clifton","CO",null,"970-434-3400"]
["06156","B/W Kiva Inn","Ft. Collins","CO",null,"970-484-2444"]
["06157","B/W Inn & Suites of Castle Rock","Castle Rock","CO","Dipak Gopal","303-814-8800","dipak@bestwesterncastlerock.com"]
["06161","B/W PLUS Gateway Inn & Suites","Aurora (Denver Area)","CO","Hitesh Patel","720-748-4800","hpatelcolo@aol.com"]
["06163","B/W PLUS Silver Saddle","Estes Park","CO","Cory Blackman","970-586-4476","cory@estesresort.com"]
["06164","B/W PLUS Vista Inn","Buena Vista","CO","Brent Jewell","719-395-8009","jewell@amigo.net"]
["06165","B/W Firestone Inn & Suites","Longmont","CO","Amit Patel","720-494-1925","ajp1215@yahoo.com"]
["06167","B/W Executive Inn & Suites","Colorado Springs","CO","Hitesh Patel","719-576-2371","hppcolorado@hotmail.com"]
["06168","B/W PLUS Eagleridge Inn & Suites","Pueblo","CO","Cheryl - GM or Avik Amin - VM","719-543-4644","Avika80@yahoo.com"]
["06169","B/W PLUS Deer Park Inn & Suites","Craig","CO","Frank Moe (Owner)","970-824-9282"]
["06170","B/W Denver South West","Englewood","CO",null,"303-989-5500"]
["06171","B/W Alpenglo Lodge","Winter Park","CO","Laura Opinker / David W. Treece - VM","970-726-8088","Laura@wplodging.com"]
["06173","B/W Brighton Inn","Brighton","CO","Jinhee Collier / Warren Collier","(303) 637-7710","ini0110@hotmail.com ; 06173@hotel.bestwestern.com"]
["06176","B/W PLUS Denver Hotel","Denver","CO","Kumar Merchant","303-388-6161","ktktmerchant@msn.com"]
["06178","B/W PLUS Plaza Hotel","Longmont","CO","Starr Edson (GM)","303-776-2000","starr_edson@prattprop.com"]
["06179","B/W PLUS Louisville Inn & Suites","Louisville","CO","Jennifer Smith/Dipak Patel","303-327-1215","jsmithqualitygm@yahoo.com; dipakpatel@aol.com"]
["06180","B/W PLUS Denver International Airport Inn & Suites","Denver","CO","Kendall/Matt Kallaher/Joe Deffert","303-373-1600","ramadadiagm@sbcos.com; jdeffert@sbcos.com"]
["06181","B/W PLUS Carousel Inn & Suites","Burlington","CO","Connie Stegman/Joo Lee","719-346-7777","joolee51@hotmail.com; gm.co012@choicehotels.com"]
["06182","B/W Canon City","Canon City","CO","Anis Malkan","719-275-2400","anismalkan@yahoo.com"]
["06183","B/W Pikes Peak Inn & Suites","Colorado Springs","CO","Nicki Mozer","719-598-7500","bwplusgmcos@gmail.com"]
["06184","B/W PLUS Denver Tech Center","Greenwood Village","CO","Erika Hum","303-792-9999","erika.hotels@yahoo.com"]
["06185","B/W Eagle Lodge & Suites","Eagle","CO","Amy Yandle","970-328-6316","amy@eaglelodgecolorado.com"]
["07008","B/W Olympic Inn","Groton","CT","Mike Armaos","860-445-8000","mikearmaos@yahoo.com"]
["07011","B/W PLUS Danbury/Bethel","Bethel (Danbury Area)","CT","Azalia Rangel","203-744-3200","aza_rei@yahoo.com"]
["07012","B/W Regent Inn","Mansfield Center (Storrs Area)","CT","Wanda Records","860-423-8451","07012@hotel.bestwestern.com"]
["07016","B/W Executive Hotel of New Haven-West Haven","West Haven","CT",null,"203-933-0344"]
["07017","B/W PLUS Cristata Inn","Uncasville","CT","Ms. Lynn Nazarko","860-848-0660","lnazarko@cristatainn.com"]
["07018","B/W PLUS New England Inn & Suites","Berlin (Hartford Area)","CT",null,"860-828-3000"]
["07021","B/W PLUS Black Rock Inn","Fairfield","CT",null,"203-659-2200"]
["07025","B/W PLUS North Haven","North Haven","CT","JoAnn Kresofsky/Gus and Ellen","203-239-6700","gm@hinorthhaven.com"]
["07026","B/W Hartford Hotel & Suites","Hartford","CT","Robins Patel/Jignesh (Jay) Patel","860-525-1000","patel.biz@gmail.com"]
["08004","B/W PLUS Brandywine Valley Inn","Wilmington","DE","Sherri Keller/Mary Taylor","302-656-9436","sherri.keller@dhotelgroup.com"]
["08005","B/W Gold Leaf","Dewey Beach (Rehoboth Beach Area)","DE","Sam / Maha Awayes -VM","302-226-1100","imas@rcn.com"]
["08006","B/W Galaxy Inn","Dover","DE","Anil Patel","302-735-4700","aipatel@atlanticbb.net"]
["08009","B/W Smyrna Inn","Smyrna","DE","Sandip Patel","302-659-3635","patel.j.sandip@gmail.com"]
["08010","B/W PLUS Newark/Christiana Inn","Bear","DE","Vikas Naik","302-326-2500","bearbestwestern@gmail.com; v.n.naik@hotmail.com"]
["09006","B/W Falls Church Inn","Falls Church","DC",null,"703-532-9000"]
["09014","B/W Georgetown Hotel & Suites","Georgetown","DC",null,"202-457-0565"]
["09101","B/W Pentagon Hotel - Reagan Airport","Arlington (Washington Area)","DC","Tiago Santos / Abdul Khan","703-979-4400","akhan@yourdchotels.com ; tsantos@yourdchotels.com"]
["09102","B/W Old Colony Inn","Alexandria (Washington Area)","VA","Paul Banigan","703-739-2222","paulb@lodginghost.com"]
["10011","B/W Key Ambassador Resort Inn","Key West","FL","Armida Averette","305-296-3500","averettegm@aol.com;info@keyambassador.com"]
["10020","B/W Mt. Vernon Inn","Winter Park (Orlando Area North)","FL","Rick Frazee","407-647-1166","mog4@earthlink.net"]
["10038","B/W PLUS Aku Tiki Inn","Daytona Beach","FL","Karen Lindley","386-252-9631","karen@akutiki.com"]
["10096","B/W PLUS University Inn","Boca Raton","FL","Mr. Mark Harris","561-395-5225","10096@hotel.bestwestern.com"]
["10116","B/W PLUS Beach Resort","Fort Myers Beach","FL","Tim Malbon/Kevin Cornell","239-463-6000","info@bwbeachresort.com"]
["10150","B/W Cocoa Inn","Cocoa","FL",null,"321-632-1065"]
["10151","B/W Naples Inn & Suites","Naples","FL","Angela Brincku, Mgr","239-261-1148","angela@bestwesternnaples.com"]
["10168","B/W Space Shuttle","Titusville","FL","Tom Redmund (GM)/Martha","321-269-9100","gmbestwestern@aol.com"]
["10180","B/W Starke","Starke","FL","Mr. Sam Patel / Roger Young","904-964-6744","roger@planbhospitality.com;starkesam@yahoo.com"]
["10184","B/W Crossroads Inn","De Funiak Springs","FL","Stephanie Hawkins","850-892-5111","davey5111@cox.net and stepharie@embarqmail.com"]
["10200","B/W Port St. Lucie","Port Saint Lucie (Fort Pierce Area)","FL","Lisa Thomas - GM","772-878-7600","lisa@BWPsl.com"]
["10206","B/W PLUS Hibiscus Motel","Key West","FL","Debbie Branaham- GM","305-294-3763","deb@kemp-properties.com"]
["10212","B/W PLUS Oceanside Inn","Fort Lauderdale","FL","Ms. Carolina Bello","954-525-8115","bwocean2@bellsouth.net"]
["10214","B/W Pride Inn & Suites","Tallahassee","FL","Ms. Hema Parmar","850-656-6312","mparmar23@comcast.net"]
["10222","B/W Historical Inn","Saint Augustine","FL","Jeff Vallone - GM","904-829-9088","jeff.vallone@jalaramhotels.com"]
["10225","B/W Palm Beach Lakes","West Palm Beach (Palm Beach Area)","FL","Bernie Dozier/ Bill Murry - GM","561-683-8810","bdozier@dricmc.com:wmurray@dricmc.com"]
["10226","B/W PLUS Yacht Harbor Inn","Dunedin","FL","Mark / Prabu Dontamesetti","727-733-4121","bwestern@tampabay.rr.com"]
["10227","B/W Midtown","Sarasota","FL",null,"941-955-9841"]
["10246","B/W Inn Of Palatka","East Palatka","FL",null,"386-325-7800"]
["10250","B/W Crystal River Resort","Crystal River","FL","Frances Roberts  GM","352-795-3171","info@crystalriverresort.com"]
["10251","B/W Seminole Inn","Tallahasee","FL",null,"850-656-2938"]
["10253","B/W Suites","Panama City","FL","Keri McKinley - GM","850-784-7700","10253@hotel.bestwestern.com"]
["10254","B/W Gateway to the Keys","Florida City","FL","Mr. Nitun Patel","305-246-5100","nitun.patel@gmail.com"]
["10255","B/W Orlando West","Orlando","FL","Maurice Kuo - VM","407-841-8600","10255@hotel.bestwestern.com"]
["10263","B/W St. Augustine I-95","Saint Augustine","FL","JAMES OWENS","904-829-1999","JAMESOWENS1@HIBAYMEADOWS.COM"]
["10264","B/W Spanish Quarters Inn","Saint Augustine","FL","Jeff Vallone - GM","904-824-4457","jeff.vallone@jalaramhotels.com"]
["10267","B/W Intracoastal Inn","Jupiter","FL","Dean Desai","561-575-2936","deanbw@yahoo.com"]
["10268","B/W Navarre Waterfront","Navarre","FL","C Baker Clark, GM","850-939-9400","baker@navarrebestwestern.com"]
["10269","B/W PLUS On the Bay Inn & Marina","North Bay Village (Miami Area)","FL","Ernesto Moreno","305-865-7100","10269@hotel.bestwestern.com"]
["10270","B/W Apalach Inn","Apalachicola","FL",null,"850-653-9131"]
["10271","B/W Ft. Walton Beachfront","Ft. Walton Beach","FL","LeAnn","850-243-9444"]
["10272","B/W PLUS Fort Lauderdale Airport/Cruise Port","Fort Lauderdale","FL","Mit/Sandy/Justin Patel","954-448-1297","mit.patel@luckeysmanage.com"]
["10277","B/W Ft. Myers Waterfront","Ft. Myers","FL","Bill Selesky","239-997-5511","bselesky@carroll-properties.com"]
["10279","B/W Oceanfront","Jacksonville Beach","FL","Tejal Patel","904-249-4949","tejal@shivamproperties.com"]
["10280","B/W Naples Plaza Hotel","Naples","FL","Trent Seguin - GM","239-643-6655","trentseguin@aol.com"]
["10281","B/W PLUS Gateway Grand","Gainesville","FL","Ron Gremold - GM","352-331-3336","normolog@comcast.net"]
["10283","B/W PLUS Ambassador Suites Venice","Venice","FL","Kyle Vermeulen","941-480-9898","bwambassadorsuites@comcast.net"]
["10285","B/W PLUS Universal Inn","Orlando","FL",null,"407-226-9119"]
["10286","B/W of Clewiston","Clewiston","FL","Usha Patel","863-983-3400","usha25@bellsouth.net"]
["10288","B/W Lake Buena Vista Resort Hotel","Lake Buena Vista (Orlando Area)","FL","Rob Powell / Ed Kortum","407-828-2424","rob.powell@lakebuenavistaresorthotel.com"]
["10289","B/W Ocala Park Centre","Ocala","FL","Mr. Graham Forest","352-237-4848","gf.bwocala@earthlink.net"]
["10297","B/W Hollywood/Aventura","Hallandale Beach","FL","Mr. Ankur Thapar","954-456-8333","chin2seju@hotmail.com"]
["10302","B/W Airport Inn & Suites","Orlando","FL","Wilfredo Gomez","407-581-2800","wig@bwairport.com"]
["10303","B/W Airport Inn","Fort Myers","FL","Ms. Micheline Lobdell","239-561-7000","gm@ftmyersbestwestern.com"]
["10306","B/W Tampa","Tampa","FL","Sean Moran/George","813-490-2378","moransean@msn.com;10306@hotel.bestwestern.com"]
["10308","B/W Ocean Beach Hotel & Suites","Cocoa Beach","FL",null,"321-783-7621"]
["10314","B/W Mayport Inn & Suites","Atlantic Beach","FL",null,"904-435-3500"]
["10323","B/W PLUS Miami Airport West Inn & Suites","Miami","FL","Edgar Sanchez, GM","305-463-7195","Baymont680@earthlink.net"]
["10324","B/W Southside Hotel & Suites","Jacksonville/Orange Park","FL","Malerie Meyers","904-264-4466","maleriemeyers33@aol.com"]
["10329","B/W Hotel JTB/SouthPoint","Jacksonville","FL",null,"904-281-0900"]
["10333","B/W PLUS Oakland Park Inn","Fort Lauderdale","FL","Walter Johnson","954-565-4601","wjohnson@bwopi.com"]
["10337","B/W PLUS Lake County Inn & Suites","Tavares","FL","Nick Patel","352-253-2378","BWTAVARES@GMAIL.COM"]
["10338","B/W PLUS Sebastian Hotel & Suites","Sebastian","FL","Jeff Misatano","772-388-9300","jeff.misitano@luckeysmanage.com"]
["10341","B/W Heritage Inn & Suites","Bowling Green (Wauchula Area)","FL","Kunj Patel","863-773-2378","heritageinnbw@yahoo.com"]
["10344","B/W PLUS Deerfield Beach Hotel & Suites","Deerfield Beach","FL","Charles Resta/Karina Montenegro","954-570-8888","charles@deerfieldbeachflhotel.com"]
["10346","B/W Orlando East Inn & Stes","Orlando","FL","Sharad Gandhi","407-282-3900","sgandhi@prmhotels.com"]
["10349","B/W PLUS Windsor Inn","North Miami","FL","Sandra Griffin","305-891-7350","scodogno@comcast.net"]
["10350","B/W PLUS Panhandle Capital Inn & Suites","Midway","FL",null,"850-514-2222"]
["10352","B/W PLUS Auburndale Inn & Suites","Auburndale","FL","Amy Garrett","863-551-3400","gm@bestwesternauburndale.com"]
["10353","B/W PLUS Fort Pierce Inn","Fort Pierce","FL","Mukesh Monga","772-409-1740","mukeshmonga11@yahoo.com"]
["10354","B/W PLUS Kendall Hotel & Suites","Kendall","FL",null,"305-271-4848"]
["10355","B/W PLUS Ft. Meyers Inn & Suites","Ft. Meyers","FL","Sam Swami","239-278-3949","swami21@comcast.net"]
["10356","B/W Lake Okeechobee","Okeechobee","FL",null,"863-357-7100"]
["10358","B/W Jacksonville Airport Inn","Jacksonville","FL",null,"904-741-4980"]
["10359","B/W PLUS Downtown Stuart","Stuart","FL",null,"772-287-6200"]
["10360","B/W Edgewater Inn","Edgewater","FL","JJ Patel, VM","386-427-7101","BESTWESTERNFL@YAHOO.COM"]
["10361","B/W PLUS Wakulla Inn & Suites","Crawfordville (Medart Area)","FL","Mr. Niraj Patel","850-926-3737","niraj_a_patel@yahoo.com"]
["10365","B/W PLUS Manatee Hotel","Bradenton","FL","Chris Sears/ Valerie Castleman","941-238-0800","10365@hotel.bestwestern.com"]
["10366","B/W Atlantic Beach Resort","Miami Beach","FL"]
["10368","B/W PLUS Blue Angel Inn","Pensacola","FL","Mr. Mitesh Patel","850-477-7474","tishpatel@cox.net"]
["10370","B/W PLUS Fort Lauderdale Airport South Inn &Suites","Dania","FL","Edgar Sanchez/Sunil Irastorza","305-463-7195","Baymont680@earthlink.net"]
["10371","B/W Castillo Del Sol","Ormond Beach","FL","Joe Maniscalco","(386) 672-6711","jmaniscalco@elitehospitality.com"]
["10372","B/W PLUS Cecil Field Inn & Suites","Jacksonville","FL","Sunil Dharma","904-265-7759","nilay91@msn.com"]
["10373","B/W Bayfront Inn","Saint Augustine","FL","Ken Darkes","904-824-4482","ken.darkes@jalaramhotels.com"]
["10374","B/W Bonita Springs Hotel & Suites","BONITA SPRINGS","FL","Vinney Patel","239-949-9400","10374@hotel.bestwestern.com"]
["10375","B/W Palm Coast","Palm Coast","FL","SNE PATEL","386-446-4457","SNE@CAIMANMANAGEMENT.COM"]
["10377","B/W Seaside Inn-St Augustine Beach","Saint Augustine Beach","FL","Marcy Deering","904-461-9990","marcy.deering@jalaramhotels.com"]
["10378","B/W Bay Harbor Hotel","Tampa","FL","Don Poteralski/Ron Arnold","813-281-8900","donpoter@aol.com; rbhhra@aol.com"]
["10380","B/W PLUS Orlando Gateway Hotel","Orlando","FL","Cathy & Bill Jones","407-351-5009","cathy@thehoteluniversal.com"]
["10381","B/W PLUS Chain of Lakes Inn & Suites","Leesburg","FL","Janak (Jay) Patel/Sunil Patel","352-787-3343","anysia97@aol.com;jkp1914@aol.com"]
["10384","B/W PREMIER Miami Int'l Airport Hotel & Suites","Miami","FL","Edgar Sanchez/Jorge Kasabdji","(786) 552-7858","esanchez10384@aol.com"]
["10385","B/W International Drive - Orlando","Olando","FL","Alpesh Khushal","407-345-1172","akhushal@hotmail.com"]
["10386","B/W PLUS Madison","Madison","FL","Craig Waldrop","(850) 973-2020","office167@bwmadison.net"]
["10387","B/W PLUS Orlando Convention Center Hotel","Orlando","FL","Shailesh Patel","407-313-4100","sp@slpatel.com"]
["10388","B/W PLUS Miami Airport North Hotel & Suites","Miami Springs","FL","Mr. Jean Ajayakumar","No phone yet","bestwesternjean@aol.com"]
["10389","B/W PLUS Windsor Gardens Hotel & Conference Center","Palm Beach Gardens","FL","Francisco/Craig/Debbie","561-844-8448","infoatgardens@gmail.com"]
["10390","B/W New Smyrna Beach Hotel & Suites","New Smyrna Beach","FL","Richard Vyse","386-426-0020","hinsb@msn.com"]
["10391","B/W PLUS Bradenton Hotel & Suites","Bradenton","FL","Sherry Bartley /Punit Shah","941-757-5555","sherry@libertyg.com; pshah@libertyg.com"]
["10392","B/W PLUS Siesta Key Gateway","Sarasota","FL","Maria Bankemper","941-924-4900","MBankemper@hiexsarasota.com"]
["10393","B/W PREMIER Saratoga Resort Villas","Kissimmee","FL","Terry Hatfield/Kim Carrick","813-363-5771","hotelmax@aol.com"]
["10394","B/W PLUS International Speedway","Daytona Beach","FL","Ms. Kristy Morris/Mihir","386-258-6333","kristy@elitehospitality.com"]
["10395","B/W  PLUS First Coast Inn & Suites","Yulee","FL","Hitesh Bhakta","904-225-0182","hrdb81@gmail.com"]
["10396","B/W PLUS Plant City Hotel","Plant City","FL","Sherry Bartley/Punit Shah","813-707-6000","sherry@libertyg.com; Pshah@LibertyG.com"]
["10397","B/W Sanford Airport/Lake Mary","Sanford","FL","Nikesh (Nick) Shah","407-328-6306","nshah730@hotmail.com"]
["10398","B/W PLUS Kendall Airport Hotel & Suites","Miami","FL","Robert Perez/Indira/Mr. Ernesto R. Greco","305-238-1766","perez@bestwesternkendal.com"]
["10399","B/W PLUS Tallahassee North","Tallahassee","FL","Diane Geller","850-562-7200","diane.geller@murphcofl.com"]
["10400","B/W Mulberry","Mulberry","FL","Nilesh (Nick) Patel","863-425-2500","nileshpatel62@gmail.com"]
["10401","B/W Fort Lauderdale West/I-95","Fort Lauderdale","FL","Jonathan Humphries/Bob Kunvarji","954-776-6333","jonathan@ihrmc.com; bnkunvarji@yahoo.com"]
["10402","B/W Sugar Sands Inn & Suites","Destin","FL","Bhavesh Kumar","850-650-9191","bvkumar1@hotmail.com"]
["11045","B/W Athens","Athens","GA","Karla Reiner  GM","706-546-7311","11045@hotel.bestwestern.com"]
["11058","B/W Central Motor Inn","Savannah","GA","Mr. Gary Patel","912-355-1000","bestwesterncentral@gmail.com"]
["11067","B/W Riverside Inn","Macon","GA","Adam Patel/Ricky Patel","478-743-6311","11067@hotel.bestwestern.com; rckypatel@yahoo.com"]
["11090","B/W Acworth Inn","Acworth (Atlanta Area)","GA","Ashia Kim - GM","770-974-0116","11090@hotel.bestwestern.com;ashia.kim@gmail.com"]
["11095","B/W Griffin","Griffin","GA",null,"770-227-8400"]
["11101","B/W Braselton","Braselton","GA",null,"706-654-3081"]
["11108","B/W Battlefield Inn","Fort Oglethorpe (Chattanooga Area)","GA","MIKE PATEL","706-866-0222","DAYSINNRIVERGATE@EXCITE.COM"]
["11113","B/W Milton Inn","Blairsville","GA","George Patel - VM","706-745-6995","11113@hotel.bestwestern.com"]
["11118","B/W Executive Inn","Cairo","GA","Sanjay Patel, VM","229-377-8000","sanjaycairo@yahoo.com"]
["11119","B/W Shenandoah Inn","Newnan","GA","Ash Patel - VM","770-304-9700","sheninn@numail.org"]
["11120","B/W PLUS Atlanta Airport-East","Hapeville","GA",null,"404-763-8777"]
["11123","B/W Southlake Inn","Morrow (Atlanta Area)","GA","Mike Nelson - VM","770-961-6300","11123@hotel.bestwestern.com"]
["11125","B/W PLUS Riverpark Inn & Conf Center Alpine Helen","Helen","GA","Carol Powell - GM/Julie","706-878-2111","carolpowel@gmail.com"]
["11130","B/W Executive Inn","Rome","GA","Dinesh Patel - VM","706-234-3161","bestrga@aol.com"]
["11131","B/W Kennesaw Inn","Kennesaw","GA",null,"770-424-7666"]
["11133","B/W Inn & Suites of Macon","Macon","GA","Christina Palmer / Ajit Patel - VM","478-781-5300","11133@hotel.bestwestern.com"]
["11134","B/W Stone Mountain","Stone Mountain","GA",null,"770-465-1022"]
["11139","B/W Inn & Suites","Byron","GA","Arti Patel/Nancy Campell","478-956-3056","11139@hotel.bestwestern.com"]
["11140","B/W Peach Inn","Warner Robins","GA","Danny Patel - VM","478-953-3800","bwpeachinn@yahoo.com"]
["11141","B/W Colonial Inn","Cordele","GA",null,"229-273-5420"]
["11146","B/W McDonough Inn & Suites","McDonough (Atlanta Area)","GA","Helen House - GM","770-898-1006","bwmcdonoughga1@aol.com"]
["11150","B/W Columbus","Columbus","GA","Sherry Tucker - GM","706-568-3300","bwcolumbus@gmail.com"]
["11154","B/W PLUS Hotel & Suites Airport South","College Park (Atlanta Airport Area)","GA","Kamlesh K. Patel - VM","770-996-5800","KPATEL7274@AOL.COM"]
["11155","B/W Executive Inn","Waynesboro","GA","Shivani Patel","706-554-0806","drniren@yahoo.com"]
["11161","B/W Hawkinsville Inn & Suites","Hawkinsville","GA","Mack Patel","478-783-1300","11161@hotel.bestwestern.com"]
["11164","B/W Garden Inn & Suites","Cartersville","GA","Dave Patel","770-386-1569","bestwesterncartersville@gmail.com"]
["11170","B/W Mountain View Inn","East Ellijay","GA","Brenda Jones - GM","706-515-1500","bestwestern@ellijay.com"]
["11173","B/W Ashburn Inn","Ashburn","GA","Mark Patel - GM","229-567-0080","mukeshpatelusa@yahoo.com"]
["11175","B/W Savannah Gateway","Savannah","GA","Alisha Patel","912-925-2420","alisha528@gmail.com"]
["11178","B/W Bradbury Inn & Suites","Perry","GA","Ashwin Patel/Clemmie Ross","478-218-5200","ashwinp619@yahoo.com"]
["11182","B/W Lake Hartwell Inn & Suites","Hartwell","GA","Kristen Mayenick - Ops Mgr/ Tonya","706-376-4700","kmay124@yahoo.com"]
["11185","B/W Carrollton Inn & Suites","Carrollton","GA",null,"770-830-1000"]
["11187","B/W PLUS Richmond Hill Inn","Richmond Hill","GA",null,"912-756-7070"]
["11190","B/W PLUS Bradbury Inn & Suites","Waycross","GA","Dave Desai","912-284-0095","bradburyinn@bellsouth.net"]
["11192","B/W Bradford Inn","Swainsboro","GA",null,"478-237-2400"]
["11194","B/W Evans Hotel","Grovetown","GA",null,"706-651-9100"]
["11198","B/W Commerce Inn","Commerce","GA",null,"706-335-3640"]
["11200","B/W Mountain Villa Inn & Suites","Canton","GA"," Kyle Mehta"," 770-345-6800","gm.ga271@choicehotels.com"]
["11201","B/W Winder Hotel","Winder","GA","VIRAL CHAUHAN","770-868-5303","11201@HOTEL.BESTWESTERN.COM"]
["11202","B/W Union City Inn & Suites","Union City","GA","Don Patel","770-969-4567","11202@hotel.bestwestern.com"]
["11203","B/W Rose City Conference Center Inn","Thomasville","GA","Lynn Connell/Sharad Patel","229-226-9998","smp54@comcast.net;bestwesternrccci@yahoo.com"]
["11204","B/W Albany Mall Inn & Suites","ALBANY","GA","Beth Britto, Candy / Jones","229-446-2001","bbritto@hotelequities.com;ljones@hotelequities.com"]
["11205","B/W PLUS Savannah Historic District","Savannah","GA","Jeff Fouste","912-233-1011","jfouste@vestahospitality.com"]
["11208","B/W PLUS Windsor Hotel","Americus","GA","Vic Patel/Divya Patel","229-924-1555","vicpat1983@gmail.com"]
["11209","B/W Hiram Inn & Suites","Hiram","GA","Hemant Patel","770-222-9494","hrpatel1@comcast.net"]
["11210","B/W PLUS Inn at the Peachtrees","Atlanta","GA","Chetan Patel/Rajeev Desai","404-577-6970","rajeev.desai@innatthepeachtrees.com"]
["11211","B/W PLUS Kingsland","Kingsland","GA","Prakash Patel","912-882-8200","pdp@asutosh.com"]
["11212","B/W PLUS Brunswick Inn & Suites","Brunswick","GA","Sanjay Bhakta","912-265-1114","bestwesternbrunswick@gmail.com"]
["11213","B/W PLUS Valdosta Hotel & Suites","Valdosta","GA","Gerald Evans","229-241-9221","jerry@hawthornvaldosta.com;jerry@gehospitality.com"]
["11214","B/W PLUS Lake Lanier/Gainesville Hotel & Suites","Oakwood","GA","Mike Moreno","770-535-8080","mike@bestwesternlanier.com"]
["11215","B/W PLUS Savannah Airport Inn & Suites","Pooler","GA","DJ Desai/Kenny","912-330-0330","toyia.c.jenkins@gmail.com"]
["11216","B/W PLUS St. Simons","Saint Simons Island","GA","Chetan Patel/Dipan Patel","912-638-7805","dipan@buckheadamerica.com;"]
["11217","B/W PLUS North Savannah","Port Wentworth","GA","Niketa (Krishan) Gandhi","912-964-0840","krishangandhi10@gmail.com"]
["11218","B/W Gwinnett Center Hotel","Duluth","GA","Elena Kim","770-935-7171","elenavkim@gmail.com"]
["11219","B/W Calhoun Inn & Suites","Calhoun","GA","Dipesh Patel","DO NOT CALL UNTIL JAN 2015  -706-625-6500","dipeshpatel@nhcgfm.com"]
["12008","B/W The Plaza Hotel","Honolulu","HI","Shawn / Robert L. McConnell","808-836-3636","robert.mcconnell@outrigger.com"]
["12012","B/W Pioneer Inn","Lahaina","HI","Becky Lennon  - Controller","808-661-3636","blennon@hawaii.rr.com"]
["12500","B/W PREMIER Surfrider Resort, Spa and Beach Club","Saipan","MP","Robert Jones","670-234-1795","rhjones@triplejsaipan.com"]
["13005","B/W PLUS Driftwood Inn","Idaho Falls","ID","Heather Ross","208-523-2242","13005@hotel.bestwestern.com"]
["13027","B/W Tyrolean Lodge","Ketchum (Sun Valley Area)","ID","Thomas Cahill","208-726-5336","tyrolean@cox-internet.com"]
["13028","B/W Teton West","Driggs","ID","Jill Susan Jackson - VM / AJ","208-354-2363","13028@HOTEL.BESTWESTERN.COM"]
["13029","B/W PLUS Vista Inn at the Airport","Boise","ID"," Mike McKnight","208-336-8100"," mcknight@rmmdllc.com"]
["13032","B/W PLUS CottonTree Inn","Pocatello","ID","Mr. Mike Sanders","208-237-7650","mike@cottontree.net"]
["13035","B/W PLUS University Inn","Moscow","ID","Tambi Hoskins (Res Manager)","208-882-0550","uinnres@moscow.com"]
["13037","B/W PLUS Burley Inn & Convention Center","Burley","ID",null,"208-678-3501"]
["13040","B/W Airport Inn","Boise","ID","Jimmy Jassal","208-384-5000","jassalboise@yahoo.com"]
["13042","B/W Foothills Inn","Mountain Home","ID","Brett Casey","208-587-8477","Brett.casey@jbhhospitality.com"]
["13044","B/W PLUS Kootenai River Inn Casino & Spa","Bonners Ferry","ID","Tom Turpen / Mike Cox","208-267-8511","Tom@Kootenairiverinn.com"]
["13046","B/W PLUS CottonTree Inn","Idaho Falls","ID","Liz Stang/Todd","208-523-6000","liz_cottontree@hotmail.com"]
["13047","B/W PLUS Kentwood Lodge","Ketchum (Sun Valley Area)","ID","Ms. Cindy Forgeon","208-726-4114","13047@hotel.bestwestern.com"]
["13049","B/W Blackfoot Inn","Blackfoot","ID","Chuck Folland - VM/ Carol","208-785-4144","GM.ID605@choicehotels.com"]
["13050","B/W PLUS Rama Inn","Meridian","ID",null,"208-887-7888"]
["13051","B/W PLUS Sawtooth Inn & Suites","Jerome","ID","Darcy Barbowsky - Dir of Ops","208-324-9200","reservation@sawtoothinn.com"]
["13052","B/W PLUS Caldwell Inn & Suites","Caldwell","ID","Stacy Ward GM","208-454-7225","dsward@msn.com"]
["13054","B/W PLUS Edgewater Resort","Sandpoint","ID","Troy Hancock, GM","208-263-3194","edgwater@netw.com"]
["13055","B/W PLUS Northwest Lodge","Boise","ID",null,"208-287-2300"]
["13056","B/W PLUS Coeur d'Alene Inn","Coeur d'Alene","ID","Steve Wilson","208-765-3200","Srozier@cdaresort.com"]
["13057","B/W PLUS Lodge at River's Edge","Orofino","ID","Eric Statler","208-476-9999","lodge@orofino-id.com"]
["13059","B/W PLUS Twin Falls Hotel","Twin Falls","ID","Mr. Xiaoyan Yan / Amy","208-736-8000","info@bestamericasuites.com"]
["13060","B/W PLUS McCall Lodge & Suites","McCall","ID","Maribeth Cabardo/Del/Christina/John","208-634-2230","mdcabardo@yahoo.com"]
["14038","B/W Inn of St. Charles","St. Charles","IL",null,"630-584-4550"]
["14092","B/W at O'Hare","Rosemont (Chicago Airport Area)","IL","Anton Safonov","847-296-4471","anton.safonov@bestwesternohare.com"]
["14105","B/W PLUS Oakbrook Inn","Westmont (Chicago Area)","IL","Mr. Umesh Patel","630-323-1515","bestwestern@oakbrookinn.com"]
["14108","B/W Paradise Inn","Savoy (Champaign Area)","IL","Alpa Patel - GM","217-356-1824","14108@hotel.bestwestern.com"]
["14112","B/W PLUS River North Hotel","Chicago","IL","Heidi Bitar - GM","312-467-0800","generalmanager@rivernorthhotel.com"]
["14119","B/W Designer Inn & Suites","Galena","IL",null,"815-777-2577"]
["14120","B/W Grant Park Hotel","Chicago","IL","Jena Oyervides - GM","312-922-2900","joyervides@bwgrantparkhotel.com"]
["14129","B/W Airport Inn","Moline","IL","Mr. Hasu Patel (owner)","309-762-9191","hpatel7896@gmail.com"]
["14130","B/W Raintree Inn","Effingham","IL","Jean Eide - GM","217-342-4121","bestcorp@consolidated.net"]
["14132","B/W Riverside Inn","Danville","IL","Samir Naik - GM","217-431-0020","samirbnaik@gmail.com"]
["14135","B/W Reid's Inn","Chester","IL","Beth / Brad Reid","618-826-3034","reidsinc@clearwave.com"]
["14139","B/W Regency Inn","Danville","IL","Andy Patel/Pete Patel","217-446-2111","bw14139@yahoo.com"]
["14146","B/W Robinson Inn","Robinson","IL","Steve Koontz","618-544-8448","skoontz@mchsi.com"]
["14147","B/W Monticello Gateway Inn","Monticello","IL","Manisha Patel or Alpa","217-762-9436","manisha_patel73@hotmail.com"]
["14150","B/W U. S. Inn","Nashville","IL","Hank and Nisha Gopal - Mgr","618-478-5341","bwusinn@yahoo.com"]
["14151","B/W PLUS Hawthorne Terrace Hotel","Chicago","IL","Steven Hampton - GM","773-244-3434","s_hampton@attglobal.net"]
["14152","B/W Clearlake Plaza","Springfield","IL","Mr. Daksha Patel","217-525-7420","14152@hotel.bestwestern.com"]
["14155","B/W Joliet Inn & Suites","Joliet","IL","Jay Bhatt/Penny","815-730-7500","jolietbw@aol.com"]
["14157","B/W Des Plaines Inn","Des Plaines (Chicago Airport Area)","IL","Manoj Mahapatra/Mariya","847-297-2100","gm@bestwesterndpi.com;manojmahapatra@hotmail.com"]
["14159","B/W Inn & Suites - Midway Airport","Burbank (Chicago Area)","IL","Roy Patel VM -Willie Moy, GM","708-497-3000","14159@hotel.bestwestern.com"]
["14160","B/W Monee Inn","Monee","IL","Dilip Amin - VM","708-534-3500","amindc117@yahoo.com"]
["14163","B/W Ashland House & Conference Center","Morton (Peoria Area)","IL","Matthew Nash - GM","309-263-5116","peoriahotelsllc@live.com"]
["14164","B/W Naperville Inn","Naperville (Chicago Area)","IL","Ms. Kim Norwood","630-505-0200","bestofnaperville@aol.com"]
["14166","B/W University Plaza","Evanston","IL","Sara Block","847-491-6400","sblock@bwuniversityplaza.com"]
["14170","B/W Prairie Inn & Conference Center","Galesburg","IL","Vinay Patel/Amber Smith","309-343-7151","vinaym1955@yahoo.com; ambersmitty9999@gmail.com"]
["14172","B/W Lorson Inn","Flora","IL","Terry Poston, GM","618-662-3054","lorson@wabash.net"]
["14173","B/W Morton Grove Inn","Morton Grove","IL","Ravi Parikh, GM","847-965-6400","14173@hotel.bestwestern.com"]
["14179","B/W PLUS Timber Creek Inn & Suites","Sandwich","IL","Karen Bohnstedt","(630) 273-6000","bkaren170@aol.com"]
["14180","B/W PLUS Chicago Hillside","Hillside","IL","Roy Patel","708 544-9300","rpatel@hihillside.com"]
["14181","B/W Legacy Inn & Suites Beloit/South Beloit","South Beloit","IL","Debbie Fingerhut","815-389-4211","bwlegacy@charterinternet.com"]
["14182","B/W Chicagoland - Countryside","COUNTRYSIDE","IL","Chris Mayes","708-354-5200","sales@bestwesterncountryside.com"]
["14183","B/W Annawan Inn","Annawan","IL","Satwinder Bhola","309 935-6565","2bhola@gmail.com"]
["14185","B/W PLUS Macomb Inn","Mcaomb","IL","Kathy / Marilyn / Mitch Wooldridge","309-836-6700","hiex@macomb.com"]
["14186","B/W PLUS Chicago Southland","Oak Forest","IL","Joe Schutzius","708-687-4800","wingateinntr@yahoo.com"]
["14187","B/W Gurnee","Gurnee","IL","Janneth Salinas","847-782-0890","jannethsalinas@yahoo.com"]
["14188","B/W PLUS Lincoln Inn","Lincoln","IL","Paresh Patel","217-732-9641","pparesh04@yahoo.com"]
["14189","B/W Oglesby Hotel","Oglesby","IL","Andy Bridwell/Michael Janko/ Becky","815-883-3535","abridwell@jankohotels.com"]
["14190","B/W PLUS Parkway Hotel","Alton","IL","Jamie Ruiz/Kevin D Wiggs","618-548-0888","14190@hotel.bestwestern.com; Kevin.wiggs@live.com"]
["14191","B/W Saluki Inn","Carbondale","IL","Manish Patel","(618) 351-6611","mpatel801@gmail.com"]
["14193","B/W PLUS Antioch Hotel","Antioch","IL","Tim Cepek/Jay Fishman","312-782-6008","gm@antiochsuites.com; jay@assochotels.com"]
["14194","B/W Pontiac Inn","Pontiac","IL","Navin Chandra Patel","815-842-2777","patel.navin@hotmail.com"]
["14195","B/W Woodstock","Woodstock","IL","Henry Patel/Rich","815-337-0065","patelhenry@yahoo.com"]
["14196","B/W PLUS Schaumburg Hotel & Conference Center","Shaumburg","IL","Jin Park/Kevin Shah","847-397-1500","jin.parkkevin.shah@vinakom.com"]
["14197","B/W PLUS Marion Hotel","Marion","IL","Angela Randell","618-998-1220"]
["14198","B/W PLUS Green Mill Village Hotel & Suites","Arcola","IL","Cassie Yoder/Christine (Chris) Cloyd","217-268-5000","cassie@agri-fab.com"]
["14199","B/W Geneseo Inn","Geneseo","IL","Harshad (Hasu) Patel/Kanti Bhakta","309-945-9345","hpatel7896@gmail.com; kbedoli@gmail.com"]
["14201","B/W PLUS Glenview-Chicagoland Inn & Suites","Glenview","IL","Tim Cepek/Chris Kappos/Mary Jo Grunewald","847-635-5220","christos.kappos@gmail.com"]
["14202","B/W PLUS East Peoria","East Peoria","IL","Terri Gustafson","309-694-4959","terrigus@msn.com"]
["14203","B/W Jacksonville Inn","Jacksonville","IL","Ajay Payel","217-479-0303","jacksonvillebw@gmail.com"]
["14204","B/W PLUS O'Hare International South Hotel","Franklin Park","IL","Maria Wolanin","847-233-9292","mwolanin@aol.com"]
["14205","B/W PLUS MidAmerica Airport","Mascoutah","IL","Mr. Sean Hayden","618-808-0280","hayden4427@gmail.com"]
["14206","B/W PLUS Pontoon Beach","Pontoon Beach","IL","Vicky Reed/ Jitendra Patel","618-512-1314","gm.il301@choicehotels.com; jiten1patel@yahoo.com"]
["14207","B/W Glendale Heights Hotel","Glendale Heights","IL","Fahad Balagam","630-942-9500","fahadbalagam@gmail.com"]
["14208","B/W TBD","Troy","IL","Didi Patel","618-667-9200","didipatel65@yahoo.com"]
["15039","B/W Inn","Goshen","IN","Scott Baker","574-533-0408","info@bwgoshen.com; 15039@hotel.bestwestern.com"]
["15061","B/W Luxbury Inn Fort Wayne","Fort Wayne","IN","MJ Zala","260-436-0242","15061@hotel.bestwestern.com"]
["15064","B/W Indianapolis South","Indianapolis","IN","Anita Davis","317-888-5588","bestwesternsouth@yahoo.com"]
["15066","B/W PLUS Gas City","Gas City (Marion Area)","IN","Susan","765-998-2331"]
["15067","B/W Crossroads Inn","Schererville","IN","Jay Patel","219-865-3400","bestwesternschererville@yahoo.com"]
["15068","B/W Circus City Inn","Peru","IN","Soledad Macias","765-473-8800","15068@hotel.bestwestern.com"]
["15069","B/W Inn & Suites","Elkhart","IN","Priya Patel","574-262-8761","15069@hotel.bestwestern.com"]
["15070","B/W Kendallville Inn","Kendallville","IN","Dev Piprottar","260-347-5263","dev@bwkinn.com"]
["15071","B/W Horizon Inn","Edinburgh","IN","Mr. Dave Amin","812-526-9883","da.bwhi@comcast.net"]
["15076","B/W Muncie","Muncie","IN","Chandra Kollipara - Mgr","765-282-0600","ckollipara18@yahoo.com"]
["15077","B/W Inn & Suites of Merrillville","Merrillville","IN","Mr. and Mrs. Parvin and Nila Patel","219-756-2378","contactus@bwmerrillville.com"]
["15078","B/W PLUS Brandywine Inn & Suites","Monticello","IN","Deana Pass","574-583-6333","deannap.bestwestern@earthlink.net"]
["15080","B/W Country Suites","Indianapolis","IN",null,"317-879-1700"]
["15083","B/W Airport Suites","Indianapolis","IN","Carolyn Beckort","317-246-1505","15083@hotel.bestwestern.com"]
["15084","B/W Northwest Indiana Inn","Hammond","IN","Dipti Patel","219-844-2140","dipti68@comcast.net"]
["15085","B/W PLUS Howe Inn","Howe","IN",null,"260-562-2880"]
["15088","B/W Lafayette Executive Plaza & Conference Center","Lafayette","IN","Gayle Koning","765-447-0575","gkbwlaf@aol.com; tsc8464@aol.com"]
["15092","B/W Martinsville","Martinsville","IN",null,"765-342-1842"]
["15095","B/W Indian Oaks","Chesterton","IN",null,"219-926-2200"]
["15096","B/W Classic Inn","Richmond","IN","Sony Patel","765-939-9500","sony142@hotmail.com"]
["15098","B/W Crossroad","Indianapolis","IN","Barbara Clark (GM)\r\nNirmal Patel","317-353-6966","15098@HOTEL.BESTWESTERN.COM"]
["15100","B/W PLUS La Porte Hotel & Conference Center","La Porte","IN","Patricia Segova","219-362-4585","psegovia@theworthingtongroup.com"]
["15103","B/W PLUS Atrea Airport Inn & Suites","Plainfield","IN","Santosh Patel","317-837-7500","Santoshpatel65@yahoo.com"]
["15104","B/W PLUS Portage Hotel & Suites","Portage","IN","Pravin Patel","219-734-6727","whcorp@gmail.com"]
["15105","B/W PLUS Anderson","Anderson","IN","Saumin Shah/Hemang Shah","765-649-2500","shah.saumins@gmail.com; hem1965@yahoo.com"]
["15107","B/W PLUS Mishawaka Inn","Mishawaka","IN","Kimberly Hensley/Dan Verkuehlen","574-273-2309","Kimberly.Hensley@TMIHospitality.com;"]
["15108","B/W University Inn at Valparaiso","Valparaiso","IN","Dipti Patel","219-850-1100","dipti68@comcast.net; rohitp@comcast.net"]
["15110","B/W PLUS Covered Bridge Inn","Brazil","IN","Omar Zafrullah","812-420-2299","hoosierlodging@gmail.com"]
["15111","B/W PLUS Fort Wayne Inn & Suites North","Fort Wayne","IN","Mahesh Patel/Shaku","260-490-6060","msrn69@gmail.com; shaku69@gmail.com"]
["15112","B/W PLUS West I-64","New Albany","IN","Mary Elizabeth Collins/Sumeet Sethi","812-945-2771","sumeet.sethi@generalhospitalityservices.com"]
["15113","B/W PLUS French Lick Inn","French Lick","IN","Donavan Scott Crews/Beth Harry",null,"mpinvestors@hotmail.com;bharry@genhotels.com"]
["16032","B/W Starlite Village","Fort Dodge","IA","Greg Bocken, VM/ Troy Ficken","515-573-7177","troystar@frontiernet.net"]
["16040","B/W Metro North","Ankeny","IA",null,"515-964-1717"]
["16043","B/W Cantebury Inn & Suites","Coralville (Iowa City Area)","IA","AMISH PATEL","319-351-0400","16043@HOTEL.BESTWESTERN.COM"]
["16062","B/W Norseman Inn","Williams","IA","Linda Hovick, Owner","515-854-2281","16062@hotel.bestwestern.com"]
["16064","B/W La Grande Hacienda","Cherokee","IA","Mike Raja","712-225-5701","mikeraja@gmail.com"]
["16066","B/W Crossroads of the Bluffs","Council Bluffs (Omaha Area)","IA","Stephenie Anson","712-322-3150","stephenieanson@yahoo.com"]
["16071","B/W PLUS Longbranch Hotel & Convention Center","Cedar Rapids","IA","Kathy Luensman","319-377-6386","kkluensman@hotmail.com"]
["16073","B/W PLUS Dubuque Hotel & Conference Center","Dubuque","IA","Julie Witt","563-557-8000","jwitt@frontierinn.com"]
["16077","B/W PLUS Regency Inn","Marshalltown","IA","Maya Panchal","641-752-6321","mayamp@yahoo.com"]
["16081","B/W Holiday Lodge","Clear Lake","IA","Laurie Faught, GM","641-357-5253","E-Mail: lfaught@kinseth.com"]
["16083","B/W PLUS Steeplegate Inn","Davenport","IA","Jody Hamilton","563-386-6900","16083@hotel.bestwestern.com"]
["16085","B/W Fairfield Inn","Fairfield","IA","Carl Deeken - GM","641-472-2200","cdeeken@kinseth.com"]
["16096","B/W Cooper's Mill Hotel","Cedar Rapids","IA","Doug Delong - VM/Diane Mayer","319-366-5323","twixt2@aol.com"]
["16097","B/W PLUS Des Moines West Inn & Suites","Clive (Des Moines)","IA","Duane Hubbard","515-221-2345","dhubbardwork@gmail.com"]
["16099","B/W PLUS Pioneer Inn & Suites","Grinnell","IA","Mr. Jay Patel","641-236-6116","patelvij3@cdthotel.com"]
["16101","B/W PLUS University Park Inn & Suites","Ames","IA","Kevin Cook","515-296-2500","kccgm@qwest.net"]
["16103","B/W PLUS Altoona Inn","Altoona","IA","Kalpesh Patel","(515) 967-2400","kbspatel@gmail.com"]
["16104","B/W Mt. Pleasant Inn","Mount Pleasant","IA","Avik Amin","319-385-2102","aamotel@comcast.net; avika80@yahoo.com"]
["16105","B/W PLUS Independence Inn & Suites","Independence","IA","Sherri Vesterby","319-334-6400","s_vesterby@yahoo.com"]
["16106","B/W PLUS Cedar Falls Inn and Suites","Cedar Falls","IA","Atul Patel","319-277-2400","atuldesi@yahoo.com"]
["16107","B/W PLUS Omaha Airport Inn","Carter Lake","IA","Jagmohan Desai","402-505-4900","sdesai847@cox.net"]
["16108","B/W Newton Downtown","Newton","IA","Kyle Groves","641-792-3333","kyle@libertyhotelgroup.com"]
["17009","B/W Hospitality House","Emporia","KS",null,"620-342-7587"]
["17013","B/W PLUS Night Watchman Inn & Suites","Greensburg","KS","Brandy Nicholson/Ron Wright","(620) 723-2244","bwhh@cableone.net"]
["17075","B/W Holiday Manor","McPherson","KS","KYLE","620-241-5343","BWHOLIDAYMANOR@YAHOO.Com"]
["17080","B/W Angus Inn","Great Bend","KS","Lacy Bryan","620-792-3541","lbryan@bwangus.com"]
["17087","B/W Red Coach Inn","Newton","KS","Linda Dumler","316-283-9120","nbwlinda@yahoo.com"]
["17101","B/W Red Coach Inn","El Dorado","KS","John Pyle - GM","316-321-6900","17101@hotel.bestwestern.com"]
["17107","B/W Wichita North Hotel & Suites","Wichita","KS","Martiece Cook","316-832-9387","mcook@aemhotels.com"]
["17114","B/W Airport Inn & Conference Center","Wichita","KS","Jennifer","316-942-5600"]
["17115","B/W Topeka Inn & Suites","Topeka","KS","Ashuk Rughani","785-228-2223","rughani@prodigy.net"]
["17116","B/W Governors Inn & Suites","Wichita","KS","NEIL PATEL","316-522-0775","17116@hotel.bestwestern.com"]
["17117","B/W J. C. Inn","Junction City","KS","Jackie","785-210-1212","17117@hotel.bestwestern.com"]
["17118","B/W Parsons Inn","Parsons","KS","Alpesh Ghandi","620-423-0303","bestwestern101@yahoo.com"]
["17119","B/W Bricktown Lodge","Coffeyville","KS","Courtney Kennard- GM","620-251-3700","Courtney.kennard@gmail.com; hprop@totelcsi.com"]
["17120","B/W Lawrence","Lawrence","KS","Cindy Bonham","785-843-9100","bestwestern.gm@gmail.com"]
["17121","B/W Ottawa Inn","Ottawa","KS","Chris","785-242-2224"]
["17122","B/W Manhattan Inn","Manhattan","KS",null,"785-537-8300"]
["17124","B/W PLUS Wakeeney Inn & Suites","Wakeeney","KS","Chirag Patel - VM","785-743-2700","chiragkpatel@hotmail.com"]
["17126","B/W PLUS Country Inn & Suites","Dodge City","KS","Mr. Bill Cunningham","620-225-7378","kimbroys@yahoo.com"]
["17127","B/W Butterfield Inn","Hays","KS","Sabrina Symns","785-621-4337","17127@hotel.bestwestern.com,"]
["17128","B/W El-Quartelejo Inn & Suites","Scott City","KS","Richard Spencer/ Amanda","620-872-7373","ScottcityBW@yahoo.com; 17128@hotel.bestwestern.com"]
["17129","B/W PLUS Olathe Hotel & Suites","Olathe","KS","Shaunak Patel","913-444-9762","shaunak_g_patel@yahoo.com; bwolathehs@yahoo.com"]
["17130","B/W PLUS Eastgate Inn & Suites","Wichita","KS","Jason Madhu - GM/Owner","(316) 208-5146","jmadhu78@gmail.com"]
["17131","B/W PREMIER KC Speedway Inn & Suites","Kansas City","KS","Dilip G. Patel/Chirag Patel (Dilip's Son)","785 478-6851","dgpconstco@hotmail.com"]
["17132","B/W PLUS Midwest Inn & Suites","Salina","KS","Shelley Donaldson/Stephanie Ellison","785-493-9800","gm.ks128@choicehotels.com; stephan1e3382@yahoo.com"]
["17133","B/W Emerald Inn & Suites","Garden City","KS","Prahlad (PJ) Patel","620-277-7100","bwpemerald@gmail.com; nkwazi@hotmail.com"]
["17134","B/W PLUS Hiawatha Hotel","Hiawatha","KS","Raju Sheth","785-740-7000","sjd2602@gmail.com; raju@remotecompsystems.com"]
["17135","B/W TBD","Lenexa","KS","Jayesh Koshiya","816-221-1633","jaykoshiya@gmail.com"]
["17136","B/W PLUS Pratt","Pratt","KS","Shelley Shaw/Vishal Patel","620-508-6466","bwp_pratt@yahoo.com; hieguymon@gmail.com"]
["17137","B/W PLUS Ark City Inn","Arkansas City","KS","Jeff Walenta/Steven Martens","316-262-0000","jwalenta@martenscos.com; smartens@martenscos.com"]
["17138","B/W North Edge Inn","Dodge City","KS","William (Bill) Cunningham","620-371-6441","kimbroys@yahoo.com"]
["18012","B/W Kentucky Inn","Cave City","KY","Rita Patel - DN Patel","270-773-3161","18012@HOTEL.BESTWESTERN.COM"]
["18018","B/W Country Squire","Winchester","KY","Gina Shah - GM/Josh Shah","859-744-7210","ceobvm@yahoo.com"]
["18021","B/W PLUS South","Shepherdsville (Louisville Area)","KY","William Barns - Owner","502-543-7097","bargen1@windstream.net"]
["18028","B/W GreenTree Inn","Clarksville","KY","Wendy Stevens/Mr. Ignatius Netto","812-288-9281","inetto1@yahoo.com"]
["18051","B/W Shelbyville Lodge","Shelbyville","KY","Beverly Radcliff - GM","502-633-4400","18051@HOTEL.BESTWESTERN.COM"]
["18054","B/W Parkside Inn","Frankfort","KY","Melissa Parker (GM)/Mark Stone owner/VM","502-695-6111","marcstone@earthlink.net"]
["18056","B/W Hopkinsville","Hopkinsville","KY","Ellis Copeland, Onwer","270-886-9000","echo03@Bellsouth.net"]
["18058","B/W Campbellsville Inn","Campbellsville","KY","Jodi Mayo","270-465-7001","jodi_mayo@yahoo.com"]
["18062","B/W Corbin Inn","Corbin","KY",null,"606-528-2100"]
["18063","B/W Columbia","Columbia","KY","Mr. Jay Lad","270-384-9744","jaylad487@hotmail.com"]
["18068","B/W Wilderness Trail Inn","Barbourville","KY","Margret Bruce - GM","606-546-8500","18068@hotel.bestwestern.com; tdbatbw@aol.com"]
["18070","B/W Inn Florence","Florence","KY","Devesh Patel","859-525-0090","bestwesternflorence@gmail.com"]
["18075","B/W Paducah Inn","Paducah","KY","AJ Patel","270-443-2323","18075@hotel.bestwestern.com"]
["18080","B/W of Manchester","Manchester","KY","Quinn Bowling / Tommy Spurlock","606-598-1800","18080@hotel.bestwestern.com"]
["18082","B/W Holiday Plaza","Richmond","KY","Caren / Peter Shah","859-623-9220","holidayplaza@cs.com"]
["18084","B/W Franklin Inn","Franklin","KY","D.N, VM or Rita","270-598-0070","18084@hotel.bestwestern.com"]
["18085","B/W PLUS Georgetown Corporate Center Hotel","Georgetown","KY",null,"502-868-0055"]
["18086","B/W Albany Garden Inn","Albany","KY",null,"606-387-7238"]
["18087","B/W Executive Inn","Carrollton","KY","Dimple Patel","502-732-7027","dimpleses@hotmail.com"]
["18089","B/W River Cities","Ashland","KY","Jamie Blanton or Chuck Turvey","606-326-0357","gailcavender@hotmail.com"]
["18090","B/W PLUS Airport East/Expo Center","Louisville","KY","Shannon Acton - VM","502-456-4411","bestwestern18076@aol.com"]
["18091","B/W Paris Inn","Paris","KY","Dan Patel - GM/Marilyn","859-987-0779","18091@hotel.bestwestern.com;pateldan76@yahoo.com"]
["18092","B/W Ashbury Inn","La Grange","KY","Sonu Malhotra - VM/Dee","502-222-5500","dee.milburn@yahoo.com; sonu@ashburyinn.com"]
["18094","B/W University Inn","Murray","KY","Joanne / Kim Rust - VM","270-753-5353","krust@charterlodging.com"]
["18098","B/W Atrium Gardens","Elizabethtown","KY","STACI COFFEY","270-769-3030","staci.coffey@gmail.com"]
["18099","B/W Lawrenceburg Inn","Lawrenceburg","KY","Mark Stone Owner VM/Emily","502-839-3444","marcstone@earthlink.net"]
["18100","B/W PLUS Venture Inn","Central City","KY",null,"270-757-0222"]
["18103","B/W Louisville East","Louisville","KY","Angel Wolfe","502-499-0000","envoyadmin@earthlink.net"]
["18104","B/W Lexington Conference Center Hotel","Lexington","KY","Kim Thompson","859-263-5241","kim@lexso.com"]
["18105","B/W Mid-Town Inn & Suites","Somerset","KY","Donna Wright/Pice","606-677-9000","donnap_bw@yahoo.com"]
["18106","B/W PLUS Madisonville Inn","Madisonville","KY","Jackie Jones/ James Jones","270-821-2121","jackiejones_@hotmail.com"]
["18107","B/W PLUS Louisa","Louisa","KY","Marie Paulson/Lois Pauley","606-638-9601","meme_65@yahoo.com"]
["18108","B/W Lake Cumberland Inn","Monticello","KY","Dharmesh (Dale) Patel","606-340-8687","dale.patel@aol.com"]
["19010","B/W Northpark","Covington","LA",null,"985-892-2681"]
["19012","B/W Forest Inn","Franklin","LA","Gretchen Kuhlman- GM","337-828-1810","19012@HOTEL.BESTWESTERN.COM"]
["19024","B/W of Alexandria Inn & Suites","Alexandria","LA",null,"318-445-5530"]
["19028","B/W of Winnfield","Winnfield","LA","Tammy Roddy, GM","318-628-3993","bestwesternwinnfield@yahoo.com"]
["19044","B/W Delhi Inn","Delhi","LA","Rick Patel","318-878-5126","sital07@aol.com"]
["19045","B/W PLUS Westbank","Harvey","LA","Stephanie Flood","504-366-5369","stephanie@bestwesternwestbank.com"]
["19053","B/W Chateau","Shreveport","LA",null,"318-222-7620"]
["19054","B/W Chateau Louisiann","Baton Rouge","LA",null,"225-927-6700"]
["19062","B/W West Monroe Inn","West Monroe (Monroe Area)","LA","Mr. Ken Patel","318-322-9922","19062@hotel.bestwestern.com"]
["19063","B/W PLUS Landmark Hotel","Metairie (New Orleans Area)","LA","Rex Waller","504-888-9500","rex_waller@acihotels.com"]
["19065","B/W Winnsboro","Winnsboro","LA","Tina / Alan Patel","318-435-2000","ashokvanita@yahoo.com"]
["19066","B/W Eunice","Eunice","LA","DEDRA / ROY PATEL","337-457-2800","roypatel@sbcglobal.net"]
["19068","B/W PLUS Richmond Inn & Suites-Baton Rouge","Baton Rouge","LA",null,"225-924-6500"]
["19072","B/W Minden","Minden","LA","Dinesh Patel","318-377-1001","bestwesternminden@yahoo.com"]
["19073","B/W Airport Inn","Monroe","LA","Bharat Patel","318-345-4000","bharat_patel11@hotmail.com"]
["19075","B/W La Place Inn","La Place","LA","J.B. Burke","985-651-4000","jburke@cajunlodging.com"]
["19076","B/W Inn","Gonzales","LA","Laverne Kerr - GM","225-647-2001","bestwestern@brcoxmail.com"]
["19077","B/W Inn at Coushatta","Kinder","LA","John Edwards","337-738-4800","jedwards@amliberty.com"]
["19078","B/W Magnolia Manor","Port Allen (Baton Rouge Area)","LA","Mike Patel","225-344-3638","19078@hotel.bestwestern.com"]
["19079","B/W Plantation Inn","Donaldsonville","LA","Chad Armand (GM)","225-746-9050","19079@HOTEL.BESTWESTERN.COM"]
["19080","B/W Morgan City Inn & Suites","Morgan City","LA","Dade Vincent","985-385-9175","19080@HOTEL.BESTWESTERN.COM"]
["19081","B/W Hammond Inn & Suites","Hammond","LA","Brandy Prevost (Temp GM)","985-419-2001","kbutani@aol.com"]
["19082","B/W River Region Inn","Luling","LA","Judy Courville","985-331-0064","jcourville1962@yahoo.com"]
["19083","B/W Ville Platte","Ville Platte","LA","Brooke Childres","337-360-9961","19083@hotelbestwestern.com"]
["19085","B/W PLUS Houma Inn","Gray","LA","Ailin Dipucci","985-580-4300","19085@hotel.bestwestern.com"]
["19087","B/W PLUS French Quarter Landmark Hotel","New Orleans","LA","Gary Soileau","504-524-3333","gary_soileau@acihotels.com"]
["19088","B/W PLUS Slidell Inn","Slidell","LA",null,"985-781-5655"]
["19089","B/W North Inn & Suites","Bastrop","LA","Mr. Dipak Patel","318-556-2800","dipakpatel1@bellsouth.net"]
["19090","B/W Denham Springs Inn","Denham Springs","LA","Bob Patel - Owner or Raj","225-665-0222","bobpatel0222@aol.com"]
["19093","B/W PLUS Executive Hotel & Suites","Sulphur","LA","Ms. Tracy French","337-625-9000","gm@bwsulphur.com"]
["19094","B/W Bayou Inn","Westwego (New Orleans Area)","LA","Ken Williams - GM","504-304-7980","kennethrwilliams2003@yahoo.com"]
["19095","B/W PLUS St. Christopher Hotel","New Orleans","LA","Maria Figueroa","504-648-0444","gm@stchristopherhotel.com"]
["19096","B/W PLUS St. Charles Inn","New Orleans","LA","Melissa Albert","504-899-8888","malbert@stcharlesinn.net"]
["19098","B/W Zachary Inn","Zachary","LA","Ms. Caryln Tall","225-658-2550","zacharygm@yahoo.com"]
["19099","B/W Rayne Inn","Rayne","LA","Pesh Patel - VM","337-334-0060","kspesh@yahoo.com"]
["19100","B/W Isabelle Court","Galliano","LA","Vuong Nguyen; Brandy Guidry","985-325-3800","vuong_850@yahoo.com; blguidry@hotmail.com"]
["19101","B/W Stagecoach Inn","Leesville","LA","Wanda Collins","337-392-1672","19101@hotel.bestwestern.com"]
["19102","B/W Natchitoches Inn","Natchitoches","LA","Chris Sharplin","318-352-6655","cpsharplin@aol.com"]
["19103","B/W Plaquemine Inn","Plaquemine","LA","Ash Patel - Kenric Eames","225-385-4388","'bestwestern19103@gmail.com'"]
["19105","B/W PLUS DeRidder Inn & Suites","Deridder","LA","Sachin Patel","832-309-0483","spate39@tigers.lsu.edu"]
["19106","B/W Abbeville Inn & Suites","Abbeville","LA","Sunny Patel","337-580-2035","onlinesunny@yahoo.com"]
["19107","B/W St. Francisville Hotel","Saint Francisville","LA","Balubhai (Bob) Patel/Sunny Patel","225-329-7271","bpatel009@gmail.com; sunnypat.1976@hotmail.com"]
["19109","B/W PLUS DeSoto Inn & Suites","Mansfield","LA","Minesh Mistry/Vimal Patel","661-872-5306","govindhospitality@gmail.com"]
["19110","B/W Baymont Inn & Suites","Lafayette","LA","Neal Patel/D Patel (GM)","337-344-5862","gm.la136@yahoo.com"]
["19111","B/W PLUS Chalmette Hotel","Chalmette","LA","Joseph O'Connor/Danny Donham","504-309-6360","joe@bnmanagementco.com; odsr@bnmanagementco.com"]
["19112","B/W Oakdale Inn","Oakdale","LA","Ravi Patel/Nimesh Zavar/Ranjan Nilesh Patel","318-335-3155","bwoakdalela@live.com; gm.la136@yahoo.com"]
["19113","B/W Lake Charles Inn","Lake Charles","LA","Sharon Dennis/Jignesh (Jay) Patel","337-990-5325","patelji35@gmail.com; patelj35@gmail.com"]
["19114","B/W PLUS Vermillion River Suites Hotel","Lafayette","LA","Jolynn Becnel/Steve","337-235-1367","jolynn@hvyla.com"]
["19115","B/W Casino Inn","Vinton","LA","Jennifer Quinton","337-589-5628","gmbestwesternvinton@gmail.com"]
["20001","B/W White House Inn","Bangor","ME","LeeAnne Hawes - Mgr","207-862-3737","whitehouseinnbgr@aol.com"]
["20009","B/W Acadia Park Inn","Bar Harbor","ME","Marie","207-288-5823","maria.acadiaparkinn@gmail.com"]
["20015","B/W Merry Manor Inn","S. Portland","ME",null,"207-774-6151"]
["20020","B/W PLUS Freeport Inn","Freeport","ME","Seanu Anne","207-865-3106","info@freeportinn.com; seanu@freeportinn.com"]
["20022","B/W York Inn","York","ME","Robins Patel - GM","207-363-8903","20022@hotel.bestwestern.com"]
["20023","B/W PLUS Augusta Civic Center Inn","Augusta","ME","Jeff Howes","207-622-4751","jhowes@girihotels.com"]
["20024","B/W PLUS Grand Hotel","Waterville","ME","Karen Spaulding/Brian LeClair/Sagar Malavia","207-873-0111","bleclair@girihotels.com; smalavia@girihotels.com"]
["20025","B/W PLUS Brunswick Bath","Brunswick","ME","Tonya Dube","207-725-5251","tdube@girihotels.com"]
["21009","B/W PLUS Braddock Motor Inn","La Vale (Cumberland Area)","MD","Jay Desai","301-729-3300","traygaggu@yahoo.com"]
["21028","B/W PLUS Baltimore-Washington Airport","Elkridge","MD","Jim Starke","410-796-3300"]
["21029","B/W PLUS La Plata Inn","La Plata","MD","Sharon Richards","301-934-4900","srbwli@aol.com"]
["21035","B/W PLUS Hotel & Conference Ctr","Baltimore","MD",null,"410-633-9500"]
["21036","B/W St. Michaels Motor Inn","Saint Michaels","MD","Doug Remmell - GM","410-745-3333","dremmell@atlaticbb.net"]
["21038","B/W Capital Beltway","Lanham (Washington Area)","MD","Helen Hayes","301-459-1000","hhayes@yourdchotels.com; 21038@hotel.bestwestern.c"]
["21039","B/W PLUS Rockville Hotel & Suites","Rockville  (Washington Area)","MD","Jay Jefferson","301-424-4940","jay.jefferson@bwrockville.com"]
["21041","B/W Salisbury Plaza","Salisbury","MD","Marjorie Adams","410-546-1300","mgadams123@yahoo.com"]
["21044","B/W Annapolis","Annapolis","MD","Pat Kramer","410-224-2800","pkramer@tbchotels.com"]
["21045","B/W Westminster Catering & Conference Cr","Westminster","MD",null,"410-857-1900"]
["21046","B/W Denton Inn","Denton","MD","Jay Korat, GM","410-479-8400","jkorat@yahoo.com"]
["21047","B/W Ocean City Hotel & Suites","Ocean City","MD","Malcolm Vankirk - VM","443-664-4001","malcolmvankirk@yahoo.com"]
["21048","B/W Inn & Suites","North East","MD",null,"410-287-5450"]
["21049","B/W Kent Narrows Inn","Grasonville","MD",null,"410-827-6767"]
["21050","B/W Hagerstown MD","Hagerstown","MD",null,"301-733-0830"]
["21051","B/W Baltimore West","Baltimore","MD",null,"410-265-1400"]
["21052","B/W Historic Frederick","Frederick","MD","Raj Patel","301-695-6200","v3inc@yahoo.com"]
["21053","B/W PLUS Envy Hotel","Baltimore","MD","Robert Cropper","(410) 234-3670","ladtran@gmail.com; katie@tranempiregroup.com"]
["21054","B/W PLUS Towson Baltimore North Hotel & Suites","Towson","MD","Hitesh Patel/Dave C/Pat Larson","(410) 823-4410","davec@bmhg.net; hitesh@bmhg.net; plarson@bmhg.net"]
["21055","B/W PLUS Park Avenue Hotel","Leonardtown","MD","Heather Harrison/Neal Leva","301-475-3000","executiveinnparkave@yahoo.com"]
["21056","B/W PLUS College Park Hotel","College Park","MD","Vipul Patel","301-220-0505","vipul4@msn.com"]
["21057","B/W PLUS Easton Inn & Suites","Easton","MD","Brandee Diggs","410-822-7100","bsdiggs@gmail.com"]
["21058","B/W PLUS BWI Airport North Inn & Suites","Baltimore","MD","Chan Jin/Brian Pregeant","410-789-7223","Chan.jin@phd-hosp.com; trey.rich@bwplusbwi.com"]
["21059","B/W PLUS Washington I-95 Hotel/FedEx Field","Largo","MD","Jigar Mehta","301-499-4600","jigar@samaanacapital.com"]
["22009","B/W TLC Hotel","Waltham (Boston Area)","MA","Mr. Steve Holbrook","781-890-7800","sholbrook@lacavacompanies.com"]
["22024","B/W Royal Plaza Hotel & Trade Center","Marlborough (Boston Area)","MA","Susan / Mr. Richard Skinner","508-460-0700","rskinner@rplazahotels.com"]
["22025","B/W PLUS Hotel Tria","Cambridge","MA",null,"617-491-8000"]
["22029","B/W University Hotel-Boston/Brighton","Boston","MA","Ms. Rachel Kuhn","617-566-6260","Bwesternboston@aol.com"]
["22031","B/W PLUS Merrimack Valley","Haverhill","MA",null,"978-373-1511"]
["22040","B/W PLUS at Historic Concord","Concord","MA","Beth Sheldon - GM","978-369-6100","bsheldon@bestwesternconcord.com"]
["22041","B/W Adams Inn","Quincy (Boston Area)","MA","Tom / Robert (Bob) Gallighan","617-328-1500","tgalvin@bwadamsinn.com; bleaver@bwadamsinn.com"]
["22042","B/W PLUS Chelmsford Inn","Chelmsford (Lowell Area)","MA","Margie O'Connor - GM","978-256-7511","mocbwc@aol.com"]
["22046","B/W PLUS Roundhouse Suites","Boston","MA","Eddie Waldo","617-989-1000","roundhousegm@wnwhospitality.com"]
["22047","B/W Framingham","Framingham","MA","Brian Kilgallen","508-872-8811","bwframingham@aol.com"]
["22050","B/W PLUS Cold Spring","Plymouth","MA","Tom Jaeger","508-746-2222","tom@bwcoldspring.com; kim@bwcoldspring.com"]
["22055","B/W Dartmouth Inn","N. Dartmouth","MA","Nirv Patel","508-717-0424","nirv@grovelandhospitality.com"]
["22056","B/W Rockland","Rockland","MA"," Devesh Karani","781-871-5660","dkarani@jitenhm.com"]
["22057","B/W PLUS New Englander","Woburn","MA",null,"781-935-8160"]
["22058","B/W PLUS Providence-Seekonk Inn","Seekonk","MA","Mr. Sam Patel","508-336-4927","patelatmass@hotmail.com"]
["22060","B/W Berkshire Hills Inn & Suites","Pittsfield","MA","Mauer Desai","413-442-8714","m1desai@yahoo.com"]
["22061","B/W The Inn at Sharon/Foxboro","Sharon","MA","Christine Moynihan","781-784-1000","bwsharon@nantucketcos.com"]
["22062","B/W Springfield","West Springfield","MA","Neesha Patel/Natu Patel","413-785-5365","neeshapatel732@yahoo.com; natukinapatel@yahoo.com"]
["23022","B/W Pioneer Inn & Suites","Escanaba","MI","Crystal","906-786-0602","23022@hotel.bestwestern.com"]
["23043","B/W Four Seasons","Traverse City","MI",null,"231-946-8424"]
["23044","B/W of Alpena","Alpena","MI","Nanette Ruddy, GM","989-356-9087","ruddyna@hotmail.com"]
["23059","B/W Sault Ste. Marie","Sault Sainte Marie","MI","Patti Paris","906-632-2170","ssmhiexpress@yahoo.com"]
["23062","B/W Beacon Inn","Grand Haven","MI",null,"616-842-4720"]
["23078","B/W River Terrace","Cheboygan","MI","Adam Schulz","231-627-5688","adamschulz@hotmail.com"]
["23085","B/W Woodhaven Inn","Woodhaven (Detroit Area)","MI","David Balch","734-676-8000","dbalch01@yahoo.com"]
["23087","B/W Inn","Mount Pleasnt","MI",null,"989-772-1101"]
["23089","B/W Greenfield Inn","Allen Park (Detroit-Dearborn)","MI","Valerie Schlicht","313-271-1600","vsbwgi@hotmail.com"]
["23090","B/W of Howell","Howell","MI","Nick Patel","517-548-2900","BWHNICK@YAHOO.COM"]
["23093","B/W Lapeer Inn","Lapeer","MI",null,"810-667-9444"]
["23094","B/W of Hartland","Hartland","MI","Pauline Mcnutt","810-632-7177","23094@HOTEL.BESTWESTERN.COM"]
["23095","B/W of Whitmore Lake","Whitmore Lake","MI","Jim Ayar, GM / Arvin Ayar","734-449-2058","23095@hotel.bestwestern.com"]
["23098","B/W PLUS Dockside Waterfront Inn","Mackinaw City","MI","Brandon / Enzo / Joe Lieghio","231-436-5001","bestwesterndockside63@yahoo.com"]
["23100","B/W PLUS Sterling Inn","Sterling Heights (Detroit Area)","MI","Vic Martin","586-979-1400","vic@sterlinginn.com"]
["23113","B/W Country Inn","Ishpeming (Marquette Area)","MI","Karl J Lehmann - GM","906-485-6345","inncountry1@aol.com;kjlehmann@aol.com"]
["23114","B/W of Harbor Springs","Harbor Springs","MI","Mike or Laura Erxleben","231-347-9050","bw_hs@yahoo.com"]
["23117","B/W Valley Plaza Inn","Midland","MI",null,"989-496-2700"]
["23120","B/W Laurel Park Suites","Livonia (Detroit Area)","MI","Victor Savay","734-464-0050","Vsavaya@msn.com"]
["23127","B/W of Birch Run/Frankenmuth","Birch Run (Frankenmuth Area)","MI","Michele Fent/ Tyler","989-624-9395","michele_bw@live.com"]
["23145","B/W PLUS Georgian Inn","Roseville (Detroit Area)","MI","Rita Jajjoka, GM","586-294-0400","rjajjoka@msn.com"]
["23154","B/W PLUS Harbour Pointe Lakefront","St. Ignace","MI",null,"906-643-6000"]
["23155","B/W Plaza Hotel Saugatuck","Saugatuck","MI","Peter Patel","269-857-7178","23155@hotel.bestwestern.com"]
["23156","B/W Port Huron/Hospitality Inn","Port Huron","MI","Akram Namou or Khalid - GM","810-987-1600","23156@hotel.bestwestern.com"]
["23157","B/W Executive Inn","Battle Creek","MI",null,"269-979-8506"]
["23159","B/W Scenic Hill Resort","Beulah","MI",null,"231-882-7754"]
["23161","B/W Hospitality Hotel & Suites","Grand Rapids","MI","Audrey Tensen","616-949-8400","bestwesterngm@grandhospitality.net"]
["23162","B/W Splash Park Inn","Ludington","MI","Josh Thomas","231-843-2140","josh@bestwesternludington.com"]
["23163","B/W PLUS Kalamazoo Suites","Kalamazoo","MI","Raj Bhatti / Amarjit Bhatti","269-532-4021","bhattiraj@hotmail.com"]
["23164","B/W PLUS Lansing Hotel","Lansing","MI","Michelle (Wyatt) Keirns/Tyler Mainville","517-694-8123","Causeway8888@yahoo.com"]
["23165","B/W Executive Inn & Suites","Wyoming","MI","Joanne Batson","616-246-6612","j.batson@gmail.com"]
["23166","B/W PLUS Coldwater Hotel","Coldwater","MI","Sherrill Sears","517-279-0900","searss@gfhotels.com"]
["23167","B/W Davison Inn","Davison","MI","Cathy Newell","810-658-2700","bestwesterndavison@hotmail.com;"]
["23168","B/W PLUS Holland Inn & Suites","Holland","MI","Nick Patel","616-994-0400","hotelres85@gmail.com"]
["24004","B/W Downtown Motel","Duluth","MN","Doug Petrin,GM","218-727-6851","bestwesternbridgeview@zmchotels.com"]
["24054","B/W PLUS Holland House","Detroit Lakes","MN","Mr. Scott Melhaff","218-847-4483","Hollandlodge@lakesnet.net"]
["24063","B/W PLUS Superior Inn & Suites","Grand Marais","MN","Chuck Winters","218-387-2240","bwsuperiorinn@boreal.org"]
["24091","B/W PLUS The Normandy Inn & Suites","Minneapolis","MN","John Tomars / Mike Noble","612-370-1400","mnoble@bestwesternnormandy.com"]
["24099","B/W PLUS Dakota Ridge","Eagan","MN",null,"651-452-0100"]
["24100","B/W PLUS Hotel & Restaurant","North Mankato","MN",null,"507-625-9333"]
["24104","B/W PLUS Kelly Inn","Saint Paul","MN","Brian Fannemel","651-227-8711","bfannemel@kellyinns.com"]
["24107","B/W Quiet House & Suites","Red Wing","MN",null,"651-388-1577"]
["24112","B/W PLUS Kelly Inn","Plymouth (Minneapolis Area)","MN","John Nygaard","763-553-1600","jnygaard@kellyinns.com"]
["24113","B/W PLUS Kelly Inn","Saint Cloud","MN",null,"320-253-0606"]
["24115","B/W Bemidji Inn","Bemidji","MN","Jake Desanto - VM (Manager)","218-751-0390","Jakedesanto@hotmail.com"]
["24116","B/W The Falls Inn & Suites","Fergus Falls","MN","Tom Larson - GM","218-739-2211","bigwood@prtel.com"]
["24124","B/W PLUS White Bear Country Inn","White Bear Lake","MN",null,"651-429-5393"]
["24126","B/W Eden Prairie Inn","Eden Prairie","MN",null,"952-829-0888"]
["24127","B/W Chelsea Inn & Suites","Monticello","MN","Perry Sloneker","763-271-8880","pdsloneker@aol.com"]
["24130","B/W Bandana Square","Saint Paul","MN","Brian","651-647-1637"]
["24131","B/W Regency Plaza Hotel - St. Paul East","Oakdale","MN","Suresh Bhakta/Heather -GM","507-382-4691- Suresh's Cell","sureshbhakta@hotmail.com"]
["24132","B/W PLUS Bloomington Hotel","Bloomington","MN","Chris Moberg","952-854-8200","cmoberg@bestwesternbloomington.com"]
["24133","B/W PLUS Shakopee Inn","Shakopee","MN","Haren Schroff","952-445-9779","bestwesthotel@gmail.com"]
["24134","B/W PLUS Albert Lea I-90/I-35 Hotel","Albert Lea","MN","Robert  (Bob) Adams/Julie Sternhagen","507-373-4000","rjadams33@hotmail.com"]
["24135","B/W Alexandria Inn","Alexandria","MN","Divyesh Bhakta","320-762-5161","nansad81@yahoo.com"]
["24136","B/W PREMIER Nicollet Inn","Burnsville","MN","Bernie Mullen","952-435-2100","bmullen@blithehotels.com"]
["24137","B/W PLUS Coon Rapids North Metro Hotel","Coon Rapids","MN","Mary Tourville-Phillips","763-576-0700","percypooniwala@hotmail.com / firuzimehta@yahoo.com"]
["24138","B/W PREMIER The Lodge on Lake Detroit","Detroit Lakes","MN","Chris Holland/Kristie Fritz","218-847-8439","kristief@thelodgeonlakedetroit.com"]
["24139","B/W PLUS Willmar","Willmar","MN","David Feist GM","320-235-6060","gm@willmarhotels.com"]
["24140","B/W PLUS Minneapolis-North","Brooklyn Center","MN","Gary Singh","763-566-7500","shergillgary1@gmail.com"]
["24141","B/W PLUS Spirit Mountain Duluth","Proctor","MN","Deanna Gregorich","218-628-0668","deanna.gregorich@gmail.com"]
["24142","B/W PLUS New Ulm","New Ulm","MN","Rick Neumann","507-359-9241","gm@hinewulm.com"]
["24143","B/W PLUS North St. Paul/Shoreview","Shoreview","MN","Joel Vogler/Thomas Torgerson","651-482-0402","tom@tpimn.com"]
["24144","B/W PLUS Blaine Hotel","Blaine","MN","Upjit Sachdeva/Amar (son)","763-792-0750","jeety@jeetytrading.com; amar@jeetytrading.com"]
["25008","B/W PLUS Oak Manor","Biloxi","MS","Ms. Lori Depauw","228-435-4331","oakmanorbiloxi@aol.com"]
["25049","B/W PLUS Seaway Inn","Gulfport (Biloxi Area)","MS","Rosie Lobe","228-864-0050","25049@hotel.bestwestern.com"]
["25055","B/W Flagship Inn","Moss Point","MS","Tracy Wilkerson","228-475-5000","twilk3rson@yahoo.com"]
["25059","B/W Vicksburg Inn","Vicksburg","MS",null,"601-636-5800"]
["25060","B/W Airport Inn","Pearl","MS",null,"601-936-2060"]
["25064","B/W Executive Suites","Columbus","MS","Jay Patel - Owner","662-329-2255","jaycrown@aol.com"]
["25067","B/W PLUS Cypress Creek","Biloxi","MS","SASHI GABRIEL","228-875-7111","BWBILOXI@AOL.COM"]
["25071","B/W Woodstone","Wiggins","MS","NARENDRA PATEL/Stephanie Jones","601-928-1616","25071@HOTEL.BESTWESTERN.COM"]
["25072","B/W Canton Inn","Canton","MS","Manny Patel (VM) / Pat Patel","601-859-8600","25072@hotel.bestwestern.com; patelpat@gmail.com"]
["25076","B/W Executive Inn","Jackson","MS","Mr. Henry Patel","601-969-6555","bwexecutive@hotmail.com"]
["25077","B/W Gateway Inn","Yazoo City","MS","Pete Patel","662-716-0930","bwyazoo@bellsouth.net"]
["25078","B/W Ellisville Inn","Ellisville","MS","RAY PATEL","601-477-8082","25078@HOTEL.BESTWESTERN.COM"]
["25079","B/W Tunica Resort","Tunica Resorts","MS","Bob Hobe - GM","662-363-6711","hobie022@aol.com; ronpatel1972@yahoo.com"]
["25081","B/W Ripley","Ripley","MS","Gail Cavender/Paulette (MNGR)","662-837-0002","gailcavender@hotmail.com"]
["25083","B/W Greenwood","Greenwood","MS","Mr. Kenny Narwani","662-455-5777","eminent@bellsouth.net"]
["25087","B/W Ridgeland Inn","Clinton","MS","Vijay Patel","601-926-4323","BWCLINTONMS@YAHOO.COM"]
["25089","B/W Blues Traveler Inn","Indianola","MS","Jay Sinojia - VM/Owner","662-887-6611","jsinojia@gmail.com"]
["25090","B/W Richland Inn & Suites","Richland","MS","Harish Patel","601-936-7004","PatelHarishkathy@yahoo.com"]
["25091","B/W PLUS McComb Inn & Suites","McComb","MS","Sherron Tullos","601-249-4300","25091@hotel.bestwestern.com"]
["25093","B/W PLUS Flowood Inn & Suites","Flowood","MS","Minal Patel","(601) 420-4944","minal@netdoor.com"]
["25094","B/W PLUS Olive Branch Hotel & Suites","Olive Branch","MS","Mr. Rohan Patel","(662) 892-2680","25094@hotel.bestwestern.com"]
["25095","B/W River Inn","Natchez","MS","PC Patel","(601) 442-1995","bpatelhotels@hotmail.com"]
["25096","B/W PLUS Goodman Inn & Suites","Horn Lake","MS","Nilesh (Nil) Patel","662-510-6999","bwhornlake@yahoo.com"]
["25098","B/W Laurel Inn","Laurel","MS","Bharat Patel/Chirag Patel","601-425-4455","bpatelhotels@hotmail.com"]
["25099","B/W PLUS Tupelo Inn & Suites","Tupelo","MS","Jim Barnett","662-574-9695","gm@bwtupelo.com"]
["25103","B/W PLUS Magee Inn and Suites","Magee","MS","Tracy/Minal Patel","601-876-3535","minal@netdoor.com"]
["25104","B/W PREMIER University Inn","Hattiesburg","MS","Bharat B Patel",null,"bpatelhotels@hotmail.com"]
["26032","B/W PLUS Coach House","Springfield","MO","Jerry Turner","417-862-0701","jerry@elliottlodging.com"]
["26033","B/W Route 66 Rail Haven","Springfield","MO","Mr. Gordon Elliot","417-866-1963","26033@hotel.bestwestern.com"]
["26059","B/W Montis","Saint Robert","MO",null,"573-336-4299"]
["26065","B/W Coachlight","Rolla","MO",null,"573-341-2511"]
["26066","B/W PLUS Landing View Inn & Suites","Branson","MO","Jeff Fergen - DALE REPLOGLE","417-334-6464","DALE@ELLIOTLODGING.COM"]
["26077","B/W Wyota Inn","Lebanon","MO","Jerry Powell","417-532-6171","rrcd73@earthlink.net"]
["26079","B/W State Fair Inn","Sedalia","MO","Tom Aderman","660-826-6100","bestwesternsedalia@charterinternet.com"]
["26081","B/W Branson Inn & Conf. Ctr","Branson","MO","Tom Gdovin","417-338-2141","gdovint@suddenlink.net"]
["26084","B/W Center Pointe Inn","Branson","MO","Mr. Jon Hollaway","417-334-1894","26084@hotel.bestwestern.com"]
["26112","B/W Cuba Inn","Cuba","MO","Gita Patel, GM","573-885-7707","26112@HOTEL.BESTWESTERN.COM"]
["26134","B/W Country Inn - North","Kansas City","MO","Chris Patel - GM","816-459-7222","Kau23shik@yahoo.com"]
["26139","B/W Music Capital Inn","Branson","MO","Sue Gordy","417-334-8378","26139@hotel.bestwestern.com"]
["26140","B/W Kirkwood Inn","Saint Louis","MO","Cindy Brasseur","314-821-3950","clbrasseur@yahoo.com"]
["26141","B/W Precious Moments Hotel","Carthage","MO","Anthea Harbin","417-359-5900","anthea.harbin@yahoo.com"]
["26149","B/W Big Spring Lodge","Neosho","MO","Anna/Beth Andrews","417-455-2300","beth's - lena7777andrews@yahoo.com"]
["26150","B/W Brookfield","Brookfield","MO","Mary Smith","660-258-4900","26150@hotel.bestwestern.com"]
["26153","B/W Oasis Inn & Suites","Joplin","MO","Becky Crum","417-781-6776","bill@elliottlodging.com"]
["26156","B/W Airport Inn","Platte City","MO","Eric Elam","816-858-0200","bestwesternkci@gmail.com"]
["26157","B/W Truman Inn","Independence","MO","Regena Reynolds","816-254-0100","Reservations@bwtrumaninn.com"]
["26158","B/W PLUS Seville Plaza Hotel","Kansas City","MO","Laurie Loethen","816-561-9600","lloethen@kcplazahotels.com"]
["26163","B/W St. Louis Inn","Saint Louis","MO","Raj","314-416-7639"]
["26164","B/W PLUS Capital Inn","Jefferson City","MO","Mr. Dale Gerstner","573-635-4175\tHotel","gerstnerbw@aol.com"]
["26165","B/W Teal Lake Inn","Mexico","MO","Nash Ahmed","573-582-0700","nash1969@gmail.com"]
["26167","B/W PLUS On the River","Hannibal","MO","Grace Dyer / Aswin Patel","573-248-1150","cgdier@sbcglobal.net"]
["26168","B/W Shalimar Plaza Hotel & Conference Center","Festus","MO","Dave Stoll / Betty","636-937-0700","gm@hiexfestus.com"]
["26169","B/W PLUS Kansas City Airport Hotel","Kansas city","MO","Ashish Patel","816-891-9111","ashish@kcibestwestern.com"]
["26170","B/W PLUS Springfield Airport Inn","Springfield","MO","Andrew/Harshad kumar Patel","417-799-2200","ramadaltdspringfieldmo@gmail.com"]
["26171","B/W PLUS Saint Charles Inn","Saint Charles","MO","Mike Galer","636-946-6936","mgaler@bridgetonholdings.com"]
["26173","B/W PLUS Sikeston","Sikeston","MO","Miles Muckala/Paul Williams","573-481-9500","MilesMuckala@gmail.com; pww79@hotmail.com"]
["26174","B/W PLUS Washington Hotel","Washington","MO","Andy Patel/Nitel Patel.","636-390-8877","nitenpatel@hotmail.com; 26174@hotel.bestwestern.co"]
["26175","B/W PLUS Columbia Inn","Columbia","MO","George Pate","573-619-3233","george@patehotels.com"]
["26176","B/W Mt. Vernon Inn","Mount Vernon","MO","Umesh Patel/Mike","417-461-0230","tejumesh@yahoo.com"]
["26177","B/W TBD","Fulton","MO","Mary Banmiller/Mark Baker","573-642-2600","mbanmiller@woilco.com; mbaker@woilco.com"]
["27002","B/W PLUS Clocktower Inn","Billings","MT","Steve Wahrlich","406-259-5511","sw@bwclocktowerinn.com"]
["27013","B/W Desert Inn","West Yellowstone","MT","Anna Stallings","406-646-7376","desertinn@wyellowstone.com; danivoros@msn.com"]
["27023","B/W War Bonnet Inn","Miles City","MT","Ms Hamel Trivedi","406-234-4560","trivedi627@yahoo.com"]
["27027","B/W Paradise Inn","Dillon","MT","Scott Litchfield, Corp Office","406-683-4214","paradise@crystalpeaks.com"]
["27029","B/W PLUS Heritage Inn","Great Falls","MT","Ron Spence","406-761-1900","rspence@vcn.com"]
["27042","B/W Weston Inn","West Yellowstone","MT",null,"406-646-7373"]
["27059","B/W PLUS By Mammoth Hot Springs","Gardiner","MT","Ms. Deborah Mackey","406-848-7311","27059@hotel.bestwestern.com"]
["27063","B/W Cross-Winds Motor Inn","West Yellowstone","MT","Anna Stallings, GM","406-646-9557","27063@hotel.bestwestern.com; danivoros@msn.com"]
["27064","B/W PLUS GranTree Inn","Bozeman","MT","Mr. Carl Solvie","406-587-5261","carl@montana.com"]
["27065","B/W PLUS Butte Plaza Inn","Butte","MT","Ms. Amber Wood-Jenson","406-494-3500"," amber@butteplazainn.com"]
["27067","B/W PLUS KwaTaqNuk Resort","Polson","MT","Scott Dupuis","406-883-3636","scottd@csktgaming.com"]
["27068","B/W Rocky Mountain Lodge","Whitefish (Kalispell Area)","MT","Mr. Dennis Drumheller","406-862-2569","dennis@rockymtnlodge.com"]
["27071","B/W PLUS Grant Creek Inn","Missoula","MT","Ms Lucy Weeder  and Whitney Kembell","406-543-0700","grantcreek@montana.com;"]
["27073","B/W PLUS Great Northern Inn","Havre","MT","Becky Miller","406-265-4200","27073@hotel.bestwestern.com"]
["27075","B/W PREMIER Helena Great Northern Hotel","Helena","MT",null,"406-457-5500"]
["27076","B/W PLUS Flathead Lake Inn and Suites","Kalispell","MT","Myda Carter - GM","406-857-2400","myda@cpaz.net"]
["27077","B/W Yellowstone Crossing","Laurel","MT",null,"406-628-6888"]
["27078","B/W PLUS Kelly Inn & Suites","Billings","MT","Joyce Bratland","406-256-9400"]
["27079","B/W PLUS Golden Prairie Inn & Suites","Sindey","MT","Amber Wood-Jensen/Bryce Baker/Herbert Leuprecht","406-433-4560","herb@butteplazainn.com; amber@butteplazainn.com"]
["27080","B/W Shelby Inn & Suites","Shelby","MT","Amber Wood Jensen/Realene Fredenberg","(406) 424-4560","amber@butteplazainn.com"]
["27081","B/W PLUS Havre Inn & Suites","Havre","MT","Becky Miller","No phone number yet","27073@hotel.bestwestern.com"]
["28047","B/W White House Inn","Bellevue (Omaha Area South)","NE","Dick Moser","402-293-1600","dickmoser@cox.net"]
["28054","B/W West Hills Inn","Chadron","NE","Matt Reeves, GM","308-432-3305","28054@HOTEL.BESTWESTERN.COM"]
["28064","B/W Nebraska City Inn","Nebraska City","NE","Beth Osborn GM","402-873-7000","bw28064@yahoo.com"]
["28065","B/W Settle Inn","Omaha","NE","Maya Panchal","402-431-1246","mayampanchal@gmail.com"]
["28067","B/W PLUS Kelly Inn","Omaha","NE","Blair Riffel","402-339-7400","briffel@kellyinns.com"]
["28070","B/W PLUS Mid Nebraska Inn & Suites","Kearney","NE","Kelly Krier / Benjamin Holl","308-234-2541","benholl@gmail.com ; kelly@kearneyaccommodations.co"]
["28071","B/W PLUS Grand Island Inn & Suites","Grand Island","NE","Gene  McCloud /Matt Ripp","308-381-8855","m_ripp@msn.com"]
["28072","B/W PLUS Sidney Lodge","Sidney","NE","Amber Talich/Jennifer Merrill","308-254-0100","jmerrill.twc@gwtc.net; sidney.ne@americinn.com"]
["28073","B/W PLUS York Hotel & Conference Center","York","NE","Dawn/Bill Hooks","402-362-6661","bhooks@concordei.com"]
["28074","B/W PLUS North Platte Inn","North Platte","NE","Mark Wilkinson","308-534-3120","mark@wilkco.com"]
["29047","B/W Hi-Desert Inn","Tonopah","NV",null,"775-482-3511"]
["29049","B/W PLUS Airport Plaza Hotel","Reno","NV","Ed Mulheron","775-348-6370","emulheron@airportplaza.net"]
["29058","B/W McCarran Inn","Las Vegas","NV","Dave Bazan","702-798-5530","mccarraninn@earthlink.net"]
["29067","B/W PLUS Gold Country Inn","Winnemucca","NV","Terry Boyle - Owner","775-623-6999","tboyle@redlionwinn.com"]
["29069","B/W Fernley","Fernley","NV",null,"775-575-6776"]
["29071","B/W Fallon Inn & Suites","Fallon","NV","Dana Reed","775-423-6005","bwfallon@live.com"]
["29078","B/W Pahrump Station","Pahrump","NV","Lorraine","775-727-5100","jokestermont@aol.com"]
["29081","B/W Topaz Lake Inn","Gardnerville (Topaz Lake Area)","NV","Shyam Patel, Owner/GM","775-266-4661","29081@hotel.bestwestern.com"]
["29082","B/W Mesquite Inn","Mesquite","NV","Misty Buchhalter","702-346-7444","29082@hotel.bestwestern.com"]
["29083","B/W Elko Gold Mine","Elko","NV","Scott Nadel/Mr. Bawa Dhillon","775-738-8787","jag@dmchotels.com; ahofstetter@dmchotels.com"]
["29084","B/W PLUS Las Vegas West","Las vegas","NV","Pamela Cavero","702-256-3766","pamela@finehospitality.com"]
["29085","B/W PLUS Henderson Hotel","Henderson","NV","Stephen Kibe","702-564-9200","stephen.kibe@thehendersonhotel.com"]
["29086","B/W PLUS North Las Vegas","N. Las Vegas","NV","Daryl Sorbo","702-649-3000","daryl@finehospitality.com"]
["29087","B/W Casino Royale","Las Vegas","NV","Betsy Bracken/Thomas Martinez","702-737-3500","tm@casinoroyalehotel.com; bb@casinoroyalehotel.com"]
["29088","B/W PLUS St. Rose Pkwy Hotel/Las Vegas South","Henderson","NV","Ms. Laurel Gaylor","702-568-0027","gaylorll@cox.net"]
["30017","B/W PLUS Sovereign Hotel","Keene","NH","Walter Goodnow - GM","603-357-3038","bw.keene@jamsanhotels.com"]
["30020","B/W PLUS Executive Court Inn & Conf. Ctr","Manchester","NH",null,"603-627-2525"]
["30021","B/W Concord Inn & Suites","Concord","NH","Ashok Patel","603-228-4300","apatel@jamsanhotels.com"]
["30022","B/W Silver Fox Inn","Waterville Valley","NH","Tor Brunvand - GM/ ALL/Marlene Uhlman","603-236-3699","wvlodges@together.net;INFO@RESORTCONDORENTALS.COM"]
["30023","B/W PLUS Wynwood Hotel & Suites","Portsmouth","NH","Fred Bailey /Jane Dodge - GM","603-436-7600","jdodge@wynwoodportsmouth.com"]
["30025","B/W White Mountain Inn","Franconia","NH",null,"603-823-7422"]
["30026","B/W PLUS The Inn at Hampton","Hampton","NH","Alissa /Jamie Mulley","603-926-6771","Alissa@theinnofhampton.com"]
["31007","B/W Westfield Inn","Westfield","NJ",null,"908-654-5600"]
["31012","B/W Burlington Inn","Mount Holly (Burlington Area)","NJ","Sherri/Penny Thompson","609-261-3800","penny.thompson@dhotelgroup.com;"]
["31015","B/W LEISURE INN","Lakewood","NJ","Joe Hadden / Jim Jabara  (GM)","732-367-0900","jimjabara@bestwesternlakewood.com"]
["31016","B/W PLUS Morristown Inn","Morristown","NJ",null,"973-540-1700"]
["31028","B/W Bordentown Inn","Bordentown (Trenton Area)","NJ","Bob Bhagat","609-298-8000","b.bhagat@comcast.com"]
["31029","B/W PLUS Murray Hill Inn","New Providence","NJ","Donna M","908-665-9200"]
["31033","B/W PLUS Fairfield Executive Inn","Fairfield","NJ",null,"973-575-7700"]
["31044","B/W Envoy Inn","Atlantic City","NJ","Sunil Pillay, GM","609-344-7116","sunilpillay@aol.com"]
["31046","B/W West Deptford Inn","Thorofare (Philadelphia Area)","NJ","Dan Chycota","856-848-4111"]
["31047","B/W Fort Lee","Fort Lee (New York City, NY Area)","NJ","Fitzroy Grizzle","201-461-7000","fortleegm@wnwhospitality.com"]
["31048","B/W Garden State Inn","Absecon (Atlantic City Area)","NJ","Kumal Kalaria","609-645-0697","kalarias@aol.com"]
["31049","B/W PLUS Newark Airport West","Newark","NJ","Ravi Patel","973-621-6200","ravipatel@bwnewark.com"]
["31050","B/W The Inn at Ramsey","Ramsey","NJ","Greg Wolf - GM","201-327-6700","bwinnatramsey@aol.com"]
["31051","B/W PLUS Atlantic City West Extended Stay & Suites","Pleasantville (Atlantic City Area)","NJ","Rachel Ludwig","609-646-5515","rachelhludwig@gmail.com; rachel@bwextendedstay.com"]
["31054","B/W The Garden Executive Hotel","South Plainfield","NJ",null,"908-561-4488"]
["31056","B/W Princeton Manor Inn & Suites","Monmouth Junction (Princeton Area)","NJ","Surenda","732-329-4555"]
["31060","B/W Riverview inn","Rahway","NJ","Kenneth Lisi GM","732-381-7650","Klisi6@hotmail.com"]
["31061","B/W Monroe Inn & Suites","Williamstown","NJ",null,"856-340-7900"]
["31062","B/W PLUS Turtle Brook Inn","West Orange","NJ","Mr. Brian Cassara","973-731-5300","TBROOK555@aol.com"]
["31064","B/W New Brunswick","East Brunswick","NJ",null,"732-238-4900"]
["31065","B/W PLUS Regency House Hotel","Pompton Plains","NJ","FALGUNI PATEL","973-696-0900","falguni.patel@bwrhh.com"]
["31066","B/W Hazlet Inn","Hazlet","NJ",null,"732-888-2800"]
["31067","B/W PLUS Robert Treat Hotel","Newark","NJ","Shaw Dean","973-622-1000","SDEEN@RTHOTEL.COM"]
["31068","B/W PREMIER Lincoln Tunnel Hotel","North Bergen","NJ","Mohammed/Tansukh (Dan) Suratwala","(718) 392-8400","bubojee@yahoo.com; hojonew@aol.com"]
["32036","B/W El Rancho Palacio","Roswell","NM","Mike Patel, Owner / May Dingman Op. Mgr","575-622-2721","Mpatel2094@msn.com"]
["32038","B/W Mission Inn","Las Cruces","NM","Mr. Hanuman Patel","505-524-8591","32038@hotel.bestwestern.com"]
["32056","B/W Stevens Inn","Carlsbad","NM","Kim Bryson / Bobby  Forest - GM","575-887-2851","32056@hotel.bestwestern.com"]
["32062","B/W PLUS Sally Port Inn & Suites","Roswell","NM",null,"575-622-6430"]
["32066","B/W InnSuites Hotel & Suites","Albuquerque","NM","Paul Green","505-242-7022","pgreen@innsuites.com"]
["32074","B/W Pecos Inn","Artesia","NM","Sandy Johnson","575-748-3324","sandyk@pvtnetworks.net"]
["32076","B/W Discovery Inn","Tucumcari","NM",null,"505-461-4884"]
["32082","B/W Western Skies Inn","Lordsburg","NM","TJ Patel - GM","575-542-8807","westernskies@aznex.net ; tejash26in@yahoo.com"]
["32088","B/W Mimbres Valley Inn","Deming","NM","Mr. Ritesh Patel","575-546-4544","ritsvasar@gmail.com"]
["32090","B/W PLUS Rio Grande Inn","Albuquerque","NM","Rebecca Plutino, Mgr","505-843-9500","gm@riograndeinn.com"]
["32091","B/W Santa Rosa Inn","Santa Rosa","NM","Nat Patel","575-472-5877","jp13508@aol.com"]
["32093","B/W Kokopelli Lodge","Clayton","NM",null,"505-374-2589"]
["32095","B/W PLUS Inn of Santa Fe","Santa Fe","NM","Dave Wollman","505-438-3822","dwollman@kellyinns.com"]
["32097","B/W PLUS Executive Suites","Albuquerque","NM","Brad","505-830-0900","32097@hotel.bestwestern.com"]
["32098","B/W Rivers Edge","Red River","NM","Mr. Courtney Henderson","505-754-1766","bestwesternriversedge@hotmail.com"]
["32101","B/W Executive Inn","Hobbs","NM","RK Kapadia, GM","575-397-7171","rinavkapadia@yahoo.com;32101@hotel.bestwestern.com"]
["32102","B/W PLUS Ruidoso Inn","Ruidoso","NM","Larry Cheney","575-257-3600","32102@hotel.bestwestern.com; Vipalpatel@yahoo.com"]
["32103","B/W Pine Springs Inn","Ruidoso","NM","Larry Cheney, AGM","505-378-8100","32103@hotel.bestwestern.com; vipalpatel@yahoo.com"]
["32104","B/W PLUS Territorial Inn & Suites","Bloomfield","NM",null,"505-632-9100"]
["32105","B/W Socorro Hotel & Suites","Socorro","NM","Jose Ruiz, GM","575-838-0556","bestwesternsocorro@yahoo.com"]
["32108","B/W PLUS Montezuma Inn & Suites","Las Vegas","NM","Sanjay Bhakta / Krutik","505-426-8000","montezumasuites@gmail.com"]
["32110","B/W Holiday Inn Express","Moriarty","NM","Jennifer White","505-832-5000","jwhitehie@aol.com"]
["32111","B/W PLUS Raton Hotel","Raton","NM","Jered Smith/Arthur J/Lamont Mulligan","575-445-8501","mulliganaj@aol.com"]
["32112","B/W PLUS The Four Corners Inn","Farmington","NM","Donele Fowler/Jay Jadav","505-564-8100","bestwesternfarmington@aol.com; jjadav02@gmail.com"]
["32113","B/W PLUS Gallup Inn & Suites","Gallup","NM","Sam Soo Hoo",null,"abvigallup@yahoo.com"]
["33001","B/W Bar Harbour Inn","Massapequa Park (Long Island)","NY","Marcine Dentici, GM","516-541-2000","33001@hotel.bestwestern.com"]
["33024","B/W PLUS of Johnson City","Johnson City (Binghamton Area)","NY","Dino DeRitis, GM","607-729-9194","33024@hotel.bestwestern.com"]
["33029","B/W of Lake George","Lake George","NY","Bob Slack Jr./ Sam Luciano, AGM","518-668-5701","rff@fortwilliamhenry.com"]
["33035","B/W Inn - On The Avenue","Buffalo","NY","Dennis Tripi - GM/Theresa Smith","716-886-8333","dmtripi@gmail.com"]
["33037","B/W Weedsport Inn","Weedsport","NY","Paul Clark / KC Patel","315-834-6623","33037@hotel.bestwestern.com"]
["33050","B/W Gateway Adirondack Inn","Utica","NY","Mr. Chris Welch","315-732-4121","cwelch@tcswebmail.com"]
["33051","B/W PLUS University Inn","Canton","NY","Paul Kessler","315-386-8522","paul.kessler@ihrco.com"]
["33059","B/W PLUS Inn of Cobleskill","Cobleskill","NY","Kathy Smith","518-234-4321"]
["33060","B/W Tully Inn","Tully","NY","Karen Bolt - GM","315-696-6061","kmbolt@msn.com"]
["33064","B/W Clifton Park","Clifton Park","NY","Mr. Chris Parthemos","518-371-1811","33064@hotel.bestwestern.com"]
["33065","B/W University Inn","Ithaca","NY","Joe Miller AGM","607-272-6100","jmiller@twintierhospitality.com"]
["33066","B/W PLUS Captain's Quarters","Oswego","NY","Tom Denely -GM/ Tracy Hawthrone","315-342-4040","thawthorn@oswegowfd.com"]
["33069","B/W City View Inn","Long Island City (NY Airport)","NY","Mohammed Daud - GM","718-392-8400","bubojee@yahoo.com"]
["33070","B/W Monticello","Monticello","NY","Payal Patel/Brijesh Patel","845-796-4000","bwmonticello@gmail.com; payal1230@gmail.com"]
["33073","B/W Nyack On Hudson","Nyack","NY","Mr. Greg Parseghian","845-358-8100","best.western@verizon.net"]
["33079","B/W Syracuse Airport Inn","North Syracuse","NY","Dustin Maw - VM/GM","315-455-7362","dmaw@cnymail.com"]
["33084","B/W PLUS President Hotel at Times Square","New York (Manhattan)","NY","Jay Dean - GM/Jhoanna Abis","212-246-8800","jdean@presidenthotelny.com"]
["33085","B/W PLUS Seaport Inn Downtown","New York City","NY","ZB / Jonathon Reese","212-766-6600","seaportgm@wnwhospitality.com"]
["33088","B/W Summit Inn","Niagara Falls","NY","David/Mike Patel","716-297-5050","bwsummitinn2003@yahoo.com"]
["33089","B/W Albany Airport Inn","Albany","NY","Pasquale Minuto or Mr. Nusair Bawla","518-458-1000","nusair.bawla@gmail.com"]
["33094","B/W PLUS Cooperstown Inn & Suites","Cooperstown","NY","Scott Butler","607-547-7100","bwgroups@yahoo.com"]
["33097","B/W Watertown/Fort Drum","Watertown","NY","Richard Alexander","315-782-8000","bwcarriagehouse@nnymail.com"]
["33102","B/W Woodbury Inn","Woodbury (Long Island)","NY","Jessica Brown","516-921-6900","eigm@wnwhospitality.com"]
["33106","B/W New Baltimore Inn","West Coxsackie","NY","Harry Noticewala / Norma Albano","518-731-8100","jyotimukh@yahoo.comm; 33106@hotel.bestwestern.com"]
["33107","B/W PLUS The Inn at Smithfield","Plattsburgh","NY","Julie Kramer","518-561-7750","juliek@nineplatt.com"]
["33110","B/W Sovereign Hotel - Albany","Albany","NY","Nusair Bawla","518-489-2981","nusair.bawla@gmail.com"]
["33111","B/W PLUS Queens Court Hotel","Flushing (Queens)","NY","Frank Chen - VM/Steven Chen","718-888-1900","qchotel2000@yahoo.com; stevencacs@yahoo.com"]
["33112","B/W Convention Center Hotel","New York City (Manhattan)","NY","Jei Liao","212-405-1700","wei-jei.liao@ihrco.com"]
["33114","B/W PLUS Hospitality House","New York","NY","Denise Detrano","212-753-8781","denised@samsonmanagement.com"]
["33115","B/W Norstar Inn","Cheektowaga","NY",null,"716-631-8966"]
["33116","B/W Mountain Lake Inn","Saranac Lake","NY","Douglas Randa","518-891-1970","33116@hotel.bestwestern.com"]
["33119","B/W Kennedy Airport","Jamaica","NY",null,"718-977-2100"]
["33121","B/W PLUS Liverpool Grace Inn & Suites","Liverpool (Syracuse Area)","NY",null,"315-701-4400"]
["33122","B/W PLUS Downtown Jamestown","Jamestown","NY",null,"716-484-8400"]
["33124","B/W Gregory Hotel","Brooklyn","NY",null,"718-238-3737"]
["33125","B/W Crown Inn & Suites","Batavia","NY","Pravin Patel","585-344-8882","whcorp@gmail.com"]
["33127","B/W PLUS University Inn","Olean","NY",null,"716-372-1300"]
["33128","B/W PLUS Park Inn","Saratoga Springs","NY","Mo Hussain","518-584-2350","bwsaratoga@hotmail.com"]
["33129","B/W Mill River Manor","Rockville Centre","NY",null,"516-678-1300"]
["33130","B/W PLUS Vineyard Inn & Suites","Penn Yan","NY","Ms. Amy Bananch","315-536-8473","amy@rentalplus.com"]
["33131","B/W PLUS Brooklyn Bay Hotel","Brooklyn","NY","Shashin Ghandi, GM","718-769-5000"]
["33132","B/W Rochester Marketplace Inn","Rochester","NY",null,"585-427-2700"]
["33133","B/W Bowery Hotel","New York","NY","Raymond Sun","212-925-1177","Raymond.sun@ihrco.com"]
["33137","B/W PLUS The Inn of Lackawanna","LACKAWANNA","NY","Lynn Tarnowski","716-821-0030","gmbwlackawanna@roadrunner.com"]
["33138","B/W PLUS Ticonderoga Inn & Suites","Ticonderoga","NY","Ms. Karen Laundree","(518) 585-2378","klaundree@yahoo.com"]
["33139","B/W Adirondack Inn","Lake Placid","NY","Olga Krone","(518) 523-2424","olga@adirondack-inn.com"]
["33140","B/W PLUS Victor Inn & Suites","Victor","NY","Stacy Scouten","585-924-3933","stacyscouten@yahoo.com"]
["33141","B/W Jamaica Inn","Briarwood","NY","Ray Torres","718-291-7500","33141@hotel.bestwestern.com"]
["33142","B/W PLUS Arena Hotel","Brooklyn","NY","Mukeshkumar Patel/Dev (Dave) Dugal/Carol Des","516-885-3800","Dev@globiwest.com; carol@globiwest.com"]
["33143","B/W Plaza Hotel","Long Island City","NY","Jaz Patel/ Vipul Patel","718-880-3853","jazpatel3@gmail.com"]
["33144","B/W PLUS Franklin Square Inn Troy/Albany","Troy","NY","Kenneth Boyer","518-274-8800","kboyer@franklinsquareinn.com"]
["33146","B/W PLUS Dunkirk & Fredonia Inn","Dunkirk","NY","Sunny Patel","716-366-7100","nypatel11@gmail.com"]
["33147","B/W PLUS Prospect Park Hotel","Brooklyn","NY","Vidal Peoples","718-768-3100","vpeoples@bwprospectpark.com"]
["33149","B/W PLUS The Inn & Suites at the Falls","Poughkeepsie","NY","Carol Rozell/Vipul Patel","845-462-5770","innatthefallsny@hotmail.com"]
["33150","B/W PLUS Galleria Inn & Suites","Cheektowaga","NY","Anil/Judy","716-631-8700","anil@rudramanagement.com; judy@rudramanagement.com"]
["33151","B/W PLUS Carrier Circle","East Syracuse","NY","Roger Doty/Tarrunumn Murad","315-437-2761","rdoty@tramzhotels.com; tmurad@tramzhotels.com"]
["33152","B/W PREMIER Herald Square","New York","NY","Jasmin (JAZ) Patel","No phone yet","jazpatel3@gmail.com"]
["33154","B/W The Inn at the Fairgrounds","Syracuse","NY","Moniqua Chmura/Jayesh (Jay) Patel","315-484-0044","jay@vvkkmgmt.com; Kopack26@verizon.net"]
["33155","B/W PLUS Lockport Hotel","Lockport","NY","David Eckhardt","716-434-6151","david.eckhardt@mangahotels.com"]
["33156","B/W PLUS Finger Lakes Inn & Suites","Cortland","NY","Ravi Desai","607-756-2645","desaitops@yahoo.com"]
["33157","B/W Bayside Inn","Bayside","NY","Karen Grabler/Vinnie Malhotra","718-631-4900","kmayr@samarhospitality.com;"]
["33158","B/W The Inn at Rochester Airport","Rochester","NY","Dharmesh Patel/Shaunna Biehl","585-436-4400","dharmesh@rudramanagement.com"]
["33159","B/W PLUS Kingston","Kingston","NY","Deb Harris/Stuart Williams","845-338-0400","ignnyacct1@cooperhotels.com"]
["33160","B/W PLUS LaGuardia Airport Hotel Queens","Corona","NY","Ketan (Ken) Patel"," No Phone Yet","k2_patel@yahoo.com"]
["33161","B/W PLUS Horseheads Inn and Suites","Horseheads","NY","Jan Nicholson (GM)/Li (Tom) Shen","DO NOT CALL UNTIL 11/30/14 - No Phone yet","fingerlake888@aol.com"]
["33162","B/W Maple City Inn","Hornell","NY","Hemant Patel","607-962-9868","hhpatel@visions-hotels.com"]
["34035","B/W of Asheville Biltmore East","Asheville","NC",null,"828-298-5562"]
["34053","B/W PLUS Burlington","Burlington","NC"," Keith Chandler","336-584-0151","bwbramops@yahoo.com"]
["34071","B/W PLUS Cary Inn - NC State","Cary","NC","Bernadette Atwater","919-481-1200","batwater@cmchotels.com"]
["34075","B/W Ocean Reef Suites","Kill Devil Hills (Nags Head Area)","NC","TerrySherman","252-441-1611"," bwor@larrymore.com"]
["34079","B/W of Murphy","Murphy","NC","Aurelia Stone, GM","828-837-3060","34079@hotel.bestwestern.com"]
["34084","B/W Smoky Mountain Inn","Waynesville","NC","Jay Parmar - Owner/Karen Kosec","828-456-4402","jayparmar@yahoo.com;bwsmi2121@yahoo.com"]
["34093","B/W Bryson Inn","Mount Airy","NC","Richard Calloway, GM","336-352-3400","brysoninn@surry.net"]
["34100","B/W Eldreth Inn at Mt. Jefferson","Jefferson","NC","Mr Jay Patel, Owner/GM","336-246-8845","34100@HOTEL.BESTWESTERN.COM"]
["34108","B/W Statesville Inn","Statesville","NC",null,"704-881-0111"]
["34110","B/W Inn I-95/Goldrock","Rocky Mount (Battleboro)","NC","Rennie Proctor","252-985-1450","34110@hotel.bestwestern.com"]
["34111","B/W PLUS Windsor Suites","Greensboro","NC","Billy Adams - GM","336-294-9100","34111@hotel.bestwestern.com"]
["34112","B/W Lumberton","Lumberton","NC",null,"910-618-9799"]
["34113","B/W Hendersonville Inn","Hendersonville","NC","Ken Darkes (GM)","828-692-0521"]
["34114","B/W Mountainbrook Inn","Maggie Valley","NC",null,"828-926-3962"]
["34117","B/W Inn & Suites - Monroe","Monroe","NC"," Prakash Desai / Dev Desai","704-283-4746","bestwestern@carolina.rr.com"]
["34125","B/W PLUS Greensboro Airport Hotel","Greensboro","NC","Brenda Meris","336-454-0333","34125@hotel.bestwestern.com"]
["34126","B/W PLUS Suites-Greenville","Greenville","NC","Dawn Boyd-Cribari","252-752-2378","dawnt330@aol.com"]
["34133","B/W Raliegh Inn & Suites","Raleigh","NC",null,"919-256-2800"]
["34134","B/W PLUS Blue Ridge Plaza","Boone","NC","Shannon Wooten","828-266-1100","wooten_shannon@yahoo.com"]
["34136","B/W PLUS Coastline Inn","Wilmington","NC",null,"910-763-2800"]
["34140","B/W PLUS Silver Creek Inn","Swansboro","NC","Anand Matteshwar","252-393-9015","anand@h2-group.com"]
["34143","B/W PLUS River Escape Inn & Suites","Dillsboro","NC",null,"828-586-6060"]
["34146","B/W Raleigh North-Downtown","Raleigh","NC","Kenyetta Parker","919-872-5000","KParker@cmchotels.com"]
["34147","B/W PLUS Sterling Hotel & Suites","Charlotte","NC","Sunny Manoj","704-525-5454","sunnymanoj@gmail.com"]
["34148","B/W PLUS Executive Inn","Gastonia","NC"," Bona","704-868-2000"," abpshah@yahoo.com"]
["34151","B/W PLUS Mountain Lodge at Banner Elk","Banner Elk","NC","Mr. Mike White","828-898-4571","mikewhite@skybest.com"]
["34155","B/W Inn of Smithfield","Smithfield","NC",null,"919-989-4047"]
["34158","B/W Pinehurst Inn","Southern Pines","NC","Sammy McPeake","B910-692-2240","smcpeake@mcpeakehotels.com"]
["34160","B/W PLUS Charlotte/Matthews Hotel","Charlotte","NC","HK","704-845-2810"]
["34161","B/W PLUS Edison Inn","Garner","NC","Jonna Blackwell","919-662-4890","34161@hotel.bestwestern.com;bwedison@gmail.com"]
["34163","B/W Hickory","Hickory","NC","Jeff Wagner","828-323-1150","jwagner@bwhickory.com"]
["34164","B/W PLUS Westgate Inn & Suites","Belville","NC","Corey Gooden/Riley Evans","910-648-6887","coreynicole719@gmail.com"]
["34165","B/W Tarboro","Tarboro","NC","Jose Morales","252-824-0700","-hex.tarboro@hotmail.com"]
["34167","B/W Butner - Creedmoor Inn","Creedmoor","NC","Atulkumar Patel","919-575-5942","anandoall@yahoo.com"]
["34169","B/W PLUS Huntersville Inn &Suites Near Lake Norman","Huntersville","NC","Priyesh Patel (PM)","704-875-7880","pmangadia@yahoo.com"]
["34170","B/W Yadkin Valley Inn & Suites","Jonesville","NC","Bob Patel/Anita Darnell","336-835-6000","bpatel296@yahoo.com;skeete1207@aol.com"]
["34173","B/W PLUS Wilmington/Carolina Beach","Wilmington","NC","HP Patel","336-855-0013","ameristay@gmail.com"]
["34175","B/W PLUS University Inn","Wilmington","NC","Michelle Parker","910-799-4292","michelle.parker@dalyseven.com"]
["34176","B/W Albemarle","Albemarle","NC","Jay Patel","704-985-1111","jaypatel.hamptoninn@gmail.com"]
["34177","B/W PLUS Goldsboro Hotel","Goldsboro","NC","Pilar Parks","919-751-1999","pparks@zmchotels.com"]
["34178","B/W PLUS Elizabeth City Inn","Elizabeth City","NC","Ketan Patel","252-331-7751","hotelsusa@yahoo.com"]
["34179","B/W PLUS Hanes Mall Hotel","Winston Salem","NC","Vimal Patel/Balvant (Bill) Jariwala","336-744-5755","vickjpatel@gmail.com; ramadafay@gmail.com"]
["34180","B/W Roanoke Rapids","Roanoke Rapids","NC","Bela Shah","252-536-2300","belashah9@gmail.com"]
["35014","B/W PLUS Seven Seas Hotel & Waterpark","Mandan (Bismarck Area)","ND","Karen Summers","701-663-7401","karen.sevenseas@midconetwork.com"]
["35024","B/W Fargo Doublewood Inn","Fargo","ND","Nicole Schaefer -GM","701-235-3333","nicoleschaffer@cableone.net"]
["35030","B/W Kelly Inn","Minot","ND","Brenda Schmidt, VM","701-852-4300","minot@kellyinns.com"]
["35035","B/W PLUS Ramkota Hotel","Bismarck","ND","Dave Achtenberg","701-258-7700","dachtenberg@ramkotabismarck.com"]
["35036","B/W PLUS Kelly Inn & Suites","Fargo","ND","Lisa Amann","(701) 282-2143","lamann@kellyinns.com"]
["35037","B/W PLUS Heritage Hotel & Suites","Dickinson","ND","Bill Hitesh/Kamal","701-456-8400","bill_nodak@yahoo.com; kamalhpatel@yahoo.com"]
["35038","B/W PLUS Williston Hotel & Suites","Williston","ND","Chrissy Emerson/Dana Cel","701-572-8800","chrissy.emerson@live.com; rd_16@yahoo.com"]
["36027","B/W Del Mar","Wauseon","OH","Kim Ford","419-335-1565","36027@hotel.bestwestern.com; kkfordsmith@gmail.com"]
["36052","B/W Falcon Plaza","Bowling Green (Toledo Area)","OH","Patrick Caserta","419-352-4671","Patrick@bgbestwestern.com"]
["36077","B/W PREMIER Mariemont Inn","Cincinnati","OH","Bill Spinwebber","513-271-2100","Bill@mariemontinn.com"]
["36079","B/W Meander Inn","Youngstown","OH","Karolina Sutherland","330-544-2378","ksuth2000@msn.com"]
["36082","B/W Wooster Hotel","Wooster","OH","Stephen Sun, Shannon Drown","330-264-7750","bestwesternwooster@hotmail.com"]
["36092","B/W Port Clinton","Port Clinton","OH","Jaine Schwab / Margaret Kelsey - VM","419-734-2274","36092@hotel.bestwestern.com"]
["36094","B/W PLUS Columbus North","Columbus","OH","Xia Zhang","614-888-8230","bestwesternnorth@hotmail.com"]
["36095","B/W Executive Inn","Grove City","OH","Dottie / Amil (Andy) Patel","614-875-7770","36095@hotel.bestwestern.com"]
["36100","B/W Country Inn","Uhrichsville","OH","Raj","740-922-0774","kparamj@aol.com"]
["36102","B/W PLUS North Canton Inn & Suites","North Canton (Canton Area)","OH","Monica","330-497-8799","bwcorbinm69@hotmail.com"]
["36104","B/W Executive Inn","Mount Gilead (Chesterville Area)","OH","Russ Shah, VM","419-768-2378","shayer2@bright.net"]
["36106","B/W Suites","Columbus (Hilliard Area)","OH","Cindy Hampton - GM","614-870-2378","36106@hotel.bestwestern.com"]
["36107","B/W PLUS Caldwell Inn","Caldwell","OH","Karen McGilton","740-732-7599","36107@hotel.bestwestern.com"]
["36108","B/W Airport Inn & Suites Cleveland","Cleveland","OH",null,"216-267-9364"]
["36109","B/W Inn","Elyria","OH","Audrey Porter, GM","440-324-5050","Patelvir4@yahoo.com ; 36109@hotel.bestwestern.com"]
["36122","B/W Norwalk","Norwalk","OH","Susan Schoewe","419-663-3501","susan@rutahotels.com"]
["36123","B/W Sycamore Inn","Oxford","OH","Kathy Butterfield - GM","513-523-0000","bwoxford@brecnet.com"]
["36124","B/W PLUS Lawnfield Inn & Suites","Mentor","OH",null,"440-205-7378"]
["36128","B/W PLUS Executive Suites - Columbus East","Pinkerington","OH",null,"614-860-9804"]
["36131","B/W PLUS Napoleon Inn & Suites","Napoleon","OH",null,"419-599-0850"]
["36133","B/W PLUS Mt. Orab Inn","Mount Orab","OH","Sanjay Patel","937-444-6666","sanjay_patel74@yahoo.com"]
["36135","B/W Clermont","Cincinnati","OH","Natu Bhakta - VM","513-528-7702","bwestern1@cinci.rr.com"]
["36137","B/W Adena Inn","Chillicothe","OH","Dinesh Patel","740-775-7000","bwadena@gmail.com"]
["36139","B/W Penn - Ohio Inn & Suites","Hubbard","OH",null,"330-534-5100"]
["36140","B/W BR Guest","Zanesville","OH",null,"740-453-6300"]
["36141","B/W Inn","Fostoria","OH",null,"419-436-3600"]
["36144","B/W PLUS Lakewood Inn","Hebron","OH","Stephanie Darby","740-928-1800","ranahotelsllc@yahoo.com"]
["36145","B/W PLUS Dayton Northwest","Englewood","OH","Phil  Klaus / Jack","937-832-2222","Psklaus@Imd1.com"]
["36146","B/W PLUS Port Columbus","Columbus","OH","Tim Breen","614-337-8400","bwcolumbusairport@gmail.com"]
["36147","B/W PLUS Delaware Inn","Delaware","OH","Nick Arora","740-363-3510","36147@hotel.bestwestern.com"]
["36149","B/W PLUS Canal Winchester Inn - Columbus SE","Canal Winchester","OH","Arti Patel / Atul","614-834-4790","36149@hotel.bestwestern.com"]
["36150","B/W Richland Inn-Mansfield","Mansfield","OH","Samir Patel or Josh Maurer","419-756-6670","patel127@hotmail.com"]
["36151","B/W Inn","Mason","OH","Atul Patel/Pranav Patel","513-336-7911","ramadalimited@hotmail.com"]
["36152","B/W Philadelphia","New Philadelphia","OH","Tammy McRobie/Sachin Patel\r\nSachin Patel","330-339-6500","hrd@ahihotels.com; tammy.mcrobie@ahihotels.com"]
["36154","B/W PLUS Sandusky Hotel & Suites","Sandusky","OH","George Ruta","419-627-9595","george@rutahotels.com"]
["36155","B/W PLUS University Inn Steubenville","Steubenville","OH","Chris Cheesebourgh/Matt Foley","740-282-0901","chris.c@prosperahospitality.com"]
["36156","B/W Wapakoneta Inn","Wapakoneta","OH","Ali Khokhar","419-738-2050","khokhar01@gmail.com"]
["36157","B/W Park Hotel","Warren","OH","Govind Patel/Ashok","330-393-1200","yngcomfort@yahoo.com"]
["36158","B/W Inn","Harrison","OH","Meena Patel","513-367-9666","mp17mail@yahoo.com"]
["36159","B/W PLUS Dayton South","Dayton","OH","Eric Smtih/Amin Sunderji","937-291-0284","daytoninnsouth@yahoo.com; ssss@rogers.com"]
["36160","B/W Monroe Inn","Monroe","OH","Pankaj (Peter) Patel","513-539-4400","ppatel91@yahoo.com"]
["36161","B/W Akron/Fairlawn Inn & Suites","Copley","OH","Ram Lavani","330-670-0888","ramlavani@gmail.com"]
["36162","B/W PLUS University Inn","Marion","OH","Shelly booker (GM)","740-389-1998","gm@bwmarion.com"]
["36163","B/W PLUS Hannaford Inn & Suites","Cincinnati","OH","Baljit Johl","513-936-0525","baljitjohl@gmail.com"]
["36165","B/W PLUS Marietta Hotel","Marietta","OH","Andrew (Andy) Benson","740-374-9660","mrtoh@ee.net"]
["36166","B/W PLUS Boardman Inn & Suites","Poland","OH","Ashok Kochhar","330-629-6900","ashokkochhar@hotmail.com"]
["36167","B/W Celina","Celina","OH","Muhammad Khokhar","419-586-4656","mzulquarnain@gmail.com"]
["37019","B/W PLUS Mark Motor Hotel","Weatherford","OK"," Kathy Blakley, GM","580-772-3325","kblakley@itlnet.net"]
["37056","B/W Hensley's","El Reno","OK",null,"405-262-6490"]
["37070","B/W Markita Inn","Durant","OK","Jim Thorpe","5809246310","markitainn@yahoo.com"]
["37074","B/W Inn","Enid","OK","Lanetta Roney","580-242-7110","lanettaroney@yahoo.com"]
["37075","B/W Territorial Inn","Guthrie","OK","Michael  Machtolff","405-282-8831","mctolff@hughes.net"]
["37078","B/W PLUS Saddleback Inn & Conference Center","Oklahoma City","OK","Pat Powell - GM","405-947-7000","Ppowell-bwsi@coxinet.net"]
["37080","B/W Stroud Motor Lodge","Stroud","OK","Rhonda - GM","918-968-9515","rondalvs2run@aol.com; 37080@hotel.bestwestern.com"]
["37081","B/W PLUS Okumlgee","Okmulgee","OK",null,"918-756-9200"]
["37083","B/W Glenpool/Tulsa","Glenpool","OK",null,"918-322-5201"]
["37086","B/W Owasso Inn","Owasso","OK",null,"918-272-2000"]
["37087","B/W Traders Inn","Poteau","OK","Sue Werschky","918-647-4001","bwtradersinn@windstream.net"]
["37089","B/W Sand Springs Inn & Suites","Sand Springs","OK","Richard/Bobby Gheewala","918-245-4999","37089@hotel.bestwestern.com"]
["37090","B/W Airport","Tulsa","OK","Misty Jones","918-438-0780","sales@bwtulsaairport.com"]
["37091","B/W TimberRidge Inn","Grove","OK","Luann Ford","918-786-6900","bwestern@groveemail.com"]
["37093","B/W Kenosha Inn","Broken Arrow","OK","Vina Patel- GM","918-251-2795","vinapatel1958@yahoo.com"]
["37094","B/W Edmond Inn & Suites","Edmond","OK",null,"405-216-0300"]
["37095","B/W Inn of McAlester","McAlester","OK","Mark Friestad - GM","918-426-0115"," 37095@hotel.bestwestern.com"]
["37096","B/W PLUS Yukon","Yukon","OK",null,"405-265-2995"]
["37099","B/W PLUS Greentree Inn & Suites","Moore","OK",null,"405-912-8882"]
["37102","B/W PLUS Tulsa Inn & Suites","Tulsa","OK","Mukesh Patel/Bobby","918-858-2100","mukesh@shantahotels.com"]
["37104","B/W PLUS Broadway Inn & Suites","Oklahoma City","OK","Tina Medlin / Peter Fahey","405-848-1919","bwcontroller@coxinet.net"]
["37105","B/W PLUS Lawton Hotel & Convention Center","Lawton","OK",null,"580-353-0200"]
["37106","B/W PLUS Memorial Inn & Suites","Oklahoma City","OK","Sanjay Patel- GM","405-286-5199","spatel@coxinet.net"]
["37107","B/W Stat Line Lodge","W. Sioam Springs","OK",null,"918-422-4444"]
["37109","B/W Tahlequah Inn","Tahlequah","OK","Mr. Vijay Patel","918-458-1818","bwtahlequahinn@yahoo.com"]
["37110","B/W Blackwell Inn","Blackwell","OK",null,"580-363-1300"]
["37111","B/W PLUS Midwest City Inn & Suites","Midwest City","OK",null,"405-737-6060"]
["37112","B/W PLUS Barsana Hotel & Suites","Oklahoma City","OK","Amit Patel","405.601.1200","amit0923@yahoo.com"]
["37113","B/W Seminole Inn & Suites","Seminole","OK","Jeff Fine (GM)","405-382-3139","hcfan@aol.com"]
["37115","B/W PLUS Locust Grove Inn & Suites","Locust Grove","OK","Milesh","918-479-8082 ","37115@hotel.bestwestern.com"]
["37116","B/W Eufaula Inn","EUFAULA","OK","VIJAY PATEL","918-689-5553","37116@hotel.bestwestern.com, svp1600@yahoo.com"]
["37117","B/W Red River Inn & Suites","Thackerville","OK","Ray Patel","580-276-5001","37117@HOTEL.BESTWESTERN.COM"]
["37118","B/W PLUS Guymon Hotel & Suites","Guymon","OK"," Subhir Patel","580-338-0800","subhirpatel@yahoo.com"]
["37120","B/W PLUS Cimarron Hotel & Suites","Stillwater","OK","Lisa Dalton/Lindsay Hodson","405-372-2878","ldalton@cimarronhotelandsuites.com"]
["37123","B/W PLUS Sand Bass Inn & Suites","Madill","OK","Hiren Desai","580-677-9890","hiren@bhospitality.com"]
["37124","B/W PLUS Cushing Inn & Suites","Cushing","OK","Roshani/Ricky Patel","405-623-9433","patelricky77@gmail.com"]
["37125","B/W PLUS Woodland Hills Hotel & Suites","Tulsa","OK","Katie Mc Comis/Rakesh (Rex)Trivedi","918-249-8100","katiemccomis@yahoo.com; rextrivedi@hotmail.com"]
["37126","B/W Lindsay Inn & Suites","Lindsay","OK","Mr. Rimal Patel","806-331-6405","Rimal.a.patel@gmail.com"]
["37127","B/W Coweta's 1st Hotel","Coweta","OK","Reena Patel",null,"reenasubway@yahoo.com; reenajee@gmail.com"]
["37128","B/W PLUS Downtown Tulsa/Route 66 Hotel","Tulsa","OK","Shaun Bhow","No Phone Yet","shaun.bhow@gmail.com"]
["37129","B/W PLUS Muskogee Inn & Suites","Muskogee","OK","Swapanil (Neal) Patel","No Phone # yet","patelneal84@gmail.com"]
["37130","B/W PLUS Fairview Inn & Suites","Fairview","OK","Harish Patel","405-429-4400","harrypatel@coxinet.net"]
["38002","B/W Bard's Inn","Ashland","OR","Julie","541-482-0049","Fax # 541-888-3259"]
["38013","B/W New Oregon Motel","Eugene","OR","Mr. Bob Walker","541-683-3669","neworegon@aol.com"]
["38066","B/W Sunridge Inn","Baker City","OR","Sarah Taylor","541-523-6444","staylor@sunridgeinn.com"]
["38071","B/W PLUS Holiday Hotel","Coos Bay","OR","Mr. Nathan Mischel","541-269-5111","38071@hotel.bestwestern.com"]
["38077","B/W Greentree Inn","Eugene","OR","Mr. Bob Walker","541-485-2727","38077@hotel.bestwestern.com"]
["38083","B/W Skyline Motor Lodge","Lakeview","OR","Jay Patel","541-947-2194","38083@hotel.bestwestern.com"]
["38086","B/W Pacific Highway Inn","Salem","OR","Jake Bryant - GM","503-390-3200","bwmci@msn.com"]
["38092","B/W Garden Villa Inn","Roseburg","OR","Jessica Vaughn, Mgr","541-672-1601"]
["38097","B/W Oakridge Inn","Oakridge","OR","Tammy Richey","541-782-2212","38097@hotel.bestwestern.com"]
["38098","B/W PLUS Pier Point Inn","Florence","OR",null,"541-997-7191"]
["38099","B/W PLUS Lincoln Sands Suites","Lincoln City","OR","Teryel Rathbone","541-994-4227","teryelr@lincolnandassociates.com"]
["38100","B/W John Day Inn","John Day","OR","Maulin Patel","541-575-1700","38100@hotel.bestwestern.com"]
["38102","B/W Grants Pass Inn","Grants Pass","OR",null,"541-476-1117"]
["38103","B/W Ponderosa Lodge","Sisters","OR","Paul Haggerty","541-549-1234","38103@hotel.bestwestern.com"]
["38105","B/W OCEAN VIEW RESORT","Seaside","OR",null,"503-738-3334"]
["38106","B/W Inn at the Meadows","Portland","OR",null,"503-286-9600"]
["38107","B/W PLUS Inn & Suites","Ontario","OR","Emma Turiano / Josephine Campomanes","541-889-2600","bwisontario@yahoo.com"]
["38109","B/W PLUS Pendleton Inn","Pendleton","OR","Mike Tipton","541-276-2135","Tiptonmike@hotmail.com"]
["38111","B/W Grand Manor Inn & Suites","Corvallis","OR","EUNICE KIM","541-758-8571","38111@HOTEL.BESTWESTERN.COM"]
["38112","B/W Pony Soldier-Gresham","Gresham (Portland Area)","OR","Harry Samra - GM","503-665-1591","ponygsm@yahoo.com"]
["38113","B/W Pony Soldier Inn - Airport","Portland","OR","Mr. Allen Crosby","503-256-1504","ponypdx@aol.com"]
["38114","B/W PLUS Mill Creek Inn","Salem","OR","Jake Bryant, GM","503-585-3332"," bwmci@msn.com"]
["38115","B/W PLUS Salbasgeon Inn & Suites of Reedsport","Reedsport","OR","Jennie Emerson - GM","541-271-4831","jemerson@salbasgeon.com"]
["38118","B/W Inn at the Rogue","Grants Pass","OR","Erik Johnson","541-582-2200","erik@countryhouseinns.com"]
["38119","B/W Grand Manor Inn","Springfield (Eugene Area)","OR","Linda Baca - GM","541-726-4769","MCL037@meyercrest.com; jeni@gen003.com"]
["38120","B/W PLUS Beachfront Inn","Brookings (Harbor Area)","OR","Dave Snazuk, GM","541-469-7779","dave@beachfrontinn.com"]
["38121","B/W PLUS Hood River Inn","Hood River","OR","Julie Johanson/Mac Cornelison","541-386-2200","jjohanson@hoodriverinn.com;"]
["38122","B/W PLUS Rama Inn","Redmond","OR","Dennis Grooms","541-548-8080","gm.rird@bhghotels.com"]
["38123","B/W PLUS Olympic Inn","Klamath Falls","OR","Mr. Phil Fulbright","541-882-9665","38123@hotel.bestwestern.com"]
["38124","B/W Prineville Inn","Prineville","OR","Troy Clark","541-447-8080","Prinevilleinn@yahoo.com"]
["38125","B/W PLUS Landmark Inn","Lincoln City","OR","Steve Marsh - VM","541-994-6060","shm1962@yahoo.com"]
["38129","B/W Oak Meadows Inn","Saint Helens","OR","Malenea Vetch","503-397-3000","bwoak585@yahoo.com; melwod@yahoo.com"]
["38130","B/W PLUS Columbia River Inn","Cascade Locks","OR","Carol Bausch - VM","541-374-8777","Ckrbausch@aol.com"]
["38131","B/W Madras Inn","Madras","OR","Clifford Reynolds, GM","541-475-6141","BWMADRASINNGM@aol.com"]
["38132","B/W Hermiston Inn","Hermiston","OR","VJ Patel - GM / VIJAY NARAIN","541-564-0202","38132@hotel.bestwestern.com"]
["38135","B/W Newberg Inn","Newberg","OR","Shalue Patel - GM","503-537-3000","shalini_patel01@yahoo.com"]
["38136","B/W PLUS Rama Inn & Suites","La Grande","OR","Krystie Davidson","541-963-3100","krystied.rilg@bhghotels.com"]
["38137","B/W University Inn & Suites","Forest Grove","OR","Stacey Richey","503-992-8888","staceyr@lincolnandassociates.com"]
["38138","B/W Dallas Inn & Suites","Dallas (Salem Area)","OR","Jeff Smith","503-623-6000","38138@hotel.bestwestern.com"]
["38139","B/W Inn at Face Rock","Bandon","OR","Marc Dryden / Bill Clark","541-347-9441","marcdryden@gmail.com"]
["38140","B/W PLUS Cascade Inn & Suites","Troutdale","OR","Kim Conley/ Amy (GM)","503-491-9700","hotel@bwtroutdale.com"]
["38142","B/W PLUS Northwind Inn & Suites","Tigard (Portland Area)","OR","Ish Bhavan","503-431-2100","northwindinn@gmail.com"]
["38144","B/W Rory & Ryan Inns","Hines","OR","Troy Clark/Danielle Buchner","541-573-5050","Prinevilleinn@yahoo.com"]
["38145","B/W Horizon","Medford","OR",null,"541-779-5085"]
["38147","B/W LaPine","LaPine","OR","Troy Clark/Charlotte Brittner","541-536-5130","prinevilleinn@yahoo.com"]
["38149","B/W Windsor Inn","Ashland","OR","Jamie Fleck","541-488-2330","Info@bestwesternwindsor.com"]
["38154","B/W PLUS Agate Beach Inn","Newport","OR","Dave / Bill Mayer","541-265-9411","bill.mayer@sbcglobal.net"]
["38155","B/W Sandy Inn","Sandy","OR","Drew / Sharon Carter - GM","503-668-7100","38155@hotel.bestwestern.com"]
["38156","B/W Lincoln Inn","Astoria","OR","Lawanda Jeffers","503-325-2205","lawandaj@lincolnandassociates.com"]
["38160","B/W Woodburn","Woodburn","OR","Mr. Maulin Patel","503-982-6515","maulin80@yahoo.com"]
["38161","B/W PLUS Rivershore Hotel","Oregon City","OR","Melanie Eubanks","503-655-7141","meubanks@rivershorehotel.com"]
["38162","B/W PLUS Hartford Lodge","Sutherlin","OR","Jessica Baughn","541-459-1424","bestwesternhartfordlodge@live.com"]
["38163","B/W Cottage Grove Inn","Cottage Grove","OR","Balvant (Bal) Patel","541-942-1000","patelbal@comcast.net"]
["38164","B/W Mt. Hood Inn","Government Camp","OR","(Nick) Patel/Jatin/Arvind","503-272-3205","jatin@lodgingmgmt.com; phghotels@yahoo.com"]
["38165","B/W Wilsonville Inn & Suites","Wilsonville","OR","Dhruv Patel","503-570-9700","dhruv@bhghotels.com"]
["38166","B/W PLUS Prairie Inn","Albany","OR","Sunny Singh/ Carlo","877-545-4167","virklodginginc@gmail.com; svirk218@yahoo.com"]
["39002","B/W Plaza Inn","Breezewood","PA","Kal Patel","814-735-4352","ddnkpatel@yahoo.com"]
["39020","B/W PLUS Revere Inn & Suites","Paradise (Lancaster Area)","PA","James  Cosgrove","717-687-7683","jimc@redrose.net"]
["39023","B/W PLUS Inn & Conference Center","Du Bois","PA",null,"814-371-6200"]
["39034","B/W Motor Inn","Quakertown","PA","Pretty Patel - VM/Bradon Beck","215-536-2500","39034@hotel.bestwestern.com"]
["39036","B/W Genetti Hotel & Conference Center","Wilkes-Barre","PA","Sam Wagner","570-823-6152","swagner@genetti.com"]
["39037","B/W Genetti Inn & Suites","Hazleton","PA","Patrick Genetti - GM","570-454-2494","pgenetti01@aol.com"]
["39039","B/W PLUS Intercourse Village Inn & Restaurant","Intercourse (Lancaster Area)","PA","KURT THOMAS","717-768-3636","KURT@BWINTERCOURSEVILLAGEINN.COM"]
["39047","B/W Inn Hershey","Hershey","PA","Tina Rust (GM)","717-533-5665","Trust@milestonehotels.com"]
["39063","B/W PLUS Country Cupboard Inn","Lewisburg","PA","Andy Gamberling","570-524-5500","andybwcci@countrycupboardinc.com"]
["39066","B/W PLUS Concordville Hotel","Concordville(Philadelphia Intl A/P Area)","PA","Steve Angeline - GM","610-358-9400","sangeline@concordvilleinn.com"]
["39067","B/W Inn at Hunt's Landing","Matamoras (Port Jervis, Ny Area)","PA","JoAnn Herskovitz","570-491-2400","jherskovitz@innathuntslanding.com"]
["39069","B/W PREMIER Eden Resort Inn & Suites","Lancaster","PA","Nicole Slaybaugh, Res Mgr","717-569-6444","nslaybaugh@edenresort.com; mclossey@edenresort.com"]
["39079","B/W Westgate Inn","York","PA","Sherri Keller - Dir of Ops","717-767-6931","sherri.keller@dhotelgroup.com"]
["39080","B/W PLUS Independence Park Hotel","Philadelphia","PA","Ms. Jessica Morris","215-922-4443","39080@hotel.bestwestern.com"]
["39088","B/W Lock Haven","Lock Haven","PA","Ms. Joan Marshall","570-726-7030","hillprop@kcnet.org"]
["39090","B/W PLUS Executive Inn","St. Marys","PA",null,"814-834-0000"]
["39091","B/W PLUS The Inn at King Of Prussia","King of Prussia (Valley Forge Area)","PA","TR Kubuch/Brian Reichelt","610-265-4500","rwk3@bwkop.com"]
["39094","B/W Fort Washington Inn","Fort Washington","PA","Ravi Verma - Op Mgr / Ash","215-542-7930","ash@bwfortwashington.com"]
["39095","B/W Grand Victorian Inn","Sayre","PA","Cathy Gratkowski","570-888-7711","cgratkowski@twintierhospitality.com"]
["39099","B/W Chambersburg","Chambersburg","PA",null,"717-262-4994"]
["39101","B/W Garden Inn","Bentleyville","PA","John Cadash","724-239-4321","39101@hotel.bestwestern.com"]
["39102","B/W Blakeslee","Blakeslee","PA",null,"570-646-6000"]
["39104","B/W PLUS Bradford Inn","Bradford","PA","Matt Frank","814-362-4501","matt@bwbradford.com"]
["39105","B/W Carlisle","Carlisle","PA",null,"717-243-6200"]
["39106","B/W PLUS Danville Inn","Danville","PA"," Barbara GM","570-275-5750","bwdanpa@ptd.net"]
["39110","B/W Lebanon Valley Inn & Suites","Jonestown","PA","Andrew Woruli","717-865-4234","bestwesternlebanonvalley@gmail.com"]
["39111","B/W Williamsport","Williamsport","PA",null,"570-326-1981"]
["39113","B/W Americanna Inn","Grove City","PA",null,"724-748-5836"]
["39114","B/W Shippensburg Hotel","Shippensburg","PA",null,"717-532-5200"]
["39115","B/W PLUS Lehigh Valley Inn & Conference Center","Bethlehem","PA",null,"610-866-5800"]
["39116","B/W PLUS New Cumberland Inn & Suites","New Cumberland","PA","Joe Hiebert (GM)","717-774-4440","sales@bestwesternnewcumberland.com"]
["39118","B/W PLUS Allentown Inn & Suites by Dorney Park","Allentown","PA","Mr. Mike Desai","610-530-5545","mdesai1998@yahoo.com"]
["39119","B/W Nittany Inn Milroy","Milroy","PA",null,"717-667-9595"]
["39120","B/W PLUS Reading Inn & Suites","SHILLINGTON","PA","Hitesh Patel","610-777-7888","39120@HOTEL.BESTWESTERN.COM"]
["39121","B/W PLUS Philadelphia Airport S. at Widener Univ.","Chester","PA","BOB WARFEL/THIERRY\r\n / Terry","610-872-8100","bobwarfel@comcast.net; iodi@comcast.net"]
["39123","B/W PLUS University Park Inn & Suites","State College","PA","John Delozier/ Mimi Driscoll","717-586-0250","jdelozier@hlihotels.com;mdriscoll@nittanyhotel.com"]
["39124","B/W PLUS Scranton East","Dunmore","PA","Joe Hetsko","570-343-4771","joseph.hetsko@hiscranton.com"]
["39125","B/W PREMIER The Central Hotel & Conference Center","Harrisburg","PA","John Aldridge/Laurie Smith","717-561-2800","john.aldridge@fourpointsharrisburg.com"]
["39126","B/W PLUS Towanda Inn","Towanda","PA","Jaimini Patel/Ashwin","570-265-2178","bobjaimi@yahoo.com; towandamotel@yahoo.com"]
["39127","B/W Pioneer Plaza","Carbondale","PA","Chris Foster/Bob Sakosky/ Daniel Siniawa","570-536-6020","chrisfoster4@hotmail.com"]
["39129","B/W Harrisburg/Hershey Hotel","Harrisburg","PA","Anil Rastogi","717-652-0101","rtfs1040@gmail.com"]
["39130","B/W PLUS Clearfield","Clearfield","PA","Shayna Buck/Nick Patel","814-768-7500","bestwestclfd@yahoo.com; expresshotels@yahoo.com"]
["39131","B/W Indiana Inn","Indiana","PA","Maria Armantovich","724-349-4600","marianik86@gmail.com;  Indianainnhotel@gmail.com"]
["39132","B/W PLUS Poconos","Tannersville","PA","Sanjiv Gosain","570-629-4100","sgosain@aol.com"]
["39133","B/W PLUS Philadelphia Bensalem","Bensalem","PA","Minesh Bhoola or Danny Swartz","215-638-1500","mbhoola@gmail.com; dswartz@bwpbensalem.com"]
["39134","B/W PLUS Harrisburg Airport Inn & Suites","Harrisburg","PA","Amit Patel",null,"alpatel@baywoodhotels.com"]
["40003","B/W West Greenwich Inn","W. Greenwich","RI","Amin Messiah","401-397-5494","am5494@aol.com"]
["40007","B/W Airport Inn","Warwick","RI",null,"401-737-7400"]
["41038","B/W Sweetgrass Inn","Charleston","SC","Bill Richards","843-571-6100","brichards@charlestownehotels.com"]
["41042","B/W Of Walterboro","Walterboro","SC","Geeta Patel - VM","843-538-3600","geeta1213@hotmail.com"]
["41046","B/W PLUS Sea Island Inn","Beaufort","SC","Lisa Hudson GM","843-522-2090","seaislandinn7@yahoo.com"]
["41050","B/W PLUS Santee Inn","Santee","SC","William Smith/JR Springs","803-854-3089","bjsmith919@live.com;41050@hotel.bestwestern.com"]
["41063","B/W Inn","Florence","SC","Christiana Black","843-678-9292","cblack@high-risehotel.com"]
["41067","B/W Executive Inn & Suites","Columbia","SC","Steve Patel - GM / Sangita","803-561-9027","stevepatelbw@aol.com; sangitabw@aol.com"]
["41068","B/W Point South","Ridgeland","SC","Neil Patel - VM or Raj Patel","843-726-8101","bwpsouth@hargray.com"]
["41069","B/W Ocean Sands Beach Resort","North Myrtle Beach","SC","Sean McGonigal, GM","843-272-6101","sean@oceansands.com"]
["41075","B/W Executive Inn","Seneca","SC","Kirti Naik -GM","864-886-9646","khseneca@yahoo.com"]
["41078","B/W Carowinds","Fort Mill (Charlotte Area)","SC","Parthiv Tanna - VM","803-548-8400","41078@hotel.bestwestern.com"]
["41081","B/W PLUS Carolinian Oceanfront Inn & Suites","Myrtle Beach","SC","Rick Oakley","843-448-6861","41081@hotel.bestwestern.com"]
["41082","B/W PLUS Grand Strand Inn & Suites","Myrtle Beach","SC","Jack","843-448-1461"]
["41085","B/W PLUS Magnolia Inn and Suites","Ladson","SC","Hanif Makda","843-553-8888","bwladsonsc@gmail.com"]
["41087","B/W Patriots Point","Mount Pleasant","SC","Tiffany Bell","843-971-7070","mtpleasantbestwestern@earthlink.net"]
["41088","B/W Greenville Airport Inn","Greenville","SC",null,"864-297-5353"]
["41089","B/W Executive Inn","Latta","SC","Anand Patel","843-752-5060","amp245@aol.com"]
["41092","B/W PLUS Airport Inn & Suites","North Charleston","SC","Cindy Owens","843-574-0911","cowens@stranddevelopment.com"]
["41096","B/W PLUS Piedmont Inn & Suites","Piedmont","SC","George Patel/Shelia Penton","864-552-1420","georgepatel2000@yahoo.com;bw41096@aol.com"]
["41097","B/W PLUS Myrtle Beach Hotel","Myrtle Beach","SC","Donald Bosman","843-213-1440","dbosman@paycoinc.com"]
["41098","B/W PLUS Columbia North East","Columbia","SC","Rakesh Patel/Ishwar Naran","803-736-6666","bw7525@gmail.com; inaran@aol.com"]
["41099","B/W Pawleys Island Inn","Pawleys Island","SC","Vivian Faulk/Kam Shah","843-235-0808","vj29163@hotmail.com"]
["41100","B/W PLUS Hardeeville","Hardeeville","SC","Ketal Patel","843-784-2121","ketal2167@gmail.com"]
["42003","B/W Lee's Motor Inn","Chamberlain","SD","Steve Schoenhard","605-734-5575","42003@hotel.bestwestern.com"]
["42004","B/W Buffalo Ridge Inn","Custer","SD",null,"605-673-2275"]
["42008","B/W Graham's","Murdo","SD","Nadine Hatheway/Marlene Curle - GM","605-669-2441","BWGRAHAMS@GMAIL.COM"]
["42010","B/W Town 'N Country","Rapid City","SD",null,"605-343-5383"]
["42016","B/W Sturgis Inn","Sturgis","SD","Christy Barry","605-347-3604","christybarry101@hotmail.com; guy@rapidnet.com"]
["42022","B/W Plains Motel","Wall","SD","Doug/Jackie Hathershaw - Mgr","605-279-2145","jackie@bestwesternplains.com"]
["42028","B/W Golden Spike Inn & Suites","Hill City","SD","Terry - GM","605-574-2577","michael@bestwesterngoldenspike.com"]
["42030","B/W Hickok House","Deadwood","SD","Maggie / P.L. Roberts - VM","605-578-1611","maggie.bwhh@midconetwork.com"]
["42036","B/W U-Bar Motel","Canistota","SD","Judy Kay Hale - VM","605-296-3466","ubar@unitelsd.com"]
["42038","B/W PLUS Ramkota Hotel","Sioux Falls","SD","Jan Grunewaldt","605-336-0650","jgrunewaldt@ramkota.com"]
["42039","B/W Ramkota Hotel","Watertown","SD","Deb Stanley - GM","605-886-8011","dstanley@ramkotawtn.com"]
["42040","B/W Ramkota Hotel","Pierre","SD","Ms. Jan Grunewaldt","605-224-6877","jgrunewaldt@ramkota.com"]
["42041","B/W Ramkota Hotel","Aberdeen","SD"," Mr. Bruce Kieffer","605-229-4040","manager@aberdeenramkota.net"]
["42044","B/W Empire Towers","Sioux Falls","SD",null,"605-361-3118"]
["42045","B/W Of Huron","Huron","SD","Steve Wilkin - GM","605-352-2000","huronbestwestern@hotmail.com"]
["42046","B/W Kelly Inn","Yankton","SD","Sara Haberman","605-665-2906","yankton@kellyinns.com"]
["42047","B/W PLUS Four Presidents Lodge","Keystone","SD","Mr. Mike Mathis","605-666-4472","mmathis@rushmore.com"]
["42048","B/W Ramkota Hotel","Rapid City","SD","Mr. David Baihly","605-343-8550","dbaihly@ramkotarc.com"]
["42049","B/W Black Hills Lodge","Spearfish","SD","Bill Collins","605-642-7795","42049@hotel.bestwestern.com"]
["42050","B/W Sundowner","Hot Springs","SD",null,"605-745-7378"]
["42051","B/W Vermillion Inn","Vermillion","SD","Joseph Eckert/Lisa Eckert","605-624-8333","jeckert@sio.midco.net"]
["43003","B/W Thunderbird Motel","Cookeville","TN","Chandulal Patel - VM/Millie","931-526-7115","43003@HOTEL.BESTWESTERN.COM"]
["43005","B/W Crossroads Inn","Gatlinburg","TN","Jerry  Morton. GM","865-436-5661","jerrydmorton@yahoo.com"]
["43006","B/W Twin Islands","Gatlinburg","TN","Jerry Morton- GM","865-436-5121","jerrydmorton@yahoo.com"]
["43029","B/W Plaza Inn","Pigeon Forge","TN",null,"865-453-5538"]
["43034","B/W of Hurricane Mills","Hurricane Mills (Buffalo Area)","TN","Marcia Fox","931-296-4251","43034@hotel.bestwestern.com"]
["43047","B/W Toni Inn","Pigeon Forge","TN",null,"865-453-9058"]
["43070","B/W Franklin Inn","Franklin (Nashville Area)","TN","Ken Patel, GM","615-790-0570","gmbestwestern.ken@gmail.com"]
["43078","B/W Newport Inn","Newport","TN","Ms. Glenna Hayworth","423-623-8713","glennareed@planetc.com"]
["43090","B/W Heritage Inn","Chattanooga","TN","Gary Shah - GM/Jill Hall","423-899-3311","bwheritageinn@hotmail.com"]
["43111","B/W Fayetteville Inn","Fayetteville","TN","Gita Patel","931-433-0100","gidipoo@yahoo.com"]
["43115","B/W Music City","Antioch","TN",null,"615-641-7721"]
["43117","B/W Royal Inn","Chattanooga","TN","Eapen Thomas","423-821-6840","bwroyalinn@gmail.com"]
["43120","B/W Dayton","Dayton","TN","Vimal Patel","423-775-6560","Vimalpatel178@yahoo.com"]
["43122","B/W PLUS Celebration Inn & Suites","Shelbyville","TN",null,"931-684-2378"]
["43127","B/W Chaffin Inn","Murfreesboro","TN","Ron Patel/Serena Roberts","615-895-3818","rpatel63@comcast.net;serena_roberts29@yahoo.com"]
["43131","B/W PLUS Cedar Bluff Inn","Knoxville","TN",null,"865-539-0058"]
["43134","B/W Suites Near Opryland","Nashville","TN","Mr. Bill Delac","615-902-9940","bwsuites@yahoo.com"]
["43137","B/W Harpeth Inn","Kingston Springs","TN","Samir Patel - VM","615-952-3961","sampatel00@gmail.com"]
["43141","B/W Greenbrier Inn","Sevierville","TN","Sushma Patel / Diana Weals - VM","865-428-1000","SUSHMA1905@AOL.COM"]
["43143","B/W Smokehouse Lodge","Monteagle (Sewanee Area)","TN","Shelly Puls","931-924-2268","lodge@thesmokehouse.com"]
["43144","B/W Inn","Winchester","TN","Cathy Luiz","931-967-9444","Caluiz@myway.com"]
["43146","B/W Executive Inn","Memphis","TN","PRATICHA PATEL","901-312-7000","43146@hotel.bestwestern.com"]
["43150","B/W PLUS  Music Row","Nashville","TN","Rakesh Aggarwal - GM","615-242-1631","qihof@aol.com"]
["43152","B/W McKenzie","McKenzie","TN","Paul Patel","731-352-1083","pankil34@yahoo.com"]
["43154","B/W PLUS Johnson City Hotel & Conference Center","Johnson City","TN","Rocky Stump/Lois Campbell","423-282-2161","stump@bwjohnsoncity.com"]
["43156","B/W Executive Inn","Dickson","TN","PJ Morar","615-446-0541","pjmorar@gmail.com"]
["43157","B/W Carriage House Inn & Suites","Jackson","TN","BP Patel - VM","731-664-3030","bwjaxtn@gmail.com"]
["43158","B/W Fairwinds Inn","Goodlettsville (Nashville Area)","TN","Andy Patel","615-851-1067","bestwestern97@gmail.com"]
["43159","B/W Tree City Inn","McMinnville","TN","Mike C Sheth/Keval Sheth","931-473-2159","mikecsheth@yahoo.com"]
["43160","B/W PLUS Strawberry Inn & Suites","Knoxville","TN",null,"865-544-7737"]
["43162","B/W Galleria Inn & Suites","Memphis","TN",null,"901-372-0000"]
["43164","B/W PLUS Spring Hill Inn & Suites","Spring Hill","TN","Mr. Umesh Patel","931-486-1234","peter@charterinternet.com"]
["43166","B/W Knoxville Suites","Knoxville","TN",null,"865-687-9922"]
["43168","B/W Home Place Inn","Camden","TN","Ben Thompson","731-584-2222","bigben38320@yahoo.com"]
["43172","B/W PLUS Belle Meade Inn & Suites","NASHVILLE","TN","jiger/Raxa Patel","615-354-1711","bestwestern5600@yahoo.com"]
["43173","B/W Brentwood","Brentwood","TN","Tammy Devore","615-373-8585","tammydevo@yahoo.com"]
["43174","B/W PLUS White House","White House","TN","AJ or Ron Pye","615-859-1771","p6141@aol.com; bestwesternwhitehouse@hotmail.com"]
["43175","B/W PLUS Gen X Inn","Memphis","TN","Jennifer Bhikha","901-692-9136","jb_sfbc@yahoo.com"]
["43176","B/W PLUS Morristown Conference Center","Morristown","TN","Darrell Short","423-587-2400","darrell.short@himorristown.com"]
["43178","B/W Cades Cove Inn","Townsend","TN","Hiren (Josh) Patel","865-448-9000","comfort342@aol.com"]
["43179","B/W PLUS Arbour Inn & Suites","East Ridge","TN","Dipak Patel/Anil Patel","423-893-7979","dipakp@comcast.net; neilpatel@comcast.net"]
["43180","B/W PLUS Sunrise Inn","Nashville","TN","Karen Patel/Sanjay",null,"karen@imagehotelmanagement.com"]
["43181","B/W PLUS Atrium Inn & Suites","Clarksville","TN","Kunal Shah","No phone # yet","kshah13@gmail.com"]
["43182","B/W PLUS North Nashville Airport Inn","Nashville","TN","Arjun Meherish (AJ)/Nishith (Nish) Jobalia","615-874-8040","arjun.meherish@gmail.com; jobalianish@gmail.com"]
["44039","B/W Chateau Ville Motor Inn","Gatesville","TX","Robert Brown - VM","254-865-2281","RJBCC@MSN.COM"]
["44044","B/W Red Carpet Inn","Hereford","TX","Yogi Patel / Sam","806-364-0540","44044@hotel.bestwestern.com"]
["44083","B/W Country Inn","Vega","TX","Rick Patel, GM","806-267-2131","ripalbpatel@yahoo.com"]
["44108","B/W Village Inn","Vernon","TX","Hasish Patel & Paresh Patel","940-552-5417","pkaryan@gmail.com"]
["44184","B/W Nursanickel Motel","Dalhart","TX","Barry Sukha, GM","806-244-5637","abhysukha@yahoo.com"]
["44203","B/W Swiss Clock Inn","Pecos","TX","Peggy Goodard","432-447-2215","bwswissclock@windstream.net"]
["44204","B/W Market Center","Dallas","TX","Azim Merali","214-741-9000","azimmerali@bestwesternmarketcenter.com"]
["44282","B/W Canton Inn","Canton","TX","Tim Michaels - VM","903-567-6591","bestwesterncanton@gmail.com"]
["44286","B/W Trail Dust Inn","Sulphur Springs","TX",null,"903-885-7515"]
["44296","B/W Palestine Inn","Palestine","TX",null,"903-723-4655"]
["44298","B/W Decatur Inn","Decatur","TX","Dipti / Paul Patel - GM","940-627-5982","44298@HOTEL.BESTWESTERN.COM"]
["44309","B/W Northgate Inn","Pampa","TX","Mr. Vick Doshi","806-665-0926","vdoshi@alamocityhotels.com"]
["44319","B/W Kingsville Inn","Kingsville","TX","Raj Ghandi","361-595-5656","rajgandhi@sbcglobal.net"]
["44326","B/W Inn by the Lake","Zapata","TX","Elizabeth Salinas - GM","956-765-8403","44326@hotel.bestwestern.com"]
["44335","B/W Inn of Del Rio","Del Rio","TX","Mike Patel - GM","830-775-7511","maulesh221@hotmail.com; mahesh_P56@yahoo.com"]
["44341","B/W Caprock Inn","Brownfield","TX","NISHA PATEL","806-637-9471","BRAJESH@MSN.COM"]
["44357","B/W Medical Center Inn","Amarillo","TX","Chris Clark (GM)","806-358-7861","amarilloinn@yahoo.com"]
["44361","B/W Sunday House Inn","Kerrville","TX","Michael Lemmons - GM","830-896-1313","Sundayhouseinn@yahoo.com, lemmonsm@ktc.com"]
["44364","B/W Childress","Childress","TX",null,"940-937-6353"]
["44366","B/W Ingram Park Inn","San Antonio","TX","Roger Shah - GM","210-520-8080","rshah@baywoodhotels.com"]
["44369","B/W Rose Garden Inn & Suites","McAllen","TX","Cuit Esparza or Sandra AGM","956-630-3333","hgpm@prodigy.net; hgpms@yahoo.com"]
["44385","B/W Whitten South","Abilene","TX","Kimber / Wladzia","325-695-1262","44385@hotel.bestwestern.com; wladziainn@yahoo.com"]
["44391","B/W PLUS Fiesta Inn","San Antonio","TX","Ninay Patel / Arlean","210-696-2400","SonnyJpatel@yahoo.com; bwfiestainn@gmail.com;"]
["44392","B/W Llano","Llano","TX","Ceto Desai - GM","325-247-4101","bw-llano@nctv.com"]
["44393","B/W Brady Inn","Brady","TX","Ms. Josie Melendez","325-597-3997","44393@hotel.bestwestern.com"]
["44397","B/W Inn of Henderson","Henderson","TX","Susie Lee","903-657-9561","susiehlee@gmail.com"]
["44400","B/W Alvin Inn","Alvin","TX","Mr Bhakta","281-331-4545","bharatr53@yahoo"]
["44403","B/W Inn of Nacogdoches","Nacogdoches","TX","Ella / IR Patel - VM","936-560-4900","44403@hotel.bestwestern.com"]
["44406","B/W Inn of Jasper","Jasper","TX","Thomas Marsh/Billy Dutton 7am - 3/Ladon or Amy","409-384-7767","tomsatma@hotmail.com"]
["44407","B/W Cooper Inn & Suites","Arlington","TX",null,"817-784-9490"]
["44410","B/W Park Suites Hotel","Plano","TX","Bobbie Dillingham","972-578-2243","44410@hotel.bestwestern.com"]
["44411","B/W PLUS Westchase Mini-Suites","Houston","TX","BORIS MENRIQUES","713-782-1515","bwwgm@amliberty.com"]
["44412","B/W Lakeview Inn","Garland","TX",null,"972-303-1601"]
["44413","B/W Sunland Park Inn","El Paso","TX","Victor Bhakta - VM","915-587-4900","44413@hotel.bestwestern.com"]
["44418","B/W Santa Fe","Amarillo","TX","Carlene Miller","806-372-1885","carlene.miller@sbcglobal.net"]
["44421","B/W PLUS Marble Falls Inn","Marble Falls","TX","Riyaz Bhaiwala - GM","830-693-5122","bestwestern@nctv.com"]
["44427","B/W San Marcos","San Marcos","TX","Mike  Patel - Owner","512-754-7557","mpatelbw@yahoo.com"]
["44428","B/W Pearland Inn","Pearland","TX","Manhar Das - VM","281-997-2000","bwpearland@aol.com"]
["44429","B/W Executive Inn","Round Rock (Austin Area)","TX","Joseph Yousefy","512-255-3222","bestwesterntexas@aol.com"]
["44430","B/W Inn of Carthage","Carthage","TX","Jai Dayaram\r\n Macbadden - GM","903-694-2809","triniblue@yahoo.com"]
["44433","B/W Inn of Kilgore","Kilgore","TX","Alex Patel","903-986-1195","44433@HOTEL.BESTWESTERN.COM"]
["44434","B/W Coleman Inn","Coleman","TX","Ken Bhakta - VM","325-625-4176","ken76834@gmail.com"]
["44435","B/W Gun Barrel City Inn","Gun Barrel City","TX","Vinod Patel - VM","903-887-8886","svpate2002@yahoo.com"]
["44436","B/W Northpark Inn","Nacogdoches","TX","Roy/Charki/Jenny","936-560-1906","charki143@yahoo.com"]
["44438","B/W Floresville Inn","Floresville (San Antonio Area)","TX","RAJ PATEL","830-393-0443","NISEJ@YAHOO.COM"]
["44439","B/W Inn & Suites","New Braunfels","TX","Sherri","830-625-7337","SherriR71@yahoo.com"]
["44441","B/W San Angelo","San Angelo","TX","Vis Thenappan - VM","325-223-1273","44441@HOTEL.BESTWESTERN.COM"]
["44442","B/W George West Executive Inn","George West","TX","Margaret Brown","361-449-3300","Margaretannbrown12@yahoo.com"]
["44443","B/W Ocean Villa","Port Aransas","TX","Vince Vanorman","361-749-3010","vanorman2000@yahoo.com"]
["44446","B/W PLUS Inn of  Brenham","Brenham","TX",null,"979-251-7791"]
["44448","B/W On The Island","Corpus Christi","TX","KB Bhakta","361-949-2300","bwontheisland@gmail.com"]
["44451","B/W Deer Park Inn & Suites","Deer Park","TX","Dimple Patel","281-476-1900","manager@csdeerpark.com"]
["44452","B/W Inn-Three Rivers","Three Rivers","TX","Cheri Moore","361-786-2000","44452@hotel.bestwestern.com"]
["44453","B/W Smithfield Inn","Cleburne","TX","Andy Patel, GM","817-556-3330","Andy1171@sbcglobal.net"]
["44457","B/W Willis","Willis","TX","Naresh patel, Owner","936-856-1906","BW44457@aol.com"]
["44460","B/W Sinton","Sinton","TX","Nick  Bhakta","361-364-2882","44460@hotel.bestwestern.com"]
["44461","B/W Southpark Inn & Suites","Tyler","TX","Melissa Harris","903-534-8800","melissakbestwestern@yahoo.com"]
["44463","B/W Heritage Inn","Houston","TX","Raul Gandhi, GM","713-670-9100","bestwesternheritage@yahoo.com"]
["44464","B/W PLUS Lewisville/Coppell","Lewisville","TX","Chris Patel","972-459-5300","chetanpatel211@yahoo.com"]
["44468","B/W PLUS DFW Airport Suites","Irving (Dallas Airport Area)","TX",null,"972-870-0530"]
["44469","B/W Cedar Inn","Cedar Park","TX","Shashi Patel","512-259-7300"," patelshas@gmail.com"]
["44471","B/W PLUS Edinburg Inn & Suites","Edinburg","TX","HIREN GOVIND","956-318-0442","HMGOVIND@AOL.COM; MAGBESTWEST@aol.com"]
["44472","B/W PLUS Denton Inn & Suites","Denton","TX","Suresh Patel, GM","940-591-7726","samrx757@aol.com"]
["44473","B/W Inn of Navasota","Navasota","TX","Vinod (V.K.) Kikani","936-870-4100","vinodkkn@yahoo.com"]
["44474","B/W Executive Inn","Alice","TX","Andy Patel","361-664-2133","andy_2021980@yahoo.co.in"]
["44475","B/W PLUS North Houston Inn & Suites","Houston","TX","Sunil Patel, GM","281-873-7575","sunil76@aol.com or bw14753@aol.com"]
["44476","B/W PLUS Northwest Inn & Suites","Houston","TX","Neil Ghandi, Mgr","713-290-1400","44476@hotel.bestwestern.com/nilanggandhi@yahoo.com"]
["44477","B/W La Hacienda Inn","Kaufman","TX","Tommy Patel, GM","972-962-6272","bwkaufmantx@gmail.com"]
["44478","B/W Executive Inn","Seagoville","TX","Mukesh Gohel","972-287-9100","mukeshgohel@yahoo.com"]
["44479","B/W Inn & Suites","Copperas Cove","TX","Bhatt","254-518-3363","bestwestern@gmail.com"]
["44481","B/W Windsor Inn","Dumas","TX","Minesh Patel","806-935-9644","patelmino69@gmail.com"]
["44484","B/W Executive Inn El Campo","El Campo","TX","Ravi Patel","979-543-7033","sunny_desai0628@yahoo.com"]
["44485","B/W PLUS Intercontinental Airport Inn","Humble (Houston Area)","TX","JR Bhakta","281-548-1402","jrbindas@hotmail.com"]
["44486","B/W Dinosaur Valley Inn & Suites","Glen Rose","TX","Rex Patel","254-897-4818","patelr7@gmail.com"]
["44487","B/W Sonora","Sonora","TX",null,"325-387-9111"]
["44490","B/W Snyder Inn","Snyder","TX"," Mesh Bhakta","325-574-2200","meshbhakta@gmail.com"]
["44492","B/W Naval Station Inn","Ingleside","TX","Pete Bhakta - GM","361-776-2767","avnik@cableone.net"]
["44493","B/W Las Palmas Inn","Mission","TX","Blanca Garcia","956-583-9290","lidhar@msn.com"]
["44494","B/W PLUS Northwest Inn","Dallas","TX","Nick Patel, Mgr","214-353-8774","bwnorthwestinn@yahoo.com"]
["44495","B/W PLUS Borger Inn","Borger","TX","Subhir Patel, Mgr","806-274-7050"," shptxs@yahoo.com"]
["44496","B/W Texan Inn","Beeville","TX","Katie Upton, GM","361-358-9999","bwtexaninn@sbcglobal.net"]
["44497","B/W Abilene Inn & Suites","Abilene","TX","Jo Sharma, VM","325-672-5501","jo@abileneinnandsuites.com"]
["44498","B/W PLUS Downtown Inn & Suites","Houston","TX","Amita Desai, GM","713-571-7733","manager@bwdowntown.com"]
["44499","B/W PLUS Lubbock Windsor Inn","Lubbock","TX","Sam Ganatra","806-762-8400","buildcraft@hotmail.com"]
["44500","B/W Marina Grand Hotel","Corpus Christi","TX","Flanna Bland","361-883-5111","flanna@marinagrandhotel.com"]
["44501","B/W PLUS Lake Worth Inn & Suites","Lake Worth (Fort Worth Area)","TX","Jimmy Patel, GM / Anil Patel","817-238-1199","anil@kmdhotels.com"]
["44502","B/W PLUS Sunset Suites-Riverwalk","San Antonio","TX","Eric Gosla","210-223-4400","AGOSLA@GMAIL.COM"]
["44503","B/W Port Lavaca Inn","Port Lavaca","TX","MIKE PATEL","361-553-6800","BW.PORTLAVACA@GMAIL.COM"]
["44504","B/W Temple Inn & Suites","Temple","TX","JR Bhatka","254-742-1122"," jrbindas@hotmail.com"]
["44507","B/W PLUS McKinney Inn & Suites","McKinney","TX","Vijay Patel","972-548-3000","vjprsn@hotmail.com"]
["44508","B/W Club House Inn & Suites","Mineral Wells","TX","Kiren Patel - Owner/Mgr","940-325-2270","bestwestern44508@aol.com"]
["44509","B/W PLUS Hill Country Suites","San Antonio","TX","Mrs. Nimisha Patel","210-490-9191","Nimisha824@aol.com"]
["44510","B/W Paradise Inn","Corpus Christi","TX","Krishma / Kanti Bhakta, Owner","361-992-3100","kbedoli@gmail.com; 44510@hotel.bestwestern.com"]
["44515","B/W Fountainview Inn & Suites Near Galleria","Houston","TX","Lee Thang- GM","713-783-8388","Leethang@msn.com"]
["44516","B/W PLUS Fredericksburg","Fredericksburg","TX","Mike Patel","830-992-2929","bestwestern@austin.rr.com"]
["44517","B/W Fort Worth Inn & Suites","Fort Worth","TX","Hemant  Pandya, GM","817-246-8777","bestwesternfortworth.76108@yahoo.com"]
["44518","B/W PLUS Shamrock Inn & Suites","Shamrock","TX","Mike Hall","806-256-1001","44518@hotel.bestwestern.com; mh1hvac@earthlink.net"]
["44519","B/W Garden Inn & Suites","San Benito","TX","Henry Bhakta - GM","956-361-2222","hbhakta777@hotmail.com"]
["44520","B/W Plaza Hotel & Suites at Medical Center","Houston","TX","Pervez Ahmad","713-522-2811","pa1802@msn.com"]
["44522","B/W Angleton Inn","Angleton","TX","(Naresh)Nick Bhakta, Mgr","979-849-5822","44522@hotel.bestwestern.com"]
["44523","B/W Ozona Inn","Ozona","TX",null,"325-392-3791"]
["44524","B/W Irving Inn & Suites at DFW Airport","Irving (Dallas Airport Area)","TX","Ken Patel","972-790-2262","kampatel@gmail.com"]
["44525","B/W Executive Inn","Marshall","TX","Ram Patel","903-935-0707","44525@hotel.bestwestern.com"]
["44527","B/W Post Inn","Post","TX","Yogi Patel- GM","806-495-9933","patelwireless@yahoo.com"]
["44528","B/W Johnson City Inn","Johnson City","TX","Goga Bassi/Stacey McDougall","830-868-4044","44528@hotel.bestwestern.com"]
["44529","B/W Country Inn","Terrell","TX","Mr. Tony Patel","972-563-1521","tonypatel@gmail.com"]
["44530","B/W PLUS Posada Ana Inn - Medical Center","San Antonio","TX","Brendan McAlister","210-691-9550","44530@hotel.bestwestern.com"]
["44533","B/W Executive Inn & Suites","Madisonville","TX","Mary / Paul Desai, GM","936-349-1700","madisonvillebestwestern@yahoo.com"]
["44534","B/W Garden Inn","Falfurrias","TX","Hetul / Danny Bhakta, Owner","361-325-4848","HBhakta407@aol.com"]
["44535","B/W Windsor Suites","Houston","TX","Alex Patel, Naveen Patel - GM","281-807-4007","alex.bwws@gmail.com"]
["44537","B/W Lake Conroe Inn","Montgomery","TX","Dilip Patel","936-588-3030","44537@hotel.bestwestern.com"]
["44541","B/W Casa Villa Suites","Harlingen","TX","Michelle Garza","956-412-1500","44541@hotel.bestwestern.com"]
["44543","B/W Posada Ana Inn-Airport","San Antonio","TX","Dolores Anaya","210-342-1400","bw.saa.1.gm@druryhotels.com"]
["44545","B/W Pineywoods Inn","Atlanta","TX","Peter Patel - Owner","903-799-8500","peterpatel71@yahoo.com"]
["44548","B/W PLUS  Red River Inn","Clarendon","TX","Steve Hall, Owner","806-874-0160","stephenrhall@aol.com"]
["44549","B/W Dayton Inn & Suites","Dayton","TX","Harbhajan Singh","936-258-7600","44549@HOTEL.BESTWESTERN.COM"]
["44550","B/W Taylor Inn","Taylor","TX","Sonny Ghandi, VM","512-352-5292","44550@hotel.bestwestern.com"]
["44551","B/W Post Oak Inn","Burnet","TX","Rick Patel - VM","512-756-4747","bwinn@tstar.net"]
["44552","B/W PLUS Crown Colony Inn & Suites","Lufkin","TX",null,"936-634-3481"]
["44553","B/W PLUS The Woodlands","The Woodlands (Houston)","TX","Mr. Mike Patel","936-271-2378","bestwestern@austin.rr.com"]
["44554","B/W Regency Inn & Suites","Gonzales","TX","Pratik Bhakta","830-672-5555","pbhakta@bizstx.rr.com"]
["44555","B/W Cityplace Inn","Dallas","TX","DK Patel","214-827-6080","dhavalpats@yahoo.com"]
["44556","B/W PLUS Graham Inn","Graham","TX","Daisy, GM","940-521-0190","44556@hotel.bestwestern.com"]
["44558","B/W PLUS Executive Inn","Corsicana","TX","Hiren Patel","903-872-0020","Harry.Bestwestern@yahoo.com"]
["44559","B/W Garden Inn","San Antonio","TX","Jack Patel, GM","210-599-0999","satno@satx.rr.com"]
["44560","B/W PLUS Sam Houston Inn & Suites","Houston","TX","Bhupinder Singh - VM","281-970-7777","BWSAMHOUSTONINN@YAHOO.COM"]
["44562","B/W PLUS Victoria Inn & Suites","Victoria","TX",null,"361-485-2300"]
["44563","B/W PLUS Palms Hotel & Suites","Lubbock","TX","Delmont Crawford/Mr. Neal Patel","806-799-9999","neal@newgencommercial.com"]
["44565","B/W Halletsville","Halletsville","TX","Chandra Patel","361-798-9200","cppatel48@hotmail.com"]
["44566","B/W Velkommen","Clifton","TX","Andy Nathu - VM","254-675-8999","Andy1171@sbcglobal.net"]
["44568","B/W PLUS Executive Inn","Jacksonville","TX",null,"903-586-0007"]
["44569","B/W PLUS Tropic Inn","Robstown","TX","Sam Patel - GM","361-767-3900","bwtropicinn@yahoo.com"]
["44570","B/W Quanah Inn & Suites","Quanah","TX",null,"940-663-5407"]
["44572","B/W Palo Duro Canyon Inn & Stes","Canyon","TX",null,"806-655-1818"]
["44573","B/W Windwood Inn & Suites","Freer","TX","Kumal Bhakta - VM","361-394-6200","kambhak@hotmail.com"]
["44574","B/W PLUS Mainland Inn & Suites","Texas City","TX","Lakeysha / T. V. Ravichandran - VM","409-986-6600","lakeysha@navikacapital.com"]
["44576","B/W PLUS Atascocita Inn & Suites","Humble","TX",null,"281-852-5665"]
["44577","B/W North East Mall","North Richland Hills","TX",null,"817-656-8881"]
["44578","B/W Perryton Inn","Perryton","TX",null,"806-434-2850"]
["44579","B/W Granbury Inn","Granbury","TX","Desta Reda","817-573-4239","destareda@yahoo.com"]
["44580","B/W PLUS Lake Dallas Inn & Suites","Lake Dallas","TX",null,"940-497-1007"]
["44581","B/W San  Isidro","San Isidro","TX","Celina Solis","956-723-1600","csolis@sanisidroinn.com"]
["44586","B/W Windsor Hotel & Suites","San Antonio","TX","Mr. John Bhakta","210-655-6800","aclginc@gmail.com"]
["44587","B/W Lindale Inn","Lindale","TX","Ms. Debbie Clem","903-882-8884","debbie_clem@hilton.com"]
["44588","B/W Roanoke Inn & Suites","Roanoke","TX","DK Patel/Vinod","817-490-9595","44588@hotel.bestwestern.com"]
["44589","B/W Cleveland Inn & Suites","Cleveland","TX","Mr. Prag Patel","281-659-2700","bestwesterncleveland@yahoo.com"]
["44590","B/W Longview North","Longview","TX",null,"903-757-8888"]
["44591","B/W PLUS La Grange Inn & Suites","La Grange","TX","Tony Vanwisse","979-968-6800","vanwisse1@msn.com"]
["44592","B/W Henrietta Inn & Suites","Henrietta","TX",null,"940-538-6969"]
["44593","B/W Franklin Inn & Suites","Franklin","TX",null,"979-828-9090"]
["44594","B/W Express Inn","Anthony","TX","Ms. Gloria Maldonado","915-886-3333","glomaldonado@yahoo.com"]
["44595","B/W PLUS Northshore Inn","Portland","TX","Jane Gimler","361-777-3100","jane_gimler@hilton.com"]
["44596","B/W PLUS Lone Star Inn","Edna","TX","J. Takur","361-781-0500","jlthakore@Gmail.com; 44596@hotel.bestwestern.com"]
["44598","B/W Refugio Inn","Refugio","TX","Mr. Paresh Bhakta",null,"kbedoli@gmail.com"]
["44599","B/W PLUS Dos Rios","Junction","TX","Mr. Paul Ramsdell","325-446-3700","paul_ramsdell@hotmail.com"]
["44600","B/W PLUS Monahans Inn & Suites","Monahans","TX","Mr. Andy Patel","432-943-3360","anilpatel59@hotmail.com"]
["44601","B/W Limestone Inn & Suites","Mexia","TX","Al Patel","254-562-0200","bestwestern_mexia@yahoo.com"]
["44602","B/W South Plains Inn & Suites","Levelland","TX","JR Bhatka","806-894-9155","jrbindas@hotmail.com"]
["44603","B/W Lockhart Hotel & Suites","Lockhart","TX","Mr. Umesh Patel","512-620-0300","umesh@mphospitality.com"]
["44604","B/W Sugar Land Inn","Sugar Land","TX","Nick Bhakta","281-232-0680","pragp@hotmail.com & 44604@hotel.bestwestern.com"]
["44606","B/W Mineola Inn","Mineola","TX","Mr. Amit Patel","903-569-5331","kirit0223@hotmail.com"]
["44607","B/W Duncanville/Dallas","Duncanville","TX","Pankaj Lad","972-283-3000","44607@hotel.bestwestern.com"]
["44608","B/W Mt Pleasant Inn & Suites","Mt Pleasant","TX","Abdul Quadeer","903-572-5051","abdulqadeer@sbcglobal.net"]
["44609","B/W PLUS Sweetwater Inn & Suites","Sweetwater","TX","Hemanshu","325-236-6512"," bestwesternSw@yahoo.com"]
["44610","B/W PLUS Mansfield Inn & Suites","Mansfield","TX","Mr. Paresh Patel / Zan Patel","817-539-0707","44610@hotel.bestwestern.com"]
["44611","B/W PLUS Schulenburg Inn & Suites","Schulenburg","TX","BILL JONES","979-743-2030","44611@HOTEL.BESTWESTERN.COM"]
["44612","B/W Alpine Classic Inn","ALPINE","TX","Laura Fierro","432-837-1530","44612@hotel.bestwestern.com"]
["44615","B/W Littlefield Inn & Suites","Littlefield","TX","Hiren, Carl and Anita Bhakta - GM","806-385-3400","bhaktahotels@gmail.com; kartik_bhakta@yahoo.com"]
["44618","B/W PLUS Salado Inn","Salado","TX","Harry Patel","254-947-4001","Harrypatel1978@yahoo.com\r\nHarrypatel1978@yahoo.com"]
["44619","B/W Regency Inn & Suites","Longview","TX","Rod / Rajesh Patel / Amber Stewart","9032123333","exec-inn@extex.net; COPY BELOW EMAIL AS WELL"]
["44620","B/W PLUS Wylie Inn","Wylie","TX","Dellyn Lohmar","(972) 429 1771","BW75098@gmail.com"]
["44621","B/W Palace Inn & Suites","Big Spring","TX","Angela Pace","432-264-1500","balkarhayer@hotmail.com"]
["44623","B/W PREMIER at Old Town Center","Bryan","TX","Mike Smith","(972) 672-1815","mike@oldhamgoodwin.com"]
["44624","B/W PLUS Burleson Inn & Suites","Burleson","TX","MEHUL PATEL/ Dena Hamm DOS","817-744-7747","BESTWESTERNBURLESON@YAHOO.COM"]
["44625","B/W Hebbronville Inn","Hebbronville","TX","Blant Miller / Tommi Flores (Lady)","361-527-3600","tflores79@yahoo.com;"]
["44626","B/W Comanche Inn","Comanche","TX","Samir Bhakta","325-356-2300","44626@HOTEL.BESTWESTERN.COM"]
["44627","B/W PLUS Christopher Inn & Suites","Forney","TX","Dana Cleaver","903-885-3327","dana.cleaver@verizon.net"]
["44628","B/W PLUS Dallas Hotel & Conference Center","Dallas","TX","Pankaj Patel","949-857-1088","ppatel@innvestment.net"]
["44629","B/W Alamo Suites","San Antonio","TX","Jay Patel","210-472-1002","jpatel@baywoodhotels.com"]
["44630","B/W PLUS Atrea Hotel & Suites","San Antonio","TX","Ajay Patel / Neil","210-298-8880","Apatel24@aol.com"]
["44632","B/W PLUS Monica Royale Inn & Suites","Greenville","TX","Dana Cleaver","903-454-3700","DANA.CLEAVER@VERIZON.NET"]
["44633","B/W PLUS Livingston Inn & Suites","Livingston","TX","Marillyn (manager)","936-327-8500","HRamin58@hotmail.com; marilky9@aol.com"]
["44634","B/W PLUS San Antonio East Inn & Suites","San Antonio","TX","Rupesh Patel","210-661-8669","rupe4u@hotmail.com"]
["44635","B/W PLUS Katy Inn & Suites","Katy","TX","Barkat Ali / Sam Prasala - VM","832-640-0423","samprasla786@yahoo.com"]
["44637","B/W PLUS Manvel Inn & Suites","Manvel","TX","TJ Bhakta","281-489-2266","bwmanvel@yahoo.com"]
["44640","B/W PLUS Swiss Chalet Hotel & Suites","pecos","TX","Kurt Schlunegger - VM","830-895-5554","kurt@stx.rr.com"]
["44641","B/W Hondo Inn","Hondo","TX","Savan / Kalpesh Patel","8304264466","sbhakta12@yahoo.com"]
["44643","B/W Oasis Inn","Canadian","TX","Dilip Patel","806-683-0608","dilip59@sbcglobal.net"]
["44644","B/W PLUS Texoma Hotel & Suites","Denison","TX","Vijay Patel","972-548-3000","vjprsn@hotmail.com"]
["44646","B/W Bastrop Pines Inn","Bastrop","TX","Umesh Patel","512-321-0900","umesh@mphospitality.com"]
["44647","B/W Bowie Inn & Suites","Bowie","TX","Vishal Patel","940-627-1582","bestwesternsuites@gmail.com"]
["44648","B/W PREMIER Crown Chase Inn & Suites","Denton","TX","Dana Cleaver","903-885-3327","dana.cleaver@verizon.net"]
["44650","B/W Lamesa Inn & Suites","Lamesa","TX","Dave Bhakta","806-872-3888","Davebhakta74@gmail.com"]
["44651","B/W Park heights Inn & Suites","Cuero","TX","Dipak Patel","361-772-0670","dipak310@yahoo.com"]
["44653","B/W PLUS Palo Alto Inn & Suites","San Antonio","TX","Ajay Patel","210-298-9990","apatel24@aol.com"]
["44656","B/W Cowboy Inn","Cotulla","TX","Tomi Flores","361-358-0535","tflores79@yahoo.com"]
["44657","B/W PLUS University Inn & Suites","Wichita Falls","TX","Mehul Patel","940-687-2025","mehul.patel@yahoo.com"]
["44659","B/W Marlin Inn & Suites","Marlin","TX","DK Patel","214-441-9000","marlin00100@yahoo.com"]
["44660","B/W PLUS Midland Suites","Midland","TX","Ishvar Patel/Vijay Patel","432-218-7549","bwmidland@hotmail.com"]
["44661","B/W PLUS Royal Mountain Inn & Suites","Athens","TX","Prakash Patel/Peter Patel","903-292-1750","peterpatel71@yahoo.com"]
["44662","B/W Giddings Inn & Suites","Giddings","TX","Pratik Bhakta","979-542-5000","giddingshotel@ymail.com"]
["44663","B/W PLUS Huntsville Inn & Suites","Huntsville","TX","Amish Patel","936-295-9000","amish@lmg.cc"]
["44664","B/W PLUS Austin Airport Inn & Suites","Austin","TX","Amit Patel","(512) 771-6763","thospitality@gmail.com"]
["44665","B/W PLUS Rockwall Inn & Suites","Rockwall","TX","Himmat Chauhan","972-722-3265","oklahomahotels@gmail.com"]
["44667","B/W PLUS Blanco Luxury Inn & Suites","Blanco","TX","Bharat Patel","830-833-5697","bpatelwth@gmail.com"]
["44668","B/W PLUS Lytle Inn & Suites","Lytle","TX","Hasmukh Bhakta","210-317-1963","bestwesternplis@gmail.com"]
["44669","B/W PLUS Addison Galleria Hotel","Dallas","TX","Neil Shah","972-701-0881","sshah645@gmail.com"]
["44670","B/W PLUS Seawall Inn & Suites by the Beach","Galveston","TX","Ankur Patel/Jayendra Patel","281-935-9380","atfind@gmail.com"]
["44671","B/W PLUS Classic Inn & Suites","Center","TX","Casey Davis/Belinda Kaur","936-332-9003","casey_bw44215@yahoo.com; kaurb32@yahoo.com"]
["44672","B/W PLUS Emory at Lake Fork Inn & Suites","Emory","TX","Matt Tweedie / Sarah Cowart (AGM)","325-574-0213","bw.emory@gmail.com"]
["44673","B/W PLUS Goliad Inn & Suites","Goliad","TX","Yatin Bhakta","361-645-3100/361-645-9488","ybhakta@gmail.com"]
["44674","B/W PLUS Kenedy Inn","Kenedy","TX","Mitch/Champak (Charlie) Patel","830-583-2521","cpatel2459@sbcglobal.net"]
["44676","B/W PLUS Waco North","Bellmead","TX","Dipak Patel","254-799-1766","dipak1502@yahoo.com"]
["44677","B/W PLUS New Caney Inn & Suites","New Caney","TX","Billy Patel/Jayesh Bhakta","281-354-7222","newcaneyinn@gmail.com; none@notprovided.com"]
["44678","B/W PLUS Arlington North Hotel & Suites","Grand Prairie","TX","Kalpesh (Chris) Dahya","817-633-6311","gm.tx651@gmail.com"]
["44679","B/W PLUS Austin City Hotel","Austin","TX","Santosh Khanjee","512-444-0561","santosh@courtesyhotels.com"]
["44680","B/W PLUS JFK Inn & Suites","Houston","TX","Chris/Sanjay Patel","281-987-8777","jfkinnandsuites@gmail.com;patelsan04@yahoo.com"]
["44681","B/W PLUS Cutting Horse Inn & Suites","Weatherford","TX","Dilip (Don) Patel","817-599-3300","donpatelgm@yahoo.com"]
["44682","B/W PLUS Orange County","Vidor","TX","Kalpesh (Pesh) kumar Patel","409-422-4315","Kspesh@yahoo.com"]
["44683","B/W PLUS Atrium Inn","Schertz","TX","Yogesh (Yogi) Upa","210-651-4100","atrium@satx.rr.com"]
["44684","B/W PLUS Carrizo Springs Inn & Suites","Carrizo Springs","TX","Prakash (Paul) Patel","830-876-2500","laxmione@gmail.com"]
["44686","B/W Webster Hotel, NASA","Webster","TX","Nathan Overton/Brian Huguenard","281-338-6000","Nathan.overton@pmihotels.net;"]
["44687","B/W PLUS Pleasanton Hotel","Pleasanton","TX","Rajnikant (Raj) Patel","830-569-1917","gitaraj71@yahoo.com"]
["44688","B/W Czech Inn","West","TX","Kristi Marsh/Zachary (Zac) Lynn Bolton","254-826-0900","zac@boltonre.com; kristimarsh@rocketmail.com"]
["44689","B/W PLUS Georgetown Inn & Suites","Georgetown","TX","Joseph Wojdyla/Anna","512-868-8555","josephwojdyla@yahoo.com"]
["44690","B/W PLUS Longhorn Inn & Suites","Luling","TX","John Patel/Larry Williams/Nimesh (Nick) Patel","830-875-5442","socoworldwide@gmail.com; akan219@aol.com"]
["44691","B/W PLUS North Odessa Inn & Suites","Odessa","TX","Rajinder (Raji) Chhabra","432-614-4696","realtexrc@gmail.com"]
["44692","B/W PREMIER Ashton Suites Hotel","Houston","TX","Vibhuti (Vicky) Bhakta","No phone number yet","vickybhakta@gmail.com; bwwillowbrook@gmail.com"]
["44693","B/W PLUS Seminole Hotel & Suites","Seminole","TX","Chris Kumar","432-955-6200","bwseminole@gmail.com"]
["44694","B/W PLUS South Fort Worth Hotel","Fort Worth","TX","Wolfgang Pazem/Rajan (Raj) Patel","817-293-3088","rcpatel@statebnk.com"]
["44695","B/W PLUS Forest Hill Inn & Suites","Forest Hill","TX","Hetal Patel","817-726-5104","bestwesternplusforesthill@outlook.com"]
["44696","B/W PLUS Hobby Airport","Houston","TX","Kash/ Hinesh Patel","713-943-2700","hinesh5@yahoo.com"]
["44697","B/W East El Paso Inn","Clint","TX","Kishor Koladia","915-851-2882","kolkishor@yahoo.com"]
["44698","B/W PLUS Waxahachie Inn & Suites","Waxahachie","TX","Rajendra (Raj) & Dina Bhakta","972-938-1600","raj.bhakta@ymail.com"]
["44699","B/W PLUS Bayport Suites","Seabrook","TX","Daisy Dees","281-291-9090","ddees@amliberty.com"]
["44700","B/W Brooks City Base","San Antonio","TX","Chetan (Chet) Patel","210-265-8888","bava1201@yahoo.com"]
["44701","B/W PLUS Fort Stockton Hotel","Fort Stockton","TX","Vinod Gandhi","No phone yet","vgandhi755@gmail.com; hgandhi53@yahoo.com"]
["44702","B/W PLUS Laredo Inn","Laredo","TX","Bhadresh (Bud) Desai",null,"ramhotel1@aol.com; paresh0577@aol.com"]
["44703","B/W Orange","Orange","TX","Debbie Luther/Shiraz Davwa","409-745-9393","bworangehotel@yahoo.com"]
["44704","B/W PLUS Lake Jackson Inn & Suites","Lake Jackson","TX","Max Parcells/Bruno Cencini","281-687-0481","max@hsihotels; brunocencini@gmail.com"]
["44705","B/W PLUS College Station Inn & Suites","College Station","TX","Hetal Patel",null,"hpatel1976@yahoo.com"]
["44706","B/W PLUS El Paso Airport","El Paso","TX","Tasha Lockwood/Madhavan Nair","C: 931-237-0904","madhinair@gmail.com; t.lockwood@esperantodev.com"]
["44707","B/W PLUS Flatonia Inn","Flatonia","TX","Jay Sinojia",null,"jay.sinojia@gmail.com"]
["44708","B/W PLUS Love Field Airport","Dallas","TX","Ketan Masters","214-267-8400","ketanmasters@hotmail.com; wingatetx@gmail.com"]
["44709","B/W PLUS Woodway Waco South Inn & Suites","Woodway","TX","Nalin Patel","254-772-2227","nalinhiexp@yahoo.com"]
["44710","B/W TBD","El Paso","TX","Chetna Hira","915-584-2026","nickyjariwala@yahoo.com"]
["45001","B/W Butch Cassidy Inn","Beaver","UT","Wes McNeill - GM","435-438-2438","wesmcneill@yahoo.com"]
["45003","B/W El Rey Inn & Suites","Cedar City","UT","Steve Knell - GM, Doug Knell - owner","435-586-6518","bwelrey@infowest.com; stratfordcourt@netutah.com"]
["45005","B/W Red Hills","Kanab","UT",null,"435-644-2675"]
["45006","B/W Baugh Motel","Logan","UT","Liz Maughan - GM","435-752-5220","lizmaughan88@hotmail.com"]
["45016","B/W Travel Inn","Saint George","UT","Mr. Ed Wittwer - GM","435-673-3541","travelinn@infowest.com"]
["45023","B/W Coral Hills","Saint George","UT","John Kessler","435-673-4844","bwcoral@infowest.com"]
["45024","B/W PLUS Greenwell Inn","Moab","UT",null,"435-259-6151"]
["45027","B/W East Zion Thunderbird Lodge","Mount Carmel (Zion National Park Area)","UT","Gordon Miligan - GM","435-648-2203","GM@visiteastzion.info"]
["45028","B/W Town & Country Inn","Cedar City","UT","Jared Porter","435-586-9900","port6464@hotmail.com"]
["45029","B/W Paradise Inn & Resort","Fillmore","UT",null,"435-743-6895"]
["45040","B/W PLUS Ruby's Inn","Bryce","UT","Shaine Anderson - GM","435-834-5341","shaine@rubysinn.com; lance@rubysinn.com"]
["45041","B/W Paradise Inn of Nephi","Nephi","UT","Melanie - GM/Andrew","435-623-0624","andrew@national9inns.com; bwparadiseinn@yahoo.com"]
["45043","B/W Weston Inn","Logan","UT","Brad Wheelwright","435-752-5700","emailwestoninn@hotmail.com"]
["45050","B/W PLUS High Country Inn","Ogden","UT","Brandon Peterson","801-394-9474","bwhci@aol.com"]
["45056","B/W Antlers","Vernal","UT","Kim Hodgkinson","435-789-1202","45056@hotel.bestwestern.com"]
["45057","B/W Dinosaur Inn","Vernal","UT","Russ Henderson - VM","435-789-2660","russh@easilink.com"]
["45059","B/W PLUS Landmark Inn & Pancake House","Park City","UT","Julie Ovard","435-649-7300","Julie@Bwlandmarkinn.com"]
["45060","B/W Paradise Inn","Beaver","UT",null,"435-438-2455"]
["45061","B/W PLUS CottonTree Inn","North Salt Lake","UT","Erik Gumbrecht","801-292-7666","nslgm@bwcti.com"]
["45062","B/W Inn Tooele","Tooele","UT","Jenny / Joe England - VM","435-882-5010","45062@hotel.bestwestern.com"]
["45067","B/W PLUS Canyonlands Inn","Moab","UT",null,"435-259-2300"]
["45071","B/W PLUS Timpanogos Inn","Lehi","UT","Tina West","801-768-1400","45071@hotel.bestwestern.com"]
["45072","B/W PLUS Abbey Inn","Saint George","UT","Shayne Wittwer","435-652-1234","45072@hotel.bestwestern.com"]
["45073","B/W PLUS CottonTree Inn","Sandy","UT","Josh Larson","801-523-8484","josh@bwcti.com"]
["45075","B/W Mountain View Inn","Springville","UT","Arun Buhla","801-489-3641","abhula62@yahoo.com"]
["45076","B/W Carriage House Inn","Price","UT","Andy Chaudhari","435-637-5660","chaudhari001@gmail.com"]
["45077","B/W Zion Park Inn","Springdale (Zion National Park Area)","UT","Dean Cook - GM","435-772-3200","info@zionparkinn.com"]
["45079","B/W Holiday Hills","Coalville","UT",null,"435-336-4444"]
["45081","B/W Richfield Inn","Richfield","UT",null,"435-893-0100"]
["45082","B/W PLUS Bryce Canyon Grand Hotel","Bryce","UT","Bret Syrett / Shaine Anderson","435-834-5341","bret@rubysinn.com; shaine@rubysinn.com"]
["45083","B/W PLUS Canyon Pines","Uintah","UT","Merrill Pitcher / Dixon Pitcher","801-675-5534","info@jumping.com ; bwcanyonpines@comcast.net"]
["45085","B/W PLUS Layton Park Hotel","Layton","UT","Dixon Pitcher/Clint","801-896-0271","info@jumping.com; clint@jumping.com"]
["45086","B/W PLUS Airport Inn & Suites","Salt Lake City","UT","Tushar (Tom) Patel","801-428-0900","pateltom@hotmail.com"]
["45087","B/W PLUS Midvale Inn","Midvale","UT","Scott Nadel (VM)","801-566-4141","snadel@dmchotels.com"]
["45088","B/W PLUS Landmark Hotel","Ballard","UT","Stephen Henderson/Anna","435-725-1800","alonzo3983@hotmail.com"]
["45089","B/W PLUS Wendover Inn","Wendover","UT","Tushar (Tom) Patel","435-665-2215","pateltom@hotmail.com"]
["45090","B/W PLUS Zion West Hotel","La Verkin","UT","Brett/Darshin Joshi","7143158070","dj@anbhotels.com; bm@anbhotels.com"]
["45091","B/W PLUS Cedar City Hotel","Cedar City","UT","Jared Porter","435-586-9900","gm@bwtowncountry.com"]
["46001","B/W PLUS New Englander Motor Inn","Bennington","VT","Pam Patel - GM","802-442-6311","bwnewenglander@comcast.net"]
["46005","B/W PLUS Inn & Suites Rutland/Killington","Rutland","VT",null,"802-773-3200"]
["46008","B/W PLUS Ludlow Colonial Motel","Ludlow","VT","Dennis & Ann Mills","802-228-8188"]
["46013","B/W PLUS Windjammer Inn & Conference Center","South Burlington (Burlington Area)","VT","Karen Weishart","802-863-1125","karen@windjammergroup.com"]
["46014","B/W PLUS Waterbury - Stowe","Waterbury","VT","Melissa Moore","802-244-7822","mmoore@bwpws.com"]
["47030","B/W Lee Jackson Motor Inn","Winchester","VA","Janet Kline","540-662-4154","bwestern1@comcast.net"]
["47039","B/W Kings Quarters","Doswell (Richmond Area)","VA","Melinda Terrell","804-876-3321","melinda@bestwesternkingsquarters.com"]
["47059","B/W Central Plaza","Fredericksburg","VA","Steve Treon - Chief Ops Officer","540-786-7404","bwcentralplaza@aol.com"]
["47071","B/W Radford Inn","Radford","VA","Kim Moore/Sherry Cooper/Scott Huth - Dist Mgr","540-639-3000","s.cooper@guestsinc.com; k.moore@guestsinc.com"]
["47076","B/W Leesburg Hotel & Conference Center","Leesburg (Dulles Airport Area)","VA","Richard Menster","703-777-9400","r.menster@guestsinc.com"]
["47077","B/W PLUS Governors Inn","Richmond","VA",null,"804-323-0007"]
["47080","B/W Manassas","Manassas","VA","Daxa","703-368-7070","manassas.bw@gmail.com"]
["47081","B/W Staunton Inn","Staunton","VA","Gary Purvis or CRAIG ANDERSON","540-885-1112","47081@HOTEL.BESTWESTERN.COM"]
["47084","B/W Virginia Beach/Norfolk","Fredericksburg","VA","Steve Treon  / Loraine - GM","540-371-5050","bwfredericksburg@aol.com"]
["47087","B/W Center Inn","Virginia Beach (Norfolk Area)","VA","Mr. Rahul Patel","757-363-2500","47087@hotel.bestwestern.com"]
["47088","B/W of Lynchburg","Lynchburg","VA","Steve Coleman","434-237-2986","hotelmanager47088@gmail.com"]
["47089","B/W Emporia","Emporia","VA","Pam - Jagdish Patel","434-634-3200","47089@hotel.bestwestern.com\r\n jagdish43@yahoo.com"]
["47092","B/W PLUS Inn at Hunt Ridge","Lexington","VA","CRAIG ANDERSON/Gary Purvis","540-464-1500","47092@HOTEL.BESTWESTERN.COM"]
["47093","B/W Mount Vernon/Ft. Belvoir","Alexandria (Washington Area)","VA","Kathie Vance","703-360-1300","kvance@yourdchotels.com"]
["47094","B/W PLUS Inn at Valley View","Roanoke","VA","Gary Purvis","540-362-2400","47094@hotel.bestwestern.com"]
["47100","B/W Eastern Shore","Exmore","VA","Jackie Hinton","757-442-7378","bwhinton@yahoo.com"]
["47101","B/W Battlefield Inn","Manassas","VA","Judy Keen","703-361-8000","jkeen@sharconmgt.com"]
["47103","B/W Mountain View","Covington","VA","Cary Linkswiler","540-962-4951","sankarinc@aol.com"]
["47104","B/W Intown of Luray","Luray","VA","Roger Patel","540-743-6511","kisrajnit@yahoo.com"]
["47106","B/W Four Seasons South","Hillsville","VA","Jeanne McMickle/Sue","276-728-4136","47106@hotel.bestwestern.com"]
["47108","B/W of Wise","Wise","VA","Quinn Bowling - GM","276-328-3500","qbowling@verizon.net"]
["47109","B/W Fairfax","Fairfax City","VA","Stephen May","703-591-5500","47109@hotel.bestwestern.com"]
["47113","B/W Wytheville Inn","Wytheville","VA",null,"276-228-7300"]
["47114","B/W Potomac Mills","Woodbridge","VA",null,"703-494-4433"]
["47116","B/W Executive Hotel","Richmond","VA","Rupa/DH Shah VM/GM","804-672-7007","47116@hotel.bestwestern.com"]
["47117","B/W PLUS Holiday Sands Inn & Suites","Norfolk","VA","Chad","757-583-2621","chad@ghllcgroup.com"]
["47120","B/W Springfield","Springfield","VA",null,"703-922-6100"]
["47121","B/W Harrisonburg Inn","Harrisonburg","VA",null,"540-433-6089"]
["47122","B/W Windsor Inn & Suites","Danville","VA","Debbie Rosa - GM","434-483-5000","drosa70@yahoo.com; pgovindji3@yahoo.com"]
["47123","B/W PLUS Newport News Inn & Suites","Newport News","VA","Karan Shah","757-952-1182","Kjshah1978@gmail.com"]
["47125","B/W PLUS Chincoteague Island","Chincoteague Island","VA","Scott Chesson - GM/ Dawn Birch","757-336-6557","schesson@verizon.net;bwcidawn@verizon.net"]
["47126","B/W Lexington Inn","Lexington","VA",null,"540-458-3020"]
["47127","B/W Culpeper","Culpeper","VA",null,"540-825-1253"]
["47129","B/W PLUS Charlottesville Airport Inn & Suites","Charlottesville","VA",null,"434-985-1855"]
["47130","B/W PLUS Crossroads Inn & Suites","Zion Crossroads","VA","Amy Schifferle","(540) 832-1700","ajschifferle@aol.com"]
["47131","B/W PLUS Waynesboro Inn & Suites Conf Ctr","Waynesboro","VA","Colleen Fidley - GM","540-942-1100","bwwaynesboro@ntelos.net"]
["47132","B/W PLUS Oceanfront Virginia Beach","VIRGINIA BEACH","VA","Mr. Joe DaBiero","757-428-5370","JDaBiero@bestwersternoceanfront.com"]
["47133","B/W Rosslyn/Iwo Jima","Arlington","VA","Mary Ann Murray","703-524-5000","mmurray@yourdchotels.com"]
["47134","B/W Dulles Airport Inn","Sterling","VA","Shelby Clark - GM","703-652-2111","Shelby.Clark@bfsaulco.com"]
["47135","B/W PLUS Hopewell Inn","Hopewell","VA","Paul Patel","804-452-0025","parimal_21us@hotmail.com"]
["47136","B/W PLUS Richmond Airport Hotel","Sandston","VA","Michael Brown/Arun Kadimcherla","804-222-8200","prayapudi@aalliant.com"]
["47138","B/W PLUS Williamsburg Inn Historic Area","Williamsburg","VA","Shannon Hartig / Mo Mostasa","757-220-0880","SHARTIG@CARLTONHOSPITALITY.COM"]
["47139","B/W PLUS Aquia/Quantico Inn","Stafford","VA","Jim Bowen","540-659-0022","BWAQUIA@AOL.COM"]
["47142","B/W PLUS Glenn Allen Inn","Richmond","VA","Pratik Patel","(804) 266-3500","php225@gmail.com; hpatel3015@yahoo.com"]
["47143","B/W PLUS South Hill Inn","La Crosse","VA","Maldave Ratia (Dave)/Emma","434-955-2777","daveratia@gmail.com"]
["47144","B/W Sandcastle Ocean Front Hotel","Virginia Beach","VA","Chad Milburn/Varshid (Mr. Vee)Vachhani","757-428-2828","chad@ghllcgroup.com; vee@ghllcgroup.com"]
["47145","B/W PLUS Portsmouth-Chesapeake Hotel","Chesapeake","VA","Robyn Fuller","757-484-5800","rfuller@ltdmanagement.com"]
["47146","B/W Hampton Coliseum Inn","Hampton","VA","Alkesh (Cash) Patel","757-827-5052","alkeshcpatel@gmail.com"]
["48021","B/W Lakewood Motor Inn","Tacoma  (Lakewood Area)","WA","Jennie Joh","253-584-2212","bwlakewood@gmail.com ; hj3274@hotmail.com"]
["48045","B/W PLUS Lake Front Hotel","Moses Lake","WA",null,"509-765-9211"]
["48050","B/W Rivertree Inn","Clarkston","WA","Mr. Josh Mott and Ella Dilling","509-758-9551","jmott@dcmhotels.com; rivertreeinn@cableone.net"]
["48062","B/W Loyal Inn","Seattle","WA","Mr. Howard Cohen","206-682-0200","hcohen@bwexec-inn.com"]
["48068","B/W PLUS Executive Inn","Seattle","WA","Tim Cordodor","206-448-9444","tcordodor@bwexec-inn.com"]
["48070","B/W Aladdin Inn","Kelso","WA","Michael Lee - GM/Serena","360-425-9660","msl_89@yahoo.com"]
["48077","B/W Airport Executel","Seattle","WA","SCOTT BROWN","206-878-3300","SCOTT@WEDGWOODHMI.COM"]
["48083","B/W College Way Inn","Mount Vernon","WA","Karyn Tollefson  - GM / E.J. Yoo","360-424-4287","bwcollegewayinn@comcast.net"]
["48090","B/W PLUS Heritage Inn","Bellingham","WA","Todd Nathanson","360-647-1912","48090@hotel.bestwestern.com"]
["48092","B/W PLUS Harbor Plaza and Conference Center","Oak Harbor","WA","Andy Tift","360-679-4567","andy@hotelservicesgroup.com"]
["48100","B/W PLUS Skagit Valley Inn","Mount Vernon","WA","Laura Johnson","360-428-5678","laura@bwcti.com"]
["48101","B/W PLUS Lakeway Inn","Bellingham","WA","Steve Brenk","360-671-1011","steve@bellingham-hotel.com"]
["48106","B/W PLUS Plaza by the Green","Kent","WA","Andrew Hutchison / Sean","253-854-8767","gm@plazabythegreen.com"]
["48112","B/W PLUS Icicle Inn","Leavenworth","WA","Karl Rurther","509-548-7000","karl@icicleinn.com:audrey@iciclevillage.com"]
["48113","B/W Tumwater Inn","Tumwater (Olympia Area)","WA","Rick Zabroski - GM","360-956-1235","48113@hotel.bestwestern.com"]
["48115","B/W PREMIER Plaza Hotel & Conference Center","Puyallup (Tacoma Area)","WA","Lynn Wallace","253-848-1500","lwallace@bestwesternparkplaza.com"]
["48117","B/W PLUS Lighthouse Suites Inn","Ocean Shores","WA","Marilyn Marchel","360-289-2311","manager@bwlighthouse.com"]
["48118","B/W Sky Valley Inn","Monroe","WA","Chip Veatch","360-794-3111","psochang@gmail.com; chipbwki@hotmail.com"]
["48121","B/W PLUS The Inn at Horse Heaven","Prosser","WA","Josh Mott/Tom Denlea/Cody Bonham- GM","509-786-7977","mott.josh@gmail.com"]
["48122","B/W Cascadia Inn","Everett","WA","Alfred Victor","425-258-4141","avictor@bestwesterncascadia.com"]
["48124","B/W PLUS Walla Walla Suites Inn","Walla Walla","WA","Ms. Sharon Graese","509-525-4700","gmbw@gohighspeed.com"]
["48127","B/W PLUS Peppertree Airport Inn","Spokane","WA","Khara Nixon","509-624-4655","auburngm@peppertreeinns.com"]
["48128","B/W PLUS Pioneer Square Hotel","Seattle","WA","Ms. Jo Thompson","206-340-1234","pshsea@cablespeed.com"]
["48129","B/W PLUS Kennewick Inn","Kennewick","WA","Jim Gibson","509-586-1332","jimgibson@amerion.com"]
["48133","B/W PLUS Wesley Inn & Suites","Gig Harbor","WA","Cassidy Glaspie","253-858-9690","cassidy@wesleyinn.com"]
["48139","B/W Othello Inn","Othello","WA","Thonna Bodi","509-488-5671","bwephrata@msn.com"]
["48140","B/W PLUS Lincoln Inn","Yakima","WA","Edward Berrigan","509-453-8898","edwardb@lincolnandassociates.com"]
["48141","B/W Inn of Vancouver","Vancouver","WA","Pradeep Patel - VM","360-254-4000","p.t.patel@comcast.net"]
["48144","B/W PLUS Peppertree Auburn Inn","Auburn","WA","Khara Nixon","253-887-7600","auburngm@peppertreeinns.com"]
["48145","B/W PLUS Park Place Inn & Suites","Chehalis","WA",null,"360-748-4040"]
["48146","B/W PLUS Navigator Inn & Suites","Everett","WA",null,"425-347-2555"]
["48147","B/W Rama Inn","Ephrata","WA","Thona","509-754-7111","bwephrata@msn.com"]
["48148","B/W PLUS Ahtanum Inn","Yakima","WA","Josh Mott","509-248-9700","mott.josh@gmail.com"]
["48149","B/W PLUS Vancouver Mall Dr. Hotel & Suites","Vancouver","BC","Eloise Bolivar","360-256-0707","bwvanmall@qwest.com"]
["48152","B/W PLUS Peppertree Liberty Lake Inn","Liberty Lake","WA","Khara Nixon","509-755-1111","auburngm@peppertreeinns.com"]
["48153","B/W Chieftain Inn","Wenatchee","WA","MEILAN ZOOK","509-665-8585","MEILAN@BESTWESTERNCHIEFTAININN.COM"]
["48154","B/W PLUS Lincoln Inn & Suites","Ellensburg","WA",null,"509-925-4244"]
["48155","B/W Alderwood","Lynnwood (Seattle Area North)","WA","Jennifer Alphonse - GM","425-775-7600","bwalderwood@yahoo.com; jcole_bwalderwood@yahoo.com"]
["48157","B/W PLUS Bronco Inn","Ritzville","WA","Jessica Cruz","509-659-5000","gmbroncoinn@ritzville.com"]
["48159","B/W PLUS Pasco Inn & Suites","Pasco","WA","Jim Gibson","509-543-7722","jimgibson@amerion.com"]
["48161","B/W PLUS Snowcap Lodge","Cle Elum","WA","Sanjay / Jan","509-674-0200","DON'T EMAIL, use fax"]
["48162","B/W PLUS Grapevine Inn","Sunnyside","WA","Josh Mott/Pat - GM/ Tom Denlea","509-839-6070","48162@hotel.bestwestern.com"]
["48165","B/W PLUS Bainbridge Island Suites","Bainbridge Island","WA",null,"206-855-9666"]
["48166","B/W PLUS Tacoma Dome Hotel","Tacoma","WA",null,"253-272-7737"]
["48167","B/W PLUS Battle Ground Inn & Suites","Battleground","WA","Mr. Al Patel","360-687-8881","alkesh.patel@aahoa.com"]
["48168","B/W PLUS Edmonds Harbor Inn","Edmonds","WA","Steve","425-771-5021","stl.nwcm@yahoo.com"]
["48169","B/W PLUS Peppertree Inn at Omak","Omak","WA","Khara Nixon","509-422-2088","auburngm@peppertreeinns.com"]
["48170","B/W PLUS Wheatland Inn","Colfax","WA","Josh Mott / Tom Denlea","509-961-9961","tdenlea@futurelnk.net"]
["48171","B/W PLUS Evergreen Inn & Suites","Federal Way","WA","Kelsey","253-529-4000","operations@bwfederalway.com"]
["48172","B/W PLUS Parkersville Inn & Suites","Washougal","WA","Hitendra (Harry) Hajari / Jeff Brody","(503) 740-6644","hiteshhajari@gmail.com"]
["48173","B/W PLUS Lacey Inn & Suites","Lacey","WA","John Coughlan/Tammy Dickinson","704-333-1658","coughlanarchitect@gmail.com"]
["48174","B/W PLUS Silverdale Beach Hotel","Silverdale","WA","Bryan Shorb/Ranjit Johal","360-698-1000","randysjo79@yahoo.com"]
["48175","B/W PLUS Dayton Hotel & Suites","Dayton","WA","Linsey Forni/Eleanor Specht/Frederick (Fred) Smith","509-382-4790","frederick.smith@comcast.net"]
["48176","B/W PLUS Arlington/Marysville","Arlington","WA","Andy Tift/Tahnya Shafer","No phone number yet","andy@hotelservicesgroup.com;"]
["48177","B/W PLUS Aberdeen","Aberdeen","WA","Jasvir Singh Dhaliwal","360-537-7460","GHAberdeen@yahoo.com"]
["48178","B/W PLUS Rattlesnake Hills Inn","Zillah","WA","Josh Mott/Tom Denlea","509-829-3399","tdenlea@dcmhotels.com;t@dcmhotels.com"]
["48179","B/W PLUS City Center","Spokane","WA","Meredith Rainville","509-623-9727","meredith@spokanetravelodge.com"]
["49029","B/W Berkeley Springs Inn","Berkeley Springs","WV","Jay Beckham","304-258-9400","berkeleyspringsinn@verizon.net"]
["49030","B/W Logan Inn","Chapmanville","WV",null,"304-831-2345"]
["49032","B/W Huntington Mall Inn","Barboursville","WV","Mike Stephenson","304-736-9772","mike.bwhm@suddenlinkmail.com"]
["49033","B/W Mountaineer Inn","Morgantown","WV","Kari Everett","304-599-5399","karieverett_gands@hotmail.com"]
["49034","B/W Charleston Plaza Hotel","Charleston","WV","Raj or Ted","304-345-9779","ashap@swhm.com; rajg@swhm.com"]
["49035","B/W PLUS Bridgeport Inn","Bridgeport","WV","Betsy Nicholson","304-842-5411","bnicholson@bestwestern-bridgeport.com"]
["50021","B/W Inn","Rice Lake","WI","Mr. Tom Doyle","715-234-7017","50021@hotel.bestwestern.com"]
["50023","B/W Woods View Inn","West Milwaukee","WI","Ms. Colleen Swirth","414-671-6400","cswirth@bwwoodsviewinn.com"]
["50024","B/W Bridgeview Motor Inn","Superior","WI","Doug Petrin - GM","715-392-8174","50024@hotel.bestwestern.com"]
["50025","B/W Green Bay Inn Conference Center","Green Bay","WI","Chirag Dave/ Becky Hill","920-499-3161","davechirag@yahoo.com;bwrhill@aol.com"]
["50028","B/W Midway Hotel","Wausau","WI","Dan Gaab","715-842-1616","dan.gm@bwmidway.com; psm@mhcoffice.com"]
["50039","B/W Fox Valley Inn","Appleton","WI","Harry Patel","920-731-4141","50039@hotel.bestwestern.com"]
["50045","B/W Arrowhead Lodge & Suites","Black River Falls","WI",null,"715-284-9471"]
["50056","B/W PLUS Milwaukee Airport Hotel & Conf Center","Milwaukee","WI",null,"414-769-2100"]
["50058","B/W PLUS Riverfront Hotel","La Crosse","WI","Patti Stellmaker","608-781-7000","pattigm-lacrosse@bwmidway.com; psm@mhcoffice.com,"]
["50061","B/W PLUS Inn on the Park","Madison","WI",null,"608-257-8811"]
["50074","B/W Lake-Aire Motel & Resort","Tomahawk","WI","Paula Fieri - VM","715-453-5189","50074@hotel.bestwestern.com"]
["50082","B/W PLUS InnTowner & Highland Club","Madison","WI","Barb Bilky","608-233-8778","bbilky@InnTowner.com"]
["50085","B/W Maritime Inn","Sturgeon Bay","WI","Cindy Lammers/Mr. Ignatius Netto","920-743-7231","cindy@cindylammers.com/inetto1@yahoo.com"]
["50088","B/W Quiet House & Suites","Prairie Du Chien","WI","Lori Turner - VM","608-326-4777","50088@HOTEL.BESTWESTERN.COM"]
["50090","B/W Ambassador Inn & Suites","Wisconsin Dells","WI","Jamie Hristov - GM","608-254-4477","jamiemhristov@yahoo.com"]
["50092","B/W Baraboo Inn","West Baraboo (Baraboo Area)","WI","Agata Maslyk","608-356-1100","bestwestern@baraboo.com"]
["50093","B/W Riverfront Inn","Marinette","WI","Mr. K.C. Wilson","715-732-1000","kcwrf@yahoo.com"]
["50102","B/W West Towne Suites","Madison","WI",null,"608-833-4200"]
["50103","B/W Resort Hotel & Conference Center","Portage","WI","Rick Roesler - VM","608-742-2200","rroesler@palacenet.net"]
["50104","B/W Quiet House & Suites","Mequon","WI",null,"262-241-3677"]
["50106","B/W PLUS Derby Inn","Eagle River","WI","MARY HAYDEN","715-479-1600","DERBYINN@DERBYINN.COM"]
["50107","B/W Quiet House","Dodgeville","WI",null,"608-935-7739"]
["50110","B/W Northwoods Lodge","Siren","WI","Ms. Lisa Hobbie","715-349-7800","Lmhobbie@yahoo.com"]
["50111","B/W Park Oasis Inn","Mauston","WI","Leslie Householder- GM","608-847-6255","BWParkOasisInn@yahoo.com"]
["50115","B/W East Towne Suites","Madison","WI",null,"608-244-2020"]
["50116","B/W Waukesha Grand","Pewaukee","WI","Mr. V. J. Zala","262-524-9300","bwwaukesha@yahoo.com"]
["50118","B/W Executive Inn","Kenosha","WI",null,"262-857-7699"]
["50120","B/W American Heritage Inn","Spooner","WI","Susie- GM/Patrick Flynn - VM","715-635-9770","ctx15661@centurytel.net"]
["50121","B/W Stanton Inn","Chilton","WI","Ms. BJ Jaeckels","920-849-3600","stantoninn@stantoninn.com"]
["50122","B/W PLUS Sparta Trail Lodge","Sparta","WI","John Hoekstra - GM","608-269-2664","bwspartatraillodge@charterinternet.com"]
["50124","B/W PLUS Grand Seasons Hotel","Waupaca","WI",null,"715-258-9212"]
["50126","B/W PLUS Trail Lodge Hotel & Suites","Eau Claire","WI","Stacy Krall-GM","715-838-9989","stacy@traillodge-eauclaire.com"]
["50127","B/W PREMIER Bridgewood Resort Hotel","Neenah (Appleton Area)","WI","Bob Dove - GM/Barb Anderson","920-720-8000","rydove@bwneenah.com;banderson@bwneenah.com"]
["50129","B/W Lakefront Hotel","Manitowoc","WI","Diane Behnke","920-682-7000","dbehnke@bwlakefront.com"]
["50130","B/W Harborside & Conf. Center","Kenosha","WI",null,"262-658-3281"]
["50131","B/W Crandon Inn & Suites","Crandon","WI","Greg Webber","715-478-4000","bestwesterncrandon@frontiernet.net"]
["50132","B/W PLUS Concord Inn","MINOCQUA","WI","Barb Howard (GM)","715-356-1800","STAY@CONCORDINNOFMINOCQUA.COM"]
["50134","B/W Red Oak Inn","Wittenberg","WI","Ryan Jacobson/Pauline Johnson","715-253-3755","pjohnson@awardhospitality.net;"]
["50135","B/W Chequamegon Bay","Ashland","WI","Scott Uttley/Carrie Miller","715-682-9095","scottuttley@lakecast.com;generalmanager@hotelc.com"]
["50136","B/W Plover Hotel & Conference Center","Plover","WI","Shaun Meister/Vimesh Patel","708-687-4800","shaun.bestwestern@yahoo.com"]
["50137","B/W Tomah Hotel","Tomah","WI","Melanie Betthauser (GM)","608-372-3211","mbetthauser@wirthcompanies.com"]
["50139","B/W PREMIER Waterfront Hotel & Convention Center","Oshkosh","WI","Daniel Schetter","920-230-1900","dschetter@bwoshkosh.com"]
["50140","B/W Germantown Inn","Germantown","WI","Mukesh Dhanani","262-502-9750","dhanani66@yahoo.com"]
["50141","B/W PLUS Campus Inn","River Falls","WI","Miteshkumar (Mit) Shah","715-425-1045","msbwgm@yahoo.com"]
["50142","B/W PLUS to be Determined","Rothschild","WI","Pamela Heyroth","715-355-8900","Pamela@holidayinnwausau.com"]
["51004","B/W Sunset Motor Inn","Cody","WY","Ms. Danyel Chitwood","307-587-4265","dchitwood@bwsunset.com"]
["51006","B/W Dunmar Inn","Evanston","WY","Ms. Sandra Lowe","307-789-3770","51006@hotel.bestwestern.com"]
["51015","B/W Pioneer","Lusk","WY","Ann (GM) / Tom Wasserberger","307-334-2640","51015@hotel.bestwestern.com"]
["51018","B/W CottonTree Inn","Rawlins","WY","Mr. Jerome Oiterong","307-324-2737","joiterong@wyoming.com"]
["51023","B/W Outlaw Inn","Rock Springs","WY","Sandy McCormick - GM / Debbie","307-362-6623","mcchitwood@msn.com"]
["51024","B/W Sheridan Center","Sheridan","WY","Sarah Gisi/Gunter Orband","307-674-7421","sarahg@sheridancenter.com;"]
["51048","B/W Torchlite Motor Inn","Wheatland","WY","Suzi Cozad/Alice Bowman","307-322-4070","suzanne2006@att.net"]
["51054","B/W Tower Lodge","Gillette","WY",null,"307-686-2210"]
["51060","B/W Pinedale Inn","Pinedale","WY","Sue Kerr Asst Mngr","307-367-6869","Bestwestern1@centurytel.net"]
["51063","B/W at Sundance","Sundance","WY",null,"307-283-2800"]
["51066","B/W PLUS Plaza Hotel","Thermopolis","WY","Andy Layton","307-864-2939","bwthermopolis@hotmail.com"]
["51067","B/W Ramkota Hotel","Casper","WY","Matt Mooney","307-266-6000","51067@hotel.bestwestern.com"]
["51068","B/W Laramie Inn","Laramie","WY",null,"307-745-5700"]
["51069","B/W Devils Tower Inn","Hulett","WY","Ms. Rose Ann Olson","307-467-5747","olson95@msn.com"]
["51070","B/W PLUS Fossil Country Inn & Suites","Kemmerer","WY","Sherry Black","307-877-3388","shblack@hamsfork.net"]
["51071","B/W PREMIER Ivy Inn & Suites","Cody","WY","Danyel Chitwood/William (Bill) Garlow","307-587-2572","bestwesternivy@gmail.com"]
["51072","B/W PLUS Frontier Inn","Cheyenne","WY","Jennifer Gipfert","307-638-8891","jmerrill.twc@gwtc.net"]
["51073","B/W PLUS Casper Inn & Suites","Cody","WI","Lawrence Henjum (Travis)",null,"thenjum@midconetwork.com"]
["61005","B/W PLUS City Centre Inn","Edmonton","AB","Mr. Bob Shandro","780-479-2042","mm700@shaw.ca"]
["61020","B/W PLUS Sun Country","Medicine Hat","AB","Mr. Mark Deringer","403-527-3700","mderinger@fortisproperties.com"]
["61027","B/W Village Park Inn","Calgary","AB","Shahzad Cokar/Jason Clark","403-289-0241","scokar@villageparkinn.com"]
["61028","B/W PLUS Siding 29 Lodge","Banff","AB","Jason Henderson, GM/Elsa","403-762-5575","bws29lg@telusplanet.net ; emj_0220@yahoo.ca"]
["61029","B/W PLUS Westwood Inn","Edmonton","AB","Betty Freezin","780-483-7770","hotel@bestwesternwestwood.com"]
["61030","B/W Airport Inn","Calgary","AB","Shaundra Syme","403-250-5015","sales@bestwestern-airportinn.ca"]
["61033","B/W Cedar Park Inn","Edmonton","AB","Betty Frison","780-434-7411","gm@cedarparkinn.com"]
["61035","B/W PLUS Port O'Call Hotel","Calgary","AB","Mr. Yewkee Chea","403-291-4600","cheayk@hotmail.com"]
["61037","B/W PLUS Suites Downtown","Calgary","AB","Mr. George Dahbour","403-228-6900","george.bwsuites@shaw.ca\r\n\r\n george.bwsuites@sh"]
["61039","B/W Of Olds","Olds","AB","Peter Em - GM","403-556-5900","peter_em@hotmail.com"]
["61040","B/W Airdrie","Airdrie","AB","Gurkamal Kullar","403-948-3838","gurkamal.kullar@bestwesternairdrie.com"]
["61041","B/W Strathmore Inn","Strathmore","AB","Jun Lee","403-934-5777","tammylcooper@gmail.com"]
["61042","B/W PLUS Denham Inn& Suites","LeDuc","AB",null,"780-986-2241"]
["61043","B/W PLUS Pocaterra Inn","Canmore","AB","Jesse Guest","403-678-4334","gm@pocaterrainn.com"]
["61044","B/W White Wolf Inn","Hinton","AB","Cindy MacCleod, GM","780-865-7777","BWwhitewolf@shawbiz.ca"]
["61045","B/W High Road Inn","Edson","AB","John Martini - VM / Donna Brown","780-712-2378","gm@highroadinn.com"]
["61049","B/W PLUS Calgary Centre Inn","Calgary","AB","Mr. Jim Gurnett","403-287-3900","info@bwcalgarycentre.com"]
["61052","B/W Wayside Inn","Wetaskiwin","AB","Kent Sjolin","780-312-7300","ks.bwway@telus.net"]
["61057","B/W Grand Prairie","Grand Prairie","AB","Treena Coney","780-402-2378","gm@bestwesterngrandeprairie.com"]
["61059","B/W Westlock","Westlock","AB","Alnoor Charania/Jeremy Bond","780-349-4102","acharania@telus.net"]
["61061","B/W Cold Lake Inn","Cold Lake","AB","Crystal/Jun Lee - VM","780-594-4888","61061@hotel.bestwestern.com"]
["61062","B/W PLUS Red Deer Inn & Suites","Red Deer","AB","Raymond Kramer - GM","403-346-3555","manager@bestwesternreddeer.com"]
["61066","B/W Rocky Mountain House - AB","Rocky Mountain House","AB","Wayne Nuefeld","403-844-3100","61066@hotel.bestwestern.com"]
["61069","B/W Diamond Inn","Three Hills","AB",null,"403-443-7889"]
["61072","B/W Sunrise Inn","Stony Plain","AB","Dave Snider / Rochelle","403-609-4656","d.snider@telus.net; dittmer.r@shaw.ca,"]
["61073","B/W Jasper Inn","Jasper","AB","Diana / Shawnee / David Snider","780-852-4461","d.snider@telus.net; shawneewilson@jasperinn.com"]
["61074","B/W Innisfail Inn","Innisfail","AB","Shaundra Symes / Carlson, Jeff","403-227-4405","61074@hotel.bestwestern.com"]
["61075","B/W Bonnyville Inn & Suites","Bonnyville","AB","Ms. Allison Nonay","780-826-6226","anonay@telus.net"]
["61076","B/W PLUS Mirage Hotel & Resort","High Level","AB","Said Morad/Tareq or Mark Morad","(780) 926-0642","mmorad@me.com;tmorad@me.com"]
["61077","B/W Inn & Suites Wainwright","Wainwright","AB","Trina Forward","780-845-9934","trinalee79@live.com;achiever@telus.net"]
["61078","B/W PLUS South Edmonton Inn & Suites","Edmonton","AB","Farid Janmohamed","780-801-3580","Home7@shaw.ca"]
["61079","B/W Rimstone Rimstone Ridge Hotel","Rimbey","AB","Cordell Stanley Cummings/Karen","403-843-2997","cordell@sjcdc.ca; gm@bwrimbey.com"]
["61081","B/W PREMIER Freeport Inn & Suites","Calgary","AB","Alim Jessa","(403) 690-3995","alim_jessa@hotmail.com"]
["61082","B/W PLUS The Inn at St. Albert","Saint Albert","AB","Susie Goodwin","780-470-0037","susie@grandeprairieonline.com"]
["61083","B/W PLUS Chateau Inn Sylvan Lake","Sylvan Lake","AB","Veronica Piegsa/Terri Tisdale/Richard(Rick)Piegsa","(403) 392-4425","veronicapiegsa@telus.net; rick.smugglers@telus.net"]
["61085","B/W PLUS Camrose Resort & Casino","Camrose","AB","Dawn Anderson","780-679-0904","danderson@camroseresortcasino.com"]
["61086","B/W PLUS Sherwood Park Inn & Suites","Sherwood Park","AB","Susie Goodwin/Joey Mouallem","(780) 416-7800","susie@grandeprairieonline.com"]
["61087","B/W PLUS Mountainview Inn & Suites","Sundre","AB","Cynthia Meikle","403-638-0002","cynthia.meikle@totemgroup.ca"]
["61088","B/W PLUS Peace River Hotel & Suites","Peace River","AB","Hoon Lee/Tae Ho Lee","780-617-7600","hoon1971@hotmail.com; pobae95@gmail.com"]
["61089","B/W PLUS Meridian Hotel","Lloydminster","AB","Marlene Neumann","780-875-8884","m.neumann@westharvest.ca"]
["61090","B/W PLUS Redwater Inn & Suites","Redwater","AB","Jangwon (Steve) Suh","780-943-4413","honet69@naver.com"]
["61091","B/W Fox Creek","Fox Creek","AB","Jason So","780-417-9405","email@jasonso.ca"]
["61092","B/W PLUS Sawridge Suites","Fort McMurray","AB","Erin McKay","780-395-2491","emckay@sawridge.com"]
["61093","B/W PLUS Okotoks Inn & Suites","Okotoks","AB","Roanne Bodnarchuk","403-995-0711","roanneb@bwohospitality.com"]
["61094","B/W PLUS Service Inn & Suites","Lethbridge","AB","Bruce Primeau/Mary Ann","403-329-6844","gm@bestwesternlethbridge.ca"]
["61095","B/W PLUS Fort Saskatchewan Inn & Suites","Fort Saskatchewan","AB","Sung Soo (Charles) Kim",null,"cleroskim@yahoo.com"]
["61096","B/W PLUS Executive Residency Drayton Valley","Drayton Valley","AB","Mr. Joey Mouallem","780-849-4773","joey@mouallemgroup.com"]
["61097","B/W PLUS Edmonton Airport Hotel","Leduc","AB","Perry Batke","780-986-6550","pbatke@denhaminn.com"]
["62001","B/W PLUS Kelowna Hotel & Suites","Kelowna","BC","Rosemary Patterson, GM","250-860-1212","BWGM@DISCOVERKELOWNA.COM"]
["62024","B/W PLUS Kings Inn & Conference Centre","Burnaby (Vancouver Area)","BC","Vivian","604-438-1383","vivian@bestwesternkingsinn.com"]
["62025","B/W PLUS Sands","Vancouver","BC","Jeff Cox/Craig Prystay, GM","604-682-1831","prystay@telus.net"]
["62027","B/W PLUS Inn at Penticton","Penticton","BC","Ms. Betsy Hogg","250-493-0311","62027@hotel.bestwestern.com"]
["62030","B/W Bakerview Inn","Abbotsford","BC","Janice McDonald GM","604-859-1341","janice@shawcable.com"]
["62037","B/W PLUS Coquitlam Inn Convention Centre","Coquitlam (Vancouver Area)","BC","Diane Stemler / Lindsey","604-931-9011","dstemler@bestwesterncoqinn.com"]
["62046","B/W PLUS Chateau Granville","Vancouver","BC","Philip Bryant/Kurt","604-669-7070","pbryant@chateaugranville.com"]
["62054","B/W PLUS Langley Inn","Langley","BC","Amin Hirji / Ms. Rubina Tejpar","604-530-9311","rubina@telus.net; stay@bestwesternlangley.com"]
["62055","B/W Rainbow Country Inn","Chilliwack","BC","Kevin Wood/Sarah Alderson","604-795-3828","kwood@rainbowcountryinn.com"]
["62058","B/W PLUS Abercorn Inn","Richmond","BC",null,"604-270-7576"]
["62059","B/W PLUS Emerald Isle Motor Inn","Sidney (Victoria Airport Area)","BC","Thaylin Parrish","250-656-4441","dugnthay@shaw.ca"]
["62063","B/W PLUS Carlton Plaza Hotel","Victoria","BC",null,"250-388-5513"]
["62065","B/W Capilano Inn & Suites","North Vancouver (Vancouver Area)","BC","Zahir Pirani, GM","604-987-8185","bwcapilano@direct.ca"]
["62067","B/W PLUS Country Meadows Inn","Aldergrove (Langley Area)","BC","Venkatesh Srinivasan","604-856-9880","countrymeadows@shawcable.com"]
["62068","B/W Cowichan Valley Inn","Duncan","BC","Kurt Pyrch - Managing Dir","250-748-2722","kpyrch@cowichanvalleyinn.com"]
["62072","B/W PLUS Regency Inn & Conference Centre","Abbotsford","BC","Mr. Mebs Tejpar","604-853-3111","mebsTejpar@shaw.ca"]
["62075","B/W PLUS Inner Harbour","Victoria","BC","Rachel / Joann Mills, GM","250-384-5122","62075@hotel.bestwestern.com"]
["62076","B/W PLUS Dorchester Hotel","Nanaimo","BC","Paul Tilroe, GM","250-754-6835","nfo@dorchesternanaimo.com"]
["62079","B/W Tin Wis Resort Lodge","Tofino","BC","Paul Dodds","250-725-4445","manager@tinwis.com"]
["62081","B/W Invermere Inn","Invermere","BC","Todd Mitchell, Owner/GM","250-342-9246","invinn@telus.net"]
["62083","B/W PLUS Chelsea Inn","Coquitlam","BC","Jim Young - GM","604-525-7777","Sales@bestwesternchelseainn.com"]
["62084","B/W PLUS Vernon Lodge & Conference Center","Vernon","BC","Heeson Domay/Craig Prystay, GM","250-545-3385","heeson@rpbhotels.com ; prystay@telus.net"]
["62085","B/W Mountainview Inn","Golden","BC","Sabestion Hoffsetter / Stephanie Young","250-344-2333","62085@hotel.bestwestern.com"]
["62087","B/W PLUS Austrian Chalet","Campbell River","BC","Selena Rodger, Mgr/Cathy","250-923-4231","selena@uniserve.com; info@bwcampbellriver.com"]
["62092","B/W PLUS Downtown Vancouver","Vancouver","BC","Ronald Mon-Kau","604-669-9888","rmk@bestwestern.com; RMK@BESTWESTERNDOWNTOWN.COM"]
["62096","B/W PLUS Baker Street Inn & Convention Centre","Nelson","BC","Ryan Martin, GM","250-352-3525","RMARTIN@NETIDEA.COM"]
["62099","B/W PLUS Columbia River Hotel","Trail","BC","Andrew Rogers - GM","250-368-3355","bwtn@telus.net"]
["62100","B/W PLUS Sunrise Inn","Osoyoos","BC","Jennifer Ziajka","250-495-4000","JZiajka@telus.net"]
["62101","B/W PLUS Terrace Inn","Terrace","BC","Anin","250-635-0083"]
["62102","B/W PLUS Barclay Hotel","Port Alberni","BC","Peter G. Mugleston","250-724-7171","peter@bestwesternbarclay.com"]
["62103","B/W PLUS Mission City Lodge","Mission","BC","Lei Carhoun","604-820-5500","bwmission@telus.net"]
["62104","B/W Northgate Inn","Nanaimo","BC","Melissa Townsend - GM","250-390-2222","gm@bestwesternnorthgate.com"]
["62105","B/W PLUS Fernie Mountain Lodge","Fernie","BC","Wojtek / Tim Greiner - GM","250-423-5500","info@bestwesternfernie.com"]
["62106","B/W PLUS King George Inn & Suites","Surrey","BC","Rick Sair - GM","604-502-9000","bwkinggeorgeinn@telus.net"]
["62107","B/W PLUS Tower Inn","Quesnel","BC","Julie Lembke/ Donald","250-992-2201","juliebwtowerinn@shaw.ca"]
["62108","B/W Sicamous Inn","Sicamous","BC","Tim Corless - VM","250-836-4117","corless@cablelan.net"]
["62111","B/W PLUS Uptown Hotel","Vancouver","BC","Rick Sair - GM","604-267-2000","info@bestwesternvancouver.ca"]
["62113","B/W PLUS Chemainus Inn","Chemainus","BC","Lou Roelofson","250-246-4181","generalmanager@festivalinn.ca"]
["62115","B/W Salmon Arm Inn","Salmon Arm","BC","Shane Park - GM","250-832-9793","shanepark22@gmail.com"]
["62116","B/W PLUS The Westerly Hotel & Convention Centre","Courtenay","BC","Jonathan Cross - VM/Corrin Berg","250-338-7741","j.cross@thewesterlyhotel.com ;c.berg"]
["62117","B/W Peace Arch Inn","Surrey","BC","DILRAJ BAINS","604-541-8100","STAY@PEACEARCHINN.COM"]
["62118","B/W Mountain Retreat Hotel","Squamish","BC","Marscine Pankewicz/Barbara Clemdemming - GM","604-815-0883","mpankewi@telus.net"]
["62119","B/W Cranbrook Hotel","Cranbrook","BC","Ms. Karen Harris","250-417-4002","karen@prestigehotels.ca"]
["62120","B/W PLUS Valemount Inn & Suites","Valemount","BC","Christine Latimer","250-566-0086","62120@hotel.bestwestern.com"]
["62121","B/W PLUS Wine Country Hotel & Suites","Westbank","BC","Karen Stevenson","(250) 707-1637","info@bestwesternwinecountry.com"]
["62122","B/W PLUS Kamloops Hotel","Kamloops","BC","Tim Rogers/John Hampel","250-374-7878","johnhampel@shaw.ca"]
["62126","B/W PLUS Revelstoke","Revelstoke","BC","Brady Beruschi","(250) 837-2107","brady@regentinn.com"]
["62127","B/W Hotel Maple Ridge","Maple Ridge","BC","Tammy Bertagnolli/Jaswant Singh Dhadda (jas)","604-467-1511","dhaddaholdings@hotmail.com"]
["62128","B/W Williams Lake Hotel","Williams Lake","BC","Bal and Paul Sangha","(778) 412-9000","kamloopsalpine@hotmail.com;"]
["62129","B/W PREMIER The Prestige Oceanfront Resort","Sooke","BC","Benjamin Leversedge","250-642-0805","benjamin@prestigehotels.ca"]
["62130","B/W PLUS Prestige Inn Radium Hot Springs","Radium Hot Springs","BC","Sandra Shaw","250-347-2300","sshaw@prestigehotels.ca"]
["62501","B/W Gold Rush Inn","Whitehorse","YT","James McCullough","867-668-4500","reservations@yukonhotels.com"]
["63011","B/W PLUS Charter House Hotel Downtown Winnipeg","Winnipeg","MB","John Savard","204-942-0101","info@bwcharterhouse.com"]
["63012","B/W PLUS Pembina Inn & Suites","Winnipeg","MB","Laurie Good","204-269-8888","lgood@shawcable.com"]
["63014","B/W Thompson Hotel & Suites","Thompson","MB","Danielle Streilein/Anthony Chang/Elaine Grundy","204-794-9698","egrundy@tcent.com; tchang@tcent.com;"]
["63015","B/W Brandon Inn","Brandon","MB","David Hwang/John Anderson","604-464-8013","gm@bestwesternbrandon.com"]
["63016","B/W PLUS Winnipeg West","Headingley","MB","Erica Eden/Bob Fitchner","204-487-3802","e.leeeden11@hotmail.com; fitch@shawcable.com"]
["63017","B/W PLUS Winnipeg Airport Hotel","Winnipeg","MB","Kim Hillock","204-775-9899","khillock@fortisproperties.com"]
["64003","B/W PLUS Manoir Adelaide Dalhousie","Dalhousie (Campbelton Area)","NB","Rolande / Jimmy Abud, Owner","506-684-5681","Jimmy@nbnet.nb.ca"]
["64007","B/W PLUS Moncton","Moncton","NB",null,"506-388-0888"]
["64008","B/W PLUS Grand-Sault Hotel & Suites","Grand Falls","NB","Lilly Richards","506-473-6200","lilly@bestwesterngrandsault.com"]
["64009","B/W PLUS Woodstock Hotel & Conference Centre","Woodstock","NB",null,"506-328-2378"]
["64010","B/W PLUS Saint John Hotel & Suites","Saint John","NB","Jasmine Lee","506-657-7907","JASMINE@BESTWESTERNSJ.CA"]
["64011","B/W PLUS Fredericton Hotel & Suites","FREDERICTON","NB","Ken Barkhouse","506-455-8448","RESERVATIONS@BESTWESTERNFREDERICTON.COM"]
["64012","B/W PLUS Edmundston Hotel","Edmundston","NB","Marc Michaud","506-739-0000","Marc.Michaud@rogers.com"]
["64014","B/W PLUS Bathurst Hotel & Suites","Bathurst","NB","Kamini Ghirra","902-446-3785","kamini712@yahoo.com"]
["65003","B/W PLUS Glengarry Hotel","Truro","NS","Janet Robben","902-893-4311"," jrobben@bwglengarry.com"]
["65007","B/W Aurora Inn","Kingston (Greenwood Area)","NS","Tom McNeil - GM","902-765-3306","65007@hotel.bestwestern.com"]
["65009","B/W Mermaid","Yarmouth","NS","Sheri Needham, GM","902-742-7821","yarmouth@bwmermaid.com"]
["65012","B/W PLUS Chocolate Lake Hotel","Halifax","NS","Tammy White","902-477-5611","twhite@chocolatelakehotel.com"]
["65013","B/W PLUS Dartmouth Hotel & Suites","Dartmouth","NS","Ron Miller GM","902-463-2000","rmiller@bestwesterndartmouth.com"]
["65014","B/W PLUS Liverpool Hotel & Conference Centre","Liverpool","NS","Melissa / jennifer head","902-354-2377","melissa.robinson@bwliverpool.ca"]
["65015","B/W PLUS Bridgewater Hotel & Conv Ctr","Bridgewater","NS","Vanessa / Christina Wentzell","902-541-0227","cwentzell@bestwesternbridgewater.com"]
["66001","B/W PLUS Cairn Croft Hotel","Niagara Falls","ON","Maureen Cade/Christine Macleod","905-356-1161","maureen@cairncroft.com; pcmaclead@rogers.com"]
["66003","B/W Fallsview","Niagara Falls","ON","Nancy McIntosh/Brian Kerr","905-356-0551","nancyjmcintosh@hotmail.com"]
["66006","B/W PLUS Dryden Hotel & Conference Centre","Dryden","ON","Ms. Sandra Boyko","807-223-3201","sandra.bestwestern@drytel.net"]
["66007","B/W Crossroads Motor Inn","Thunder Bay","ON","Mike Poleck GM","807-577-4241","crossroadsbw@shaw.ca"]
["66015","B/W PLUS Guildwood Inn","Sarnia","ON","Dena Kent, GM","519-337-7577","generalmanager@guildwoodinn.com"]
["66016","B/W PLUS Lamplighter Inn & Conference Center","London","ON",null,"519-681-7151"]
["66017","B/W PLUS Fireside Inn","Kingston","ON","Jason Hanmore","613-549-2211","firesideadmin@kos.net"]
["66019","B/W PLUS Parkway Inn & Conference Centre","Cornwall","ON","Anne Drouin","613-932-0451","adrouin@bestwesterncornwall.com"]
["66023","B/W PLUS Ottawa City Centre","Ottawa","ON","Niran Abeysinghe/Darren Ryan","613-728-1951","niran@stayinnhospitality.ca"]
["66027","B/W Sword Motor Inn","Bancroft","ON","ELSA LEE / Ken Willcocks - VM","613-332-2474","66027@HOTEL.BESTWESTERN.COM"]
["66033","B/W Belleville","Belleville","ON","Ryan Williams, GM","613-969-1112","ryanwilliams@sympatico.ca"]
["66036","B/W PLUS Brant Park Inn & Conference Centre","Brantford","ON","Rachel Kooyman","519-753-8651","rachel@brantparkinn.com"]
["66037","B/W PLUS Toronto Airport Hotel","Mississauga (Toronto Airport Area)","ON","John Chung - GM","905-670-8180","john.chung@bwtoronto.com"]
["66038","B/W PLUS Cobourg Inn & Convention Centre","Cobourg","ON","Kelly Selvig / Brad Willcocks, GM","905-372-2105","kselvig.bwcobinn@eagle.ca"]
["66039","B/W Pembroke Inn & Conference Centre","Pembroke","ON","Lorraine Pecoskie","613-735-0131","bgm@bestwesternpembroke.com"]
["66042","B/W PLUS Rose City Suites","Welland","ON","Ann Gilmette, GM","905-732-0922","anneg@bestwesternniagara.com"]
["66045","B/W Little River Inn","Simcoe","ON","Debbie Burk, FOM","519-426-2125","littleriverinn@bellnet.ca;debraburk1@sympatico.ca"]
["66046","B/W Colonel by Inn","Smith Falls","ON",null,"613-284-0001"]
["66050","B/W PLUS Ottawa/Kanata Hotel & Conference Centre","Ottawa","ON","Altaf Bhuljo, Controller","613-828-2741","abhulji@bestwesternbaronshotel.com"]
["66052","B/W Primrose Hotel Downtown-Toronto","Toronto","ON","Steve Morris, Dir of Ops","416-977-8000","steve@torontoprimrosehotel.com"]
["66053","B/W Royal Oak Inn","Barrie","ON","Holly Houle FOM/Anil Patel,owner/gm","705-721-4848","bestwestern66053@rogers.com;royaloakinn@rogers.com"]
["66054","B/W Parkway Hotel Toronto North","Richmond Hill (Toronto Area)","ON","Nathan Thavarajavel","905-881-2600","suzannemarshall@sheratonparkway.com"]
["66055","B/W PLUS Nor'Wester Hotel & Conference Centre","Thunder Bay","ON","Ms. Roberta Sawchyn","807-473-9123","rsawchyn@nwresort.com"]
["66058","B/W North Bay Hotel & Conference Centre","North Bay","ON","Ms. Ruth St. Phard","705-474-5800","whg4601@whg.com"]
["66059","B/W PLUS Victoria Park Suites","Ottawa","ON","Ryan Young","613-567-7275","ryan@victoriapark.com"]
["66060","B/W PLUS Highland Inn & Conference Centre","Midland","ON","Aziz Abid","705-526-9307","aziz@bestwesternmidland.com"]
["66064","B/W PLUS Otonabee Inn","Peterborough","ON","Allen Morrison, GM","705-742-3454","allen@bestwesternotonabeeinn.com"]
["66065","B/W Voyageur Place Hotel","Newmarket","ON","Shelley Robertson","905-895-2131","srobertson-bw@bellnet.ca"]
["66066","B/W Lakeside Inn & Conference Center","Kenora","ON",null,"807-468-5521"]
["66068","B/W PLUS Roehampton Hotel & Suites","Toronto","ON","Wick Supun","416-487-5101","gm@bwroehampton.com"]
["66070","B/W Inn on the Bay","Owen Sound","ON",null,"519-371-9200"]
["66073","B/W PLUS Governor's Inn","Kincardine","ON","Ms. Claudia Henschel","519-396-8242","kin-gov@bmts.com"]
["66077","B/W Swan Castle Inn","Cochrane","ON","Renee Vezeau  - GM","705-272-5200","bwswanci@puc.net"]
["66080","B/W PLUS Cambridge Hotel","Cambridge","ON","Carmine Stumpo, GM","519-623-4600","gm@bwcambridge.com"]
["66081","B/W Downtown Sudbury Centreville","Sudbury","ON","Surinder Makkar, Owner/GM","705-673-7801","salesbw@bellnet.ca;surindermakkar@hotmail.com"]
["66083","B/W PLUS Brampton","Brampton (Toronto Airport Area)","ON","Satyen Pandey","905-454-1300","gm@bwbrampton.com"]
["66085","B/W PLUS Stoneridge Inn & Conference Centre","London","ON","Natalie Johnson - VM","519-652-6022","info@stoneridgeinn.com"]
["66086","B/W PLUS Travel Hotel Toronto Airport","Toronto (Toronto Airport Area)","ON","Akbar Kabir - GM","416-620-1234","bestwestern@travelinn.ca"]
["66087","B/W Inn On The Hill","Georgetown (Toronto Area)","ON","Ashik Pirbay, VM","905-877-6986","bwinn@cogeco.net"]
["66088","B/W PLUS Executive Inn","Toronto (Scarborough Area)","ON","Andy Farooqui (GM)","416-430-0444","afarrooqui@executiveinnontario.ca"]
["66090","B/W PLUS Burlington Inn & Suites","Burlington (Hamilton Area)","ON","AKBAR AHMED","905-639-2700","66090@HOTEL.BESTWESTERN.COM"]
["66091","B/W Country Squire Resort","Gananoque","ON","Harjinder Randav","613-382-3511","randavh@yahoo.ca"]
["66092","B/W PLUS Couchiching Inn","Orillia","ON","Scott Hammond","705-325-6505","scott@bwcouchichinginn.com"]
["66093","B/W Sioux Lookout Inn","Sioux Lookout","ON","Barb Ducas","807-737-4444","Bwsl@gosiouxlookout.com"]
["66094","B/W PLUS Durham Hotel & Conference Centre","Oshawa","ON",null,"905-723-5271"]
["66095","B/W Renfrew Inn","Renfrew","ON","Nishan De Silva/GM","613-432-8109","bestwesternrenfrew@gmail.com"]
["66096","B/W Colonel Butler Inn","Niagara on the Lake","ON","Derrick Medcalf","905-468-3251","derrick@colonelbutlerinn.com"]
["66098","B/W PLUS Muskoka Inn","Huntsville","ON",null,"705-788-3345"]
["66099","B/W PLUS Orangeville Inn & Suites","Orangeville","ON","Gabrielle Clarance","519-941-3311"]
["66100","B/W PLUS Mariposa Inn & Conference Centre","Orillia","ON","Scott Hammond","705-325-9511","scott@mariposainn.ca"]
["66101","B/W PLUS Milton","Milton","ON","Shamin Warren","905-875-3818","shamimwarren@gmail.com"]
["66103","B/W PLUS Royal Brock Hotel & Conference Centre","Guelph","ON","Ketan Nagra","519-836-1240","knagra.ramada@rogers.com"]
["66105","B/W St. Catharines/Niagara","Saint Catharines","ON","Peter Behring/John Nitsopoulos","905-934-8000","holiday@niagara.com"]
["66107","B/W PREMIER C Hotel by Carmen's","Hamilton","ON","Joseph Mercanti","905-387-9490","jmercanti@carmens.com"]
["66108","B/W PLUS Kitchener-Waterloo","Kitchener","ON","Meenesh Gopal","519-894-3500","meenesh@ginvestments.ca"]
["66110","B/W PLUS Fergus Hotel","Fergus","ON","Tony/Renata","519-843-2100","tony@cyberdon.com"]
["66111","B/W Walkerton East Ridge Hotel","Walkerton","ON","Bonnie Petro","226-436-3030","WERH.group@cfl.rr.com; hotel@werhgroup.com"]
["66112","B/W PLUS Perth Parkside Inn & Spa","Perth","ON","Bob Mulrooney","613-326-0082","bobmulrooney@saumuregroup.com"]
["66113","B/W PLUS Toronto North York Hotel & Suites","Toronto","ON","Jayantilal Panchal/Shankar","416-663-9500","shankar@ihgcanada.com; panchaljay@hotmail.com"]
["66114","B/W Bowmanville","Bowmanville","ON","Diana Reeves","905-623-8500","travelhojo@live.com"]
["66115","B/W PLUS Strathroy Gateway Hotel & Conf. Ctr.","Strathroy","ON","Meena Sharma","No phone number yet","meena@regalcrafthomes.com"]
["66116","B/W PLUS Woodstock Inn & Suites","Woodstock","ON","Ravindra (Ravi) Patel","519-537-2320","ravi@bwpluswoodstock.ca"]
["66117","B/W PLUS Waterfront Hotel","Windsor","ON","Tammy Mercer/Darko Vranich","519-973-5555","tammy@vrancor.com; darko@vrancor.com"]
["66118","B/W PLUS Pelee Resort","Leamington","ON","Carolyn/Ray Gupta","519-326-8646","carolyn@sunraygroup.ca/gupta@eagle.ca"]
["66119","B/W PLUS & Conference Centre Toronto Airport","Toronto","ON","Satish Chopra - Sam","416-241-8513","chopsoninc@hotmail.com"]
["66120","B/W PREMIER Northwood Hotel","Timmins","ON","Carole Rheault-Gibouleau","No Phone Yet","carole@cyrheault.com"]
["66121","B/W PREMIER Toronto Nova","Toronto","ON","Simritpal (SIM) Gill","416-637-7000","simgill@gmail.com"]
["66122","B/W PLUS Arden Park Hotel","Stratford","ON","Tina Childs/V.R Hayter","519-275-2936","ardenpk@orc.ca; tchilds@wightman.ca"]
["66123","B/W TBD","London","ON","Bill Windsor","519-457-1200","bill@theprune.com"]
["67007","B/W PREMIER Hotel L'Aristocrate","Quebec City","QC","Roxanne Eusanio","418-653-2841","r.eusanio@hotelaristocrate.com"]
["67009","B/W PLUS Hotel St. Jerome","Saint Jerome","QC","Tommy","450-438-1155","bwestern@laurentides.net"]
["67011","B/W PLUS Montreal Airport Hotel","Dorval (Montreal)","QC","Magda Mishriky, GM","514-631-4811","magda@bwdorval.ca"]
["67012","B/W Ville-Marie Hotel & Suites","Montreal","QC","Mr. Salem Tohme","514-288-4141","salem@hotelvillemarie.com"]
["67013","B/W PLUS Montreal Downtown-Hotel Europa","Montreal","QC","Francisco Gonzalez Gil","514-866-6492","fggil@hoteleuropa.com"]
["67015","B/W PLUS Gatineau-Ottawa","Gatineau (Ottawa Area)","QC","Najwa Farhat","819-770-8550","NFarhat@bwcartier.ca"]
["67016","B/W PLUS Brossard","Brossard (Montreal Area)","QC","Kelly LeBlanc","450-466-6756","best.western@videotron.ca"]
["67019","B/W PLUS Hotel Universel Drummondville","Drummondville","QC","Serge Dufresne","819-478-4971","sdufresne@universel.com"]
["67020","B/W PLUS City Centre/Centre-Ville","Quebec","QC","Marie Dinel & Michel Lafleur","418-649-1919","mdinel@hotelquebec.com; mlafleur@hotelquebec.com"]
["67023","B/W PLUS Albert Centre-Ville","Rouyn-Noranda","QC","Cindy / Dominic Brule- GM","819-762-3545","bestwestern.rn@hotmail.com"]
["67024","B/W PLUS Hotel Mont-Laurier","Mont-Laurier","QC","Normand Latreille","819-623-5252","n.latreille@hoteldynastie.ca"]
["67026","B/W PLUS Laval-Montreal","Laval","QC","Melanie Gaudreau/Manuel Vasquez","450-681-9000","MGaudreau@chateauneuflaval.com"]
["67027","B/W PLUS Hotel Levesque","Riviere-du-Loup","QC","Stéphanie Lévesque","418-862-6927","adm@hotellevesque.com"]
["68015","B/W Royal Hotel","Saskatoon","SK",null,"306-244-5552"]
["68018","B/W Seven Oaks Inn","Regina","SK","Glen Weir - VM/Dave","306-757-0121","BW7OAKS@SASKTEL.NET"]
["68019","B/W PLUS Inn","Swift Current","SK","Bob Bowers","306-773-4660","b.bowers@bestwestern.sk.ca"]
["68023","B/W Marquis Inn & Suites","Prince Albert","SK","Ms. Lise McKenna","306-922-9595","marquisinn.mgr@sasktel.net"]
["68024","B/W Yorkton Inn & Suites","Yorkton","SK","John Anderson","306-783-3297","john@daysinnyorkton.ca"]
["68025","B/W PLUS Blairmore","Saskatoon","SK","Curtis Zwack/Natalie Szankar","306-242-2299","gm@bestwesternblairmore.com"]
["68026","B/W PLUS Estevan Inn & Suites","Estevan","SK","Raj Sandhu/Twyla Bauman (GM)","604-582-8500","raj@avswindows.com; teakus@hotmail.com"]
["68028","B/W PLUS Eastgate Inn & Suites","Regina","SK","Steven Dyck","306-352-7857","steven.dyck@bestwesterneastgateregina.com"]
["68029","B/W PLUS East Side","Saskatoon","SK","Curtis Zwack","DO NOT CALL UNTIL 7/15/14 -","czwack@shaw.ca"]
["68030","B/W PLUS Moose Jaw","Moose Jaw","SK","Lauire Miller/David Hwang","306-972-3334","lauriemiller@mjhotel.ca; david.hwang73@gmail.com"]
["69001","B/W Charlottetown","Charlottetown","PE","Carol / Alley / Walter VanBeek- GM","902-892-2461","cpayne@silverbirchhotels.com"]
["71010","B/W PLUS Emerald Beach Resort","St Thomas","VI","Genia Vanterpool","340-777-8800","reservations@emeraldbeach.com"]
["71011","B/W Carib Beach Resort","St Thomas","VI","Mr. Joel Kling","340-774-2525","joel@emeraldbeach.com"]
["71017","B/W PLUS Bay View Suites","Paradise Island (Nassau)","BS","Hiltrud Augustin","242-363-2555","info@bwbayviewsuites.com"]
["71022","B/W PREMIER Petion-Ville","Port-au-Prince","CB","Lisa Harper/Astrid Aime","662-455-5777","lharper@centrada.com; astridaime12@gmail.com"]
["71023","B/W PLUS Condado Palm & Suites","San Juan","PR","Miguel Rivas/Jose Suarez","787-721-9500","mrivas@condadopalm.com; jsuarez@ihepr.com"]

{"sheet":"PLANS","index":13,"n_rows":79,"n_cols":14,"rows_kept":79,"cut":false,"hidden":true,"merged":[]}
["Resort","Resort_Name",null,null,null,"Property Number",{"$f":"COVER!$B$9","v":0}]
["CRS Rate Plans"]
[]
[]
[]
[]
[]
[]
[]
[]
[null,null,null,null,null,null,null,null,null,null,null,null,"Published PlanRate","Last Rm Avail Status'"]
[null,null,null,null,null,null,null,null,null,null,null,null,"3M","3A"]
[null,null,null,null,null,null,null,null,null,null,null,null,"CG","CK"]
[null,null,null,null,null,null,null,null,null,null,null,null,"FI","HY"]
[null,null,null,null,null,null,null,null,null,null,null,null,"FX","N"]
[null,null,null,null,null,null,null,null,null,null,null,null,"JG","RP"]
[null,null,null,null,null,null,null,null,null,null,null,null,"UC","GY"]
[null,null,null,null,null,null,null,null,null,null,null,null,"XA","GN"]
[null,null,null,null,null,null,null,null,null,null,null,null,"XB","FX"]
[null,null,null,null,null,null,null,null,null,null,null,null,"XC","OF"]
[null,null,null,null,null,null,null,null,null,null,null,null,"XD","OG"]
[null,null,null,null,null,null,null,null,null,null,null,null,"XE",92]
[null,null,null,null,null,null,null,null,null,null,null,null,"XF",{"$f":"COUNTA(N12:N22)","v":11}]
[null,null,null,null,null,null,null,null,null,null,null,null,"XG"]
[null,null,null,null,null,null,null,null,null,null,null,null,"XH"]
[null,null,null,null,null,null,null,null,null,null,null,null,"XI"]
[null,null,null,null,null,null,null,null,null,null,null,null,"XJ"]
[null,null,null,null,null,null,null,null,null,null,null,null,"XK"]
[null,null,null,null,null,null,null,null,null,null,null,null,"XL"]
[null,null,null,null,null,null,null,null,null,null,null,null,"XM"]
[null,null,null,null,null,null,null,null,null,null,null,null,"XN"]
[null,null,null,null,null,null,null,null,null,null,null,null,"XO"]
[null,null,null,null,null,null,null,null,null,null,null,null,"XP"]
[null,null,null,null,null,null,null,null,null,null,null,null,"XQ"]
[null,null,null,null,null,null,null,null,null,null,null,null,"XR"]
[null,null,null,null,null,null,null,null,null,null,null,null,"XS"]
[null,null,null,null,null,null,null,null,null,null,null,null,"XT"]
[null,null,null,null,null,null,null,null,null,null,null,null,"XU"]
[null,null,null,null,null,null,null,null,null,null,null,null,"XV"]
[null,null,null,null,null,null,null,null,null,null,null,null,"XW"]
[null,null,null,null,null,null,null,null,null,null,null,null,"XY"]
[null,null,null,null,null,null,null,null,null,null,null,null,"XZ"]
[null,null,null,null,null,null,null,null,null,null,null,null,"Z1"]
[null,null,null,null,null,null,null,null,null,null,null,null,"Z2"]
[null,null,null,null,null,null,null,null,null,null,null,null,"Z3"]
[null,null,null,null,null,null,null,null,null,null,null,null,"Z4"]
[null,null,null,null,null,null,null,null,null,null,null,null,"Z5"]
[null,null,null,null,null,null,null,null,null,null,null,null,"Z6"]
[null,null,null,null,null,null,null,null,null,null,null,null,"Z7"]
[null,null,null,null,null,null,null,null,null,null,null,null,"Z8"]
[null,null,null,null,null,null,null,null,null,null,null,null,"ZA"]
[null,null,null,null,null,null,null,null,null,null,null,null,"ZB"]
[null,null,null,null,null,null,null,null,null,null,null,null,"ZC"]
[null,null,null,null,null,null,null,null,null,null,null,null,"ZD"]
[null,null,null,null,null,null,null,null,null,null,null,null,"ZE"]
[null,null,null,null,null,null,null,null,null,null,null,null,"ZF"]
[null,null,null,null,null,null,null,null,null,null,null,null,"ZG"]
[null,null,null,null,null,null,null,null,null,null,null,null,"ZH"]
[null,null,null,null,null,null,null,null,null,null,null,null,"ZI"]
[null,null,null,null,null,null,null,null,null,null,null,null,"ZJ"]
[null,null,null,null,null,null,null,null,null,null,null,null,"ZK"]
[null,null,null,null,null,null,null,null,null,null,null,null,"ZL"]
[null,null,null,null,null,null,null,null,null,null,null,null,"ZM"]
[null,null,null,null,null,null,null,null,null,null,null,null,"ZN"]
[null,null,null,null,null,null,null,null,null,null,null,null,"ZO"]
[null,null,null,null,null,null,null,null,null,null,null,null,"ZP"]
[null,null,null,null,null,null,null,null,null,null,null,null,"ZQ"]
[null,null,null,null,null,null,null,null,null,null,null,null,"ZR"]
[null,null,null,null,null,null,null,null,null,null,null,null,"ZS"]
[null,null,null,null,null,null,null,null,null,null,null,null,"ZT"]
[null,null,null,null,null,null,null,null,null,null,null,null,"ZU"]
[null,null,null,null,null,null,null,null,null,null,null,null,"ZV"]
[null,null,null,null,null,null,null,null,null,null,null,null,"ZW"]
[null,null,null,null,null,null,null,null,null,null,null,null,"ZX"]
[null,null,null,null,null,null,null,null,null,null,null,null,"ZY"]
[null,null,null,null,null,null,null,null,null,null,null,null,"ZZ"]
[null,null,null,null,null,null,null,null,null,null,null,null,"3D"]
[null,null,null,null,null,null,null,null,null,null,null,null,92]
[null,null,null,null,null,null,null,null,null,null,null,null,{"$f":"COUNTA(M12:M78)","v":67}]

{"sheet":"GTD Cancel Policy Set-Up","index":14,"n_rows":65,"n_cols":12,"rows_kept":65,"cut":false,"hidden":false,"merged":[[5,0,5,10],[3,0,3,10],[0,6,0,7],[0,8,0,9],[2,0,2,10],[4,0,4,10]]}
["GTD Cancel Policy",null,null,null,null,null,"Property #",null,99999]
[]
["The Guarantee/ Cancel Policy for the rate plans listed below appear in  Best Western CRS and supported reservation channels. The Rate Plans tab of this worksheet  illustrate if the Guarantee/ Cancel Policy can be changed through your property management system. "]
["If there are any questions regarding the columns, please contact your Implementation Analyst"]
[]
[]
["Rate Code","Begin Date","End Date","Guarantee Type","Cancel Policy","Day 1","Day 2","Day 3","Day 4","Day 5","Day 6","Day 7"]
["1R","2012-11-14","2099-12-31","GTD","72H","Y","Y","Y","Y","Y","Y","Y"]
["3A","2014-01-05","2099-12-31","GTD","4PM","Y","Y","Y","Y","Y","Y","Y"]
["92","2014-01-05","2099-12-31","GTD","4PM","Y","Y","Y","Y","Y","Y","Y"]
["AC","2008-11-06","2099-12-31","HOLD","4PM","Y","Y","Y","Y","Y","Y","Y"]
["AE","2011-08-07","2099-12-31","GTD","4PM","Y","Y","Y","Y","Y","Y","Y"]
["D","2011-08-10","2099-12-31","FULLPAY","01Y","Y","Y","Y","Y","Y","Y","Y"]
["D2","2009-11-17","2099-12-13","GTD","24H","Y","Y","Y","Y","Y","Y","Y"]
["DBAN","2014-10-17","2099-12-31","GTD","6PM","Y","Y","Y","Y","Y","Y","Y"]
["EB","2007-06-21","2099-12-31","FULLPAY","01Y","Y","Y","Y","Y","Y","Y","Y"]
["EE","2011-08-07","2099-12-31","GTD","4PM","Y","Y","Y","Y","Y","Y","Y"]
["FF","2011-07-05","2099-12-31","GTD","6PM","Y","Y","Y","Y","Y","Y","Y"]
["FI","2011-08-07","2099-12-31","GTD","4PM","Y","Y","Y","Y","Y","Y","Y"]
["FX","2011-08-07","2099-12-31","GTD","4PM","Y","Y","Y","Y","Y","Y","Y"]
["HL","2010-07-08","2099-12-31","GTD","72H","Y","Y","Y","Y","Y","Y","Y"]
["HP","2013-12-29","2015-12-26","GTD","6PM","Y","Y","Y","Y","Y","Y","Y"]
["HP","2015-12-27","2016-01-02","GTD","4PM","N","N","N","N","N","Y","Y"]
["HP","2015-12-27","2016-01-02","GTD","6PM","Y","Y","Y","Y","Y","N","N"]
["HP","2016-01-03","2099-12-31","GTD","4PM","Y","Y","Y","Y","Y","Y","Y"]
["HY","2014-01-05","2099-12-31","GTD","4PM","Y","Y","Y","Y","Y","Y","Y"]
["JZ","2013-12-29","2015-12-26","GTD","6PM","Y","Y","Y","Y","Y","Y","Y"]
["JZ","2015-12-27","2016-01-02","GTD","4PM","N","N","N","N","N","Y","Y"]
["JZ","2015-12-27","2016-01-02","GTD","6PM","Y","Y","Y","Y","Y","N","N"]
["JZ","2016-01-03","2099-12-31","GTD","4PM","Y","Y","Y","Y","Y","Y","Y"]
["MY","2010-06-04","2099-12-31","FULLPAY","01Y","Y","Y","Y","Y","Y","Y","Y"]
["QD","2010-03-19","2099-12-31","GTD","6PM","Y","Y","Y","Y","Y","Y","Y"]
["RACK","2013-12-29","2015-12-26","GTD","6PM","Y","Y","Y","Y","Y","Y","Y"]
["RACK","2015-12-27","2016-01-02","GTD","4PM","N","N","N","N","N","Y","Y"]
["RACK","2015-12-27","2016-01-02","GTD","6PM","Y","Y","Y","Y","Y","N","N"]
["RACK","2016-01-03","2099-12-31","GTD","4PM","Y","Y","Y","Y","Y","Y","Y"]
["SR","2011-08-07","2099-12-31","GTD","48H","Y","Y","Y","Y","Y","Y","Y"]
["UC","2011-08-07","2099-12-31","GTD","4PM","Y","Y","Y","Y","Y","Y","Y"]
["UZ","2013-12-29","2015-12-26","GTD","6PM","Y","Y","Y","Y","Y","Y","Y"]
["UZ","2015-12-27","2016-01-02","GTD","6PM","Y","Y","Y","Y","Y","N","N"]
["UZ","2016-01-03","2099-12-31","GTD","6PM","Y","Y","Y","N","N","N","N"]
["V8","2013-12-29","2015-12-26","GTD","6PM","Y","Y","Y","Y","Y","Y","Y"]
["V8","2015-12-27","2016-01-02","GTD","4PM","N","N","N","N","N","Y","Y"]
["V8","2015-12-27","2016-01-02","GTD","6PM","Y","Y","Y","Y","Y","N","N"]
["V8","2016-01-03","2099-12-31","GTD","4PM","Y","Y","Y","Y","Y","Y","Y"]
["VR","2014-01-05","2015-12-26","GTD","6PM","Y","Y","Y","Y","Y","Y","Y"]
["VR","2015-12-27","2016-01-02","GTD","6PM","N","N","N","N","N","Y","Y"]
["VR","2015-12-27","2016-01-02","GTD","6PM","Y","Y","Y","Y","Y","N","N"]
["VR","2016-01-03","2099-12-31","GTD","6PM","Y","Y","Y","Y","Y","Y","Y"]
["WD","2010-02-10","2099-12-31","GTD","48H","Y","Y","Y","Y","Y","Y","Y"]
["WW","2014-06-06","2099-12-31","FULLPAY","01Y","Y","Y","Y","Y","Y","Y","Y"]
["X2","2010-06-01","2099-12-31","GTD","24H","Y","Y","Y","Y","Y","Y","Y"]
["XN","2011-08-07","2099-12-31","GTD","4PM","Y","Y","Y","Y","Y","Y","Y"]
["XW","2011-08-07","2099-12-31","GTD","4PM","Y","Y","Y","Y","Y","Y","Y"]
["XZ","2012-07-08","2099-12-31","GTD","6PM","Y","Y","Y","Y","Y","Y","Y"]
["YE","2014-06-06","2099-12-31","GTD","48H","Y","Y","Y","Y","Y","Y","Y"]
["Z1","2014-01-02","2099-12-31","GTD","6PM","Y","Y","Y","Y","Y","Y","Y"]
["Z2","2007-06-21","2099-12-31","GTD","4PM","Y","Y","Y","Y","Y","Y","Y"]
["Z5","2011-08-07","2099-12-31","GTD","4PM","Y","Y","Y","Y","Y","Y","Y"]
["Z6","2013-02-20","2099-12-31","GTD","6PM","Y","Y","Y","Y","Y","Y","Y"]
["Z7","2013-09-06","2099-12-31","GTD","24H","Y","Y","Y","Y","Y","Y","Y"]
["ZK","2014-02-27","2099-12-31","GTD","6PM","Y","Y","Y","Y","Y","Y","Y"]
["ZL","2014-02-06","2099-12-31","GTD","6PM","Y","Y","Y","Y","Y","Y","Y"]
["ZM","2014-02-19","2099-12-31","GTD","6PM","Y","Y","Y","Y","Y","Y","Y"]
["ZU","2014-03-04","2099-12-31","GTD","6PM","Y","Y","Y","Y","Y","Y","Y"]

{"sheet":"PaymentProcessing","index":15,"n_rows":43,"n_cols":5,"rows_kept":43,"cut":false,"hidden":true,"merged":[[1,2,1,10],[11,1,11,9],[21,1,21,9],[42,1,42,9]]}
[]
[null,null,"Reservation Payment Processing Program Initiation Request Form"]
[]
[]
[]
[]
[]
[null,null,null,"Property Number: ",{"$f":"COVER!C12","v":"999999"}]
[null,null,null,"Property Name: ",{"$f":"COVER!C13","v":"BW Demo Hotel"}]
[null,null,null,"Property City & State: ",{"$f":"COVER!C14","v":"Dortmund, Germany"}]
[]
[null,"I am the Voting Member for the above property and I agree to participate in in Best Western's Reservation Payment Processing Program. I understand that to participate in this program that a Clear Commerce Storefront will be set up onmy behalf and my property will be billed $149.00 USD. "]
[]
[null,null,null,"Voting Member Name:"]
[]
[null,null,null,"Voting Member Signature:"]
[]
[null,null,null,"Date: "]
[]
[]
[]
[null,"We understand that you as the Voting Member may not be the on-site contact responsible for the Reservation Payment Processing Program. If you would like to provide us an alternate contact, we will ensure that this person is provided with pertinent communications relative to this program."]
[]
[null,null,null,"  No, please send communication only to me."]
[]
[null,null,null,"  Yes, please send communication related to this project to the following;"]
[]
[null,null,"Name: "]
[]
[null,null,"Title: "]
[]
[null,null,"e-mail: "]
[]
[]
[null,null,null,"Voting Member Name:"]
[]
[null,null,null,"Voting Member Signature:"]
[]
[null,null,null,"Date: "]
[]
[]
[]
[null,"Please fax this completed form to (602) 957-5888"]